Workbook

Sheet Instructions
A1: TAXATION PAR SECTEUR
A2: VERSION DU 2025-05-08
A4: Terme | D4: Définition
A6: Taux sectoriel uniformisé (Taux unique appliqué à l'ensemble des immeubles du secteur) | C6: • | D6: Le taux sectoriel uniformisé correspond à la moyenne des taux sectoriels de la taxe foncière générale pondérés selon la proportion que représente la somme des valeurs imposables des immeubles situés dans le secteur auquel s’applique le taux sectoriel par rapport à la somme des valeurs imposables des immeubles situés dans l’ensemble du territoire de la municipalité.
A7: Taux sectoriel (Taux unique appliqué à l'ensemble des immeubles du secteur) | C7: • | D7: Taux appliqué à l'ensemble des immeubles d'un secteur.
C8: • | D8: Les taux sectoriels doivent être entre 66,6 % et 133,3 % du taux sectoriel uniformisé.
A9: Taux de base uniformisé (Régime d'impôt à taux variés) | C9: • | D9: Lors de l'utilisation du régime d'impôt à taux variés, le taux de base uniformisé correspond à la moyenne des taux de base sectoriels pondérés selon la proportion que représente la somme des valeurs imposables des immeubles situés dans le secteur auquel s’applique le taux de base sectoriel par rapport à la somme des valeurs imposables des immeubles situés dans l’ensemble du territoire de la municipalité.
A10: Taux de base sectoriel (Régime d'impôt à taux variés) | C10: • | D10: Le taux de base sectoriel est le taux appliqué à la catégorie ou à la sous-catégorie résiduelle du secteur dans le cas où il y a des sous-catégories d'immeubles résidentiels.
A11: Valeur imposable pour les secteurs | C11: • | D11: Outre leur sens ordinaire, les valeurs imposables des secteurs incluent les valeurs non imposables dans le cas où : a) les taxes foncières doivent être payées à l’égard d’un immeuble conformément au premier alinéa de l’article 208; b) une somme correspondant au montant des taxes foncières municipales qui seraient payables à l’égard d’un immeuble, si celui-ci était imposable, doit être versée soit par le gouvernement conformément au deuxième alinéa de l’article 210 ou au premier alinéa des articles 254 et 255, soit par la Couronne du chef du Canada ou l’un de ses mandataires.
A13: ** AVERTISSEMENT **
A14: Toutes les parties du territoire de la municipalité doivent être comprises dans un secteur.
A15: Le fichier calcule des taux sectoriels uniformisés ou des taux de base uniformisés uniquement lorsqu'il y a une assiette de valeur imposable et un taux.
A16: Chaque secteur doit avoir un taux sectoriel ou un taux de base sectoriel afin d'avoir un taux uniformisé valable.
A18: CALCUL DES TAUX VARIÉS (TAXE FONCIÈRE GÉNÉRALE) — ÉTAPES À SUIVRE
A20: Étape | B20: Onglet | C20: Instructions/Description
A21: 1 | B21: Sommaire du rôle_sec 1 | C21: • | D21: Cliquer sur le bouton « Réinitialisation » (s'il y a lieu).
B22: Sommaire du rôle_sec 2 | C22: • | D22: Inscrire les assiettes dans les cases appropriées pour chacun des secteurs.
B23: Sommaire du rôle_sec 3 | C23: • | D23: Le fichier peut avoir 5 secteurs.
B24: Sommaire du rôle_sec 4
B25: Sommaire du rôle_sec 5
A27: 2 | B27: Scénario — Taux variés | C27: • | D27: Cliquer sur le bouton « Réinitialisation » (s'il y a lieu).
C28: • | D28: Inscrire le nom de la municipalité, l'année, la population et le montant total de la taxe foncière générale prévu dans le budget de la municipalité.
C29: • | D29: Inscrire les multiples du taux de base retenus afin de calculer les taux variés.
C30: • | D30: Il est à noter : le bouton « Scénario taux unique par secteur » calcule par défaut un taux unique pour l'ensemble des assiettes de chacun des secteurs. Il suffit de définir le taux de base sectoriel et celui sera reporté aux autres catégories d'immeubles.
C31: • | D31: L'utilisateur doit s'assurer que les multiples du taux de base qu'il a retenus respectent les balises prévues dans la Loi. Dans l'éventualité où l'un des multiples retenus ne respecte pas ces balises, un message d'erreur va apparaître. Pour plus de précisions sur les balises, référez-vous à l'onglet :
D32: Balises-Taux
A34: 3 | B34: Résultats du scénario | C34: • | D34: Une fois le scénario choisi, les taux variés de la taxe foncière générale calculés pour chacune des assiettes foncières d'imposition à l'aide du simulateur apparaissent dans cet onglet.
A36: Le fichier contient certains onglets qui sont masqués et qui servent à faire des calculs. Ceux-ci peuvent être affichés au besoin.
A40: NOTES
A41: Les calculs des montants et des taux provenant du simulateur ne sont pas arrondis. Des montants arrondis et des taux arrondis pourraient demander un rajustement.
A42: Les calculs effectués par le simulateur ne constituent pas un avis juridique ni un avis officiel du MAMH et ils ne remplacent pas la lecture de la Loi.
A43: Il est possible de modifier les graphiques.
A45: Pour tout problème lié au simulateur, veuillez écrire à : | D45: info.dgftc@gouv.qc.ca

Sheet Sommaire du rôle_sec_1
B2: ASSIETTES D'APPLICATION DES TAUX DE LA TAXE FONCIÈRE GÉNÉRALE 9
B3: TAUX APPLICABLES | F3: TAUX NON RÉSIDENTIEL | H3: TAUX INDUSTRIEL (CLASSE 2) | J3: TAUX IND. (SAUF CL.1 ET 2) | L3: TAUX AGRICOLE | N3: TAUX FORESTIER | P3: TAUX CATÉGORIE RÉSIDUELLE
B4: NOMBRE DE SECTEURS | S4: =IF(OR(F4>0,H4>0,J4>0,L4>0,N4>0,P4>0),"UTILISER LE SIMULATEUR POUR LA TAXATION DE SECTEUR","-") -> -
B5: CLASSE NON RÉSIDENTIELLE ET | F5: VAL. NR À 100 % ET IND. CL. 2 À 50 % | H5: VALEUR À 50 % | J5: VALEUR À 100 % | L5: VALEURS À 100 % IMPOSABLES | N5: VALEURS À 100 % IMPOSABLES | P5: VALEUR À 100 %
B6: POURCENTAGE DE TAXATION | F6: IMPOSABLES | G6: COMPENSABLES | H6: IMPOSABLES | I6: COMPENSABLES | J6: IMPOSABLES | K6: COMPENSABLES | L6: 270604300 | N6: 50000000 | P6: IMPOSABLES | Q6: COMPENSABLES
B7: 1A | C7: : 0,1 % | E7: 901 | F7: 76534150 | G7: 0 | O7: 99,9 % | P7: 76534150 | Q7: 0
B8: 1B | C8: : 0,5 % | E8: 902 | F8: 34712370 | G8: 0 | O8: 99,5 % | P8: 34712370 | Q8: 0
B9: 1C | C9: : 1 % | E9: 903 | F9: 4894450 | G9: 0 | O9: 99 % | P9: 4894450 | Q9: 0
B10: 2 | C10: : 3 % | E10: 904 | F10: 23616670 | G10: 0 | J10: 605900 | O10: 97 % | P10: 23616670 | Q10: 0
B11: 3 | C11: : 6 % | E11: 905 | F11: 44153450 | G11: 0 | J11: 181400 | O11: 94 % | P11: 44153450 | Q11: 0
B12: 4 | C12: : 12 % | E12: 906 | F12: 60256460 | G12: 0 | J12: 215700 | O12: 88 % | P12: 60256460 | Q12: 0
B13: 5 | C13: : 22 % | E13: 907 | F13: 38643990 | G13: 0 | O13: 78 % | P13: 38643990 | Q13: 0
B14: 6 | C14: : 40 % | E14: 908 | F14: 38532890 | G14: 0 | H14: 290100 | J14: 2421200 | O14: 60 % | P14: 38532890 | Q14: 0
B15: 7 | C15: : 60 % | E15: 909 | F15: 39569365 | G15: 72376370 | H15: 350350 | J15: 354000 | O15: 40 % | P15: 39569365 | Q15: 72376370
B16: 8 | C16: : 85 % | E16: 910 | F16: 22323070 | G16: 211592260 | J16: 1875900 | O16: 15 % | P16: 22323070 | Q16: 211592260
B17: 9 | C17: : 100 % | E17: 911 | F17: 3177900 | G17: 0 | L17: TAUX TERRAINS VAGUES DESSERVIS
B18: 10 | C18: : 100 % | E18: 912 | F18: 1155755205 | G18: 61905690 | H18: 10515650 | J18: 225704400 | K18: 2325200 | P18: 8068032861 | Q18: 2100780
B19: 11 | C19: : Cours de triage 100 % | E19: 913 | L19: VALEURS À 100 %
B20: 12 | C20: : CHSLD 20 % | E20: 914 | F20: 13938200 | L20: IMPOSABLES | N20: COMPENSABLES | O20: 80 % | P20: =F20 -> 13938200
B21: 13 | C21: : Cours de triage 40 % | E21: 915 | G21: CFIL (chemin de fer d'intérêt local) | O21: 60 % | P21: =F21 -> 0
B22: APPLICATION DU TNR QUAND TTVD | E22: 916 | F22: 5228300 | I22: (TTVD − TAUX DE BASE) x | L22: =F22 -> 5228300 | N22: =G22 -> 0
B23: ASSIETTES D'APPLICATION | E23: 917 | F23: =F71+F72 -> 1529652563 | I23: =H71+H72 -> 241701840 | K23: (TTVD) x | L23: 76716400 | N23: 58400 | P23: =O71+O72 -> 8447691868
B25: ASSIETTES D'APPLICATION DES TAUX RELATIFS AUX SOUS-CATÉGORIES DES IMMEUBLES NON RÉSIDENTIELS (si applicables)
B26: DÉNOMINATION DE LA SOUS-CATÉGORIE | F26: TAUX SOUS-CATÉGORIE DE RÉFÉRENCE | H26: TAUX SOUS-CATÉGORIE 1 | J26: TAUX SOUS-CATÉGORIE 2 | L26: TAUX SOUS-CATÉGORIE 3 | N26: TAUX SOUS-CATÉGORIE 4 | P26: TAUX SOUS-CATÉGORIE 5 | R26: TAUX SOUS-CATÉGORIE 6 | T26: TAUX SOUS-CATÉGORIE 7 | V26: TAUX SOUS-CATÉGORIE 8 | X26: TAUX SOUS-CATÉGORIE 9 | Z26: TAUX SOUS-CATÉGORIE 10
H27: SNR 1 | J27: SNR 2 | L27: SNR 3 | N27: SNR 4 | P27: SNR 5 | R27: SNR 6 | T27: SNR 7 | V27: SNR 8 | X27: SNR 9 | Z27: SNR 10
B28: NOMBRE DE SECTEURS
B29: POURCENTAGE DE TAXATION | F29: IMPOSABLES | G29: COMPENSABLES | H29: IMPOSABLES | I29: COMPENSABLES | J29: IMPOSABLES | K29: COMPENSABLES | L29: IMPOSABLES | M29: COMPENSABLES | N29: IMPOSABLES | O29: COMPENSABLES | P29: IMPOSABLES | Q29: COMPENSABLES | R29: IMPOSABLES | S29: COMPENSABLES | T29: IMPOSABLES | U29: COMPENSABLES | V29: IMPOSABLES | W29: COMPENSABLES | X29: IMPOSABLES | Y29: COMPENSABLES | Z29: IMPOSABLES | AA29: COMPENSABLES
B30: 1A | C30: 0,1 % | E30: =E22+1 -> 917 | F30: 6957650 | H30: 6957650 | J30: 6957650 | L30: 6957650 | N30: 6957650 | P30: 6957650 | R30: 6957650 | T30: 6957650 | V30: 6957650 | X30: 6957650 | Z30: 6957650
B31: 1B | C31: 0,5 % | E31: =E30+1 -> 918 | F31: 3155670 | H31: 3155670 | J31: 3155670 | L31: 3155670 | N31: 3155670 | P31: 3155670 | R31: 3155670 | T31: 3155670 | V31: 3155670 | X31: 3155670 | Z31: 3155670
B32: 1C | C32: 1 % | E32: 919 | F32: 444950 | H32: 444950 | J32: 444950 | L32: 444950 | N32: 444950 | P32: 444950 | R32: 444950 | T32: 444950 | V32: 444950 | X32: 444950 | Z32: 444950
B33: 2 | C33: 3 % | E33: 920 | F33: 2146970 | H33: 2146970 | J33: 2146970 | L33: 2146970 | N33: 2146970 | P33: 2146970 | R33: 2146970 | T33: 2146970 | V33: 2146970 | X33: 2146970 | Z33: 2146970
B34: 3 | C34: 6 % | E34: 921 | F34: 4013950 | H34: 4013950 | J34: 4013950 | L34: 4013950 | N34: 4013950 | P34: 4013950 | R34: 4013950 | T34: 4013950 | V34: 4013950 | X34: 4013950 | Z34: 4013950
B35: 4 | C35: 12 % | E35: 922 | F35: 5477860 | H35: 5477860 | J35: 5477860 | L35: 5477860 | N35: 5477860 | P35: 5477860 | R35: 5477860 | T35: 5477860 | V35: 5477860 | X35: 5477860 | Z35: 5477860
B36: 5 | C36: 22 % | E36: 923 | F36: 3513090 | H36: 3513090 | J36: 3513090 | L36: 3513090 | N36: 3513090 | P36: 3513090 | R36: 3513090 | T36: 3513090 | V36: 3513090 | X36: 3513090 | Z36: 3513090
B37: 6 | C37: 40 % | E37: 924 | F37: 3502990 | H37: 3502990 | J37: 3502990 | L37: 3502990 | N37: 3502990 | P37: 3502990 | R37: 3502990 | T37: 3502990 | V37: 3502990 | X37: 3502990 | Z37: 3502990
B38: 7 | C38: 60 % | E38: 925 | F38: 3597215 | G38: 6579670 | H38: 3597215 | I38: 6579670 | J38: 3597215 | K38: 6579670 | L38: 3597215 | M38: 6579670 | N38: 3597215 | O38: 6579670 | P38: 3597215 | Q38: 6579670 | R38: 3597215 | S38: 6579670 | T38: 3597215 | U38: 6579670 | V38: 3597215 | W38: 6579670 | X38: 3597215 | Y38: 6579670 | Z38: 3597215 | AA38: 6579670
B39: 8 | C39: 85 % | E39: 926 | F39: 2029370 | G39: 19235660 | H39: 2029370 | I39: 19235660 | J39: 2029370 | K39: 19235660 | L39: 2029370 | M39: 19235660 | N39: 2029370 | O39: 19235660 | P39: 2029370 | Q39: 19235660 | R39: 2029370 | S39: 19235660 | T39: 2029370 | U39: 19235660 | V39: 2029370 | W39: 19235660 | X39: 2029370 | Y39: 19235660 | Z39: 2029370 | AA39: 19235660
B40: 9 | C40: 100 % | E40: 927 | F40: 288900 | H40: 288900 | J40: 288900 | L40: 288900 | N40: 288900 | P40: 288900 | R40: 288900 | T40: 288900 | V40: 288900 | X40: 288900 | Z40: 288900
B41: 10 | C41: 100 % | E41: 928 | F41: 105068655 | G41: 5627790 | H41: 105068655 | I41: 5627790 | J41: 105068655 | K41: 5627790 | L41: 105068655 | M41: 5627790 | N41: 105068655 | O41: 5627790 | P41: 105068655 | Q41: 5627790 | R41: 105068655 | S41: 5627790 | T41: 105068655 | U41: 5627790 | V41: 105068655 | W41: 5627790 | X41: 105068655 | Y41: 5627790 | Z41: 105068655 | AA41: 5627790
B42: 11 | C42: Cours de triage 100 % | E42: 929
B43: 12 | C43: CHSLD 20 % | E43: 930 | F43: 13938200
B44: 13 | C44: Cours de triage 40 % | E44: 931 | G44: CFIL
B45: APPLICATION DU TNR QUAND TTVD | E45: 932 | F45: 5228300
B46: ASSIETTES D'APPLICATION | E46: 933 | F46: =F77+F78 -> 146346542.1 | H46: =G77+G78 -> 138330602.1 | J46: =H77+H78 -> 138330602.1 | L46: =I77+I78 -> 138330602.1 | N46: =J77+J78 -> 138330602.1 | P46: =K77+K78 -> 138330602.1 | R46: =L77+L78 -> 138330602.1 | T46: =M77+M78 -> 138330602.1 | V46: =N77+N78 -> 138330602.1 | X46: =O77+O78 -> 138330602.1 | Z46: =P77+P78 -> 138330602.1
B48: ASSIETTES D'APPLICATION DES TAUX RELATIFS AUX SOUS-CATÉGORIES DES IMMEUBLES RÉSIDENTIELS (si applicables)
B49: DÉNOMINATION DE LA SOUS-CATÉGORIE | F49: TAUX SOUS-CATÉGORIE RÉSIDUELLE | H49: TAUX SOUS-CATÉGORIE 1 | J49: TAUX SOUS-CATÉGORIE 2 | L49: TAUX SOUS-CATÉGORIE 3 | N49: TAUX SOUS-CATÉGORIE 4 | P49: TAUX SOUS-CATÉGORIE 5 | R49: TAUX SOUS-CATÉGORIE 6 | T49: TAUX SOUS-CATÉGORIE 7 | V49: TAUX SOUS-CATÉGORIE 8 | X49: TAUX SOUS-CATÉGORIE 9 | Z49: TAUX SOUS-CATÉGORIE 10
H50: SR1 | J50: SR2 | L50: SR3 | N50: SR4 | P50: SR5 | R50: SR6 | T50: SR7 | V50: SR8 | X50: SR9 | Z50: SR10
B51: NOMBRE DE SECTEURS
B52: POURCENTAGE DE TAXATION | F52: IMPOSABLES | G52: COMPENSABLES | H52: IMPOSABLES | I52: COMPENSABLES | J52: IMPOSABLES | K52: COMPENSABLES | L52: IMPOSABLES | M52: COMPENSABLES | N52: IMPOSABLES | O52: COMPENSABLES | P52: IMPOSABLES | Q52: COMPENSABLES | R52: IMPOSABLES | S52: COMPENSABLES | T52: IMPOSABLES | U52: COMPENSABLES | V52: IMPOSABLES | W52: COMPENSABLES | X52: IMPOSABLES | Y52: COMPENSABLES | Z52: IMPOSABLES | AA52: COMPENSABLES
B53: 1A | C53: 99,9 % | E53: 935 | F53: 6957650 | H53: 6957650 | J53: 6957650 | L53: 6957650 | N53: 6957650 | P53: 6957650 | R53: 6957650 | T53: 6957650 | V53: 6957650 | X53: 6957650 | Z53: 6957650
B54: 1B | C54: 99,5 % | E54: =E53+1 -> 936 | F54: 3155670 | H54: 3155670 | J54: 3155670 | L54: 3155670 | N54: 3155670 | P54: 3155670 | R54: 3155670 | T54: 3155670 | V54: 3155670 | X54: 3155670 | Z54: 3155670
B55: 1C | C55: 99 % | E55: 937 | F55: 444950 | H55: 444950 | J55: 444950 | L55: 444950 | N55: 444950 | P55: 444950 | R55: 444950 | T55: 444950 | V55: 444950 | X55: 444950 | Z55: 444950
B56: 2 | C56: 97 % | E56: 938 | F56: 2146970 | H56: 2146970 | J56: 2146970 | L56: 2146970 | N56: 2146970 | P56: 2146970 | R56: 2146970 | T56: 2146970 | V56: 2146970 | X56: 2146970 | Z56: 2146970
B57: 3 | C57: 94 % | E57: 939 | F57: 4013950 | H57: 4013950 | J57: 4013950 | L57: 4013950 | N57: 4013950 | P57: 4013950 | R57: 4013950 | T57: 4013950 | V57: 4013950 | X57: 4013950 | Z57: 4013950
B58: 4 | C58: 88 % | E58: 940 | F58: 5477860 | H58: 5477860 | J58: 5477860 | L58: 5477860 | N58: 5477860 | P58: 5477860 | R58: 5477860 | T58: 5477860 | V58: 5477860 | X58: 5477860 | Z58: 5477860
B59: 5 | C59: 78 % | E59: 941 | F59: 3513090 | H59: 3513090 | J59: 3513090 | L59: 3513090 | N59: 3513090 | P59: 3513090 | R59: 3513090 | T59: 3513090 | V59: 3513090 | X59: 3513090 | Z59: 3513090
B60: 6 | C60: 60 % | E60: 942 | F60: 3502990 | H60: 3502990 | J60: 3502990 | L60: 3502990 | N60: 3502990 | P60: 3502990 | R60: 3502990 | T60: 3502990 | V60: 3502990 | X60: 3502990 | Z60: 3502990
B61: 7 | C61: 40 % | E61: 943 | F61: 3597215 | G61: 6579670 | H61: 3597215 | I61: 6579670 | J61: 3597215 | K61: 6579670 | L61: 3597215 | M61: 6579670 | N61: 3597215 | O61: 6579670 | P61: 3597215 | Q61: 6579670 | R61: 3597215 | S61: 6579670 | T61: 3597215 | U61: 6579670 | V61: 3597215 | W61: 6579670 | X61: 3597215 | Y61: 6579670 | Z61: 3597215 | AA61: 6579670
B62: 8 | C62: 15 % | E62: 944 | F62: 2029370 | G62: 19235660 | H62: 2029370 | I62: 19235660 | J62: 2029370 | K62: 19235660 | L62: 2029370 | M62: 19235660 | N62: 2029370 | O62: 19235660 | P62: 2029370 | Q62: 19235660 | R62: 2029370 | S62: 19235660 | T62: 2029370 | U62: 19235660 | V62: 2029370 | W62: 19235660 | X62: 2029370 | Y62: 19235660 | Z62: 2029370 | AA62: 19235660
B63: 9 | C63: 100% immeubles sans partie non résidentielle | E63: 945 | F63: 733457532.8 | G63: 190980 | H63: 733457532.8 | I63: 190980 | J63: 733457532.8 | K63: 190980 | L63: 733457532.8 | M63: 190980 | N63: 733457532.8 | O63: 190980 | P63: 733457532.8 | Q63: 190980 | R63: 733457532.8 | S63: 190980 | T63: 733457532.8 | U63: 190980 | V63: 733457532.8 | W63: 190980 | X63: 733457532.8 | Y63: 190980 | Z63: 733457532.8 | AA63: 190980
B64: 12 | C64: CHSLD 80 % | E64: 946 | F64: 13938200
B65: 13 | C65: Cours de triage 60 % | E65: 947
B66: ASSIETTES D'APPLICATION | E66: 948 | F66: =F83+F84 -> 778108860.7 | H66: =G83+G84 -> 766958300.7 | J66: =H83+H84 -> 766958300.7 | L66: =I83+I84 -> 766958300.7 | N66: =J83+J84 -> 766958300.7 | P66: =K83+K84 -> 766958300.7 | R66: =L83+L84 -> 766958300.7 | T66: =M83+M84 -> 766958300.7 | V66: =N83+N84 -> 766958300.7 | X66: =O83+O84 -> 766958300.7 | Z66: =P83+P84 -> 766958300.7
F69: TAUX NON RÉSIDENTIEL | H69: TAUX INDUSTRIEL | L69: TAUX TERRAINS VAGUES DESSERVIS | O69: TAUX CATÉGORIE RÉSIDUELLE (TAUX DE BASE)
C71: Assiette imposable | F71: ='Détermination_sec_1 '!G23 -> 1244467630 | H71: ='Détermination_sec_1 '!G41+'Détermination_sec_1 '!G59 -> 239376640 | L71: =L23 -> 76716400 | O71: ='Détermination_sec_1 '!G78 -> 8384901701
C72: Assiette compensable | F72: ='Détermination_sec_1 '!H23 -> 285184933 | H72: ='Détermination_sec_1 '!H41+'Détermination_sec_1 '!H59 -> 2325200 | L72: =N23 -> 58400 | O72: ='Détermination_sec_1 '!H78 -> 62790167
B74: Sous-catégorie des immeubles non résidentiels
F75: TAUX SOUS-CATÉGORIE DE RÉFÉRENCE | G75: Sous-catégorie 1 | H75: Sous-catégorie 2 | I75: Sous-catégorie 3 | J75: Sous-catégorie 4 | K75: Sous-catégorie 5 | L75: Sous-catégorie 6 | M75: Sous-catégorie 7 | N75: Sous-catégorie 8 | O75: Sous-catégorie 9 | P75: Sous-catégorie 10
C77: Assiette imposable | F77: ='Détermination_sec_1 '!G100 -> 120420639.1 | G77: ='Détermination_sec_1 '!G122 -> 112404699.1 | H77: ='Détermination_sec_1 '!R122 -> 112404699.1 | I77: ='Détermination_sec_1 '!AC122 -> 112404699.1 | J77: ='Détermination_sec_1 '!AN122 -> 112404699.1 | K77: ='Détermination_sec_1 '!AY122 -> 112404699.1 | L77: ='Détermination_sec_1 '!BJ122 -> 112404699.1 | M77: ='Détermination_sec_1 '!BU122 -> 112404699.1 | N77: ='Détermination_sec_1 '!CF122 -> 112404699.1 | O77: ='Détermination_sec_1 '!CQ122 -> 112404699.1 | P77: ='Détermination_sec_1 '!DB122 -> 112404699.1
C78: Assiette compensable | F78: ='Détermination_sec_1 '!H100 -> 25925903 | G78: ='Détermination_sec_1 '!H122 -> 25925903 | H78: ='Détermination_sec_1 '!S122 -> 25925903 | I78: ='Détermination_sec_1 '!AD122 -> 25925903 | J78: ='Détermination_sec_1 '!AO122 -> 25925903 | K78: ='Détermination_sec_1 '!AZ122 -> 25925903 | L78: ='Détermination_sec_1 '!BK122 -> 25925903 | M78: ='Détermination_sec_1 '!BV122 -> 25925903 | N78: ='Détermination_sec_1 '!CG122 -> 25925903 | O78: ='Détermination_sec_1 '!CR122 -> 25925903 | P78: ='Détermination_sec_1 '!DC122 -> 25925903
B80: Sous-catégorie des immeubles résidentiels
F81: TAUX SOUS-CATÉGORIE RÉSIDUELLE | G81: Sous-catégorie 1 | H81: Sous-catégorie 2 | I81: Sous-catégorie 3 | J81: Sous-catégorie 4 | K81: Sous-catégorie 5 | L81: Sous-catégorie 6 | M81: Sous-catégorie 7 | N81: Sous-catégorie 8 | O81: Sous-catégorie 9 | P81: Sous-catégorie 10
C83: Assiette imposable | F83: ='Détermination_sec_1 '!G141 -> 772400663.7 | G83: ='Détermination_sec_1 '!G160 -> 761250103.7 | H83: ='Détermination_sec_1 '!R160 -> 761250103.7 | I83: ='Détermination_sec_1 '!AC160 -> 761250103.7 | J83: ='Détermination_sec_1 '!AN160 -> 761250103.7 | K83: ='Détermination_sec_1 '!AY160 -> 761250103.7 | L83: ='Détermination_sec_1 '!BJ160 -> 761250103.7 | M83: ='Détermination_sec_1 '!BU160 -> 761250103.7 | N83: ='Détermination_sec_1 '!CF160 -> 761250103.7 | O83: ='Détermination_sec_1 '!CQ160 -> 761250103.7 | P83: ='Détermination_sec_1 '!DB160 -> 761250103.7
C84: Assiette compensable | F84: ='Détermination_sec_1 '!H141 -> 5708197 | G84: ='Détermination_sec_1 '!H160 -> 5708197 | H84: ='Détermination_sec_1 '!S160 -> 5708197 | I84: ='Détermination_sec_1 '!AD160 -> 5708197 | J84: ='Détermination_sec_1 '!AO160 -> 5708197 | K84: ='Détermination_sec_1 '!AZ160 -> 5708197 | L84: ='Détermination_sec_1 '!BK160 -> 5708197 | M84: ='Détermination_sec_1 '!BV160 -> 5708197 | N84: ='Détermination_sec_1 '!CG160 -> 5708197 | O84: ='Détermination_sec_1 '!CR160 -> 5708197 | P84: ='Détermination_sec_1 '!DC160 -> 5708197

Sheet Détermination_sec_1 (hidden)
A1: DÉTERMINATION DES ASSIETTES
A3: ASSIETTE AU TAUX NON RÉSIDENTIEL
A4: Classe non résidentielle | B4: Pourcentage de taxation | D4: VAL. NR À 100 % ET IND. CL. 2 À 50 %
D5: Imposables | E5: Compensables | G5: Imposables pondérées | H5: Compensables pondérées | J5: Total
B6: (1) | D6: (2) | E6: (3) | G6: (4) = (1) X (2) | H6: (5) = (1 ) X (3) | J6: (6) = (4) + (5)
A7: 1A | B7: 0.001 | D7: ='Sommaire du rôle_sec_1'!F7 -> 76534150 | E7: ='Sommaire du rôle_sec_1'!G7 -> 0 | G7: =B7*D7 -> 76534.15 | H7: =B7*E7 -> 0 | J7: =G7+H7 -> 76534.15
A8: 1B | B8: 0.005 | D8: ='Sommaire du rôle_sec_1'!F8 -> 34712370 | E8: ='Sommaire du rôle_sec_1'!G8 -> 0 | G8: 173561.85 | H8: 0 | J8: 173561.85
A9: 1C | B9: 0.01 | D9: ='Sommaire du rôle_sec_1'!F9 -> 4894450 | E9: ='Sommaire du rôle_sec_1'!G9 -> 0 | G9: 48944.5 | H9: 0 | J9: 48944.5
A10: 2 | B10: 0.03 | D10: ='Sommaire du rôle_sec_1'!F10 -> 23616670 | E10: ='Sommaire du rôle_sec_1'!G10 -> 0 | G10: 708500.1 | H10: 0 | J10: 708500.1
A11: 3 | B11: 0.06 | D11: ='Sommaire du rôle_sec_1'!F11 -> 44153450 | E11: ='Sommaire du rôle_sec_1'!G11 -> 0 | G11: 2649207 | H11: 0 | J11: 2649207
A12: 4 | B12: 0.12 | D12: ='Sommaire du rôle_sec_1'!F12 -> 60256460 | E12: ='Sommaire du rôle_sec_1'!G12 -> 0 | G12: 7230775.2 | H12: 0 | J12: 7230775.2
A13: 5 | B13: 0.22 | D13: ='Sommaire du rôle_sec_1'!F13 -> 38643990 | E13: ='Sommaire du rôle_sec_1'!G13 -> 0 | G13: 8501677.8 | H13: 0 | J13: 8501677.8
A14: 6 | B14: 0.4 | D14: ='Sommaire du rôle_sec_1'!F14 -> 38532890 | E14: ='Sommaire du rôle_sec_1'!G14 -> 0 | G14: 15413156 | H14: 0 | J14: 15413156
A15: 7 | B15: 0.6 | D15: ='Sommaire du rôle_sec_1'!F15 -> 39569365 | E15: ='Sommaire du rôle_sec_1'!G15 -> 72376370 | G15: 23741619 | H15: 43425822 | J15: 67167441
A16: 8 | B16: 0.85 | D16: ='Sommaire du rôle_sec_1'!F16 -> 22323070 | E16: ='Sommaire du rôle_sec_1'!G16 -> 211592260 | G16: 18974609.5 | H16: 179853421 | J16: 198828030.5
A17: 9 | B17: 1 | D17: ='Sommaire du rôle_sec_1'!F17 -> 3177900 | E17: ='Sommaire du rôle_sec_1'!G17 -> 0 | G17: 3177900 | H17: 0 | J17: 3177900
A18: 10 | B18: 1 | D18: ='Sommaire du rôle_sec_1'!F18 -> 1155755205 | E18: ='Sommaire du rôle_sec_1'!G18 -> 61905690 | G18: 1155755205 | H18: 61905690 | J18: 1217660895
A19: 11 Cours de triage | B19: 100% | D19: ='Sommaire du rôle_sec_1'!F19 -> 0 | E19: ='Sommaire du rôle_sec_1'!G19 -> 0 | G19: 0 | H19: 0 | J19: 0
A20: 12 CHSLD | B20: 0.2 | D20: ='Sommaire du rôle_sec_1'!F20 -> 13938200 | G20: 2787640 | J20: 2787640
A21: 13 Cours de triage 40 % | B21: 40% | D21: ='Sommaire du rôle_sec_1'!F21 -> 0 | G21: 0 | J21: 0
A22: APPLICATION DU TNR QUAND TTVD | B22: 1 | D22: ='Sommaire du rôle_sec_1'!F22 -> 5228300 | E22: ='Sommaire du rôle_sec_1'!G22 -> 0 | G22: 5228300 | H22: =B22*E22 -> 0 | J22: 5228300
A23: Total | G23: =SUM(G7:G22) -> 1244467630 | H23: =SUM(H7:H22) -> 285184933 | J23: 1529652563
A25: ASSIETTE AU TAUX INDUSTRIEL (CLASSE 2)
A26: Classe non résidentielle | B26: Pourcentage de taxation | D26: VALEUR À 50 %
D27: Imposables | E27: Compensables | G27: Imposables pondérées | H27: Compensables pondérées | J27: Total
B28: (1) | D28: (2) | E28: (3) | G28: (4) = (1) X (2) | H28: (5) = (1) X (3) | J28: (6) = (4) + (5)
A29: 1A | B29: 0.001 | D29: ='Sommaire du rôle_sec_1'!H7 -> 0 | E29: ='Sommaire du rôle_sec_1'!I7 -> 0 | G29: =B29*D29 -> 0 | H29: =B29*E29 -> 0 | J29: =G29+H29 -> 0
A30: 1B | B30: 0.005 | D30: ='Sommaire du rôle_sec_1'!H8 -> 0 | E30: ='Sommaire du rôle_sec_1'!I8 -> 0 | G30: 0 | H30: 0 | J30: 0
A31: 1C | B31: 0.01 | D31: ='Sommaire du rôle_sec_1'!H9 -> 0 | E31: ='Sommaire du rôle_sec_1'!I9 -> 0 | G31: 0 | H31: 0 | J31: 0
A32: 2 | B32: 0.03 | D32: ='Sommaire du rôle_sec_1'!H10 -> 0 | E32: ='Sommaire du rôle_sec_1'!I10 -> 0 | G32: 0 | H32: 0 | J32: 0
A33: 3 | B33: 0.06 | D33: ='Sommaire du rôle_sec_1'!H11 -> 0 | E33: ='Sommaire du rôle_sec_1'!I11 -> 0 | G33: 0 | H33: 0 | J33: 0
A34: 4 | B34: 0.12 | D34: ='Sommaire du rôle_sec_1'!H12 -> 0 | E34: ='Sommaire du rôle_sec_1'!I12 -> 0 | G34: 0 | H34: 0 | J34: 0
A35: 5 | B35: 0.22 | D35: ='Sommaire du rôle_sec_1'!H13 -> 0 | E35: ='Sommaire du rôle_sec_1'!I13 -> 0 | G35: 0 | H35: 0 | J35: 0
A36: 6 | B36: 0.4 | D36: ='Sommaire du rôle_sec_1'!H14 -> 290100 | E36: ='Sommaire du rôle_sec_1'!I14 -> 0 | G36: 116040 | H36: 0 | J36: 116040
A37: 7 | B37: 0.6 | D37: ='Sommaire du rôle_sec_1'!H15 -> 350350 | E37: ='Sommaire du rôle_sec_1'!I15 -> 0 | G37: 210210 | H37: 0 | J37: 210210
A38: 8 | B38: 0.85 | D38: ='Sommaire du rôle_sec_1'!H16 -> 0 | E38: ='Sommaire du rôle_sec_1'!I16 -> 0 | G38: 0 | H38: 0 | J38: 0
A39: 9 | B39: 1 | D39: ='Sommaire du rôle_sec_1'!H17 -> 0 | E39: ='Sommaire du rôle_sec_1'!I17 -> 0 | G39: 0 | H39: 0 | J39: 0
A40: 10 | B40: 1 | D40: ='Sommaire du rôle_sec_1'!H18 -> 10515650 | E40: ='Sommaire du rôle_sec_1'!I18 -> 0 | G40: 10515650 | H40: 0 | J40: 10515650
A41: Total | G41: =SUM(G29:G40) -> 10841900 | H41: =SUM(H29:H40) -> 0 | J41: 10841900
A43: ASSIETTE AU TAUX IND. (SAUF CL.1 ET 2)
A44: Classe non résidentielle | B44: Pourcentage de taxation | D44: VALEUR À 100 %
D45: Imposables | E45: Compensables | G45: Imposables pondérées | H45: Compensables pondérées | J45: Total
B46: (1) | D46: (2) | E46: (3) | G46: (4) = (1) X (2) | H46: (5) = (1) X (3) | J46: (6) = (4) + (5)
A47: 1A | B47: 0.001 | D47: ='Sommaire du rôle_sec_1'!J7 -> 0 | E47: ='Sommaire du rôle_sec_1'!K7 -> 0 | G47: =B47*D47 -> 0 | H47: =B47*E47 -> 0 | J47: =G47+H47 -> 0
A48: 1B | B48: 0.005 | D48: ='Sommaire du rôle_sec_1'!J8 -> 0 | E48: ='Sommaire du rôle_sec_1'!K8 -> 0 | G48: 0 | H48: 0 | J48: 0
A49: 1C | B49: 0.01 | D49: ='Sommaire du rôle_sec_1'!J9 -> 0 | E49: ='Sommaire du rôle_sec_1'!K9 -> 0 | G49: 0 | H49: 0 | J49: 0
A50: 2 | B50: 0.03 | D50: ='Sommaire du rôle_sec_1'!J10 -> 605900 | E50: ='Sommaire du rôle_sec_1'!K10 -> 0 | G50: 18177 | H50: 0 | J50: 18177
A51: 3 | B51: 0.06 | D51: ='Sommaire du rôle_sec_1'!J11 -> 181400 | E51: ='Sommaire du rôle_sec_1'!K11 -> 0 | G51: 10884 | H51: 0 | J51: 10884
A52: 4 | B52: 0.12 | D52: ='Sommaire du rôle_sec_1'!J12 -> 215700 | E52: ='Sommaire du rôle_sec_1'!K12 -> 0 | G52: 25884 | H52: 0 | J52: 25884
A53: 5 | B53: 0.22 | D53: ='Sommaire du rôle_sec_1'!J13 -> 0 | E53: ='Sommaire du rôle_sec_1'!K13 -> 0 | G53: 0 | H53: 0 | J53: 0
A54: 6 | B54: 0.4 | D54: ='Sommaire du rôle_sec_1'!J14 -> 2421200 | E54: ='Sommaire du rôle_sec_1'!K14 -> 0 | G54: 968480 | H54: 0 | J54: 968480
A55: 7 | B55: 0.6 | D55: ='Sommaire du rôle_sec_1'!J15 -> 354000 | E55: ='Sommaire du rôle_sec_1'!K15 -> 0 | G55: 212400 | H55: 0 | J55: 212400
A56: 8 | B56: 0.85 | D56: ='Sommaire du rôle_sec_1'!J16 -> 1875900 | E56: ='Sommaire du rôle_sec_1'!K16 -> 0 | G56: 1594515 | H56: 0 | J56: 1594515
A57: 9 | B57: 1 | D57: ='Sommaire du rôle_sec_1'!J17 -> 0 | E57: ='Sommaire du rôle_sec_1'!K17 -> 0 | G57: 0 | H57: 0 | J57: 0
A58: 10 | B58: 1 | D58: ='Sommaire du rôle_sec_1'!J18 -> 225704400 | E58: ='Sommaire du rôle_sec_1'!K18 -> 2325200 | G58: 225704400 | H58: 2325200 | J58: 228029600
A59: Total | G59: =SUM(G47:G58) -> 228534740 | H59: =SUM(H47:H58) -> 2325200 | J59: 230859940
A61: ASSIETTE AU TAUX DE BASE
A62: Classe non résidentielle | B62: Pourcentage de taxation | D62: VALEUR À 100 %
D63: Imposables | E63: Compensables | G63: Imposables pondérées | H63: Compensables pondérées | J63: Total
B64: (1) | D64: (2) | E64: (3) | G64: (4) = (1) X (2) | H64: (5) = (1) X (3) | J64: (6) = (4) + (5)
A65: 1A | B65: 0.999 | D65: ='Sommaire du rôle_sec_1'!P7 -> 76534150 | E65: ='Sommaire du rôle_sec_1'!Q7 -> 0 | G65: =D65*B65 -> 76457615.85 | H65: =B65*E65 -> 0 | J65: =G65+H65 -> 76457615.85
A66: 1B | B66: 0.995 | D66: ='Sommaire du rôle_sec_1'!P8 -> 34712370 | E66: ='Sommaire du rôle_sec_1'!Q8 -> 0 | G66: 34538808.15 | H66: 0 | J66: 34538808.15
A67: 1C | B67: 0.99 | D67: ='Sommaire du rôle_sec_1'!P9 -> 4894450 | E67: ='Sommaire du rôle_sec_1'!Q9 -> 0 | G67: 4845505.5 | H67: 0 | J67: 4845505.5
A68: 2 | B68: 0.97 | D68: ='Sommaire du rôle_sec_1'!P10 -> 23616670 | E68: ='Sommaire du rôle_sec_1'!Q10 -> 0 | G68: 22908169.9 | H68: 0 | J68: 22908169.9
A69: 3 | B69: 0.94 | D69: ='Sommaire du rôle_sec_1'!P11 -> 44153450 | E69: ='Sommaire du rôle_sec_1'!Q11 -> 0 | G69: 41504243 | H69: 0 | J69: 41504243
A70: 4 | B70: 0.88 | D70: ='Sommaire du rôle_sec_1'!P12 -> 60256460 | E70: ='Sommaire du rôle_sec_1'!Q12 -> 0 | G70: 53025684.8 | H70: 0 | J70: 53025684.8
A71: 5 | B71: 0.78 | D71: ='Sommaire du rôle_sec_1'!P13 -> 38643990 | E71: ='Sommaire du rôle_sec_1'!Q13 -> 0 | G71: 30142312.2 | H71: 0 | J71: 30142312.2
A72: 6 | B72: 0.6 | D72: ='Sommaire du rôle_sec_1'!P14 -> 38532890 | E72: ='Sommaire du rôle_sec_1'!Q14 -> 0 | G72: 23119734 | H72: 0 | J72: 23119734
A73: 7 | B73: 0.4 | D73: ='Sommaire du rôle_sec_1'!P15 -> 39569365 | E73: ='Sommaire du rôle_sec_1'!Q15 -> 72376370 | G73: 15827746 | H73: 28950548 | J73: 44778294
A74: 8 | B74: 0.15 | D74: ='Sommaire du rôle_sec_1'!P16 -> 22323070 | E74: ='Sommaire du rôle_sec_1'!Q16 -> 211592260 | G74: 3348460.5 | H74: 31738839 | J74: 35087299.5
A75: IMMEUBLES SANS PARTIE NON RÉSIDENTIELLE | B75: 1 | D75: ='Sommaire du rôle_sec_1'!P18 -> 8068032861 | E75: ='Sommaire du rôle_sec_1'!Q18 -> 2100780 | G75: 8068032861 | H75: 2100780 | J75: 8070133641
A76: 12 CHSLD | B76: 0.8 | D76: ='Sommaire du rôle_sec_1'!P20 -> 13938200 | G76: 11150560
A77: 13 Cours de triage | B77: 0.6 | D77: ='Sommaire du rôle_sec_1'!P21 -> 0 | G77: 0
A78: Total | G78: =SUM(G65:G77) -> 8384901701 | H78: =SUM(H65:H75) -> 62790167 | I78: =SUM(I65:I75) -> 0 | J78: =G78+H78 -> 8447691868
A80: ASSIETTE AU TAUX NON RÉSIDENTIEL RÉFÉRENCE
A81: Classe non résidentielle | B81: Pourcentage de taxation | D81: VAL. NR À 100 % ET IND. CL. 2 À 50 %
D82: Imposables | E82: Compensables | G82: Imposables pondérées | H82: Compensables pondérées | J82: Total
B83: (1) | D83: (2) | E83: (3) | G83: (4) = (1) X (2) | H83: (5) = (1 ) X (3) | J83: (6) = (4) + (5)
A84: 1A | B84: 0.001 | D84: ='Sommaire du rôle_sec_1'!F30 -> 6957650 | E84: ='Sommaire du rôle_sec_1'!G30 -> 0 | G84: =B84*D84 -> 6957.65 | H84: =B84*E84 -> 0 | J84: =G84+H84 -> 6957.65
A85: 1B | B85: 0.005 | D85: ='Sommaire du rôle_sec_1'!F31 -> 3155670 | E85: ='Sommaire du rôle_sec_1'!G31 -> 0 | G85: 15778.35 | H85: 0 | J85: 15778.35
A86: 1C | B86: 0.01 | D86: ='Sommaire du rôle_sec_1'!F32 -> 444950 | E86: ='Sommaire du rôle_sec_1'!G32 -> 0 | G86: 4449.5 | H86: 0 | J86: 4449.5
A87: 2 | B87: 0.03 | D87: ='Sommaire du rôle_sec_1'!F33 -> 2146970 | E87: ='Sommaire du rôle_sec_1'!G33 -> 0 | G87: 64409.1 | H87: 0 | J87: 64409.1
A88: 3 | B88: 0.06 | D88: ='Sommaire du rôle_sec_1'!F34 -> 4013950 | E88: ='Sommaire du rôle_sec_1'!G34 -> 0 | G88: 240837 | H88: 0 | J88: 240837
A89: 4 | B89: 0.12 | D89: ='Sommaire du rôle_sec_1'!F35 -> 5477860 | E89: ='Sommaire du rôle_sec_1'!G35 -> 0 | G89: 657343.2 | H89: 0 | J89: 657343.2
A90: 5 | B90: 0.22 | D90: ='Sommaire du rôle_sec_1'!F36 -> 3513090 | E90: ='Sommaire du rôle_sec_1'!G36 -> 0 | G90: 772879.8 | H90: 0 | J90: 772879.8
A91: 6 | B91: 0.4 | D91: ='Sommaire du rôle_sec_1'!F37 -> 3502990 | E91: ='Sommaire du rôle_sec_1'!G37 -> 0 | G91: 1401196 | H91: 0 | J91: 1401196
A92: 7 | B92: 0.6 | D92: ='Sommaire du rôle_sec_1'!F38 -> 3597215 | E92: ='Sommaire du rôle_sec_1'!G38 -> 6579670 | G92: 2158329 | H92: 3947802 | J92: 6106131
A93: 8 | B93: 0.85 | D93: ='Sommaire du rôle_sec_1'!F39 -> 2029370 | E93: ='Sommaire du rôle_sec_1'!G39 -> 19235660 | G93: 1724964.5 | H93: 16350311 | J93: 18075275.5
A94: 9 | B94: 1 | D94: ='Sommaire du rôle_sec_1'!F40 -> 288900 | E94: ='Sommaire du rôle_sec_1'!G40 -> 0 | G94: 288900 | H94: 0 | J94: 288900
A95: 10 | B95: 1 | D95: ='Sommaire du rôle_sec_1'!F41 -> 105068655 | E95: ='Sommaire du rôle_sec_1'!G41 -> 5627790 | G95: 105068655 | H95: 5627790 | J95: 110696445
A96: 11 Cours de triage | B96: 100% | D96: ='Sommaire du rôle_sec_1'!F42 -> 0 | E96: ='Sommaire du rôle_sec_1'!G42 -> 0 | G96: 0 | H96: 0 | J96: 0
A97: 12 CHSLD | B97: 0.2 | D97: ='Sommaire du rôle_sec_1'!F43 -> 13938200 | G97: 2787640 | J97: 2787640
A98: 13 Cours de triage 40 % | B98: 40% | D98: ='Sommaire du rôle_sec_1'!F44 -> 0 | G98: 0 | J98: 0
A99: APPLICATION DU TNR QUAND TTVD | B99: 1 | D99: ='Sommaire du rôle_sec_1'!F45 -> 5228300 | E99: ='Sommaire du rôle_sec_1'!G45 -> 0 | G99: 5228300 | H99: =B99*E99 -> 0 | J99: 5228300
A100: Total | G100: =SUM(G84:G99) -> 120420639.1 | H100: =SUM(H84:H99) -> 25925903 | J100: 146346542.1
A102: ASSIETTE AU TAUX NON RÉSIDENTIEL SOUS-CATÉGORIE 1 | L102: ASSIETTE AU TAUX NON RÉSIDENTIEL SOUS-CATÉGORIE 2 | W102: ASSIETTE AU TAUX NON RÉSIDENTIEL SOUS-CATÉGORIE 3 | AH102: ASSIETTE AU TAUX NON RÉSIDENTIEL SOUS-CATÉGORIE 4 | AS102: ASSIETTE AU TAUX NON RÉSIDENTIEL SOUS-CATÉGORIE 5 | BD102: ASSIETTE AU TAUX NON RÉSIDENTIEL SOUS-CATÉGORIE 6 | BO102: ASSIETTE AU TAUX NON RÉSIDENTIEL SOUS-CATÉGORIE 7 | BZ102: ASSIETTE AU TAUX NON RÉSIDENTIEL SOUS-CATÉGORIE 8 | CK102: ASSIETTE AU TAUX NON RÉSIDENTIEL SOUS-CATÉGORIE 9 | CV102: ASSIETTE AU TAUX NON RÉSIDENTIEL SOUS-CATÉGORIE 10
A103: Classe non résidentielle | B103: Pourcentage de taxation | D103: VAL. NR À 100 % ET IND. CL. 2 À 50 % | L103: Classe non résidentielle | M103: Pourcentage de taxation | O103: VAL. NR À 100 % ET IND. CL. 2 À 50 % | W103: Classe non résidentielle | X103: Pourcentage de taxation | Z103: VAL. NR À 100 % ET IND. CL. 2 À 50 % | AH103: Classe non résidentielle | AI103: Pourcentage de taxation | AK103: VAL. NR À 100 % ET IND. CL. 2 À 50 % | AS103: Classe non résidentielle | AT103: Pourcentage de taxation | AV103: VAL. NR À 100 % ET IND. CL. 2 À 50 % | BD103: Classe non résidentielle | BE103: Pourcentage de taxation | BG103: VAL. NR À 100 % ET IND. CL. 2 À 50 % | BO103: Classe non résidentielle | BP103: Pourcentage de taxation | BR103: VAL. NR À 100 % ET IND. CL. 2 À 50 % | BZ103: Classe non résidentielle | CA103: Pourcentage de taxation | CC103: VAL. NR À 100 % ET IND. CL. 2 À 50 % | CK103: Classe non résidentielle | CL103: Pourcentage de taxation | CN103: VAL. NR À 100 % ET IND. CL. 2 À 50 % | CV103: Classe non résidentielle | CW103: Pourcentage de taxation | CY103: VAL. NR À 100 % ET IND. CL. 2 À 50 %
D104: Imposables | E104: Compensables | G104: Imposables pondérées | H104: Compensables pondérées | J104: Total | O104: Imposables | P104: Compensables | R104: Imposables pondérées | S104: Compensables pondérées | U104: Total | Z104: Imposables | AA104: Compensables | AC104: Imposables pondérées | AD104: Compensables pondérées | AF104: Total | AK104: Imposables | AL104: Compensables | AN104: Imposables pondérées | AO104: Compensables pondérées | AQ104: Total | AV104: Imposables | AW104: Compensables | AY104: Imposables pondérées | AZ104: Compensables pondérées | BB104: Total | BG104: Imposables | BH104: Compensables | BJ104: Imposables pondérées | BK104: Compensables pondérées | BM104: Total | BR104: Imposables | BS104: Compensables | BU104: Imposables pondérées | BV104: Compensables pondérées | BX104: Total | CC104: Imposables | CD104: Compensables | CF104: Imposables pondérées | CG104: Compensables pondérées | CI104: Total | CN104: Imposables | CO104: Compensables | CQ104: Imposables pondérées | CR104: Compensables pondérées | CT104: Total | CY104: Imposables | CZ104: Compensables | DB104: Imposables pondérées | DC104: Compensables pondérées | DE104: Total
B105: (1) | D105: (2) | E105: (3) | G105: (4) = (1) X (2) | H105: (5) = (1 ) X (3) | J105: (6) = (4) + (5) | M105: (1) | O105: (2) | P105: (3) | R105: (4) = (1) X (2) | S105: (5) = (1 ) X (3) | U105: (6) = (4) + (5) | X105: (1) | Z105: (2) | AA105: (3) | AC105: (4) = (1) X (2) | AD105: (5) = (1 ) X (3) | AF105: (6) = (4) + (5) | AI105: (1) | AK105: (2) | AL105: (3) | AN105: (4) = (1) X (2) | AO105: (5) = (1 ) X (3) | AQ105: (6) = (4) + (5) | AT105: (1) | AV105: (2) | AW105: (3) | AY105: (4) = (1) X (2) | AZ105: (5) = (1 ) X (3) | BB105: (6) = (4) + (5) | BE105: (1) | BG105: (2) | BH105: (3) | BJ105: (4) = (1) X (2) | BK105: (5) = (1 ) X (3) | BM105: (6) = (4) + (5) | BP105: (1) | BR105: (2) | BS105: (3) | BU105: (4) = (1) X (2) | BV105: (5) = (1 ) X (3) | BX105: (6) = (4) + (5) | CA105: (1) | CC105: (2) | CD105: (3) | CF105: (4) = (1) X (2) | CG105: (5) = (1 ) X (3) | CI105: (6) = (4) + (5) | CL105: (1) | CN105: (2) | CO105: (3) | CQ105: (4) = (1) X (2) | CR105: (5) = (1 ) X (3) | CT105: (6) = (4) + (5) | CW105: (1) | CY105: (2) | CZ105: (3) | DB105: (4) = (1) X (2) | DC105: (5) = (1 ) X (3) | DE105: (6) = (4) + (5)
A106: 1A | B106: 0.001 | D106: ='Sommaire du rôle_sec_1'!H30 -> 6957650 | E106: ='Sommaire du rôle_sec_1'!I30 -> 0 | G106: =B106*D106 -> 6957.65 | H106: =B106*E106 -> 0 | J106: =G106+H106 -> 6957.65 | L106: 1A | M106: 0.001 | O106: ='Sommaire du rôle_sec_1'!J30 -> 6957650 | P106: ='Sommaire du rôle_sec_1'!K30 -> 0 | R106: =M106*O106 -> 6957.65 | S106: =M106*P106 -> 0 | U106: =R106+S106 -> 6957.65 | W106: 1A | X106: 0.001 | Z106: ='Sommaire du rôle_sec_1'!L30 -> 6957650 | AA106: ='Sommaire du rôle_sec_1'!M30 -> 0 | AC106: =X106*Z106 -> 6957.65 | AD106: =X106*AA106 -> 0 | AF106: =AC106+AD106 -> 6957.65 | AH106: 1A | AI106: 0.001 | AK106: ='Sommaire du rôle_sec_1'!N30 -> 6957650 | AL106: ='Sommaire du rôle_sec_1'!O30 -> 0 | AN106: =AI106*AK106 -> 6957.65 | AO106: =AI106*AL106 -> 0 | AQ106: =AN106+AO106 -> 6957.65 | AS106: 1A | AT106: 0.001 | AV106: ='Sommaire du rôle_sec_1'!P30 -> 6957650 | AW106: ='Sommaire du rôle_sec_1'!Q30 -> 0 | AY106: =AT106*AV106 -> 6957.65 | AZ106: =AT106*AW106 -> 0 | BB106: =AY106+AZ106 -> 6957.65 | BD106: 1A | BE106: 0.001 | BG106: ='Sommaire du rôle_sec_1'!R30 -> 6957650 | BH106: ='Sommaire du rôle_sec_1'!S30 -> 0 | BJ106: =BE106*BG106 -> 6957.65 | BK106: =BE106*BH106 -> 0 | BM106: =BJ106+BK106 -> 6957.65 | BO106: 1A | BP106: 0.001 | BR106: ='Sommaire du rôle_sec_1'!T30 -> 6957650 | BS106: ='Sommaire du rôle_sec_1'!U30 -> 0 | BU106: =BP106*BR106 -> 6957.65 | BV106: =BP106*BS106 -> 0 | BX106: =BU106+BV106 -> 6957.65 | BZ106: 1A | CA106: 0.001 | CC106: ='Sommaire du rôle_sec_1'!V30 -> 6957650 | CD106: ='Sommaire du rôle_sec_1'!W30 -> 0 | CF106: =CA106*CC106 -> 6957.65 | CG106: =CA106*CD106 -> 0 | CI106: =CF106+CG106 -> 6957.65 | CK106: 1A | CL106: 0.001 | CN106: ='Sommaire du rôle_sec_1'!X30 -> 6957650 | CO106: ='Sommaire du rôle_sec_1'!Y30 -> 0 | CQ106: =CL106*CN106 -> 6957.65 | CR106: =CL106*CO106 -> 0 | CT106: =CQ106+CR106 -> 6957.65 | CV106: 1A | CW106: 0.001 | CY106: ='Sommaire du rôle_sec_1'!Z30 -> 6957650 | CZ106: ='Sommaire du rôle_sec_1'!AA30 -> 0 | DB106: =CW106*CY106 -> 6957.65 | DC106: =CW106*CZ106 -> 0 | DE106: =DB106+DC106 -> 6957.65
A107: 1B | B107: 0.005 | D107: ='Sommaire du rôle_sec_1'!H31 -> 3155670 | E107: ='Sommaire du rôle_sec_1'!I31 -> 0 | G107: 15778.35 | H107: 0 | J107: 15778.35 | L107: 1B | M107: 0.005 | O107: ='Sommaire du rôle_sec_1'!J31 -> 3155670 | P107: ='Sommaire du rôle_sec_1'!K31 -> 0 | R107: 15778.35 | S107: 0 | U107: 15778.35 | W107: 1B | X107: 0.005 | Z107: ='Sommaire du rôle_sec_1'!L31 -> 3155670 | AA107: ='Sommaire du rôle_sec_1'!M31 -> 0 | AC107: 15778.35 | AD107: 0 | AF107: 15778.35 | AH107: 1B | AI107: 0.005 | AK107: ='Sommaire du rôle_sec_1'!N31 -> 3155670 | AL107: ='Sommaire du rôle_sec_1'!O31 -> 0 | AN107: 15778.35 | AO107: 0 | AQ107: 15778.35 | AS107: 1B | AT107: 0.005 | AV107: ='Sommaire du rôle_sec_1'!P31 -> 3155670 | AW107: ='Sommaire du rôle_sec_1'!Q31 -> 0 | AY107: 15778.35 | AZ107: 0 | BB107: 15778.35 | BD107: 1B | BE107: 0.005 | BG107: ='Sommaire du rôle_sec_1'!R31 -> 3155670 | BH107: ='Sommaire du rôle_sec_1'!S31 -> 0 | BJ107: 15778.35 | BK107: 0 | BM107: 15778.35 | BO107: 1B | BP107: 0.005 | BR107: ='Sommaire du rôle_sec_1'!T31 -> 3155670 | BS107: ='Sommaire du rôle_sec_1'!U31 -> 0 | BU107: 15778.35 | BV107: 0 | BX107: 15778.35 | BZ107: 1B | CA107: 0.005 | CC107: ='Sommaire du rôle_sec_1'!V31 -> 3155670 | CD107: ='Sommaire du rôle_sec_1'!W31 -> 0 | CF107: 15778.35 | CG107: 0 | CI107: 15778.35 | CK107: 1B | CL107: 0.005 | CN107: ='Sommaire du rôle_sec_1'!X31 -> 3155670 | CO107: ='Sommaire du rôle_sec_1'!Y31 -> 0 | CQ107: 15778.35 | CR107: 0 | CT107: 15778.35 | CV107: 1B | CW107: 0.005 | CY107: ='Sommaire du rôle_sec_1'!Z31 -> 3155670 | CZ107: ='Sommaire du rôle_sec_1'!AA31 -> 0 | DB107: 15778.35 | DC107: 0 | DE107: 15778.35
A108: 1C | B108: 0.01 | D108: ='Sommaire du rôle_sec_1'!H32 -> 444950 | E108: ='Sommaire du rôle_sec_1'!I32 -> 0 | G108: 4449.5 | H108: 0 | J108: 4449.5 | L108: 1C | M108: 0.01 | O108: ='Sommaire du rôle_sec_1'!J32 -> 444950 | P108: ='Sommaire du rôle_sec_1'!K32 -> 0 | R108: 4449.5 | S108: 0 | U108: 4449.5 | W108: 1C | X108: 0.01 | Z108: ='Sommaire du rôle_sec_1'!L32 -> 444950 | AA108: ='Sommaire du rôle_sec_1'!M32 -> 0 | AC108: 4449.5 | AD108: 0 | AF108: 4449.5 | AH108: 1C | AI108: 0.01 | AK108: ='Sommaire du rôle_sec_1'!N32 -> 444950 | AL108: ='Sommaire du rôle_sec_1'!O32 -> 0 | AN108: 4449.5 | AO108: 0 | AQ108: 4449.5 | AS108: 1C | AT108: 0.01 | AV108: ='Sommaire du rôle_sec_1'!P32 -> 444950 | AW108: ='Sommaire du rôle_sec_1'!Q32 -> 0 | AY108: 4449.5 | AZ108: 0 | BB108: 4449.5 | BD108: 1C | BE108: 0.01 | BG108: ='Sommaire du rôle_sec_1'!R32 -> 444950 | BH108: ='Sommaire du rôle_sec_1'!S32 -> 0 | BJ108: 4449.5 | BK108: 0 | BM108: 4449.5 | BO108: 1C | BP108: 0.01 | BR108: ='Sommaire du rôle_sec_1'!T32 -> 444950 | BS108: ='Sommaire du rôle_sec_1'!U32 -> 0 | BU108: 4449.5 | BV108: 0 | BX108: 4449.5 | BZ108: 1C | CA108: 0.01 | CC108: ='Sommaire du rôle_sec_1'!V32 -> 444950 | CD108: ='Sommaire du rôle_sec_1'!W32 -> 0 | CF108: 4449.5 | CG108: 0 | CI108: 4449.5 | CK108: 1C | CL108: 0.01 | CN108: ='Sommaire du rôle_sec_1'!X32 -> 444950 | CO108: ='Sommaire du rôle_sec_1'!Y32 -> 0 | CQ108: 4449.5 | CR108: 0 | CT108: 4449.5 | CV108: 1C | CW108: 0.01 | CY108: ='Sommaire du rôle_sec_1'!Z32 -> 444950 | CZ108: ='Sommaire du rôle_sec_1'!AA32 -> 0 | DB108: 4449.5 | DC108: 0 | DE108: 4449.5
A109: 2 | B109: 0.03 | D109: ='Sommaire du rôle_sec_1'!H33 -> 2146970 | E109: ='Sommaire du rôle_sec_1'!I33 -> 0 | G109: 64409.1 | H109: 0 | J109: 64409.1 | L109: 2 | M109: 0.03 | O109: ='Sommaire du rôle_sec_1'!J33 -> 2146970 | P109: ='Sommaire du rôle_sec_1'!K33 -> 0 | R109: 64409.1 | S109: 0 | U109: 64409.1 | W109: 2 | X109: 0.03 | Z109: ='Sommaire du rôle_sec_1'!L33 -> 2146970 | AA109: ='Sommaire du rôle_sec_1'!M33 -> 0 | AC109: 64409.1 | AD109: 0 | AF109: 64409.1 | AH109: 2 | AI109: 0.03 | AK109: ='Sommaire du rôle_sec_1'!N33 -> 2146970 | AL109: ='Sommaire du rôle_sec_1'!O33 -> 0 | AN109: 64409.1 | AO109: 0 | AQ109: 64409.1 | AS109: 2 | AT109: 0.03 | AV109: ='Sommaire du rôle_sec_1'!P33 -> 2146970 | AW109: ='Sommaire du rôle_sec_1'!Q33 -> 0 | AY109: 64409.1 | AZ109: 0 | BB109: 64409.1 | BD109: 2 | BE109: 0.03 | BG109: ='Sommaire du rôle_sec_1'!R33 -> 2146970 | BH109: ='Sommaire du rôle_sec_1'!S33 -> 0 | BJ109: 64409.1 | BK109: 0 | BM109: 64409.1 | BO109: 2 | BP109: 0.03 | BR109: ='Sommaire du rôle_sec_1'!T33 -> 2146970 | BS109: ='Sommaire du rôle_sec_1'!U33 -> 0 | BU109: 64409.1 | BV109: 0 | BX109: 64409.1 | BZ109: 2 | CA109: 0.03 | CC109: ='Sommaire du rôle_sec_1'!V33 -> 2146970 | CD109: ='Sommaire du rôle_sec_1'!W33 -> 0 | CF109: 64409.1 | CG109: 0 | CI109: 64409.1 | CK109: 2 | CL109: 0.03 | CN109: ='Sommaire du rôle_sec_1'!X33 -> 2146970 | CO109: ='Sommaire du rôle_sec_1'!Y33 -> 0 | CQ109: 64409.1 | CR109: 0 | CT109: 64409.1 | CV109: 2 | CW109: 0.03 | CY109: ='Sommaire du rôle_sec_1'!Z33 -> 2146970 | CZ109: ='Sommaire du rôle_sec_1'!AA33 -> 0 | DB109: 64409.1 | DC109: 0 | DE109: 64409.1
A110: 3 | B110: 0.06 | D110: ='Sommaire du rôle_sec_1'!H34 -> 4013950 | E110: ='Sommaire du rôle_sec_1'!I34 -> 0 | G110: 240837 | H110: 0 | J110: 240837 | L110: 3 | M110: 0.06 | O110: ='Sommaire du rôle_sec_1'!J34 -> 4013950 | P110: ='Sommaire du rôle_sec_1'!K34 -> 0 | R110: 240837 | S110: 0 | U110: 240837 | W110: 3 | X110: 0.06 | Z110: ='Sommaire du rôle_sec_1'!L34 -> 4013950 | AA110: ='Sommaire du rôle_sec_1'!M34 -> 0 | AC110: 240837 | AD110: 0 | AF110: 240837 | AH110: 3 | AI110: 0.06 | AK110: ='Sommaire du rôle_sec_1'!N34 -> 4013950 | AL110: ='Sommaire du rôle_sec_1'!O34 -> 0 | AN110: 240837 | AO110: 0 | AQ110: 240837 | AS110: 3 | AT110: 0.06 | AV110: ='Sommaire du rôle_sec_1'!P34 -> 4013950 | AW110: ='Sommaire du rôle_sec_1'!Q34 -> 0 | AY110: 240837 | AZ110: 0 | BB110: 240837 | BD110: 3 | BE110: 0.06 | BG110: ='Sommaire du rôle_sec_1'!R34 -> 4013950 | BH110: ='Sommaire du rôle_sec_1'!S34 -> 0 | BJ110: 240837 | BK110: 0 | BM110: 240837 | BO110: 3 | BP110: 0.06 | BR110: ='Sommaire du rôle_sec_1'!T34 -> 4013950 | BS110: ='Sommaire du rôle_sec_1'!U34 -> 0 | BU110: 240837 | BV110: 0 | BX110: 240837 | BZ110: 3 | CA110: 0.06 | CC110: ='Sommaire du rôle_sec_1'!V34 -> 4013950 | CD110: ='Sommaire du rôle_sec_1'!W34 -> 0 | CF110: 240837 | CG110: 0 | CI110: 240837 | CK110: 3 | CL110: 0.06 | CN110: ='Sommaire du rôle_sec_1'!X34 -> 4013950 | CO110: ='Sommaire du rôle_sec_1'!Y34 -> 0 | CQ110: 240837 | CR110: 0 | CT110: 240837 | CV110: 3 | CW110: 0.06 | CY110: ='Sommaire du rôle_sec_1'!Z34 -> 4013950 | CZ110: ='Sommaire du rôle_sec_1'!AA34 -> 0 | DB110: 240837 | DC110: 0 | DE110: 240837
A111: 4 | B111: 0.12 | D111: ='Sommaire du rôle_sec_1'!H35 -> 5477860 | E111: ='Sommaire du rôle_sec_1'!I35 -> 0 | G111: 657343.2 | H111: 0 | J111: 657343.2 | L111: 4 | M111: 0.12 | O111: ='Sommaire du rôle_sec_1'!J35 -> 5477860 | P111: ='Sommaire du rôle_sec_1'!K35 -> 0 | R111: 657343.2 | S111: 0 | U111: 657343.2 | W111: 4 | X111: 0.12 | Z111: ='Sommaire du rôle_sec_1'!L35 -> 5477860 | AA111: ='Sommaire du rôle_sec_1'!M35 -> 0 | AC111: 657343.2 | AD111: 0 | AF111: 657343.2 | AH111: 4 | AI111: 0.12 | AK111: ='Sommaire du rôle_sec_1'!N35 -> 5477860 | AL111: ='Sommaire du rôle_sec_1'!O35 -> 0 | AN111: 657343.2 | AO111: 0 | AQ111: 657343.2 | AS111: 4 | AT111: 0.12 | AV111: ='Sommaire du rôle_sec_1'!P35 -> 5477860 | AW111: ='Sommaire du rôle_sec_1'!Q35 -> 0 | AY111: 657343.2 | AZ111: 0 | BB111: 657343.2 | BD111: 4 | BE111: 0.12 | BG111: ='Sommaire du rôle_sec_1'!R35 -> 5477860 | BH111: ='Sommaire du rôle_sec_1'!S35 -> 0 | BJ111: 657343.2 | BK111: 0 | BM111: 657343.2 | BO111: 4 | BP111: 0.12 | BR111: ='Sommaire du rôle_sec_1'!T35 -> 5477860 | BS111: ='Sommaire du rôle_sec_1'!U35 -> 0 | BU111: 657343.2 | BV111: 0 | BX111: 657343.2 | BZ111: 4 | CA111: 0.12 | CC111: ='Sommaire du rôle_sec_1'!V35 -> 5477860 | CD111: ='Sommaire du rôle_sec_1'!W35 -> 0 | CF111: 657343.2 | CG111: 0 | CI111: 657343.2 | CK111: 4 | CL111: 0.12 | CN111: ='Sommaire du rôle_sec_1'!X35 -> 5477860 | CO111: ='Sommaire du rôle_sec_1'!Y35 -> 0 | CQ111: 657343.2 | CR111: 0 | CT111: 657343.2 | CV111: 4 | CW111: 0.12 | CY111: ='Sommaire du rôle_sec_1'!Z35 -> 5477860 | CZ111: ='Sommaire du rôle_sec_1'!AA35 -> 0 | DB111: 657343.2 | DC111: 0 | DE111: 657343.2
A112: 5 | B112: 0.22 | D112: ='Sommaire du rôle_sec_1'!H36 -> 3513090 | E112: ='Sommaire du rôle_sec_1'!I36 -> 0 | G112: 772879.8 | H112: 0 | J112: 772879.8 | L112: 5 | M112: 0.22 | O112: ='Sommaire du rôle_sec_1'!J36 -> 3513090 | P112: ='Sommaire du rôle_sec_1'!K36 -> 0 | R112: 772879.8 | S112: 0 | U112: 772879.8 | W112: 5 | X112: 0.22 | Z112: ='Sommaire du rôle_sec_1'!L36 -> 3513090 | AA112: ='Sommaire du rôle_sec_1'!M36 -> 0 | AC112: 772879.8 | AD112: 0 | AF112: 772879.8 | AH112: 5 | AI112: 0.22 | AK112: ='Sommaire du rôle_sec_1'!N36 -> 3513090 | AL112: ='Sommaire du rôle_sec_1'!O36 -> 0 | AN112: 772879.8 | AO112: 0 | AQ112: 772879.8 | AS112: 5 | AT112: 0.22 | AV112: ='Sommaire du rôle_sec_1'!P36 -> 3513090 | AW112: ='Sommaire du rôle_sec_1'!Q36 -> 0 | AY112: 772879.8 | AZ112: 0 | BB112: 772879.8 | BD112: 5 | BE112: 0.22 | BG112: ='Sommaire du rôle_sec_1'!R36 -> 3513090 | BH112: ='Sommaire du rôle_sec_1'!S36 -> 0 | BJ112: 772879.8 | BK112: 0 | BM112: 772879.8 | BO112: 5 | BP112: 0.22 | BR112: ='Sommaire du rôle_sec_1'!T36 -> 3513090 | BS112: ='Sommaire du rôle_sec_1'!U36 -> 0 | BU112: 772879.8 | BV112: 0 | BX112: 772879.8 | BZ112: 5 | CA112: 0.22 | CC112: ='Sommaire du rôle_sec_1'!V36 -> 3513090 | CD112: ='Sommaire du rôle_sec_1'!W36 -> 0 | CF112: 772879.8 | CG112: 0 | CI112: 772879.8 | CK112: 5 | CL112: 0.22 | CN112: ='Sommaire du rôle_sec_1'!X36 -> 3513090 | CO112: ='Sommaire du rôle_sec_1'!Y36 -> 0 | CQ112: 772879.8 | CR112: 0 | CT112: 772879.8 | CV112: 5 | CW112: 0.22 | CY112: ='Sommaire du rôle_sec_1'!Z36 -> 3513090 | CZ112: ='Sommaire du rôle_sec_1'!AA36 -> 0 | DB112: 772879.8 | DC112: 0 | DE112: 772879.8
A113: 6 | B113: 0.4 | D113: ='Sommaire du rôle_sec_1'!H37 -> 3502990 | E113: ='Sommaire du rôle_sec_1'!I37 -> 0 | G113: 1401196 | H113: 0 | J113: 1401196 | L113: 6 | M113: 0.4 | O113: ='Sommaire du rôle_sec_1'!J37 -> 3502990 | P113: ='Sommaire du rôle_sec_1'!K37 -> 0 | R113: 1401196 | S113: 0 | U113: 1401196 | W113: 6 | X113: 0.4 | Z113: ='Sommaire du rôle_sec_1'!L37 -> 3502990 | AA113: ='Sommaire du rôle_sec_1'!M37 -> 0 | AC113: 1401196 | AD113: 0 | AF113: 1401196 | AH113: 6 | AI113: 0.4 | AK113: ='Sommaire du rôle_sec_1'!N37 -> 3502990 | AL113: ='Sommaire du rôle_sec_1'!O37 -> 0 | AN113: 1401196 | AO113: 0 | AQ113: 1401196 | AS113: 6 | AT113: 0.4 | AV113: ='Sommaire du rôle_sec_1'!P37 -> 3502990 | AW113: ='Sommaire du rôle_sec_1'!Q37 -> 0 | AY113: 1401196 | AZ113: 0 | BB113: 1401196 | BD113: 6 | BE113: 0.4 | BG113: ='Sommaire du rôle_sec_1'!R37 -> 3502990 | BH113: ='Sommaire du rôle_sec_1'!S37 -> 0 | BJ113: 1401196 | BK113: 0 | BM113: 1401196 | BO113: 6 | BP113: 0.4 | BR113: ='Sommaire du rôle_sec_1'!T37 -> 3502990 | BS113: ='Sommaire du rôle_sec_1'!U37 -> 0 | BU113: 1401196 | BV113: 0 | BX113: 1401196 | BZ113: 6 | CA113: 0.4 | CC113: ='Sommaire du rôle_sec_1'!V37 -> 3502990 | CD113: ='Sommaire du rôle_sec_1'!W37 -> 0 | CF113: 1401196 | CG113: 0 | CI113: 1401196 | CK113: 6 | CL113: 0.4 | CN113: ='Sommaire du rôle_sec_1'!X37 -> 3502990 | CO113: ='Sommaire du rôle_sec_1'!Y37 -> 0 | CQ113: 1401196 | CR113: 0 | CT113: 1401196 | CV113: 6 | CW113: 0.4 | CY113: ='Sommaire du rôle_sec_1'!Z37 -> 3502990 | CZ113: ='Sommaire du rôle_sec_1'!AA37 -> 0 | DB113: 1401196 | DC113: 0 | DE113: 1401196
A114: 7 | B114: 0.6 | D114: ='Sommaire du rôle_sec_1'!H38 -> 3597215 | E114: ='Sommaire du rôle_sec_1'!I38 -> 6579670 | G114: 2158329 | H114: 3947802 | J114: 6106131 | L114: 7 | M114: 0.6 | O114: ='Sommaire du rôle_sec_1'!J38 -> 3597215 | P114: ='Sommaire du rôle_sec_1'!K38 -> 6579670 | R114: 2158329 | S114: 3947802 | U114: 6106131 | W114: 7 | X114: 0.6 | Z114: ='Sommaire du rôle_sec_1'!L38 -> 3597215 | AA114: ='Sommaire du rôle_sec_1'!M38 -> 6579670 | AC114: 2158329 | AD114: 3947802 | AF114: 6106131 | AH114: 7 | AI114: 0.6 | AK114: ='Sommaire du rôle_sec_1'!N38 -> 3597215 | AL114: ='Sommaire du rôle_sec_1'!O38 -> 6579670 | AN114: 2158329 | AO114: 3947802 | AQ114: 6106131 | AS114: 7 | AT114: 0.6 | AV114: ='Sommaire du rôle_sec_1'!P38 -> 3597215 | AW114: ='Sommaire du rôle_sec_1'!Q38 -> 6579670 | AY114: 2158329 | AZ114: 3947802 | BB114: 6106131 | BD114: 7 | BE114: 0.6 | BG114: ='Sommaire du rôle_sec_1'!R38 -> 3597215 | BH114: ='Sommaire du rôle_sec_1'!S38 -> 6579670 | BJ114: 2158329 | BK114: 3947802 | BM114: 6106131 | BO114: 7 | BP114: 0.6 | BR114: ='Sommaire du rôle_sec_1'!T38 -> 3597215 | BS114: ='Sommaire du rôle_sec_1'!U38 -> 6579670 | BU114: 2158329 | BV114: 3947802 | BX114: 6106131 | BZ114: 7 | CA114: 0.6 | CC114: ='Sommaire du rôle_sec_1'!V38 -> 3597215 | CD114: ='Sommaire du rôle_sec_1'!W38 -> 6579670 | CF114: 2158329 | CG114: 3947802 | CI114: 6106131 | CK114: 7 | CL114: 0.6 | CN114: ='Sommaire du rôle_sec_1'!X38 -> 3597215 | CO114: ='Sommaire du rôle_sec_1'!Y38 -> 6579670 | CQ114: 2158329 | CR114: 3947802 | CT114: 6106131 | CV114: 7 | CW114: 0.6 | CY114: ='Sommaire du rôle_sec_1'!Z38 -> 3597215 | CZ114: ='Sommaire du rôle_sec_1'!AA38 -> 6579670 | DB114: 2158329 | DC114: 3947802 | DE114: 6106131
A115: 8 | B115: 0.85 | D115: ='Sommaire du rôle_sec_1'!H39 -> 2029370 | E115: ='Sommaire du rôle_sec_1'!I39 -> 19235660 | G115: 1724964.5 | H115: 16350311 | J115: 18075275.5 | L115: 8 | M115: 0.85 | O115: ='Sommaire du rôle_sec_1'!J39 -> 2029370 | P115: ='Sommaire du rôle_sec_1'!K39 -> 19235660 | R115: 1724964.5 | S115: 16350311 | U115: 18075275.5 | W115: 8 | X115: 0.85 | Z115: ='Sommaire du rôle_sec_1'!L39 -> 2029370 | AA115: ='Sommaire du rôle_sec_1'!M39 -> 19235660 | AC115: 1724964.5 | AD115: 16350311 | AF115: 18075275.5 | AH115: 8 | AI115: 0.85 | AK115: ='Sommaire du rôle_sec_1'!N39 -> 2029370 | AL115: ='Sommaire du rôle_sec_1'!O39 -> 19235660 | AN115: 1724964.5 | AO115: 16350311 | AQ115: 18075275.5 | AS115: 8 | AT115: 0.85 | AV115: ='Sommaire du rôle_sec_1'!P39 -> 2029370 | AW115: ='Sommaire du rôle_sec_1'!Q39 -> 19235660 | AY115: 1724964.5 | AZ115: 16350311 | BB115: 18075275.5 | BD115: 8 | BE115: 0.85 | BG115: ='Sommaire du rôle_sec_1'!R39 -> 2029370 | BH115: ='Sommaire du rôle_sec_1'!S39 -> 19235660 | BJ115: 1724964.5 | BK115: 16350311 | BM115: 18075275.5 | BO115: 8 | BP115: 0.85 | BR115: ='Sommaire du rôle_sec_1'!T39 -> 2029370 | BS115: ='Sommaire du rôle_sec_1'!U39 -> 19235660 | BU115: 1724964.5 | BV115: 16350311 | BX115: 18075275.5 | BZ115: 8 | CA115: 0.85 | CC115: ='Sommaire du rôle_sec_1'!V39 -> 2029370 | CD115: ='Sommaire du rôle_sec_1'!W39 -> 19235660 | CF115: 1724964.5 | CG115: 16350311 | CI115: 18075275.5 | CK115: 8 | CL115: 0.85 | CN115: ='Sommaire du rôle_sec_1'!X39 -> 2029370 | CO115: ='Sommaire du rôle_sec_1'!Y39 -> 19235660 | CQ115: 1724964.5 | CR115: 16350311 | CT115: 18075275.5 | CV115: 8 | CW115: 0.85 | CY115: ='Sommaire du rôle_sec_1'!Z39 -> 2029370 | CZ115: ='Sommaire du rôle_sec_1'!AA39 -> 19235660 | DB115: 1724964.5 | DC115: 16350311 | DE115: 18075275.5
A116: 9 | B116: 1 | D116: ='Sommaire du rôle_sec_1'!H40 -> 288900 | E116: ='Sommaire du rôle_sec_1'!I40 -> 0 | G116: 288900 | H116: 0 | J116: 288900 | L116: 9 | M116: 1 | O116: ='Sommaire du rôle_sec_1'!J40 -> 288900 | P116: ='Sommaire du rôle_sec_1'!K40 -> 0 | R116: 288900 | S116: 0 | U116: 288900 | W116: 9 | X116: 1 | Z116: ='Sommaire du rôle_sec_1'!L40 -> 288900 | AA116: ='Sommaire du rôle_sec_1'!M40 -> 0 | AC116: 288900 | AD116: 0 | AF116: 288900 | AH116: 9 | AI116: 1 | AK116: ='Sommaire du rôle_sec_1'!N40 -> 288900 | AL116: ='Sommaire du rôle_sec_1'!O40 -> 0 | AN116: 288900 | AO116: 0 | AQ116: 288900 | AS116: 9 | AT116: 1 | AV116: ='Sommaire du rôle_sec_1'!P40 -> 288900 | AW116: ='Sommaire du rôle_sec_1'!Q40 -> 0 | AY116: 288900 | AZ116: 0 | BB116: 288900 | BD116: 9 | BE116: 1 | BG116: ='Sommaire du rôle_sec_1'!R40 -> 288900 | BH116: ='Sommaire du rôle_sec_1'!S40 -> 0 | BJ116: 288900 | BK116: 0 | BM116: 288900 | BO116: 9 | BP116: 1 | BR116: ='Sommaire du rôle_sec_1'!T40 -> 288900 | BS116: ='Sommaire du rôle_sec_1'!U40 -> 0 | BU116: 288900 | BV116: 0 | BX116: 288900 | BZ116: 9 | CA116: 1 | CC116: ='Sommaire du rôle_sec_1'!V40 -> 288900 | CD116: ='Sommaire du rôle_sec_1'!W40 -> 0 | CF116: 288900 | CG116: 0 | CI116: 288900 | CK116: 9 | CL116: 1 | CN116: ='Sommaire du rôle_sec_1'!X40 -> 288900 | CO116: ='Sommaire du rôle_sec_1'!Y40 -> 0 | CQ116: 288900 | CR116: 0 | CT116: 288900 | CV116: 9 | CW116: 1 | CY116: ='Sommaire du rôle_sec_1'!Z40 -> 288900 | CZ116: ='Sommaire du rôle_sec_1'!AA40 -> 0 | DB116: 288900 | DC116: 0 | DE116: 288900
A117: 10 | B117: 1 | D117: ='Sommaire du rôle_sec_1'!H41 -> 105068655 | E117: ='Sommaire du rôle_sec_1'!I41 -> 5627790 | G117: 105068655 | H117: 5627790 | J117: 110696445 | L117: 10 | M117: 1 | O117: ='Sommaire du rôle_sec_1'!J41 -> 105068655 | P117: ='Sommaire du rôle_sec_1'!K41 -> 5627790 | R117: 105068655 | S117: 5627790 | U117: 110696445 | W117: 10 | X117: 1 | Z117: ='Sommaire du rôle_sec_1'!L41 -> 105068655 | AA117: ='Sommaire du rôle_sec_1'!M41 -> 5627790 | AC117: 105068655 | AD117: 5627790 | AF117: 110696445 | AH117: 10 | AI117: 1 | AK117: ='Sommaire du rôle_sec_1'!N41 -> 105068655 | AL117: ='Sommaire du rôle_sec_1'!O41 -> 5627790 | AN117: 105068655 | AO117: 5627790 | AQ117: 110696445 | AS117: 10 | AT117: 1 | AV117: ='Sommaire du rôle_sec_1'!P41 -> 105068655 | AW117: ='Sommaire du rôle_sec_1'!Q41 -> 5627790 | AY117: 105068655 | AZ117: 5627790 | BB117: 110696445 | BD117: 10 | BE117: 1 | BG117: ='Sommaire du rôle_sec_1'!R41 -> 105068655 | BH117: ='Sommaire du rôle_sec_1'!S41 -> 5627790 | BJ117: 105068655 | BK117: 5627790 | BM117: 110696445 | BO117: 10 | BP117: 1 | BR117: ='Sommaire du rôle_sec_1'!T41 -> 105068655 | BS117: ='Sommaire du rôle_sec_1'!U41 -> 5627790 | BU117: 105068655 | BV117: 5627790 | BX117: 110696445 | BZ117: 10 | CA117: 1 | CC117: ='Sommaire du rôle_sec_1'!V41 -> 105068655 | CD117: ='Sommaire du rôle_sec_1'!W41 -> 5627790 | CF117: 105068655 | CG117: 5627790 | CI117: 110696445 | CK117: 10 | CL117: 1 | CN117: ='Sommaire du rôle_sec_1'!X41 -> 105068655 | CO117: ='Sommaire du rôle_sec_1'!Y41 -> 5627790 | CQ117: 105068655 | CR117: 5627790 | CT117: 110696445 | CV117: 10 | CW117: 1 | CY117: ='Sommaire du rôle_sec_1'!Z41 -> 105068655 | CZ117: ='Sommaire du rôle_sec_1'!AA41 -> 5627790 | DB117: 105068655 | DC117: 5627790 | DE117: 110696445
A118: 11 Cours de triage | B118: 100% | D118: ='Sommaire du rôle_sec_1'!H42 -> 0 | E118: ='Sommaire du rôle_sec_1'!I42 -> 0 | G118: 0 | H118: 0 | J118: 0 | L118: 11 Cours de triage | M118: 100% | O118: ='Sommaire du rôle_sec_1'!J42 -> 0 | P118: ='Sommaire du rôle_sec_1'!K42 -> 0 | R118: 0 | S118: 0 | U118: 0 | W118: 11 Cours de triage | X118: 100% | Z118: ='Sommaire du rôle_sec_1'!L42 -> 0 | AA118: ='Sommaire du rôle_sec_1'!M42 -> 0 | AC118: 0 | AD118: 0 | AF118: 0 | AH118: 11 Cours de triage | AI118: 100% | AK118: ='Sommaire du rôle_sec_1'!N42 -> 0 | AL118: ='Sommaire du rôle_sec_1'!O42 -> 0 | AN118: 0 | AO118: 0 | AQ118: 0 | AS118: 11 Cours de triage | AT118: 100% | AV118: ='Sommaire du rôle_sec_1'!P42 -> 0 | AW118: ='Sommaire du rôle_sec_1'!Q42 -> 0 | AY118: 0 | AZ118: 0 | BB118: 0 | BD118: 11 Cours de triage | BE118: 100% | BG118: ='Sommaire du rôle_sec_1'!R42 -> 0 | BH118: ='Sommaire du rôle_sec_1'!S42 -> 0 | BJ118: 0 | BK118: 0 | BM118: 0 | BO118: 11 Cours de triage | BP118: 100% | BR118: ='Sommaire du rôle_sec_1'!T42 -> 0 | BS118: ='Sommaire du rôle_sec_1'!U42 -> 0 | BU118: 0 | BV118: 0 | BX118: 0 | BZ118: 11 Cours de triage | CA118: 100% | CC118: ='Sommaire du rôle_sec_1'!V42 -> 0 | CD118: ='Sommaire du rôle_sec_1'!W42 -> 0 | CF118: 0 | CG118: 0 | CI118: 0 | CK118: 11 Cours de triage | CL118: 100% | CN118: ='Sommaire du rôle_sec_1'!X42 -> 0 | CO118: ='Sommaire du rôle_sec_1'!Y42 -> 0 | CQ118: 0 | CR118: 0 | CT118: 0 | CV118: 11 Cours de triage | CW118: 100% | CY118: ='Sommaire du rôle_sec_1'!Z42 -> 0 | CZ118: ='Sommaire du rôle_sec_1'!AA42 -> 0 | DB118: 0 | DC118: 0 | DE118: 0
A119: 12 CHSLD | B119: 0.2 | D119: ='Sommaire du rôle_sec_1'!H43 -> 0 | G119: 0 | J119: 0 | L119: 12 CHSLD | M119: 0.2 | O119: ='Sommaire du rôle_sec_1'!J43 -> 0 | R119: 0 | U119: 0 | W119: 12 CHSLD | X119: 0.2 | Z119: ='Sommaire du rôle_sec_1'!L43 -> 0 | AC119: 0 | AF119: 0 | AH119: 12 CHSLD | AI119: 0.2 | AK119: ='Sommaire du rôle_sec_1'!N43 -> 0 | AN119: 0 | AQ119: 0 | AS119: 12 CHSLD | AT119: 0.2 | AV119: ='Sommaire du rôle_sec_1'!P43 -> 0 | AY119: 0 | BB119: 0 | BD119: 12 CHSLD | BE119: 0.2 | BG119: ='Sommaire du rôle_sec_1'!R43 -> 0 | BJ119: 0 | BM119: 0 | BO119: 12 CHSLD | BP119: 0.2 | BR119: ='Sommaire du rôle_sec_1'!T43 -> 0 | BU119: 0 | BX119: 0 | BZ119: 12 CHSLD | CA119: 0.2 | CC119: ='Sommaire du rôle_sec_1'!V43 -> 0 | CF119: 0 | CI119: 0 | CK119: 12 CHSLD | CL119: 0.2 | CN119: ='Sommaire du rôle_sec_1'!X43 -> 0 | CQ119: 0 | CT119: 0 | CV119: 12 CHSLD | CW119: 0.2 | CY119: ='Sommaire du rôle_sec_1'!Z43 -> 0 | DB119: 0 | DE119: 0
A120: 13 Cours de triage 40 % | B120: 40% | D120: ='Sommaire du rôle_sec_1'!H44 -> 0 | G120: 0 | J120: 0 | L120: 13 Cours de triage 40 % | M120: 40% | O120: ='Sommaire du rôle_sec_1'!J44 -> 0 | R120: 0 | U120: 0 | W120: 13 Cours de triage 40 % | X120: 40% | Z120: ='Sommaire du rôle_sec_1'!L44 -> 0 | AC120: 0 | AF120: 0 | AH120: 13 Cours de triage 40 % | AI120: 40% | AK120: ='Sommaire du rôle_sec_1'!N44 -> 0 | AN120: 0 | AQ120: 0 | AS120: 13 Cours de triage 40 % | AT120: 40% | AV120: ='Sommaire du rôle_sec_1'!P44 -> 0 | AY120: 0 | BB120: 0 | BD120: 13 Cours de triage 40 % | BE120: 40% | BG120: ='Sommaire du rôle_sec_1'!R44 -> 0 | BJ120: 0 | BM120: 0 | BO120: 13 Cours de triage 40 % | BP120: 40% | BR120: ='Sommaire du rôle_sec_1'!T44 -> 0 | BU120: 0 | BX120: 0 | BZ120: 13 Cours de triage 40 % | CA120: 40% | CC120: ='Sommaire du rôle_sec_1'!V44 -> 0 | CF120: 0 | CI120: 0 | CK120: 13 Cours de triage 40 % | CL120: 40% | CN120: ='Sommaire du rôle_sec_1'!X44 -> 0 | CQ120: 0 | CT120: 0 | CV120: 13 Cours de triage 40 % | CW120: 40% | CY120: ='Sommaire du rôle_sec_1'!Z44 -> 0 | DB120: 0 | DE120: 0
A121: APPLICATION DU TNR QUAND TTVD | B121: 1 | D121: ='Sommaire du rôle_sec_1'!H45 -> 0 | E121: ='Sommaire du rôle_sec_1'!I45 -> 0 | G121: 0 | H121: =B121*E121 -> 0 | J121: 0 | L121: APPLICATION DU TNR QUAND TTVD | M121: 1 | O121: ='Sommaire du rôle_sec_1'!J45 -> 0 | P121: ='Sommaire du rôle_sec_1'!K45 -> 0 | R121: 0 | S121: =M121*P121 -> 0 | U121: 0 | W121: APPLICATION DU TNR QUAND TTVD | X121: 1 | Z121: ='Sommaire du rôle_sec_1'!L45 -> 0 | AA121: ='Sommaire du rôle_sec_1'!M45 -> 0 | AC121: 0 | AD121: =X121*AA121 -> 0 | AF121: 0 | AH121: APPLICATION DU TNR QUAND TTVD | AI121: 1 | AK121: ='Sommaire du rôle_sec_1'!N45 -> 0 | AL121: ='Sommaire du rôle_sec_1'!O45 -> 0 | AN121: 0 | AO121: =AI121*AL121 -> 0 | AQ121: 0 | AS121: APPLICATION DU TNR QUAND TTVD | AT121: 1 | AV121: ='Sommaire du rôle_sec_1'!P45 -> 0 | AW121: ='Sommaire du rôle_sec_1'!Q45 -> 0 | AY121: 0 | AZ121: =AT121*AW121 -> 0 | BB121: 0 | BD121: APPLICATION DU TNR QUAND TTVD | BE121: 1 | BG121: ='Sommaire du rôle_sec_1'!R45 -> 0 | BH121: ='Sommaire du rôle_sec_1'!S45 -> 0 | BJ121: 0 | BK121: =BE121*BH121 -> 0 | BM121: 0 | BO121: APPLICATION DU TNR QUAND TTVD | BP121: 1 | BR121: ='Sommaire du rôle_sec_1'!T45 -> 0 | BS121: ='Sommaire du rôle_sec_1'!U45 -> 0 | BU121: 0 | BV121: =BP121*BS121 -> 0 | BX121: 0 | BZ121: APPLICATION DU TNR QUAND TTVD | CA121: 1 | CC121: ='Sommaire du rôle_sec_1'!AE45 -> 0 | CD121: ='Sommaire du rôle_sec_1'!AF45 -> 0 | CF121: 0 | CG121: =CA121*CD121 -> 0 | CI121: 0 | CK121: APPLICATION DU TNR QUAND TTVD | CL121: 1 | CN121: ='Sommaire du rôle_sec_1'!X45 -> 0 | CO121: ='Sommaire du rôle_sec_1'!Y45 -> 0 | CQ121: 0 | CR121: =CL121*CO121 -> 0 | CT121: 0 | CV121: APPLICATION DU TNR QUAND TTVD | CW121: 1 | CY121: ='Sommaire du rôle_sec_1'!Z45 -> 0 | CZ121: ='Sommaire du rôle_sec_1'!AA45 -> 0 | DB121: 0 | DC121: =CW121*CZ121 -> 0 | DE121: 0
A122: Total | G122: =SUM(G106:G121) -> 112404699.1 | H122: =SUM(H106:H121) -> 25925903 | J122: 138330602.1 | L122: Total | R122: =SUM(R106:R121) -> 112404699.1 | S122: =SUM(S106:S121) -> 25925903 | U122: 138330602.1 | W122: Total | AC122: =SUM(AC106:AC121) -> 112404699.1 | AD122: =SUM(AD106:AD121) -> 25925903 | AF122: 138330602.1 | AH122: Total | AN122: =SUM(AN106:AN121) -> 112404699.1 | AO122: =SUM(AO106:AO121) -> 25925903 | AQ122: 138330602.1 | AS122: Total | AY122: =SUM(AY106:AY121) -> 112404699.1 | AZ122: =SUM(AZ106:AZ121) -> 25925903 | BB122: 138330602.1 | BD122: Total | BJ122: =SUM(BJ106:BJ121) -> 112404699.1 | BK122: =SUM(BK106:BK121) -> 25925903 | BM122: 138330602.1 | BO122: Total | BU122: =SUM(BU106:BU121) -> 112404699.1 | BV122: =SUM(BV106:BV121) -> 25925903 | BX122: 138330602.1 | BZ122: Total | CF122: =SUM(CF106:CF121) -> 112404699.1 | CG122: =SUM(CG106:CG121) -> 25925903 | CI122: 138330602.1 | CK122: Total | CQ122: =SUM(CQ106:CQ121) -> 112404699.1 | CR122: =SUM(CR106:CR121) -> 25925903 | CT122: 138330602.1 | CV122: Total | DB122: =SUM(DB106:DB121) -> 112404699.1 | DC122: =SUM(DC106:DC121) -> 25925903 | DE122: 138330602.1
A124: ASSIETTE SOUS-CATÉGORIE RÉSIDUELLE
A125: Classe non résidentielle | B125: Pourcentage de taxation | D125: VALEUR À 100 %
D126: Imposables | E126: Compensables | G126: Imposables pondérées | H126: Compensables pondérées | J126: Total
B127: (1) | D127: (2) | E127: (3) | G127: (4) = (1) X (2) | H127: (5) = (1) X (3) | J127: (6) = (4) + (5)
A128: 1A | B128: 0.999 | D128: ='Sommaire du rôle_sec_1'!F53 -> 6957650 | E128: ='Sommaire du rôle_sec_1'!G53 -> 0 | G128: =D128*B128 -> 6950692.35 | H128: =B128*E128 -> 0 | J128: =G128+H128 -> 6950692.35 | K128: 2359638
A129: 1B | B129: 0.995 | D129: ='Sommaire du rôle_sec_1'!F54 -> 3155670 | E129: ='Sommaire du rôle_sec_1'!G54 -> 0 | G129: 3139891.65 | H129: 0 | J129: 3139891.65 | K129: 670132.5
A130: 1C | B130: 0.99 | D130: ='Sommaire du rôle_sec_1'!F55 -> 444950 | E130: ='Sommaire du rôle_sec_1'!G55 -> 0 | G130: 440500.5 | H130: 0 | J130: 440500.5 | K130: 4405005
A131: 2 | B131: 0.97 | D131: ='Sommaire du rôle_sec_1'!F56 -> 2146970 | E131: ='Sommaire du rôle_sec_1'!G56 -> 0 | G131: 2082560.9 | H131: 0 | J131: 2082560.9 | K131: 21413332
A132: 3 | B132: 0.94 | D132: ='Sommaire du rôle_sec_1'!F57 -> 4013950 | E132: ='Sommaire du rôle_sec_1'!G57 -> 0 | G132: 3773113 | H132: 0 | J132: 3773113 | K132: 36190282
A133: 4 | B133: 0.88 | D133: ='Sommaire du rôle_sec_1'!F58 -> 5477860 | E133: ='Sommaire du rôle_sec_1'!G58 -> 0 | G133: 4820516.8 | H133: 0 | J133: 4820516.8 | K133: 27846104
A134: 5 | B134: 0.78 | D134: ='Sommaire du rôle_sec_1'!F59 -> 3513090 | E134: ='Sommaire du rôle_sec_1'!G59 -> 0 | G134: 2740210.2 | H134: 0 | J134: 2740210.2 | K134: 22550424
A135: 6 | B135: 0.6 | D135: ='Sommaire du rôle_sec_1'!F60 -> 3502990 | E135: ='Sommaire du rôle_sec_1'!G60 -> 0 | G135: 2101794 | H135: 0 | J135: 2101794 | K135: 19039560
A136: 7 | B136: 0.4 | D136: ='Sommaire du rôle_sec_1'!F61 -> 3597215 | E136: ='Sommaire du rôle_sec_1'!G61 -> 6579670 | G136: 1438886 | H136: 2631868 | J136: 4070754 | K136: 37782600
A137: 8 | B137: 0.15 | D137: ='Sommaire du rôle_sec_1'!F62 -> 2029370 | E137: ='Sommaire du rôle_sec_1'!G62 -> 19235660 | G137: 304405.5 | H137: 2885349 | J137: 3189754.5 | K137: 32037030
A138: IMMEUBLES SANS PARTIE NON RÉSIDENTIELLE | B138: 1 | D138: ='Sommaire du rôle_sec_1'!F63 -> 733457532.8 | E138: ='Sommaire du rôle_sec_1'!G63 -> 190980 | G138: 733457532.8 | H138: 190980 | J138: 733648512.8 | K138: 7336485128
A139: 12 CHSLD | B139: 0.8 | D139: ='Sommaire du rôle_sec_1'!F64 -> 13938200 | E139: ='Sommaire du rôle_sec_1'!G64 -> 0 | G139: 11150560
A140: 13 Cours de triage | B140: 0.6 | D140: ='Sommaire du rôle_sec_1'!F65 -> 0 | E140: ='Sommaire du rôle_sec_1'!G65 -> 0 | G140: 0
A141: Total | G141: =SUM(G128:G140) -> 772400663.7 | H141: =SUM(H128:H138) -> 5708197 | I141: =SUM(I128:I138) -> 0 | J141: =G141+H141 -> 778108860.7
A143: ASSIETTE AU TAUX RÉSIDENTIEL SOUS-CATÉGORIE 1 | L143: ASSIETTE AU TAUX RÉSIDENTIEL SOUS-CATÉGORIE 2 | W143: ASSIETTE AU TAUX RÉSIDENTIEL SOUS-CATÉGORIE 3 | AH143: ASSIETTE AU TAUX RÉSIDENTIEL SOUS-CATÉGORIE 4 | AS143: ASSIETTE AU TAUX RÉSIDENTIEL SOUS-CATÉGORIE 5 | BD143: ASSIETTE AU TAUX RÉSIDENTIEL SOUS-CATÉGORIE 6 | BO143: ASSIETTE AU TAUX RÉSIDENTIEL SOUS-CATÉGORIE 7 | BZ143: ASSIETTE AU TAUX RÉSIDENTIEL SOUS-CATÉGORIE 8 | CK143: ASSIETTE AU TAUX RÉSIDENTIEL SOUS-CATÉGORIE 9 | CV143: ASSIETTE AU TAUX RÉSIDENTIEL SOUS-CATÉGORIE 10
A144: Classe non résidentielle | B144: Pourcentage de taxation | D144: VALEUR À 100 % | L144: Classe non résidentielle | M144: Pourcentage de taxation | O144: VALEUR À 100 % | W144: Classe non résidentielle | X144: Pourcentage de taxation | Z144: VALEUR À 100 % | AH144: Classe non résidentielle | AI144: Pourcentage de taxation | AK144: VALEUR À 100 % | AS144: Classe non résidentielle | AT144: Pourcentage de taxation | AV144: VALEUR À 100 % | BD144: Classe non résidentielle | BE144: Pourcentage de taxation | BG144: VALEUR À 100 % | BO144: Classe non résidentielle | BP144: Pourcentage de taxation | BR144: VALEUR À 100 % | BZ144: Classe non résidentielle | CA144: Pourcentage de taxation | CC144: VALEUR À 100 % | CK144: Classe non résidentielle | CL144: Pourcentage de taxation | CN144: VALEUR À 100 % | CV144: Classe non résidentielle | CW144: Pourcentage de taxation | CY144: VALEUR À 100 %
D145: Imposables | E145: Compensables | G145: Imposables pondérées | H145: Compensables pondérées | J145: Total | O145: Imposables | P145: Compensables | R145: Imposables pondérées | S145: Compensables pondérées | U145: Total | Z145: Imposables | AA145: Compensables | AC145: Imposables pondérées | AD145: Compensables pondérées | AF145: Total | AK145: Imposables | AL145: Compensables | AN145: Imposables pondérées | AO145: Compensables pondérées | AQ145: Total | AV145: Imposables | AW145: Compensables | AY145: Imposables pondérées | AZ145: Compensables pondérées | BB145: Total | BG145: Imposables | BH145: Compensables | BJ145: Imposables pondérées | BK145: Compensables pondérées | BM145: Total | BR145: Imposables | BS145: Compensables | BU145: Imposables pondérées | BV145: Compensables pondérées | BX145: Total | CC145: Imposables | CD145: Compensables | CF145: Imposables pondérées | CG145: Compensables pondérées | CI145: Total | CN145: Imposables | CO145: Compensables | CQ145: Imposables pondérées | CR145: Compensables pondérées | CT145: Total | CY145: Imposables | CZ145: Compensables | DB145: Imposables pondérées | DC145: Compensables pondérées | DE145: Total
B146: (1) | D146: (2) | E146: (3) | G146: (4) = (1) X (2) | H146: (5) = (1) X (3) | J146: (6) = (4) + (5) | M146: (1) | O146: (2) | P146: (3) | R146: (4) = (1) X (2) | S146: (5) = (1) X (3) | U146: (6) = (4) + (5) | X146: (1) | Z146: (2) | AA146: (3) | AC146: (4) = (1) X (2) | AD146: (5) = (1) X (3) | AF146: (6) = (4) + (5) | AI146: (1) | AK146: (2) | AL146: (3) | AN146: (4) = (1) X (2) | AO146: (5) = (1) X (3) | AQ146: (6) = (4) + (5) | AT146: (1) | AV146: (2) | AW146: (3) | AY146: (4) = (1) X (2) | AZ146: (5) = (1) X (3) | BB146: (6) = (4) + (5) | BE146: (1) | BG146: (2) | BH146: (3) | BJ146: (4) = (1) X (2) | BK146: (5) = (1) X (3) | BM146: (6) = (4) + (5) | BP146: (1) | BR146: (2) | BS146: (3) | BU146: (4) = (1) X (2) | BV146: (5) = (1) X (3) | BX146: (6) = (4) + (5) | CA146: (1) | CC146: (2) | CD146: (3) | CF146: (4) = (1) X (2) | CG146: (5) = (1) X (3) | CI146: (6) = (4) + (5) | CL146: (1) | CN146: (2) | CO146: (3) | CQ146: (4) = (1) X (2) | CR146: (5) = (1) X (3) | CT146: (6) = (4) + (5) | CW146: (1) | CY146: (2) | CZ146: (3) | DB146: (4) = (1) X (2) | DC146: (5) = (1) X (3) | DE146: (6) = (4) + (5)
A147: 1A | B147: 0.999 | D147: ='Sommaire du rôle_sec_1'!H53 -> 6957650 | E147: ='Sommaire du rôle_sec_1'!I53 -> 0 | G147: =D147*B147 -> 6950692.35 | H147: =B147*E147 -> 0 | J147: =G147+H147 -> 6950692.35 | L147: 1A | M147: 0.999 | O147: ='Sommaire du rôle_sec_1'!J53 -> 6957650 | P147: ='Sommaire du rôle_sec_1'!K53 -> 0 | R147: =O147*M147 -> 6950692.35 | S147: =M147*P147 -> 0 | U147: =R147+S147 -> 6950692.35 | W147: 1A | X147: 0.999 | Z147: ='Sommaire du rôle_sec_1'!L53 -> 6957650 | AA147: ='Sommaire du rôle_sec_1'!M53 -> 0 | AC147: =Z147*X147 -> 6950692.35 | AD147: =X147*AA147 -> 0 | AF147: =AC147+AD147 -> 6950692.35 | AH147: 1A | AI147: 0.999 | AK147: ='Sommaire du rôle_sec_1'!N53 -> 6957650 | AL147: ='Sommaire du rôle_sec_1'!O53 -> 0 | AN147: =AK147*AI147 -> 6950692.35 | AO147: =AI147*AL147 -> 0 | AQ147: =AN147+AO147 -> 6950692.35 | AS147: 1A | AT147: 0.999 | AV147: ='Sommaire du rôle_sec_1'!P53 -> 6957650 | AW147: ='Sommaire du rôle_sec_1'!Q53 -> 0 | AY147: =AV147*AT147 -> 6950692.35 | AZ147: =AT147*AW147 -> 0 | BB147: =AY147+AZ147 -> 6950692.35 | BD147: 1A | BE147: 0.999 | BG147: ='Sommaire du rôle_sec_1'!R53 -> 6957650 | BH147: ='Sommaire du rôle_sec_1'!S53 -> 0 | BJ147: =BG147*BE147 -> 6950692.35 | BK147: =BE147*BH147 -> 0 | BM147: =BJ147+BK147 -> 6950692.35 | BO147: 1A | BP147: 0.999 | BR147: ='Sommaire du rôle_sec_1'!T53 -> 6957650 | BS147: ='Sommaire du rôle_sec_1'!U53 -> 0 | BU147: =BR147*BP147 -> 6950692.35 | BV147: =BP147*BS147 -> 0 | BX147: =BU147+BV147 -> 6950692.35 | BZ147: 1A | CA147: 0.999 | CC147: ='Sommaire du rôle_sec_1'!V53 -> 6957650 | CD147: ='Sommaire du rôle_sec_1'!W53 -> 0 | CF147: =CC147*CA147 -> 6950692.35 | CG147: =CA147*CD147 -> 0 | CI147: =CF147+CG147 -> 6950692.35 | CK147: 1A | CL147: 0.999 | CN147: ='Sommaire du rôle_sec_1'!X53 -> 6957650 | CO147: ='Sommaire du rôle_sec_1'!Y53 -> 0 | CQ147: =CN147*CL147 -> 6950692.35 | CR147: =CL147*CO147 -> 0 | CT147: =CQ147+CR147 -> 6950692.35 | CV147: 1A | CW147: 0.999 | CY147: ='Sommaire du rôle_sec_1'!Z53 -> 6957650 | CZ147: ='Sommaire du rôle_sec_1'!AA53 -> 0 | DB147: =CY147*CW147 -> 6950692.35 | DC147: =CW147*CZ147 -> 0 | DE147: =DB147+DC147 -> 6950692.35
A148: 1B | B148: 0.995 | D148: ='Sommaire du rôle_sec_1'!H54 -> 3155670 | E148: ='Sommaire du rôle_sec_1'!I54 -> 0 | G148: 3139891.65 | H148: 0 | J148: 3139891.65 | L148: 1B | M148: 0.995 | O148: ='Sommaire du rôle_sec_1'!J54 -> 3155670 | P148: ='Sommaire du rôle_sec_1'!K54 -> 0 | R148: 3139891.65 | S148: 0 | U148: 3139891.65 | W148: 1B | X148: 0.995 | Z148: ='Sommaire du rôle_sec_1'!L54 -> 3155670 | AA148: ='Sommaire du rôle_sec_1'!M54 -> 0 | AC148: 3139891.65 | AD148: 0 | AF148: 3139891.65 | AH148: 1B | AI148: 0.995 | AK148: ='Sommaire du rôle_sec_1'!N54 -> 3155670 | AL148: ='Sommaire du rôle_sec_1'!O54 -> 0 | AN148: 3139891.65 | AO148: 0 | AQ148: 3139891.65 | AS148: 1B | AT148: 0.995 | AV148: ='Sommaire du rôle_sec_1'!P54 -> 3155670 | AW148: ='Sommaire du rôle_sec_1'!Q54 -> 0 | AY148: 3139891.65 | AZ148: 0 | BB148: 3139891.65 | BD148: 1B | BE148: 0.995 | BG148: ='Sommaire du rôle_sec_1'!R54 -> 3155670 | BH148: ='Sommaire du rôle_sec_1'!S54 -> 0 | BJ148: 3139891.65 | BK148: 0 | BM148: 3139891.65 | BO148: 1B | BP148: 0.995 | BR148: ='Sommaire du rôle_sec_1'!T54 -> 3155670 | BS148: ='Sommaire du rôle_sec_1'!U54 -> 0 | BU148: 3139891.65 | BV148: 0 | BX148: 3139891.65 | BZ148: 1B | CA148: 0.995 | CC148: ='Sommaire du rôle_sec_1'!V54 -> 3155670 | CD148: ='Sommaire du rôle_sec_1'!W54 -> 0 | CF148: 3139891.65 | CG148: 0 | CI148: 3139891.65 | CK148: 1B | CL148: 0.995 | CN148: ='Sommaire du rôle_sec_1'!X54 -> 3155670 | CO148: ='Sommaire du rôle_sec_1'!Y54 -> 0 | CQ148: 3139891.65 | CR148: 0 | CT148: 3139891.65 | CV148: 1B | CW148: 0.995 | CY148: ='Sommaire du rôle_sec_1'!Z54 -> 3155670 | CZ148: ='Sommaire du rôle_sec_1'!AA54 -> 0 | DB148: 3139891.65 | DC148: 0 | DE148: 3139891.65
A149: 1C | B149: 0.99 | D149: ='Sommaire du rôle_sec_1'!H55 -> 444950 | E149: ='Sommaire du rôle_sec_1'!I55 -> 0 | G149: 440500.5 | H149: 0 | J149: 440500.5 | L149: 1C | M149: 0.99 | O149: ='Sommaire du rôle_sec_1'!J55 -> 444950 | P149: ='Sommaire du rôle_sec_1'!K55 -> 0 | R149: 440500.5 | S149: 0 | U149: 440500.5 | W149: 1C | X149: 0.99 | Z149: ='Sommaire du rôle_sec_1'!L55 -> 444950 | AA149: ='Sommaire du rôle_sec_1'!M55 -> 0 | AC149: 440500.5 | AD149: 0 | AF149: 440500.5 | AH149: 1C | AI149: 0.99 | AK149: ='Sommaire du rôle_sec_1'!N55 -> 444950 | AL149: ='Sommaire du rôle_sec_1'!O55 -> 0 | AN149: 440500.5 | AO149: 0 | AQ149: 440500.5 | AS149: 1C | AT149: 0.99 | AV149: ='Sommaire du rôle_sec_1'!P55 -> 444950 | AW149: ='Sommaire du rôle_sec_1'!Q55 -> 0 | AY149: 440500.5 | AZ149: 0 | BB149: 440500.5 | BD149: 1C | BE149: 0.99 | BG149: ='Sommaire du rôle_sec_1'!R55 -> 444950 | BH149: ='Sommaire du rôle_sec_1'!S55 -> 0 | BJ149: 440500.5 | BK149: 0 | BM149: 440500.5 | BO149: 1C | BP149: 0.99 | BR149: ='Sommaire du rôle_sec_1'!T55 -> 444950 | BS149: ='Sommaire du rôle_sec_1'!U55 -> 0 | BU149: 440500.5 | BV149: 0 | BX149: 440500.5 | BZ149: 1C | CA149: 0.99 | CC149: ='Sommaire du rôle_sec_1'!V55 -> 444950 | CD149: ='Sommaire du rôle_sec_1'!W55 -> 0 | CF149: 440500.5 | CG149: 0 | CI149: 440500.5 | CK149: 1C | CL149: 0.99 | CN149: ='Sommaire du rôle_sec_1'!X55 -> 444950 | CO149: ='Sommaire du rôle_sec_1'!Y55 -> 0 | CQ149: 440500.5 | CR149: 0 | CT149: 440500.5 | CV149: 1C | CW149: 0.99 | CY149: ='Sommaire du rôle_sec_1'!Z55 -> 444950 | CZ149: ='Sommaire du rôle_sec_1'!AA55 -> 0 | DB149: 440500.5 | DC149: 0 | DE149: 440500.5
A150: 2 | B150: 0.97 | D150: ='Sommaire du rôle_sec_1'!H56 -> 2146970 | E150: ='Sommaire du rôle_sec_1'!I56 -> 0 | G150: 2082560.9 | H150: 0 | J150: 2082560.9 | L150: 2 | M150: 0.97 | O150: ='Sommaire du rôle_sec_1'!J56 -> 2146970 | P150: ='Sommaire du rôle_sec_1'!K56 -> 0 | R150: 2082560.9 | S150: 0 | U150: 2082560.9 | W150: 2 | X150: 0.97 | Z150: ='Sommaire du rôle_sec_1'!L56 -> 2146970 | AA150: ='Sommaire du rôle_sec_1'!M56 -> 0 | AC150: 2082560.9 | AD150: 0 | AF150: 2082560.9 | AH150: 2 | AI150: 0.97 | AK150: ='Sommaire du rôle_sec_1'!N56 -> 2146970 | AL150: ='Sommaire du rôle_sec_1'!O56 -> 0 | AN150: 2082560.9 | AO150: 0 | AQ150: 2082560.9 | AS150: 2 | AT150: 0.97 | AV150: ='Sommaire du rôle_sec_1'!P56 -> 2146970 | AW150: ='Sommaire du rôle_sec_1'!Q56 -> 0 | AY150: 2082560.9 | AZ150: 0 | BB150: 2082560.9 | BD150: 2 | BE150: 0.97 | BG150: ='Sommaire du rôle_sec_1'!R56 -> 2146970 | BH150: ='Sommaire du rôle_sec_1'!S56 -> 0 | BJ150: 2082560.9 | BK150: 0 | BM150: 2082560.9 | BO150: 2 | BP150: 0.97 | BR150: ='Sommaire du rôle_sec_1'!T56 -> 2146970 | BS150: ='Sommaire du rôle_sec_1'!U56 -> 0 | BU150: 2082560.9 | BV150: 0 | BX150: 2082560.9 | BZ150: 2 | CA150: 0.97 | CC150: ='Sommaire du rôle_sec_1'!V56 -> 2146970 | CD150: ='Sommaire du rôle_sec_1'!W56 -> 0 | CF150: 2082560.9 | CG150: 0 | CI150: 2082560.9 | CK150: 2 | CL150: 0.97 | CN150: ='Sommaire du rôle_sec_1'!X56 -> 2146970 | CO150: ='Sommaire du rôle_sec_1'!Y56 -> 0 | CQ150: 2082560.9 | CR150: 0 | CT150: 2082560.9 | CV150: 2 | CW150: 0.97 | CY150: ='Sommaire du rôle_sec_1'!Z56 -> 2146970 | CZ150: ='Sommaire du rôle_sec_1'!AA56 -> 0 | DB150: 2082560.9 | DC150: 0 | DE150: 2082560.9
A151: 3 | B151: 0.94 | D151: ='Sommaire du rôle_sec_1'!H57 -> 4013950 | E151: ='Sommaire du rôle_sec_1'!I57 -> 0 | G151: 3773113 | H151: 0 | J151: 3773113 | L151: 3 | M151: 0.94 | O151: ='Sommaire du rôle_sec_1'!J57 -> 4013950 | P151: ='Sommaire du rôle_sec_1'!K57 -> 0 | R151: 3773113 | S151: 0 | U151: 3773113 | W151: 3 | X151: 0.94 | Z151: ='Sommaire du rôle_sec_1'!L57 -> 4013950 | AA151: ='Sommaire du rôle_sec_1'!M57 -> 0 | AC151: 3773113 | AD151: 0 | AF151: 3773113 | AH151: 3 | AI151: 0.94 | AK151: ='Sommaire du rôle_sec_1'!N57 -> 4013950 | AL151: ='Sommaire du rôle_sec_1'!O57 -> 0 | AN151: 3773113 | AO151: 0 | AQ151: 3773113 | AS151: 3 | AT151: 0.94 | AV151: ='Sommaire du rôle_sec_1'!P57 -> 4013950 | AW151: ='Sommaire du rôle_sec_1'!Q57 -> 0 | AY151: 3773113 | AZ151: 0 | BB151: 3773113 | BD151: 3 | BE151: 0.94 | BG151: ='Sommaire du rôle_sec_1'!R57 -> 4013950 | BH151: ='Sommaire du rôle_sec_1'!S57 -> 0 | BJ151: 3773113 | BK151: 0 | BM151: 3773113 | BO151: 3 | BP151: 0.94 | BR151: ='Sommaire du rôle_sec_1'!T57 -> 4013950 | BS151: ='Sommaire du rôle_sec_1'!U57 -> 0 | BU151: 3773113 | BV151: 0 | BX151: 3773113 | BZ151: 3 | CA151: 0.94 | CC151: ='Sommaire du rôle_sec_1'!V57 -> 4013950 | CD151: ='Sommaire du rôle_sec_1'!W57 -> 0 | CF151: 3773113 | CG151: 0 | CI151: 3773113 | CK151: 3 | CL151: 0.94 | CN151: ='Sommaire du rôle_sec_1'!X57 -> 4013950 | CO151: ='Sommaire du rôle_sec_1'!Y57 -> 0 | CQ151: 3773113 | CR151: 0 | CT151: 3773113 | CV151: 3 | CW151: 0.94 | CY151: ='Sommaire du rôle_sec_1'!Z57 -> 4013950 | CZ151: ='Sommaire du rôle_sec_1'!AA57 -> 0 | DB151: 3773113 | DC151: 0 | DE151: 3773113
A152: 4 | B152: 0.88 | D152: ='Sommaire du rôle_sec_1'!H58 -> 5477860 | E152: ='Sommaire du rôle_sec_1'!I58 -> 0 | G152: 4820516.8 | H152: 0 | J152: 4820516.8 | L152: 4 | M152: 0.88 | O152: ='Sommaire du rôle_sec_1'!J58 -> 5477860 | P152: ='Sommaire du rôle_sec_1'!K58 -> 0 | R152: 4820516.8 | S152: 0 | U152: 4820516.8 | W152: 4 | X152: 0.88 | Z152: ='Sommaire du rôle_sec_1'!L58 -> 5477860 | AA152: ='Sommaire du rôle_sec_1'!M58 -> 0 | AC152: 4820516.8 | AD152: 0 | AF152: 4820516.8 | AH152: 4 | AI152: 0.88 | AK152: ='Sommaire du rôle_sec_1'!N58 -> 5477860 | AL152: ='Sommaire du rôle_sec_1'!O58 -> 0 | AN152: 4820516.8 | AO152: 0 | AQ152: 4820516.8 | AS152: 4 | AT152: 0.88 | AV152: ='Sommaire du rôle_sec_1'!P58 -> 5477860 | AW152: ='Sommaire du rôle_sec_1'!Q58 -> 0 | AY152: 4820516.8 | AZ152: 0 | BB152: 4820516.8 | BD152: 4 | BE152: 0.88 | BG152: ='Sommaire du rôle_sec_1'!R58 -> 5477860 | BH152: ='Sommaire du rôle_sec_1'!S58 -> 0 | BJ152: 4820516.8 | BK152: 0 | BM152: 4820516.8 | BO152: 4 | BP152: 0.88 | BR152: ='Sommaire du rôle_sec_1'!T58 -> 5477860 | BS152: ='Sommaire du rôle_sec_1'!U58 -> 0 | BU152: 4820516.8 | BV152: 0 | BX152: 4820516.8 | BZ152: 4 | CA152: 0.88 | CC152: ='Sommaire du rôle_sec_1'!V58 -> 5477860 | CD152: ='Sommaire du rôle_sec_1'!W58 -> 0 | CF152: 4820516.8 | CG152: 0 | CI152: 4820516.8 | CK152: 4 | CL152: 0.88 | CN152: ='Sommaire du rôle_sec_1'!X58 -> 5477860 | CO152: ='Sommaire du rôle_sec_1'!Y58 -> 0 | CQ152: 4820516.8 | CR152: 0 | CT152: 4820516.8 | CV152: 4 | CW152: 0.88 | CY152: ='Sommaire du rôle_sec_1'!Z58 -> 5477860 | CZ152: ='Sommaire du rôle_sec_1'!AA58 -> 0 | DB152: 4820516.8 | DC152: 0 | DE152: 4820516.8
A153: 5 | B153: 0.78 | D153: ='Sommaire du rôle_sec_1'!H59 -> 3513090 | E153: ='Sommaire du rôle_sec_1'!I59 -> 0 | G153: 2740210.2 | H153: 0 | J153: 2740210.2 | L153: 5 | M153: 0.78 | O153: ='Sommaire du rôle_sec_1'!J59 -> 3513090 | P153: ='Sommaire du rôle_sec_1'!K59 -> 0 | R153: 2740210.2 | S153: 0 | U153: 2740210.2 | W153: 5 | X153: 0.78 | Z153: ='Sommaire du rôle_sec_1'!L59 -> 3513090 | AA153: ='Sommaire du rôle_sec_1'!M59 -> 0 | AC153: 2740210.2 | AD153: 0 | AF153: 2740210.2 | AH153: 5 | AI153: 0.78 | AK153: ='Sommaire du rôle_sec_1'!N59 -> 3513090 | AL153: ='Sommaire du rôle_sec_1'!O59 -> 0 | AN153: 2740210.2 | AO153: 0 | AQ153: 2740210.2 | AS153: 5 | AT153: 0.78 | AV153: ='Sommaire du rôle_sec_1'!P59 -> 3513090 | AW153: ='Sommaire du rôle_sec_1'!Q59 -> 0 | AY153: 2740210.2 | AZ153: 0 | BB153: 2740210.2 | BD153: 5 | BE153: 0.78 | BG153: ='Sommaire du rôle_sec_1'!R59 -> 3513090 | BH153: ='Sommaire du rôle_sec_1'!S59 -> 0 | BJ153: 2740210.2 | BK153: 0 | BM153: 2740210.2 | BO153: 5 | BP153: 0.78 | BR153: ='Sommaire du rôle_sec_1'!T59 -> 3513090 | BS153: ='Sommaire du rôle_sec_1'!U59 -> 0 | BU153: 2740210.2 | BV153: 0 | BX153: 2740210.2 | BZ153: 5 | CA153: 0.78 | CC153: ='Sommaire du rôle_sec_1'!V59 -> 3513090 | CD153: ='Sommaire du rôle_sec_1'!W59 -> 0 | CF153: 2740210.2 | CG153: 0 | CI153: 2740210.2 | CK153: 5 | CL153: 0.78 | CN153: ='Sommaire du rôle_sec_1'!X59 -> 3513090 | CO153: ='Sommaire du rôle_sec_1'!Y59 -> 0 | CQ153: 2740210.2 | CR153: 0 | CT153: 2740210.2 | CV153: 5 | CW153: 0.78 | CY153: ='Sommaire du rôle_sec_1'!Z59 -> 3513090 | CZ153: ='Sommaire du rôle_sec_1'!AA59 -> 0 | DB153: 2740210.2 | DC153: 0 | DE153: 2740210.2
A154: 6 | B154: 0.6 | D154: ='Sommaire du rôle_sec_1'!H60 -> 3502990 | E154: ='Sommaire du rôle_sec_1'!I60 -> 0 | G154: 2101794 | H154: 0 | J154: 2101794 | L154: 6 | M154: 0.6 | O154: ='Sommaire du rôle_sec_1'!J60 -> 3502990 | P154: ='Sommaire du rôle_sec_1'!K60 -> 0 | R154: 2101794 | S154: 0 | U154: 2101794 | W154: 6 | X154: 0.6 | Z154: ='Sommaire du rôle_sec_1'!L60 -> 3502990 | AA154: ='Sommaire du rôle_sec_1'!M60 -> 0 | AC154: 2101794 | AD154: 0 | AF154: 2101794 | AH154: 6 | AI154: 0.6 | AK154: ='Sommaire du rôle_sec_1'!N60 -> 3502990 | AL154: ='Sommaire du rôle_sec_1'!O60 -> 0 | AN154: 2101794 | AO154: 0 | AQ154: 2101794 | AS154: 6 | AT154: 0.6 | AV154: ='Sommaire du rôle_sec_1'!P60 -> 3502990 | AW154: ='Sommaire du rôle_sec_1'!Q60 -> 0 | AY154: 2101794 | AZ154: 0 | BB154: 2101794 | BD154: 6 | BE154: 0.6 | BG154: ='Sommaire du rôle_sec_1'!R60 -> 3502990 | BH154: ='Sommaire du rôle_sec_1'!S60 -> 0 | BJ154: 2101794 | BK154: 0 | BM154: 2101794 | BO154: 6 | BP154: 0.6 | BR154: ='Sommaire du rôle_sec_1'!T60 -> 3502990 | BS154: ='Sommaire du rôle_sec_1'!U60 -> 0 | BU154: 2101794 | BV154: 0 | BX154: 2101794 | BZ154: 6 | CA154: 0.6 | CC154: ='Sommaire du rôle_sec_1'!V60 -> 3502990 | CD154: ='Sommaire du rôle_sec_1'!W60 -> 0 | CF154: 2101794 | CG154: 0 | CI154: 2101794 | CK154: 6 | CL154: 0.6 | CN154: ='Sommaire du rôle_sec_1'!X60 -> 3502990 | CO154: ='Sommaire du rôle_sec_1'!Y60 -> 0 | CQ154: 2101794 | CR154: 0 | CT154: 2101794 | CV154: 6 | CW154: 0.6 | CY154: ='Sommaire du rôle_sec_1'!Z60 -> 3502990 | CZ154: ='Sommaire du rôle_sec_1'!AA60 -> 0 | DB154: 2101794 | DC154: 0 | DE154: 2101794
A155: 7 | B155: 0.4 | D155: ='Sommaire du rôle_sec_1'!H61 -> 3597215 | E155: ='Sommaire du rôle_sec_1'!I61 -> 6579670 | G155: 1438886 | H155: 2631868 | J155: 4070754 | L155: 7 | M155: 0.4 | O155: ='Sommaire du rôle_sec_1'!J61 -> 3597215 | P155: ='Sommaire du rôle_sec_1'!K61 -> 6579670 | R155: 1438886 | S155: 2631868 | U155: 4070754 | W155: 7 | X155: 0.4 | Z155: ='Sommaire du rôle_sec_1'!L61 -> 3597215 | AA155: ='Sommaire du rôle_sec_1'!M61 -> 6579670 | AC155: 1438886 | AD155: 2631868 | AF155: 4070754 | AH155: 7 | AI155: 0.4 | AK155: ='Sommaire du rôle_sec_1'!N61 -> 3597215 | AL155: ='Sommaire du rôle_sec_1'!O61 -> 6579670 | AN155: 1438886 | AO155: 2631868 | AQ155: 4070754 | AS155: 7 | AT155: 0.4 | AV155: ='Sommaire du rôle_sec_1'!P61 -> 3597215 | AW155: ='Sommaire du rôle_sec_1'!Q61 -> 6579670 | AY155: 1438886 | AZ155: 2631868 | BB155: 4070754 | BD155: 7 | BE155: 0.4 | BG155: ='Sommaire du rôle_sec_1'!R61 -> 3597215 | BH155: ='Sommaire du rôle_sec_1'!S61 -> 6579670 | BJ155: 1438886 | BK155: 2631868 | BM155: 4070754 | BO155: 7 | BP155: 0.4 | BR155: ='Sommaire du rôle_sec_1'!T61 -> 3597215 | BS155: ='Sommaire du rôle_sec_1'!U61 -> 6579670 | BU155: 1438886 | BV155: 2631868 | BX155: 4070754 | BZ155: 7 | CA155: 0.4 | CC155: ='Sommaire du rôle_sec_1'!V61 -> 3597215 | CD155: ='Sommaire du rôle_sec_1'!W61 -> 6579670 | CF155: 1438886 | CG155: 2631868 | CI155: 4070754 | CK155: 7 | CL155: 0.4 | CN155: ='Sommaire du rôle_sec_1'!X61 -> 3597215 | CO155: ='Sommaire du rôle_sec_1'!Y61 -> 6579670 | CQ155: 1438886 | CR155: 2631868 | CT155: 4070754 | CV155: 7 | CW155: 0.4 | CY155: ='Sommaire du rôle_sec_1'!Z61 -> 3597215 | CZ155: ='Sommaire du rôle_sec_1'!AA61 -> 6579670 | DB155: 1438886 | DC155: 2631868 | DE155: 4070754
A156: 8 | B156: 0.15 | D156: ='Sommaire du rôle_sec_1'!H62 -> 2029370 | E156: ='Sommaire du rôle_sec_1'!I62 -> 19235660 | G156: 304405.5 | H156: 2885349 | J156: 3189754.5 | L156: 8 | M156: 0.15 | O156: ='Sommaire du rôle_sec_1'!J62 -> 2029370 | P156: ='Sommaire du rôle_sec_1'!K62 -> 19235660 | R156: 304405.5 | S156: 2885349 | U156: 3189754.5 | W156: 8 | X156: 0.15 | Z156: ='Sommaire du rôle_sec_1'!L62 -> 2029370 | AA156: ='Sommaire du rôle_sec_1'!M62 -> 19235660 | AC156: 304405.5 | AD156: 2885349 | AF156: 3189754.5 | AH156: 8 | AI156: 0.15 | AK156: ='Sommaire du rôle_sec_1'!N62 -> 2029370 | AL156: ='Sommaire du rôle_sec_1'!O62 -> 19235660 | AN156: 304405.5 | AO156: 2885349 | AQ156: 3189754.5 | AS156: 8 | AT156: 0.15 | AV156: ='Sommaire du rôle_sec_1'!P62 -> 2029370 | AW156: ='Sommaire du rôle_sec_1'!Q62 -> 19235660 | AY156: 304405.5 | AZ156: 2885349 | BB156: 3189754.5 | BD156: 8 | BE156: 0.15 | BG156: ='Sommaire du rôle_sec_1'!R62 -> 2029370 | BH156: ='Sommaire du rôle_sec_1'!S62 -> 19235660 | BJ156: 304405.5 | BK156: 2885349 | BM156: 3189754.5 | BO156: 8 | BP156: 0.15 | BR156: ='Sommaire du rôle_sec_1'!T62 -> 2029370 | BS156: ='Sommaire du rôle_sec_1'!U62 -> 19235660 | BU156: 304405.5 | BV156: 2885349 | BX156: 3189754.5 | BZ156: 8 | CA156: 0.15 | CC156: ='Sommaire du rôle_sec_1'!V62 -> 2029370 | CD156: ='Sommaire du rôle_sec_1'!W62 -> 19235660 | CF156: 304405.5 | CG156: 2885349 | CI156: 3189754.5 | CK156: 8 | CL156: 0.15 | CN156: ='Sommaire du rôle_sec_1'!X62 -> 2029370 | CO156: ='Sommaire du rôle_sec_1'!Y62 -> 19235660 | CQ156: 304405.5 | CR156: 2885349 | CT156: 3189754.5 | CV156: 8 | CW156: 0.15 | CY156: ='Sommaire du rôle_sec_1'!Z62 -> 2029370 | CZ156: ='Sommaire du rôle_sec_1'!AA62 -> 19235660 | DB156: 304405.5 | DC156: 2885349 | DE156: 3189754.5
A157: IMMEUBLES SANS PARTIE NON RÉSIDENTIELLE | B157: 1 | D157: ='Sommaire du rôle_sec_1'!H63 -> 733457532.8 | E157: ='Sommaire du rôle_sec_1'!I63 -> 190980 | G157: 733457532.8 | H157: 190980 | J157: 733648512.8 | L157: IMMEUBLES SANS PARTIE NON RÉSIDENTIELLE | M157: 1 | O157: ='Sommaire du rôle_sec_1'!J63 -> 733457532.8 | P157: ='Sommaire du rôle_sec_1'!K63 -> 190980 | R157: 733457532.8 | S157: 190980 | U157: 733648512.8 | W157: IMMEUBLES SANS PARTIE NON RÉSIDENTIELLE | X157: 1 | Z157: ='Sommaire du rôle_sec_1'!L63 -> 733457532.8 | AA157: ='Sommaire du rôle_sec_1'!M63 -> 190980 | AC157: 733457532.8 | AD157: 190980 | AF157: 733648512.8 | AH157: IMMEUBLES SANS PARTIE NON RÉSIDENTIELLE | AI157: 1 | AK157: ='Sommaire du rôle_sec_1'!N63 -> 733457532.8 | AL157: ='Sommaire du rôle_sec_1'!O63 -> 190980 | AN157: 733457532.8 | AO157: 190980 | AQ157: 733648512.8 | AS157: IMMEUBLES SANS PARTIE NON RÉSIDENTIELLE | AT157: 1 | AV157: ='Sommaire du rôle_sec_1'!P63 -> 733457532.8 | AW157: ='Sommaire du rôle_sec_1'!Q63 -> 190980 | AY157: 733457532.8 | AZ157: 190980 | BB157: 733648512.8 | BD157: IMMEUBLES SANS PARTIE NON RÉSIDENTIELLE | BE157: 1 | BG157: ='Sommaire du rôle_sec_1'!R63 -> 733457532.8 | BH157: ='Sommaire du rôle_sec_1'!S63 -> 190980 | BJ157: 733457532.8 | BK157: 190980 | BM157: 733648512.8 | BO157: IMMEUBLES SANS PARTIE NON RÉSIDENTIELLE | BP157: 1 | BR157: ='Sommaire du rôle_sec_1'!T63 -> 733457532.8 | BS157: ='Sommaire du rôle_sec_1'!U63 -> 190980 | BU157: 733457532.8 | BV157: 190980 | BX157: 733648512.8 | BZ157: IMMEUBLES SANS PARTIE NON RÉSIDENTIELLE | CA157: 1 | CC157: ='Sommaire du rôle_sec_1'!V63 -> 733457532.8 | CD157: ='Sommaire du rôle_sec_1'!W63 -> 190980 | CF157: 733457532.8 | CG157: 190980 | CI157: 733648512.8 | CK157: IMMEUBLES SANS PARTIE NON RÉSIDENTIELLE | CL157: 1 | CN157: ='Sommaire du rôle_sec_1'!X63 -> 733457532.8 | CO157: ='Sommaire du rôle_sec_1'!Y63 -> 190980 | CQ157: 733457532.8 | CR157: 190980 | CT157: 733648512.8 | CV157: IMMEUBLES SANS PARTIE NON RÉSIDENTIELLE | CW157: 1 | CY157: ='Sommaire du rôle_sec_1'!Z63 -> 733457532.8 | CZ157: ='Sommaire du rôle_sec_1'!AA63 -> 190980 | DB157: 733457532.8 | DC157: 190980 | DE157: 733648512.8
A158: 12 CHSLD | B158: 0.8 | G158: 0 | L158: 12 CHSLD | M158: 0.8 | R158: 0 | W158: 12 CHSLD | X158: 0.8 | AC158: 0 | AH158: 12 CHSLD | AI158: 0.8 | AN158: 0 | AS158: 12 CHSLD | AT158: 0.8 | AY158: 0 | BD158: 12 CHSLD | BE158: 0.8 | BJ158: 0 | BO158: 12 CHSLD | BP158: 0.8 | BU158: 0 | BZ158: 12 CHSLD | CA158: 0.8 | CF158: 0 | CK158: 12 CHSLD | CL158: 0.8 | CV158: 12 CHSLD | CW158: 0.8
A159: 13 Cours de triage | B159: 0.6 | G159: 0 | L159: 13 Cours de triage | M159: 0.6 | R159: 0 | W159: 13 Cours de triage | X159: 0.6 | AC159: 0 | AH159: 13 Cours de triage | AI159: 0.6 | AN159: 0 | AS159: 13 Cours de triage | AT159: 0.6 | AY159: 0 | BD159: 13 Cours de triage | BE159: 0.6 | BJ159: 0 | BO159: 13 Cours de triage | BP159: 0.6 | BU159: 0 | BZ159: 13 Cours de triage | CA159: 0.6 | CF159: 0 | CK159: 13 Cours de triage | CL159: 0.6 | CV159: 13 Cours de triage | CW159: 0.6
A160: Total | G160: =SUM(G147:G159) -> 761250103.7 | H160: =SUM(H147:H157) -> 5708197 | I160: =SUM(I147:I157) -> 0 | J160: =G160+H160 -> 766958300.7 | L160: Total | R160: =SUM(R147:R159) -> 761250103.7 | S160: =SUM(S147:S157) -> 5708197 | U160: =R160+S160 -> 766958300.7 | W160: Total | AC160: =SUM(AC147:AC159) -> 761250103.7 | AD160: =SUM(AD147:AD157) -> 5708197 | AF160: =AC160+AD160 -> 766958300.7 | AH160: Total | AN160: =SUM(AN147:AN159) -> 761250103.7 | AO160: =SUM(AO147:AO157) -> 5708197 | AQ160: =AN160+AO160 -> 766958300.7 | AS160: Total | AY160: =SUM(AY147:AY159) -> 761250103.7 | AZ160: =SUM(AZ147:AZ157) -> 5708197 | BB160: =AY160+AZ160 -> 766958300.7 | BD160: Total | BJ160: =SUM(BJ147:BJ159) -> 761250103.7 | BK160: =SUM(BK147:BK157) -> 5708197 | BM160: =BJ160+BK160 -> 766958300.7 | BO160: Total | BU160: =SUM(BU147:BU159) -> 761250103.7 | BV160: =SUM(BV147:BV157) -> 5708197 | BX160: =BU160+BV160 -> 766958300.7 | BZ160: Total | CF160: =SUM(CF147:CF159) -> 761250103.7 | CG160: =SUM(CG147:CG157) -> 5708197 | CI160: =CF160+CG160 -> 766958300.7 | CK160: Total | CQ160: =SUM(CQ147:CQ159) -> 761250103.7 | CR160: =SUM(CR147:CR157) -> 5708197 | CT160: =CQ160+CR160 -> 766958300.7 | CV160: Total | DB160: =SUM(DB147:DB159) -> 761250103.7 | DC160: =SUM(DC147:DC157) -> 5708197 | DE160: =DB160+DC160 -> 766958300.7

Sheet Sommaire du rôle_sec_2
B2: ASSIETTES D'APPLICATION DES TAUX DE LA TAXE FONCIÈRE GÉNÉRALE 9
B3: TAUX APPLICABLES | F3: TAUX NON RÉSIDENTIEL | H3: TAUX INDUSTRIEL (CLASSE 2) | J3: TAUX IND. (SAUF CL.1 ET 2) | L3: TAUX AGRICOLE | N3: TAUX FORESTIER | P3: TAUX CATÉGORIE RÉSIDUELLE
B4: NOMBRE DE SECTEURS | S4: =IF(OR(F4>0,H4>0,J4>0,L4>0,N4>0,P4>0),"UTILISER LE SIMULATEUR POUR LA TAXATION DE SECTEUR","-") -> -
B5: CLASSE NON RÉSIDENTIELLE ET | F5: VAL. NR À 100 % ET IND. CL. 2 À 50 % | H5: VALEUR À 50 % | J5: VALEUR À 100 % | L5: VALEURS À 100 % IMPOSABLES | N5: VALEURS À 100 % IMPOSABLES | P5: VALEUR À 100 %
B6: POURCENTAGE DE TAXATION | F6: IMPOSABLES | G6: COMPENSABLES | H6: IMPOSABLES | I6: COMPENSABLES | J6: IMPOSABLES | K6: COMPENSABLES | P6: IMPOSABLES | Q6: COMPENSABLES
B7: 1A | C7: : 0,1 % | E7: 901 | F7: 76534150 | G7: 0 | O7: 99,9 % | P7: 76534150 | Q7: 0
B8: 1B | C8: : 0,5 % | E8: 902 | F8: 34712370 | G8: 0 | O8: 99,5 % | P8: 34712370 | Q8: 0
B9: 1C | C9: : 1 % | E9: 903 | F9: 4894450 | G9: 0 | O9: 99 % | P9: 4894450 | Q9: 0
B10: 2 | C10: : 3 % | E10: 904 | F10: 23616670 | G10: 0 | J10: 605900 | O10: 97 % | P10: 23616670 | Q10: 0
B11: 3 | C11: : 6 % | E11: 905 | F11: 44153450 | G11: 0 | J11: 181400 | O11: 94 % | P11: 44153450 | Q11: 0
B12: 4 | C12: : 12 % | E12: 906 | F12: 60256460 | G12: 0 | J12: 215700 | O12: 88 % | P12: 60256460 | Q12: 0
B13: 5 | C13: : 22 % | E13: 907 | F13: 38643990 | G13: 0 | O13: 78 % | P13: 38643990 | Q13: 0
B14: 6 | C14: : 40 % | E14: 908 | F14: 38532890 | G14: 0 | H14: 290100 | J14: 2421200 | O14: 60 % | P14: 38532890 | Q14: 0
B15: 7 | C15: : 60 % | E15: 909 | F15: 39569365 | G15: 72376370 | H15: 350350 | J15: 354000 | O15: 40 % | P15: 39569365 | Q15: 72376370
B16: 8 | C16: : 85 % | E16: 910 | F16: 22323070 | G16: 211592260 | J16: 1875900 | O16: 15 % | P16: 22323070 | Q16: 211592260
B17: 9 | C17: : 100 % | E17: 911 | F17: 3177900 | G17: 0 | L17: TAUX TERRAINS VAGUES DESSERVIS
B18: 10 | C18: : 100 % | E18: 912 | F18: 1155755205 | G18: 61905690 | H18: 10515650 | J18: 225704400 | K18: 2325200 | P18: 8068032861 | Q18: 2100780
B19: 11 | C19: : Cours de triage 100 % | E19: 913 | L19: VALEURS À 100 %
B20: 12 | C20: : CHSLD 20 % | E20: 914 | F20: 13938200 | L20: IMPOSABLES | N20: COMPENSABLES | O20: 80 % | P20: =F20 -> 13938200
B21: 13 | C21: : Cours de triage 40 % | E21: 915 | G21: CFIL (chemin de fer d'intérêt local) | O21: 60 % | P21: =F21 -> 0
B22: APPLICATION DU TNR QUAND TTVD | E22: 916 | F22: 5228300 | I22: (TTVD − TAUX DE BASE) x | L22: =F22 -> 5228300 | N22: =G22 -> 0
B23: ASSIETTES D'APPLICATION | E23: 917 | F23: =F71+F72 -> 1529652563 | I23: =H71+H72 -> 241701840 | K23: (TTVD) x | L23: 76716400 | N23: 58400 | P23: =O71+O72 -> 8447691868
B25: ASSIETTES D'APPLICATION DES TAUX RELATIFS AUX SOUS-CATÉGORIES DES IMMEUBLES NON RÉSIDENTIELS (si applicables)
B26: DÉNOMINATION DE LA SOUS-CATÉGORIE | F26: TAUX SOUS-CATÉGORIE DE RÉFÉRENCE | H26: TAUX SOUS-CATÉGORIE 1 | J26: TAUX SOUS-CATÉGORIE 2 | L26: TAUX SOUS-CATÉGORIE 3 | N26: TAUX SOUS-CATÉGORIE 4 | P26: TAUX SOUS-CATÉGORIE 5 | R26: TAUX SOUS-CATÉGORIE 6 | T26: TAUX SOUS-CATÉGORIE 7 | V26: TAUX SOUS-CATÉGORIE 8 | X26: TAUX SOUS-CATÉGORIE 9 | Z26: TAUX SOUS-CATÉGORIE 10
B28: NOMBRE DE SECTEURS
B29: POURCENTAGE DE TAXATION | F29: IMPOSABLES | G29: COMPENSABLES | H29: IMPOSABLES | I29: COMPENSABLES | J29: IMPOSABLES | K29: COMPENSABLES | L29: IMPOSABLES | M29: COMPENSABLES | N29: IMPOSABLES | O29: COMPENSABLES | P29: IMPOSABLES | Q29: COMPENSABLES | R29: IMPOSABLES | S29: COMPENSABLES | T29: IMPOSABLES | U29: COMPENSABLES | V29: IMPOSABLES | W29: COMPENSABLES | X29: IMPOSABLES | Y29: COMPENSABLES | Z29: IMPOSABLES | AA29: COMPENSABLES
B30: 1A | C30: 0,1 % | E30: =E22+1 -> 917
B31: 1B | C31: 0,5 % | E31: =E30+1 -> 918
B32: 1C | C32: 1 % | E32: 919
B33: 2 | C33: 3 % | E33: 920
B34: 3 | C34: 6 % | E34: 921
B35: 4 | C35: 12 % | E35: 922
B36: 5 | C36: 22 % | E36: 923
B37: 6 | C37: 40 % | E37: 924
B38: 7 | C38: 60 % | E38: 925
B39: 8 | C39: 85 % | E39: 926
B40: 9 | C40: 100 % | E40: 927
B41: 10 | C41: 100 % | E41: 928
B42: 11 | C42: Cours de triage 100 % | E42: 929
B43: 12 | C43: CHSLD 20 % | E43: 930
B44: 13 | C44: Cours de triage 40 % | E44: 931 | G44: CFIL
B45: APPLICATION DU TNR QUAND TTVD | E45: 932
B46: ASSIETTES D'APPLICATION | E46: 933 | F46: =F77+F78 -> 0 | H46: =G77+G78 -> 0 | J46: =H77+H78 -> 0 | L46: =I77+I78 -> 0 | N46: =J77+J78 -> 0 | P46: =K77+K78 -> 0 | R46: =L77+L78 -> 0 | T46: =M77+M78 -> 0 | V46: =N77+N78 -> 0 | X46: =O77+O78 -> 0 | Z46: =P77+P78 -> 0
B48: ASSIETTES D'APPLICATION DES TAUX RELATIFS AUX SOUS-CATÉGORIES DES IMMEUBLES RÉSIDENTIELS (si applicables)
B49: DÉNOMINATION DE LA SOUS-CATÉGORIE | F49: TAUX SOUS-CATÉGORIE RÉSIDUELLE | H49: TAUX SOUS-CATÉGORIE 1 | J49: TAUX SOUS-CATÉGORIE 2 | L49: TAUX SOUS-CATÉGORIE 3 | N49: TAUX SOUS-CATÉGORIE 4 | P49: TAUX SOUS-CATÉGORIE 5 | R49: TAUX SOUS-CATÉGORIE 6 | T49: TAUX SOUS-CATÉGORIE 7 | V49: TAUX SOUS-CATÉGORIE 8 | X49: TAUX SOUS-CATÉGORIE 9 | Z49: TAUX SOUS-CATÉGORIE 10
B51: NOMBRE DE SECTEURS
B52: POURCENTAGE DE TAXATION | F52: IMPOSABLES | G52: COMPENSABLES | H52: IMPOSABLES | I52: COMPENSABLES | J52: IMPOSABLES | K52: COMPENSABLES | L52: IMPOSABLES | M52: COMPENSABLES | N52: IMPOSABLES | O52: COMPENSABLES | P52: IMPOSABLES | Q52: COMPENSABLES | R52: IMPOSABLES | S52: COMPENSABLES | T52: IMPOSABLES | U52: COMPENSABLES | V52: IMPOSABLES | W52: COMPENSABLES | X52: IMPOSABLES | Y52: COMPENSABLES | Z52: IMPOSABLES | AA52: COMPENSABLES
B53: 1A | C53: 99,9 % | E53: 935
B54: 1B | C54: 99,5 % | E54: =E53+1 -> 936
B55: 1C | C55: 99 % | E55: 937
B56: 2 | C56: 97 % | E56: 938
B57: 3 | C57: 94 % | E57: 939
B58: 4 | C58: 88 % | E58: 940
B59: 5 | C59: 78 % | E59: 941
B60: 6 | C60: 60 % | E60: 942
B61: 7 | C61: 40 % | E61: 943
B62: 8 | C62: 15 % | E62: 944
B63: 9 | C63: 100% immeubles sans partie non résidentielle | E63: 945
B64: 12 | C64: CHSLD 80 % | E64: 946
B65: 13 | C65: Cours de triage 60 % | E65: 947
B66: ASSIETTES D'APPLICATION | E66: 948 | F66: =F83+F84 -> 0 | H66: =G83+G84 -> 0 | J66: =H83+H84 -> 0 | L66: =I83+I84 -> 0 | N66: =J83+J84 -> 0 | P66: =K83+K84 -> 0 | R66: =L83+L84 -> 0 | T66: =M83+M84 -> 0 | V66: =N83+N84 -> 0 | X66: =O83+O84 -> 0 | Z66: =P83+P84 -> 0
F69: TAUX NON RÉSIDENTIEL | H69: TAUX INDUSTRIEL | L69: TAUX TERRAINS VAGUES DESSERVIS | O69: TAUX CATÉGORIE RÉSIDUELLE (TAUX DE BASE)
C71: Assiette imposable | F71: =Détermination_sec_2!G23 -> 1244467630 | H71: =Détermination_sec_2!G41+Détermination_sec_2!G59 -> 239376640 | L71: =L23 -> 76716400 | O71: =Détermination_sec_2!G78 -> 8384901701
C72: Assiette compensable | F72: =Détermination_sec_2!H23 -> 285184933 | H72: =Détermination_sec_2!H41+Détermination_sec_2!H59 -> 2325200 | L72: =N23 -> 58400 | O72: =Détermination_sec_2!H78 -> 62790167
B74: Sous-catégorie des immeubles non résidentiels
F75: TAUX SOUS-CATÉGORIE DE RÉFÉRENCE | G75: Sous-catégorie 1 | H75: Sous-catégorie 2 | I75: Sous-catégorie 3 | J75: Sous-catégorie 4 | K75: Sous-catégorie 5 | L75: Sous-catégorie 6 | M75: Sous-catégorie 7 | N75: Sous-catégorie 8 | O75: Sous-catégorie 9 | P75: Sous-catégorie 10
C77: Assiette imposable | F77: =Détermination_sec_2!G100 -> 0 | G77: =Détermination_sec_2!G122 -> 0 | H77: =Détermination_sec_2!R122 -> 0 | I77: =Détermination_sec_2!AC122 -> 0 | J77: =Détermination_sec_2!AN122 -> 0 | K77: =Détermination_sec_2!AY122 -> 0 | L77: =Détermination_sec_2!BJ122 -> 0 | M77: =Détermination_sec_2!BU122 -> 0 | N77: =Détermination_sec_2!CF122 -> 0 | O77: =Détermination_sec_2!CQ122 -> 0 | P77: =Détermination_sec_2!DB122 -> 0
C78: Assiette compensable | F78: =Détermination_sec_2!H100 -> 0 | G78: =Détermination_sec_2!H122 -> 0 | H78: =Détermination_sec_2!S122 -> 0 | I78: =Détermination_sec_2!AD122 -> 0 | J78: =Détermination_sec_2!AO122 -> 0 | K78: =Détermination_sec_2!AZ122 -> 0 | L78: =Détermination_sec_2!BK122 -> 0 | M78: =Détermination_sec_2!BV122 -> 0 | N78: =Détermination_sec_2!CG122 -> 0 | O78: =Détermination_sec_2!CR122 -> 0 | P78: =Détermination_sec_2!DC122 -> 0
B80: Sous-catégorie des immeubles résidentiels
F81: TAUX SOUS-CATÉGORIE RÉSIDUELLE | G81: Sous-catégorie 1 | H81: Sous-catégorie 2 | I81: Sous-catégorie 3 | J81: Sous-catégorie 4 | K81: Sous-catégorie 5 | L81: Sous-catégorie 6 | M81: Sous-catégorie 7 | N81: Sous-catégorie 8 | O81: Sous-catégorie 9 | P81: Sous-catégorie 10
C83: Assiette imposable | F83: =Détermination_sec_2!G141 -> 0 | G83: =Détermination_sec_2!G160 -> 0 | H83: =Détermination_sec_2!R160 -> 0 | I83: =Détermination_sec_2!AC160 -> 0 | J83: =Détermination_sec_2!AN160 -> 0 | K83: =Détermination_sec_2!AY160 -> 0 | L83: =Détermination_sec_2!BJ160 -> 0 | M83: =Détermination_sec_2!BU160 -> 0 | N83: =Détermination_sec_2!CF160 -> 0 | O83: =Détermination_sec_2!CQ160 -> 0 | P83: =Détermination_sec_2!DB160 -> 0
C84: Assiette compensable | F84: =Détermination_sec_2!H141 -> 0 | G84: =Détermination_sec_2!H160 -> 0 | H84: =Détermination_sec_2!S160 -> 0 | I84: =Détermination_sec_2!AD160 -> 0 | J84: =Détermination_sec_2!AO160 -> 0 | K84: =Détermination_sec_2!AZ160 -> 0 | L84: =Détermination_sec_2!BK160 -> 0 | M84: =Détermination_sec_2!BV160 -> 0 | N84: =Détermination_sec_2!CG160 -> 0 | O84: =Détermination_sec_2!CR160 -> 0 | P84: =Détermination_sec_2!DC160 -> 0

Sheet Détermination_sec_2 (hidden)
A1: DÉTERMINATION DES ASSIETTES
A3: ASSIETTE AU TAUX NON RÉSIDENTIEL
A4: Classe non résidentielle | B4: Pourcentage de taxation | D4: VAL. NR À 100 % ET IND. CL. 2 À 50 %
D5: Imposables | E5: Compensables | G5: Imposables pondérées | H5: Compensables pondérées | J5: Total
B6: (1) | D6: (2) | E6: (3) | G6: (4) = (1) X (2) | H6: (5) = (1 ) X (3) | J6: (6) = (4) + (5)
A7: 1A | B7: 0.001 | D7: ='Sommaire du rôle_sec_2'!F7 -> 76534150 | E7: ='Sommaire du rôle_sec_2'!G7 -> 0 | G7: =B7*D7 -> 76534.15 | H7: =B7*E7 -> 0 | J7: =G7+H7 -> 76534.15
A8: 1B | B8: 0.005 | D8: ='Sommaire du rôle_sec_2'!F8 -> 34712370 | E8: ='Sommaire du rôle_sec_2'!G8 -> 0 | G8: 173561.85 | H8: 0 | J8: 173561.85
A9: 1C | B9: 0.01 | D9: ='Sommaire du rôle_sec_2'!F9 -> 4894450 | E9: ='Sommaire du rôle_sec_2'!G9 -> 0 | G9: 48944.5 | H9: 0 | J9: 48944.5
A10: 2 | B10: 0.03 | D10: ='Sommaire du rôle_sec_2'!F10 -> 23616670 | E10: ='Sommaire du rôle_sec_2'!G10 -> 0 | G10: 708500.1 | H10: 0 | J10: 708500.1
A11: 3 | B11: 0.06 | D11: ='Sommaire du rôle_sec_2'!F11 -> 44153450 | E11: ='Sommaire du rôle_sec_2'!G11 -> 0 | G11: 2649207 | H11: 0 | J11: 2649207
A12: 4 | B12: 0.12 | D12: ='Sommaire du rôle_sec_2'!F12 -> 60256460 | E12: ='Sommaire du rôle_sec_2'!G12 -> 0 | G12: 7230775.2 | H12: 0 | J12: 7230775.2
A13: 5 | B13: 0.22 | D13: ='Sommaire du rôle_sec_2'!F13 -> 38643990 | E13: ='Sommaire du rôle_sec_2'!G13 -> 0 | G13: 8501677.8 | H13: 0 | J13: 8501677.8
A14: 6 | B14: 0.4 | D14: ='Sommaire du rôle_sec_2'!F14 -> 38532890 | E14: ='Sommaire du rôle_sec_2'!G14 -> 0 | G14: 15413156 | H14: 0 | J14: 15413156
A15: 7 | B15: 0.6 | D15: ='Sommaire du rôle_sec_2'!F15 -> 39569365 | E15: ='Sommaire du rôle_sec_2'!G15 -> 72376370 | G15: 23741619 | H15: 43425822 | J15: 67167441
A16: 8 | B16: 0.85 | D16: ='Sommaire du rôle_sec_2'!F16 -> 22323070 | E16: ='Sommaire du rôle_sec_2'!G16 -> 211592260 | G16: 18974609.5 | H16: 179853421 | J16: 198828030.5
A17: 9 | B17: 1 | D17: ='Sommaire du rôle_sec_2'!F17 -> 3177900 | E17: ='Sommaire du rôle_sec_2'!G17 -> 0 | G17: 3177900 | H17: 0 | J17: 3177900
A18: 10 | B18: 1 | D18: ='Sommaire du rôle_sec_2'!F18 -> 1155755205 | E18: ='Sommaire du rôle_sec_2'!G18 -> 61905690 | G18: 1155755205 | H18: 61905690 | J18: 1217660895
A19: 11 Cours de triage | B19: 100% | D19: ='Sommaire du rôle_sec_2'!F19 -> 0 | E19: ='Sommaire du rôle_sec_2'!G19 -> 0 | G19: 0 | H19: 0 | J19: 0
A20: 12 CHSLD | B20: 0.2 | D20: ='Sommaire du rôle_sec_2'!F20 -> 13938200 | G20: 2787640 | J20: 2787640
A21: 13 Cours de triage 40 % | B21: 40% | D21: ='Sommaire du rôle_sec_2'!F21 -> 0 | G21: 0 | J21: 0
A22: APPLICATION DU TNR QUAND TTVD | B22: 1 | D22: ='Sommaire du rôle_sec_2'!F22 -> 5228300 | E22: ='Sommaire du rôle_sec_2'!G22 -> 0 | G22: 5228300 | H22: =B22*E22 -> 0 | J22: 5228300
A23: Total | G23: =SUM(G7:G22) -> 1244467630 | H23: =SUM(H7:H22) -> 285184933 | J23: 1529652563
A25: ASSIETTE AU TAUX INDUSTRIEL (CLASSE 2)
A26: Classe non résidentielle | B26: Pourcentage de taxation | D26: VALEUR À 50 %
D27: Imposables | E27: Compensables | G27: Imposables pondérées | H27: Compensables pondérées | J27: Total
B28: (1) | D28: (2) | E28: (3) | G28: (4) = (1) X (2) | H28: (5) = (1) X (3) | J28: (6) = (4) + (5)
A29: 1A | B29: 0.001 | D29: ='Sommaire du rôle_sec_2'!H7 -> 0 | E29: ='Sommaire du rôle_sec_2'!I7 -> 0 | G29: =B29*D29 -> 0 | H29: =B29*E29 -> 0 | J29: =G29+H29 -> 0
A30: 1B | B30: 0.005 | D30: ='Sommaire du rôle_sec_2'!H8 -> 0 | E30: ='Sommaire du rôle_sec_2'!I8 -> 0 | G30: 0 | H30: 0 | J30: 0
A31: 1C | B31: 0.01 | D31: ='Sommaire du rôle_sec_2'!H9 -> 0 | E31: ='Sommaire du rôle_sec_2'!I9 -> 0 | G31: 0 | H31: 0 | J31: 0
A32: 2 | B32: 0.03 | D32: ='Sommaire du rôle_sec_2'!H10 -> 0 | E32: ='Sommaire du rôle_sec_2'!I10 -> 0 | G32: 0 | H32: 0 | J32: 0
A33: 3 | B33: 0.06 | D33: ='Sommaire du rôle_sec_2'!H11 -> 0 | E33: ='Sommaire du rôle_sec_2'!I11 -> 0 | G33: 0 | H33: 0 | J33: 0
A34: 4 | B34: 0.12 | D34: ='Sommaire du rôle_sec_2'!H12 -> 0 | E34: ='Sommaire du rôle_sec_2'!I12 -> 0 | G34: 0 | H34: 0 | J34: 0
A35: 5 | B35: 0.22 | D35: ='Sommaire du rôle_sec_2'!H13 -> 0 | E35: ='Sommaire du rôle_sec_2'!I13 -> 0 | G35: 0 | H35: 0 | J35: 0
A36: 6 | B36: 0.4 | D36: ='Sommaire du rôle_sec_2'!H14 -> 290100 | E36: ='Sommaire du rôle_sec_2'!I14 -> 0 | G36: 116040 | H36: 0 | J36: 116040
A37: 7 | B37: 0.6 | D37: ='Sommaire du rôle_sec_2'!H15 -> 350350 | E37: ='Sommaire du rôle_sec_2'!I15 -> 0 | G37: 210210 | H37: 0 | J37: 210210
A38: 8 | B38: 0.85 | D38: ='Sommaire du rôle_sec_2'!H16 -> 0 | E38: ='Sommaire du rôle_sec_2'!I16 -> 0 | G38: 0 | H38: 0 | J38: 0
A39: 9 | B39: 1 | D39: ='Sommaire du rôle_sec_2'!H17 -> 0 | E39: ='Sommaire du rôle_sec_2'!I17 -> 0 | G39: 0 | H39: 0 | J39: 0
A40: 10 | B40: 1 | D40: ='Sommaire du rôle_sec_2'!H18 -> 10515650 | E40: ='Sommaire du rôle_sec_2'!I18 -> 0 | G40: 10515650 | H40: 0 | J40: 10515650
A41: Total | G41: =SUM(G29:G40) -> 10841900 | H41: =SUM(H29:H40) -> 0 | J41: 10841900
A43: ASSIETTE AU TAUX IND. (SAUF CL.1 ET 2)
A44: Classe non résidentielle | B44: Pourcentage de taxation | D44: VALEUR À 100 %
D45: Imposables | E45: Compensables | G45: Imposables pondérées | H45: Compensables pondérées | J45: Total
B46: (1) | D46: (2) | E46: (3) | G46: (4) = (1) X (2) | H46: (5) = (1) X (3) | J46: (6) = (4) + (5)
A47: 1A | B47: 0.001 | D47: ='Sommaire du rôle_sec_2'!J7 -> 0 | E47: ='Sommaire du rôle_sec_2'!K7 -> 0 | G47: =B47*D47 -> 0 | H47: =B47*E47 -> 0 | J47: =G47+H47 -> 0
A48: 1B | B48: 0.005 | D48: ='Sommaire du rôle_sec_2'!J8 -> 0 | E48: ='Sommaire du rôle_sec_2'!K8 -> 0 | G48: 0 | H48: 0 | J48: 0
A49: 1C | B49: 0.01 | D49: ='Sommaire du rôle_sec_2'!J9 -> 0 | E49: ='Sommaire du rôle_sec_2'!K9 -> 0 | G49: 0 | H49: 0 | J49: 0
A50: 2 | B50: 0.03 | D50: ='Sommaire du rôle_sec_2'!J10 -> 605900 | E50: ='Sommaire du rôle_sec_2'!K10 -> 0 | G50: 18177 | H50: 0 | J50: 18177
A51: 3 | B51: 0.06 | D51: ='Sommaire du rôle_sec_2'!J11 -> 181400 | E51: ='Sommaire du rôle_sec_2'!K11 -> 0 | G51: 10884 | H51: 0 | J51: 10884
A52: 4 | B52: 0.12 | D52: ='Sommaire du rôle_sec_2'!J12 -> 215700 | E52: ='Sommaire du rôle_sec_2'!K12 -> 0 | G52: 25884 | H52: 0 | J52: 25884
A53: 5 | B53: 0.22 | D53: ='Sommaire du rôle_sec_2'!J13 -> 0 | E53: ='Sommaire du rôle_sec_2'!K13 -> 0 | G53: 0 | H53: 0 | J53: 0
A54: 6 | B54: 0.4 | D54: ='Sommaire du rôle_sec_2'!J14 -> 2421200 | E54: ='Sommaire du rôle_sec_2'!K14 -> 0 | G54: 968480 | H54: 0 | J54: 968480
A55: 7 | B55: 0.6 | D55: ='Sommaire du rôle_sec_2'!J15 -> 354000 | E55: ='Sommaire du rôle_sec_2'!K15 -> 0 | G55: 212400 | H55: 0 | J55: 212400
A56: 8 | B56: 0.85 | D56: ='Sommaire du rôle_sec_2'!J16 -> 1875900 | E56: ='Sommaire du rôle_sec_2'!K16 -> 0 | G56: 1594515 | H56: 0 | J56: 1594515
A57: 9 | B57: 1 | D57: ='Sommaire du rôle_sec_2'!J17 -> 0 | E57: ='Sommaire du rôle_sec_2'!K17 -> 0 | G57: 0 | H57: 0 | J57: 0
A58: 10 | B58: 1 | D58: ='Sommaire du rôle_sec_2'!J18 -> 225704400 | E58: ='Sommaire du rôle_sec_2'!K18 -> 2325200 | G58: 225704400 | H58: 2325200 | J58: 228029600
A59: Total | G59: =SUM(G47:G58) -> 228534740 | H59: =SUM(H47:H58) -> 2325200 | J59: 230859940
A61: ASSIETTE AU TAUX DE BASE
A62: Classe non résidentielle | B62: Pourcentage de taxation | D62: VALEUR À 100 %
D63: Imposables | E63: Compensables | G63: Imposables pondérées | H63: Compensables pondérées | J63: Total
B64: (1) | D64: (2) | E64: (3) | G64: (4) = (1) X (2) | H64: (5) = (1) X (3) | J64: (6) = (4) + (5)
A65: 1A | B65: 0.999 | D65: ='Sommaire du rôle_sec_2'!P7 -> 76534150 | E65: ='Sommaire du rôle_sec_2'!Q7 -> 0 | G65: =D65*B65 -> 76457615.85 | H65: =B65*E65 -> 0 | J65: =G65+H65 -> 76457615.85
A66: 1B | B66: 0.995 | D66: ='Sommaire du rôle_sec_2'!P8 -> 34712370 | E66: ='Sommaire du rôle_sec_2'!Q8 -> 0 | G66: 34538808.15 | H66: 0 | J66: 34538808.15
A67: 1C | B67: 0.99 | D67: ='Sommaire du rôle_sec_2'!P9 -> 4894450 | E67: ='Sommaire du rôle_sec_2'!Q9 -> 0 | G67: 4845505.5 | H67: 0 | J67: 4845505.5
A68: 2 | B68: 0.97 | D68: ='Sommaire du rôle_sec_2'!P10 -> 23616670 | E68: ='Sommaire du rôle_sec_2'!Q10 -> 0 | G68: 22908169.9 | H68: 0 | J68: 22908169.9
A69: 3 | B69: 0.94 | D69: ='Sommaire du rôle_sec_2'!P11 -> 44153450 | E69: ='Sommaire du rôle_sec_2'!Q11 -> 0 | G69: 41504243 | H69: 0 | J69: 41504243
A70: 4 | B70: 0.88 | D70: ='Sommaire du rôle_sec_2'!P12 -> 60256460 | E70: ='Sommaire du rôle_sec_2'!Q12 -> 0 | G70: 53025684.8 | H70: 0 | J70: 53025684.8
A71: 5 | B71: 0.78 | D71: ='Sommaire du rôle_sec_2'!P13 -> 38643990 | E71: ='Sommaire du rôle_sec_2'!Q13 -> 0 | G71: 30142312.2 | H71: 0 | J71: 30142312.2
A72: 6 | B72: 0.6 | D72: ='Sommaire du rôle_sec_2'!P14 -> 38532890 | E72: ='Sommaire du rôle_sec_2'!Q14 -> 0 | G72: 23119734 | H72: 0 | J72: 23119734
A73: 7 | B73: 0.4 | D73: ='Sommaire du rôle_sec_2'!P15 -> 39569365 | E73: ='Sommaire du rôle_sec_2'!Q15 -> 72376370 | G73: 15827746 | H73: 28950548 | J73: 44778294
A74: 8 | B74: 0.15 | D74: ='Sommaire du rôle_sec_2'!P16 -> 22323070 | E74: ='Sommaire du rôle_sec_2'!Q16 -> 211592260 | G74: 3348460.5 | H74: 31738839 | J74: 35087299.5
A75: IMMEUBLES SANS PARTIE NON RÉSIDENTIELLE | B75: 1 | D75: ='Sommaire du rôle_sec_2'!P18 -> 8068032861 | E75: ='Sommaire du rôle_sec_2'!Q18 -> 2100780 | G75: 8068032861 | H75: 2100780 | J75: 8070133641
A76: 12 CHSLD | B76: 0.8 | D76: ='Sommaire du rôle_sec_2'!P20 -> 13938200 | G76: 11150560
A77: 13 Cours de triage | B77: 0.6 | D77: ='Sommaire du rôle_sec_2'!P21 -> 0 | G77: 0
A78: Total | G78: =SUM(G65:G77) -> 8384901701 | H78: =SUM(H65:H75) -> 62790167 | I78: =SUM(I65:I75) -> 0 | J78: =G78+H78 -> 8447691868
A80: ASSIETTE AU TAUX NON RÉSIDENTIEL RÉFÉRENCE
A81: Classe non résidentielle | B81: Pourcentage de taxation | D81: VAL. NR À 100 % ET IND. CL. 2 À 50 %
D82: Imposables | E82: Compensables | G82: Imposables pondérées | H82: Compensables pondérées | J82: Total
B83: (1) | D83: (2) | E83: (3) | G83: (4) = (1) X (2) | H83: (5) = (1 ) X (3) | J83: (6) = (4) + (5)
A84: 1A | B84: 0.001 | D84: ='Sommaire du rôle_sec_2'!F30 -> 0 | E84: ='Sommaire du rôle_sec_2'!G30 -> 0 | G84: =B84*D84 -> 0 | H84: =B84*E84 -> 0 | J84: =G84+H84 -> 0
A85: 1B | B85: 0.005 | D85: ='Sommaire du rôle_sec_2'!F31 -> 0 | E85: ='Sommaire du rôle_sec_2'!G31 -> 0 | G85: 0 | H85: 0 | J85: 0
A86: 1C | B86: 0.01 | D86: ='Sommaire du rôle_sec_2'!F32 -> 0 | E86: ='Sommaire du rôle_sec_2'!G32 -> 0 | G86: 0 | H86: 0 | J86: 0
A87: 2 | B87: 0.03 | D87: ='Sommaire du rôle_sec_2'!F33 -> 0 | E87: ='Sommaire du rôle_sec_2'!G33 -> 0 | G87: 0 | H87: 0 | J87: 0
A88: 3 | B88: 0.06 | D88: ='Sommaire du rôle_sec_2'!F34 -> 0 | E88: ='Sommaire du rôle_sec_2'!G34 -> 0 | G88: 0 | H88: 0 | J88: 0
A89: 4 | B89: 0.12 | D89: ='Sommaire du rôle_sec_2'!F35 -> 0 | E89: ='Sommaire du rôle_sec_2'!G35 -> 0 | G89: 0 | H89: 0 | J89: 0
A90: 5 | B90: 0.22 | D90: ='Sommaire du rôle_sec_2'!F36 -> 0 | E90: ='Sommaire du rôle_sec_2'!G36 -> 0 | G90: 0 | H90: 0 | J90: 0
A91: 6 | B91: 0.4 | D91: ='Sommaire du rôle_sec_2'!F37 -> 0 | E91: ='Sommaire du rôle_sec_2'!G37 -> 0 | G91: 0 | H91: 0 | J91: 0
A92: 7 | B92: 0.6 | D92: ='Sommaire du rôle_sec_2'!F38 -> 0 | E92: ='Sommaire du rôle_sec_2'!G38 -> 0 | G92: 0 | H92: 0 | J92: 0
A93: 8 | B93: 0.85 | D93: ='Sommaire du rôle_sec_2'!F39 -> 0 | E93: ='Sommaire du rôle_sec_2'!G39 -> 0 | G93: 0 | H93: 0 | J93: 0
A94: 9 | B94: 1 | D94: ='Sommaire du rôle_sec_2'!F40 -> 0 | E94: ='Sommaire du rôle_sec_2'!G40 -> 0 | G94: 0 | H94: 0 | J94: 0
A95: 10 | B95: 1 | D95: ='Sommaire du rôle_sec_2'!F41 -> 0 | E95: ='Sommaire du rôle_sec_2'!G41 -> 0 | G95: 0 | H95: 0 | J95: 0
A96: 11 Cours de triage | B96: 100% | D96: ='Sommaire du rôle_sec_2'!F42 -> 0 | E96: ='Sommaire du rôle_sec_2'!G42 -> 0 | G96: 0 | H96: 0 | J96: 0
A97: 12 CHSLD | B97: 0.2 | D97: ='Sommaire du rôle_sec_2'!F43 -> 0 | G97: 0 | J97: 0
A98: 13 Cours de triage 40 % | B98: 40% | D98: ='Sommaire du rôle_sec_2'!F44 -> 0 | G98: 0 | J98: 0
A99: APPLICATION DU TNR QUAND TTVD | B99: 1 | D99: ='Sommaire du rôle_sec_2'!F45 -> 0 | E99: ='Sommaire du rôle_sec_2'!G45 -> 0 | G99: 0 | H99: =B99*E99 -> 0 | J99: 0
A100: Total | G100: =SUM(G84:G99) -> 0 | H100: =SUM(H84:H99) -> 0 | J100: 0
A102: ASSIETTE AU TAUX NON RÉSIDENTIEL SOUS-CATÉGORIE 1 | L102: ASSIETTE AU TAUX NON RÉSIDENTIEL SOUS-CATÉGORIE 2 | W102: ASSIETTE AU TAUX NON RÉSIDENTIEL SOUS-CATÉGORIE 3 | AH102: ASSIETTE AU TAUX NON RÉSIDENTIEL SOUS-CATÉGORIE 4 | AS102: ASSIETTE AU TAUX NON RÉSIDENTIEL SOUS-CATÉGORIE 5 | BD102: ASSIETTE AU TAUX NON RÉSIDENTIEL SOUS-CATÉGORIE 6 | BO102: ASSIETTE AU TAUX NON RÉSIDENTIEL SOUS-CATÉGORIE 7 | BZ102: ASSIETTE AU TAUX NON RÉSIDENTIEL SOUS-CATÉGORIE 8 | CK102: ASSIETTE AU TAUX NON RÉSIDENTIEL SOUS-CATÉGORIE 9 | CV102: ASSIETTE AU TAUX NON RÉSIDENTIEL SOUS-CATÉGORIE 10
A103: Classe non résidentielle | B103: Pourcentage de taxation | D103: VAL. NR À 100 % ET IND. CL. 2 À 50 % | L103: Classe non résidentielle | M103: Pourcentage de taxation | O103: VAL. NR À 100 % ET IND. CL. 2 À 50 % | W103: Classe non résidentielle | X103: Pourcentage de taxation | Z103: VAL. NR À 100 % ET IND. CL. 2 À 50 % | AH103: Classe non résidentielle | AI103: Pourcentage de taxation | AK103: VAL. NR À 100 % ET IND. CL. 2 À 50 % | AS103: Classe non résidentielle | AT103: Pourcentage de taxation | AV103: VAL. NR À 100 % ET IND. CL. 2 À 50 % | BD103: Classe non résidentielle | BE103: Pourcentage de taxation | BG103: VAL. NR À 100 % ET IND. CL. 2 À 50 % | BO103: Classe non résidentielle | BP103: Pourcentage de taxation | BR103: VAL. NR À 100 % ET IND. CL. 2 À 50 % | BZ103: Classe non résidentielle | CA103: Pourcentage de taxation | CC103: VAL. NR À 100 % ET IND. CL. 2 À 50 % | CK103: Classe non résidentielle | CL103: Pourcentage de taxation | CN103: VAL. NR À 100 % ET IND. CL. 2 À 50 % | CV103: Classe non résidentielle | CW103: Pourcentage de taxation | CY103: VAL. NR À 100 % ET IND. CL. 2 À 50 %
D104: Imposables | E104: Compensables | G104: Imposables pondérées | H104: Compensables pondérées | J104: Total | O104: Imposables | P104: Compensables | R104: Imposables pondérées | S104: Compensables pondérées | U104: Total | Z104: Imposables | AA104: Compensables | AC104: Imposables pondérées | AD104: Compensables pondérées | AF104: Total | AK104: Imposables | AL104: Compensables | AN104: Imposables pondérées | AO104: Compensables pondérées | AQ104: Total | AV104: Imposables | AW104: Compensables | AY104: Imposables pondérées | AZ104: Compensables pondérées | BB104: Total | BG104: Imposables | BH104: Compensables | BJ104: Imposables pondérées | BK104: Compensables pondérées | BM104: Total | BR104: Imposables | BS104: Compensables | BU104: Imposables pondérées | BV104: Compensables pondérées | BX104: Total | CC104: Imposables | CD104: Compensables | CF104: Imposables pondérées | CG104: Compensables pondérées | CI104: Total | CN104: Imposables | CO104: Compensables | CQ104: Imposables pondérées | CR104: Compensables pondérées | CT104: Total | CY104: Imposables | CZ104: Compensables | DB104: Imposables pondérées | DC104: Compensables pondérées | DE104: Total
B105: (1) | D105: (2) | E105: (3) | G105: (4) = (1) X (2) | H105: (5) = (1 ) X (3) | J105: (6) = (4) + (5) | M105: (1) | O105: (2) | P105: (3) | R105: (4) = (1) X (2) | S105: (5) = (1 ) X (3) | U105: (6) = (4) + (5) | X105: (1) | Z105: (2) | AA105: (3) | AC105: (4) = (1) X (2) | AD105: (5) = (1 ) X (3) | AF105: (6) = (4) + (5) | AI105: (1) | AK105: (2) | AL105: (3) | AN105: (4) = (1) X (2) | AO105: (5) = (1 ) X (3) | AQ105: (6) = (4) + (5) | AT105: (1) | AV105: (2) | AW105: (3) | AY105: (4) = (1) X (2) | AZ105: (5) = (1 ) X (3) | BB105: (6) = (4) + (5) | BE105: (1) | BG105: (2) | BH105: (3) | BJ105: (4) = (1) X (2) | BK105: (5) = (1 ) X (3) | BM105: (6) = (4) + (5) | BP105: (1) | BR105: (2) | BS105: (3) | BU105: (4) = (1) X (2) | BV105: (5) = (1 ) X (3) | BX105: (6) = (4) + (5) | CA105: (1) | CC105: (2) | CD105: (3) | CF105: (4) = (1) X (2) | CG105: (5) = (1 ) X (3) | CI105: (6) = (4) + (5) | CL105: (1) | CN105: (2) | CO105: (3) | CQ105: (4) = (1) X (2) | CR105: (5) = (1 ) X (3) | CT105: (6) = (4) + (5) | CW105: (1) | CY105: (2) | CZ105: (3) | DB105: (4) = (1) X (2) | DC105: (5) = (1 ) X (3) | DE105: (6) = (4) + (5)
A106: 1A | B106: 0.001 | D106: ='Sommaire du rôle_sec_2'!H30 -> 0 | E106: ='Sommaire du rôle_sec_2'!I30 -> 0 | G106: =B106*D106 -> 0 | H106: =B106*E106 -> 0 | J106: =G106+H106 -> 0 | L106: 1A | M106: 0.001 | O106: ='Sommaire du rôle_sec_2'!J30 -> 0 | P106: ='Sommaire du rôle_sec_2'!K30 -> 0 | R106: =M106*O106 -> 0 | S106: =M106*P106 -> 0 | U106: =R106+S106 -> 0 | W106: 1A | X106: 0.001 | Z106: ='Sommaire du rôle_sec_2'!L30 -> 0 | AA106: ='Sommaire du rôle_sec_2'!M30 -> 0 | AC106: =X106*Z106 -> 0 | AD106: =X106*AA106 -> 0 | AF106: =AC106+AD106 -> 0 | AH106: 1A | AI106: 0.001 | AK106: ='Sommaire du rôle_sec_2'!N30 -> 0 | AL106: ='Sommaire du rôle_sec_2'!O30 -> 0 | AN106: =AI106*AK106 -> 0 | AO106: =AI106*AL106 -> 0 | AQ106: =AN106+AO106 -> 0 | AS106: 1A | AT106: 0.001 | AV106: ='Sommaire du rôle_sec_2'!P30 -> 0 | AW106: ='Sommaire du rôle_sec_2'!Q30 -> 0 | AY106: =AT106*AV106 -> 0 | AZ106: =AT106*AW106 -> 0 | BB106: =AY106+AZ106 -> 0 | BD106: 1A | BE106: 0.001 | BG106: ='Sommaire du rôle_sec_2'!R30 -> 0 | BH106: ='Sommaire du rôle_sec_2'!S30 -> 0 | BJ106: =BE106*BG106 -> 0 | BK106: =BE106*BH106 -> 0 | BM106: =BJ106+BK106 -> 0 | BO106: 1A | BP106: 0.001 | BR106: ='Sommaire du rôle_sec_2'!T30 -> 0 | BS106: ='Sommaire du rôle_sec_2'!U30 -> 0 | BU106: =BP106*BR106 -> 0 | BV106: =BP106*BS106 -> 0 | BX106: =BU106+BV106 -> 0 | BZ106: 1A | CA106: 0.001 | CC106: ='Sommaire du rôle_sec_2'!V30 -> 0 | CD106: ='Sommaire du rôle_sec_2'!W30 -> 0 | CF106: =CA106*CC106 -> 0 | CG106: =CA106*CD106 -> 0 | CI106: =CF106+CG106 -> 0 | CK106: 1A | CL106: 0.001 | CN106: ='Sommaire du rôle_sec_2'!X30 -> 0 | CO106: ='Sommaire du rôle_sec_2'!Y30 -> 0 | CQ106: =CL106*CN106 -> 0 | CR106: =CL106*CO106 -> 0 | CT106: =CQ106+CR106 -> 0 | CV106: 1A | CW106: 0.001 | CY106: ='Sommaire du rôle_sec_2'!Z30 -> 0 | CZ106: ='Sommaire du rôle_sec_2'!AA30 -> 0 | DB106: =CW106*CY106 -> 0 | DC106: =CW106*CZ106 -> 0 | DE106: =DB106+DC106 -> 0
A107: 1B | B107: 0.005 | D107: ='Sommaire du rôle_sec_2'!H31 -> 0 | E107: ='Sommaire du rôle_sec_2'!I31 -> 0 | G107: 0 | H107: 0 | J107: 0 | L107: 1B | M107: 0.005 | O107: ='Sommaire du rôle_sec_2'!J31 -> 0 | P107: ='Sommaire du rôle_sec_2'!K31 -> 0 | R107: 0 | S107: 0 | U107: 0 | W107: 1B | X107: 0.005 | Z107: ='Sommaire du rôle_sec_2'!L31 -> 0 | AA107: ='Sommaire du rôle_sec_2'!M31 -> 0 | AC107: 0 | AD107: 0 | AF107: 0 | AH107: 1B | AI107: 0.005 | AK107: ='Sommaire du rôle_sec_2'!N31 -> 0 | AL107: ='Sommaire du rôle_sec_2'!O31 -> 0 | AN107: 0 | AO107: 0 | AQ107: 0 | AS107: 1B | AT107: 0.005 | AV107: ='Sommaire du rôle_sec_2'!P31 -> 0 | AW107: ='Sommaire du rôle_sec_2'!Q31 -> 0 | AY107: 0 | AZ107: 0 | BB107: 0 | BD107: 1B | BE107: 0.005 | BG107: ='Sommaire du rôle_sec_2'!R31 -> 0 | BH107: ='Sommaire du rôle_sec_2'!S31 -> 0 | BJ107: 0 | BK107: 0 | BM107: 0 | BO107: 1B | BP107: 0.005 | BR107: ='Sommaire du rôle_sec_2'!T31 -> 0 | BS107: ='Sommaire du rôle_sec_2'!U31 -> 0 | BU107: 0 | BV107: 0 | BX107: 0 | BZ107: 1B | CA107: 0.005 | CC107: ='Sommaire du rôle_sec_2'!V31 -> 0 | CD107: ='Sommaire du rôle_sec_2'!W31 -> 0 | CF107: 0 | CG107: 0 | CI107: 0 | CK107: 1B | CL107: 0.005 | CN107: ='Sommaire du rôle_sec_2'!X31 -> 0 | CO107: ='Sommaire du rôle_sec_2'!Y31 -> 0 | CQ107: 0 | CR107: 0 | CT107: 0 | CV107: 1B | CW107: 0.005 | CY107: ='Sommaire du rôle_sec_2'!Z31 -> 0 | CZ107: ='Sommaire du rôle_sec_2'!AA31 -> 0 | DB107: 0 | DC107: 0 | DE107: 0
A108: 1C | B108: 0.01 | D108: ='Sommaire du rôle_sec_2'!H32 -> 0 | E108: ='Sommaire du rôle_sec_2'!I32 -> 0 | G108: 0 | H108: 0 | J108: 0 | L108: 1C | M108: 0.01 | O108: ='Sommaire du rôle_sec_2'!J32 -> 0 | P108: ='Sommaire du rôle_sec_2'!K32 -> 0 | R108: 0 | S108: 0 | U108: 0 | W108: 1C | X108: 0.01 | Z108: ='Sommaire du rôle_sec_2'!L32 -> 0 | AA108: ='Sommaire du rôle_sec_2'!M32 -> 0 | AC108: 0 | AD108: 0 | AF108: 0 | AH108: 1C | AI108: 0.01 | AK108: ='Sommaire du rôle_sec_2'!N32 -> 0 | AL108: ='Sommaire du rôle_sec_2'!O32 -> 0 | AN108: 0 | AO108: 0 | AQ108: 0 | AS108: 1C | AT108: 0.01 | AV108: ='Sommaire du rôle_sec_2'!P32 -> 0 | AW108: ='Sommaire du rôle_sec_2'!Q32 -> 0 | AY108: 0 | AZ108: 0 | BB108: 0 | BD108: 1C | BE108: 0.01 | BG108: ='Sommaire du rôle_sec_2'!R32 -> 0 | BH108: ='Sommaire du rôle_sec_2'!S32 -> 0 | BJ108: 0 | BK108: 0 | BM108: 0 | BO108: 1C | BP108: 0.01 | BR108: ='Sommaire du rôle_sec_2'!T32 -> 0 | BS108: ='Sommaire du rôle_sec_2'!U32 -> 0 | BU108: 0 | BV108: 0 | BX108: 0 | BZ108: 1C | CA108: 0.01 | CC108: ='Sommaire du rôle_sec_2'!V32 -> 0 | CD108: ='Sommaire du rôle_sec_2'!W32 -> 0 | CF108: 0 | CG108: 0 | CI108: 0 | CK108: 1C | CL108: 0.01 | CN108: ='Sommaire du rôle_sec_2'!X32 -> 0 | CO108: ='Sommaire du rôle_sec_2'!Y32 -> 0 | CQ108: 0 | CR108: 0 | CT108: 0 | CV108: 1C | CW108: 0.01 | CY108: ='Sommaire du rôle_sec_2'!Z32 -> 0 | CZ108: ='Sommaire du rôle_sec_2'!AA32 -> 0 | DB108: 0 | DC108: 0 | DE108: 0
A109: 2 | B109: 0.03 | D109: ='Sommaire du rôle_sec_2'!H33 -> 0 | E109: ='Sommaire du rôle_sec_2'!I33 -> 0 | G109: 0 | H109: 0 | J109: 0 | L109: 2 | M109: 0.03 | O109: ='Sommaire du rôle_sec_2'!J33 -> 0 | P109: ='Sommaire du rôle_sec_2'!K33 -> 0 | R109: 0 | S109: 0 | U109: 0 | W109: 2 | X109: 0.03 | Z109: ='Sommaire du rôle_sec_2'!L33 -> 0 | AA109: ='Sommaire du rôle_sec_2'!M33 -> 0 | AC109: 0 | AD109: 0 | AF109: 0 | AH109: 2 | AI109: 0.03 | AK109: ='Sommaire du rôle_sec_2'!N33 -> 0 | AL109: ='Sommaire du rôle_sec_2'!O33 -> 0 | AN109: 0 | AO109: 0 | AQ109: 0 | AS109: 2 | AT109: 0.03 | AV109: ='Sommaire du rôle_sec_2'!P33 -> 0 | AW109: ='Sommaire du rôle_sec_2'!Q33 -> 0 | AY109: 0 | AZ109: 0 | BB109: 0 | BD109: 2 | BE109: 0.03 | BG109: ='Sommaire du rôle_sec_2'!R33 -> 0 | BH109: ='Sommaire du rôle_sec_2'!S33 -> 0 | BJ109: 0 | BK109: 0 | BM109: 0 | BO109: 2 | BP109: 0.03 | BR109: ='Sommaire du rôle_sec_2'!T33 -> 0 | BS109: ='Sommaire du rôle_sec_2'!U33 -> 0 | BU109: 0 | BV109: 0 | BX109: 0 | BZ109: 2 | CA109: 0.03 | CC109: ='Sommaire du rôle_sec_2'!V33 -> 0 | CD109: ='Sommaire du rôle_sec_2'!W33 -> 0 | CF109: 0 | CG109: 0 | CI109: 0 | CK109: 2 | CL109: 0.03 | CN109: ='Sommaire du rôle_sec_2'!X33 -> 0 | CO109: ='Sommaire du rôle_sec_2'!Y33 -> 0 | CQ109: 0 | CR109: 0 | CT109: 0 | CV109: 2 | CW109: 0.03 | CY109: ='Sommaire du rôle_sec_2'!Z33 -> 0 | CZ109: ='Sommaire du rôle_sec_2'!AA33 -> 0 | DB109: 0 | DC109: 0 | DE109: 0
A110: 3 | B110: 0.06 | D110: ='Sommaire du rôle_sec_2'!H34 -> 0 | E110: ='Sommaire du rôle_sec_2'!I34 -> 0 | G110: 0 | H110: 0 | J110: 0 | L110: 3 | M110: 0.06 | O110: ='Sommaire du rôle_sec_2'!J34 -> 0 | P110: ='Sommaire du rôle_sec_2'!K34 -> 0 | R110: 0 | S110: 0 | U110: 0 | W110: 3 | X110: 0.06 | Z110: ='Sommaire du rôle_sec_2'!L34 -> 0 | AA110: ='Sommaire du rôle_sec_2'!M34 -> 0 | AC110: 0 | AD110: 0 | AF110: 0 | AH110: 3 | AI110: 0.06 | AK110: ='Sommaire du rôle_sec_2'!N34 -> 0 | AL110: ='Sommaire du rôle_sec_2'!O34 -> 0 | AN110: 0 | AO110: 0 | AQ110: 0 | AS110: 3 | AT110: 0.06 | AV110: ='Sommaire du rôle_sec_2'!P34 -> 0 | AW110: ='Sommaire du rôle_sec_2'!Q34 -> 0 | AY110: 0 | AZ110: 0 | BB110: 0 | BD110: 3 | BE110: 0.06 | BG110: ='Sommaire du rôle_sec_2'!R34 -> 0 | BH110: ='Sommaire du rôle_sec_2'!S34 -> 0 | BJ110: 0 | BK110: 0 | BM110: 0 | BO110: 3 | BP110: 0.06 | BR110: ='Sommaire du rôle_sec_2'!T34 -> 0 | BS110: ='Sommaire du rôle_sec_2'!U34 -> 0 | BU110: 0 | BV110: 0 | BX110: 0 | BZ110: 3 | CA110: 0.06 | CC110: ='Sommaire du rôle_sec_2'!V34 -> 0 | CD110: ='Sommaire du rôle_sec_2'!W34 -> 0 | CF110: 0 | CG110: 0 | CI110: 0 | CK110: 3 | CL110: 0.06 | CN110: ='Sommaire du rôle_sec_2'!X34 -> 0 | CO110: ='Sommaire du rôle_sec_2'!Y34 -> 0 | CQ110: 0 | CR110: 0 | CT110: 0 | CV110: 3 | CW110: 0.06 | CY110: ='Sommaire du rôle_sec_2'!Z34 -> 0 | CZ110: ='Sommaire du rôle_sec_2'!AA34 -> 0 | DB110: 0 | DC110: 0 | DE110: 0
A111: 4 | B111: 0.12 | D111: ='Sommaire du rôle_sec_2'!H35 -> 0 | E111: ='Sommaire du rôle_sec_2'!I35 -> 0 | G111: 0 | H111: 0 | J111: 0 | L111: 4 | M111: 0.12 | O111: ='Sommaire du rôle_sec_2'!J35 -> 0 | P111: ='Sommaire du rôle_sec_2'!K35 -> 0 | R111: 0 | S111: 0 | U111: 0 | W111: 4 | X111: 0.12 | Z111: ='Sommaire du rôle_sec_2'!L35 -> 0 | AA111: ='Sommaire du rôle_sec_2'!M35 -> 0 | AC111: 0 | AD111: 0 | AF111: 0 | AH111: 4 | AI111: 0.12 | AK111: ='Sommaire du rôle_sec_2'!N35 -> 0 | AL111: ='Sommaire du rôle_sec_2'!O35 -> 0 | AN111: 0 | AO111: 0 | AQ111: 0 | AS111: 4 | AT111: 0.12 | AV111: ='Sommaire du rôle_sec_2'!P35 -> 0 | AW111: ='Sommaire du rôle_sec_2'!Q35 -> 0 | AY111: 0 | AZ111: 0 | BB111: 0 | BD111: 4 | BE111: 0.12 | BG111: ='Sommaire du rôle_sec_2'!R35 -> 0 | BH111: ='Sommaire du rôle_sec_2'!S35 -> 0 | BJ111: 0 | BK111: 0 | BM111: 0 | BO111: 4 | BP111: 0.12 | BR111: ='Sommaire du rôle_sec_2'!T35 -> 0 | BS111: ='Sommaire du rôle_sec_2'!U35 -> 0 | BU111: 0 | BV111: 0 | BX111: 0 | BZ111: 4 | CA111: 0.12 | CC111: ='Sommaire du rôle_sec_2'!V35 -> 0 | CD111: ='Sommaire du rôle_sec_2'!W35 -> 0 | CF111: 0 | CG111: 0 | CI111: 0 | CK111: 4 | CL111: 0.12 | CN111: ='Sommaire du rôle_sec_2'!X35 -> 0 | CO111: ='Sommaire du rôle_sec_2'!Y35 -> 0 | CQ111: 0 | CR111: 0 | CT111: 0 | CV111: 4 | CW111: 0.12 | CY111: ='Sommaire du rôle_sec_2'!Z35 -> 0 | CZ111: ='Sommaire du rôle_sec_2'!AA35 -> 0 | DB111: 0 | DC111: 0 | DE111: 0
A112: 5 | B112: 0.22 | D112: ='Sommaire du rôle_sec_2'!H36 -> 0 | E112: ='Sommaire du rôle_sec_2'!I36 -> 0 | G112: 0 | H112: 0 | J112: 0 | L112: 5 | M112: 0.22 | O112: ='Sommaire du rôle_sec_2'!J36 -> 0 | P112: ='Sommaire du rôle_sec_2'!K36 -> 0 | R112: 0 | S112: 0 | U112: 0 | W112: 5 | X112: 0.22 | Z112: ='Sommaire du rôle_sec_2'!L36 -> 0 | AA112: ='Sommaire du rôle_sec_2'!M36 -> 0 | AC112: 0 | AD112: 0 | AF112: 0 | AH112: 5 | AI112: 0.22 | AK112: ='Sommaire du rôle_sec_2'!N36 -> 0 | AL112: ='Sommaire du rôle_sec_2'!O36 -> 0 | AN112: 0 | AO112: 0 | AQ112: 0 | AS112: 5 | AT112: 0.22 | AV112: ='Sommaire du rôle_sec_2'!P36 -> 0 | AW112: ='Sommaire du rôle_sec_2'!Q36 -> 0 | AY112: 0 | AZ112: 0 | BB112: 0 | BD112: 5 | BE112: 0.22 | BG112: ='Sommaire du rôle_sec_2'!R36 -> 0 | BH112: ='Sommaire du rôle_sec_2'!S36 -> 0 | BJ112: 0 | BK112: 0 | BM112: 0 | BO112: 5 | BP112: 0.22 | BR112: ='Sommaire du rôle_sec_2'!T36 -> 0 | BS112: ='Sommaire du rôle_sec_2'!U36 -> 0 | BU112: 0 | BV112: 0 | BX112: 0 | BZ112: 5 | CA112: 0.22 | CC112: ='Sommaire du rôle_sec_2'!V36 -> 0 | CD112: ='Sommaire du rôle_sec_2'!W36 -> 0 | CF112: 0 | CG112: 0 | CI112: 0 | CK112: 5 | CL112: 0.22 | CN112: ='Sommaire du rôle_sec_2'!X36 -> 0 | CO112: ='Sommaire du rôle_sec_2'!Y36 -> 0 | CQ112: 0 | CR112: 0 | CT112: 0 | CV112: 5 | CW112: 0.22 | CY112: ='Sommaire du rôle_sec_2'!Z36 -> 0 | CZ112: ='Sommaire du rôle_sec_2'!AA36 -> 0 | DB112: 0 | DC112: 0 | DE112: 0
A113: 6 | B113: 0.4 | D113: ='Sommaire du rôle_sec_2'!H37 -> 0 | E113: ='Sommaire du rôle_sec_2'!I37 -> 0 | G113: 0 | H113: 0 | J113: 0 | L113: 6 | M113: 0.4 | O113: ='Sommaire du rôle_sec_2'!J37 -> 0 | P113: ='Sommaire du rôle_sec_2'!K37 -> 0 | R113: 0 | S113: 0 | U113: 0 | W113: 6 | X113: 0.4 | Z113: ='Sommaire du rôle_sec_2'!L37 -> 0 | AA113: ='Sommaire du rôle_sec_2'!M37 -> 0 | AC113: 0 | AD113: 0 | AF113: 0 | AH113: 6 | AI113: 0.4 | AK113: ='Sommaire du rôle_sec_2'!N37 -> 0 | AL113: ='Sommaire du rôle_sec_2'!O37 -> 0 | AN113: 0 | AO113: 0 | AQ113: 0 | AS113: 6 | AT113: 0.4 | AV113: ='Sommaire du rôle_sec_2'!P37 -> 0 | AW113: ='Sommaire du rôle_sec_2'!Q37 -> 0 | AY113: 0 | AZ113: 0 | BB113: 0 | BD113: 6 | BE113: 0.4 | BG113: ='Sommaire du rôle_sec_2'!R37 -> 0 | BH113: ='Sommaire du rôle_sec_2'!S37 -> 0 | BJ113: 0 | BK113: 0 | BM113: 0 | BO113: 6 | BP113: 0.4 | BR113: ='Sommaire du rôle_sec_2'!T37 -> 0 | BS113: ='Sommaire du rôle_sec_2'!U37 -> 0 | BU113: 0 | BV113: 0 | BX113: 0 | BZ113: 6 | CA113: 0.4 | CC113: ='Sommaire du rôle_sec_2'!V37 -> 0 | CD113: ='Sommaire du rôle_sec_2'!W37 -> 0 | CF113: 0 | CG113: 0 | CI113: 0 | CK113: 6 | CL113: 0.4 | CN113: ='Sommaire du rôle_sec_2'!X37 -> 0 | CO113: ='Sommaire du rôle_sec_2'!Y37 -> 0 | CQ113: 0 | CR113: 0 | CT113: 0 | CV113: 6 | CW113: 0.4 | CY113: ='Sommaire du rôle_sec_2'!Z37 -> 0 | CZ113: ='Sommaire du rôle_sec_2'!AA37 -> 0 | DB113: 0 | DC113: 0 | DE113: 0
A114: 7 | B114: 0.6 | D114: ='Sommaire du rôle_sec_2'!H38 -> 0 | E114: ='Sommaire du rôle_sec_2'!I38 -> 0 | G114: 0 | H114: 0 | J114: 0 | L114: 7 | M114: 0.6 | O114: ='Sommaire du rôle_sec_2'!J38 -> 0 | P114: ='Sommaire du rôle_sec_2'!K38 -> 0 | R114: 0 | S114: 0 | U114: 0 | W114: 7 | X114: 0.6 | Z114: ='Sommaire du rôle_sec_2'!L38 -> 0 | AA114: ='Sommaire du rôle_sec_2'!M38 -> 0 | AC114: 0 | AD114: 0 | AF114: 0 | AH114: 7 | AI114: 0.6 | AK114: ='Sommaire du rôle_sec_2'!N38 -> 0 | AL114: ='Sommaire du rôle_sec_2'!O38 -> 0 | AN114: 0 | AO114: 0 | AQ114: 0 | AS114: 7 | AT114: 0.6 | AV114: ='Sommaire du rôle_sec_2'!P38 -> 0 | AW114: ='Sommaire du rôle_sec_2'!Q38 -> 0 | AY114: 0 | AZ114: 0 | BB114: 0 | BD114: 7 | BE114: 0.6 | BG114: ='Sommaire du rôle_sec_2'!R38 -> 0 | BH114: ='Sommaire du rôle_sec_2'!S38 -> 0 | BJ114: 0 | BK114: 0 | BM114: 0 | BO114: 7 | BP114: 0.6 | BR114: ='Sommaire du rôle_sec_2'!T38 -> 0 | BS114: ='Sommaire du rôle_sec_2'!U38 -> 0 | BU114: 0 | BV114: 0 | BX114: 0 | BZ114: 7 | CA114: 0.6 | CC114: ='Sommaire du rôle_sec_2'!V38 -> 0 | CD114: ='Sommaire du rôle_sec_2'!W38 -> 0 | CF114: 0 | CG114: 0 | CI114: 0 | CK114: 7 | CL114: 0.6 | CN114: ='Sommaire du rôle_sec_2'!X38 -> 0 | CO114: ='Sommaire du rôle_sec_2'!Y38 -> 0 | CQ114: 0 | CR114: 0 | CT114: 0 | CV114: 7 | CW114: 0.6 | CY114: ='Sommaire du rôle_sec_2'!Z38 -> 0 | CZ114: ='Sommaire du rôle_sec_2'!AA38 -> 0 | DB114: 0 | DC114: 0 | DE114: 0
A115: 8 | B115: 0.85 | D115: ='Sommaire du rôle_sec_2'!H39 -> 0 | E115: ='Sommaire du rôle_sec_2'!I39 -> 0 | G115: 0 | H115: 0 | J115: 0 | L115: 8 | M115: 0.85 | O115: ='Sommaire du rôle_sec_2'!J39 -> 0 | P115: ='Sommaire du rôle_sec_2'!K39 -> 0 | R115: 0 | S115: 0 | U115: 0 | W115: 8 | X115: 0.85 | Z115: ='Sommaire du rôle_sec_2'!L39 -> 0 | AA115: ='Sommaire du rôle_sec_2'!M39 -> 0 | AC115: 0 | AD115: 0 | AF115: 0 | AH115: 8 | AI115: 0.85 | AK115: ='Sommaire du rôle_sec_2'!N39 -> 0 | AL115: ='Sommaire du rôle_sec_2'!O39 -> 0 | AN115: 0 | AO115: 0 | AQ115: 0 | AS115: 8 | AT115: 0.85 | AV115: ='Sommaire du rôle_sec_2'!P39 -> 0 | AW115: ='Sommaire du rôle_sec_2'!Q39 -> 0 | AY115: 0 | AZ115: 0 | BB115: 0 | BD115: 8 | BE115: 0.85 | BG115: ='Sommaire du rôle_sec_2'!R39 -> 0 | BH115: ='Sommaire du rôle_sec_2'!S39 -> 0 | BJ115: 0 | BK115: 0 | BM115: 0 | BO115: 8 | BP115: 0.85 | BR115: ='Sommaire du rôle_sec_2'!T39 -> 0 | BS115: ='Sommaire du rôle_sec_2'!U39 -> 0 | BU115: 0 | BV115: 0 | BX115: 0 | BZ115: 8 | CA115: 0.85 | CC115: ='Sommaire du rôle_sec_2'!V39 -> 0 | CD115: ='Sommaire du rôle_sec_2'!W39 -> 0 | CF115: 0 | CG115: 0 | CI115: 0 | CK115: 8 | CL115: 0.85 | CN115: ='Sommaire du rôle_sec_2'!X39 -> 0 | CO115: ='Sommaire du rôle_sec_2'!Y39 -> 0 | CQ115: 0 | CR115: 0 | CT115: 0 | CV115: 8 | CW115: 0.85 | CY115: ='Sommaire du rôle_sec_2'!Z39 -> 0 | CZ115: ='Sommaire du rôle_sec_2'!AA39 -> 0 | DB115: 0 | DC115: 0 | DE115: 0
A116: 9 | B116: 1 | D116: ='Sommaire du rôle_sec_2'!H40 -> 0 | E116: ='Sommaire du rôle_sec_2'!I40 -> 0 | G116: 0 | H116: 0 | J116: 0 | L116: 9 | M116: 1 | O116: ='Sommaire du rôle_sec_2'!J40 -> 0 | P116: ='Sommaire du rôle_sec_2'!K40 -> 0 | R116: 0 | S116: 0 | U116: 0 | W116: 9 | X116: 1 | Z116: ='Sommaire du rôle_sec_2'!L40 -> 0 | AA116: ='Sommaire du rôle_sec_2'!M40 -> 0 | AC116: 0 | AD116: 0 | AF116: 0 | AH116: 9 | AI116: 1 | AK116: ='Sommaire du rôle_sec_2'!N40 -> 0 | AL116: ='Sommaire du rôle_sec_2'!O40 -> 0 | AN116: 0 | AO116: 0 | AQ116: 0 | AS116: 9 | AT116: 1 | AV116: ='Sommaire du rôle_sec_2'!P40 -> 0 | AW116: ='Sommaire du rôle_sec_2'!Q40 -> 0 | AY116: 0 | AZ116: 0 | BB116: 0 | BD116: 9 | BE116: 1 | BG116: ='Sommaire du rôle_sec_2'!R40 -> 0 | BH116: ='Sommaire du rôle_sec_2'!S40 -> 0 | BJ116: 0 | BK116: 0 | BM116: 0 | BO116: 9 | BP116: 1 | BR116: ='Sommaire du rôle_sec_2'!T40 -> 0 | BS116: ='Sommaire du rôle_sec_2'!U40 -> 0 | BU116: 0 | BV116: 0 | BX116: 0 | BZ116: 9 | CA116: 1 | CC116: ='Sommaire du rôle_sec_2'!V40 -> 0 | CD116: ='Sommaire du rôle_sec_2'!W40 -> 0 | CF116: 0 | CG116: 0 | CI116: 0 | CK116: 9 | CL116: 1 | CN116: ='Sommaire du rôle_sec_2'!X40 -> 0 | CO116: ='Sommaire du rôle_sec_2'!Y40 -> 0 | CQ116: 0 | CR116: 0 | CT116: 0 | CV116: 9 | CW116: 1 | CY116: ='Sommaire du rôle_sec_2'!Z40 -> 0 | CZ116: ='Sommaire du rôle_sec_2'!AA40 -> 0 | DB116: 0 | DC116: 0 | DE116: 0
A117: 10 | B117: 1 | D117: ='Sommaire du rôle_sec_2'!H41 -> 0 | E117: ='Sommaire du rôle_sec_2'!I41 -> 0 | G117: 0 | H117: 0 | J117: 0 | L117: 10 | M117: 1 | O117: ='Sommaire du rôle_sec_2'!J41 -> 0 | P117: ='Sommaire du rôle_sec_2'!K41 -> 0 | R117: 0 | S117: 0 | U117: 0 | W117: 10 | X117: 1 | Z117: ='Sommaire du rôle_sec_2'!L41 -> 0 | AA117: ='Sommaire du rôle_sec_2'!M41 -> 0 | AC117: 0 | AD117: 0 | AF117: 0 | AH117: 10 | AI117: 1 | AK117: ='Sommaire du rôle_sec_2'!N41 -> 0 | AL117: ='Sommaire du rôle_sec_2'!O41 -> 0 | AN117: 0 | AO117: 0 | AQ117: 0 | AS117: 10 | AT117: 1 | AV117: ='Sommaire du rôle_sec_2'!P41 -> 0 | AW117: ='Sommaire du rôle_sec_2'!Q41 -> 0 | AY117: 0 | AZ117: 0 | BB117: 0 | BD117: 10 | BE117: 1 | BG117: ='Sommaire du rôle_sec_2'!R41 -> 0 | BH117: ='Sommaire du rôle_sec_2'!S41 -> 0 | BJ117: 0 | BK117: 0 | BM117: 0 | BO117: 10 | BP117: 1 | BR117: ='Sommaire du rôle_sec_2'!T41 -> 0 | BS117: ='Sommaire du rôle_sec_2'!U41 -> 0 | BU117: 0 | BV117: 0 | BX117: 0 | BZ117: 10 | CA117: 1 | CC117: ='Sommaire du rôle_sec_2'!V41 -> 0 | CD117: ='Sommaire du rôle_sec_2'!W41 -> 0 | CF117: 0 | CG117: 0 | CI117: 0 | CK117: 10 | CL117: 1 | CN117: ='Sommaire du rôle_sec_2'!X41 -> 0 | CO117: ='Sommaire du rôle_sec_2'!Y41 -> 0 | CQ117: 0 | CR117: 0 | CT117: 0 | CV117: 10 | CW117: 1 | CY117: ='Sommaire du rôle_sec_2'!Z41 -> 0 | CZ117: ='Sommaire du rôle_sec_2'!AA41 -> 0 | DB117: 0 | DC117: 0 | DE117: 0
A118: 11 Cours de triage | B118: 100% | D118: ='Sommaire du rôle_sec_2'!H42 -> 0 | E118: ='Sommaire du rôle_sec_2'!I42 -> 0 | G118: 0 | H118: 0 | J118: 0 | L118: 11 Cours de triage | M118: 100% | O118: ='Sommaire du rôle_sec_2'!J42 -> 0 | P118: ='Sommaire du rôle_sec_2'!K42 -> 0 | R118: 0 | S118: 0 | U118: 0 | W118: 11 Cours de triage | X118: 100% | Z118: ='Sommaire du rôle_sec_2'!L42 -> 0 | AA118: ='Sommaire du rôle_sec_2'!M42 -> 0 | AC118: 0 | AD118: 0 | AF118: 0 | AH118: 11 Cours de triage | AI118: 100% | AK118: ='Sommaire du rôle_sec_2'!N42 -> 0 | AL118: ='Sommaire du rôle_sec_2'!O42 -> 0 | AN118: 0 | AO118: 0 | AQ118: 0 | AS118: 11 Cours de triage | AT118: 100% | AV118: ='Sommaire du rôle_sec_2'!P42 -> 0 | AW118: ='Sommaire du rôle_sec_2'!Q42 -> 0 | AY118: 0 | AZ118: 0 | BB118: 0 | BD118: 11 Cours de triage | BE118: 100% | BG118: ='Sommaire du rôle_sec_2'!R42 -> 0 | BH118: ='Sommaire du rôle_sec_2'!S42 -> 0 | BJ118: 0 | BK118: 0 | BM118: 0 | BO118: 11 Cours de triage | BP118: 100% | BR118: ='Sommaire du rôle_sec_2'!T42 -> 0 | BS118: ='Sommaire du rôle_sec_2'!U42 -> 0 | BU118: 0 | BV118: 0 | BX118: 0 | BZ118: 11 Cours de triage | CA118: 100% | CC118: ='Sommaire du rôle_sec_2'!V42 -> 0 | CD118: ='Sommaire du rôle_sec_2'!W42 -> 0 | CF118: 0 | CG118: 0 | CI118: 0 | CK118: 11 Cours de triage | CL118: 100% | CN118: ='Sommaire du rôle_sec_2'!X42 -> 0 | CO118: ='Sommaire du rôle_sec_2'!Y42 -> 0 | CQ118: 0 | CR118: 0 | CT118: 0 | CV118: 11 Cours de triage | CW118: 100% | CY118: ='Sommaire du rôle_sec_2'!Z42 -> 0 | CZ118: ='Sommaire du rôle_sec_2'!AA42 -> 0 | DB118: 0 | DC118: 0 | DE118: 0
A119: 12 CHSLD | B119: 0.2 | D119: ='Sommaire du rôle_sec_2'!H43 -> 0 | G119: 0 | J119: 0 | L119: 12 CHSLD | M119: 0.2 | O119: ='Sommaire du rôle_sec_2'!J43 -> 0 | R119: 0 | U119: 0 | W119: 12 CHSLD | X119: 0.2 | Z119: ='Sommaire du rôle_sec_2'!L43 -> 0 | AC119: 0 | AF119: 0 | AH119: 12 CHSLD | AI119: 0.2 | AK119: ='Sommaire du rôle_sec_2'!N43 -> 0 | AN119: 0 | AQ119: 0 | AS119: 12 CHSLD | AT119: 0.2 | AV119: ='Sommaire du rôle_sec_2'!P43 -> 0 | AY119: 0 | BB119: 0 | BD119: 12 CHSLD | BE119: 0.2 | BG119: ='Sommaire du rôle_sec_2'!R43 -> 0 | BJ119: 0 | BM119: 0 | BO119: 12 CHSLD | BP119: 0.2 | BR119: ='Sommaire du rôle_sec_2'!T43 -> 0 | BU119: 0 | BX119: 0 | BZ119: 12 CHSLD | CA119: 0.2 | CC119: ='Sommaire du rôle_sec_2'!V43 -> 0 | CF119: 0 | CI119: 0 | CK119: 12 CHSLD | CL119: 0.2 | CN119: ='Sommaire du rôle_sec_2'!X43 -> 0 | CQ119: 0 | CT119: 0 | CV119: 12 CHSLD | CW119: 0.2 | CY119: ='Sommaire du rôle_sec_2'!Z43 -> 0 | DB119: 0 | DE119: 0
A120: 13 Cours de triage 40 % | B120: 40% | D120: ='Sommaire du rôle_sec_2'!H44 -> 0 | G120: 0 | J120: 0 | L120: 13 Cours de triage 40 % | M120: 40% | O120: ='Sommaire du rôle_sec_2'!J44 -> 0 | R120: 0 | U120: 0 | W120: 13 Cours de triage 40 % | X120: 40% | Z120: ='Sommaire du rôle_sec_2'!L44 -> 0 | AC120: 0 | AF120: 0 | AH120: 13 Cours de triage 40 % | AI120: 40% | AK120: ='Sommaire du rôle_sec_2'!N44 -> 0 | AN120: 0 | AQ120: 0 | AS120: 13 Cours de triage 40 % | AT120: 40% | AV120: ='Sommaire du rôle_sec_2'!P44 -> 0 | AY120: 0 | BB120: 0 | BD120: 13 Cours de triage 40 % | BE120: 40% | BG120: ='Sommaire du rôle_sec_2'!R44 -> 0 | BJ120: 0 | BM120: 0 | BO120: 13 Cours de triage 40 % | BP120: 40% | BR120: ='Sommaire du rôle_sec_2'!T44 -> 0 | BU120: 0 | BX120: 0 | BZ120: 13 Cours de triage 40 % | CA120: 40% | CC120: ='Sommaire du rôle_sec_2'!V44 -> 0 | CF120: 0 | CI120: 0 | CK120: 13 Cours de triage 40 % | CL120: 40% | CN120: ='Sommaire du rôle_sec_2'!X44 -> 0 | CQ120: 0 | CT120: 0 | CV120: 13 Cours de triage 40 % | CW120: 40% | CY120: ='Sommaire du rôle_sec_2'!Z44 -> 0 | DB120: 0 | DE120: 0
A121: APPLICATION DU TNR QUAND TTVD | B121: 1 | D121: ='Sommaire du rôle_sec_2'!H45 -> 0 | E121: ='Sommaire du rôle_sec_2'!I45 -> 0 | G121: 0 | H121: =B121*E121 -> 0 | J121: 0 | L121: APPLICATION DU TNR QUAND TTVD | M121: 1 | O121: ='Sommaire du rôle_sec_2'!J45 -> 0 | P121: ='Sommaire du rôle_sec_2'!K45 -> 0 | R121: 0 | S121: =M121*P121 -> 0 | U121: 0 | W121: APPLICATION DU TNR QUAND TTVD | X121: 1 | Z121: ='Sommaire du rôle_sec_2'!L45 -> 0 | AA121: ='Sommaire du rôle_sec_2'!M45 -> 0 | AC121: 0 | AD121: =X121*AA121 -> 0 | AF121: 0 | AH121: APPLICATION DU TNR QUAND TTVD | AI121: 1 | AK121: ='Sommaire du rôle_sec_2'!N45 -> 0 | AL121: ='Sommaire du rôle_sec_2'!O45 -> 0 | AN121: 0 | AO121: =AI121*AL121 -> 0 | AQ121: 0 | AS121: APPLICATION DU TNR QUAND TTVD | AT121: 1 | AV121: ='Sommaire du rôle_sec_2'!P45 -> 0 | AW121: ='Sommaire du rôle_sec_2'!Q45 -> 0 | AY121: 0 | AZ121: =AT121*AW121 -> 0 | BB121: 0 | BD121: APPLICATION DU TNR QUAND TTVD | BE121: 1 | BG121: ='Sommaire du rôle_sec_2'!R45 -> 0 | BH121: ='Sommaire du rôle_sec_2'!S45 -> 0 | BJ121: 0 | BK121: =BE121*BH121 -> 0 | BM121: 0 | BO121: APPLICATION DU TNR QUAND TTVD | BP121: 1 | BR121: ='Sommaire du rôle_sec_2'!T45 -> 0 | BS121: ='Sommaire du rôle_sec_2'!U45 -> 0 | BU121: 0 | BV121: =BP121*BS121 -> 0 | BX121: 0 | BZ121: APPLICATION DU TNR QUAND TTVD | CA121: 1 | CC121: ='Sommaire du rôle_sec_2'!AE45 -> 0 | CD121: ='Sommaire du rôle_sec_2'!AF45 -> 0 | CF121: 0 | CG121: =CA121*CD121 -> 0 | CI121: 0 | CK121: APPLICATION DU TNR QUAND TTVD | CL121: 1 | CN121: ='Sommaire du rôle_sec_2'!X45 -> 0 | CO121: ='Sommaire du rôle_sec_2'!Y45 -> 0 | CQ121: 0 | CR121: =CL121*CO121 -> 0 | CT121: 0 | CV121: APPLICATION DU TNR QUAND TTVD | CW121: 1 | CY121: ='Sommaire du rôle_sec_2'!Z45 -> 0 | CZ121: ='Sommaire du rôle_sec_2'!AA45 -> 0 | DB121: 0 | DC121: =CW121*CZ121 -> 0 | DE121: 0
A122: Total | G122: =SUM(G106:G121) -> 0 | H122: =SUM(H106:H121) -> 0 | J122: 0 | L122: Total | R122: =SUM(R106:R121) -> 0 | S122: =SUM(S106:S121) -> 0 | U122: 0 | W122: Total | AC122: =SUM(AC106:AC121) -> 0 | AD122: =SUM(AD106:AD121) -> 0 | AF122: 0 | AH122: Total | AN122: =SUM(AN106:AN121) -> 0 | AO122: =SUM(AO106:AO121) -> 0 | AQ122: 0 | AS122: Total | AY122: =SUM(AY106:AY121) -> 0 | AZ122: =SUM(AZ106:AZ121) -> 0 | BB122: 0 | BD122: Total | BJ122: =SUM(BJ106:BJ121) -> 0 | BK122: =SUM(BK106:BK121) -> 0 | BM122: 0 | BO122: Total | BU122: =SUM(BU106:BU121) -> 0 | BV122: =SUM(BV106:BV121) -> 0 | BX122: 0 | BZ122: Total | CF122: =SUM(CF106:CF121) -> 0 | CG122: =SUM(CG106:CG121) -> 0 | CI122: 0 | CK122: Total | CQ122: =SUM(CQ106:CQ121) -> 0 | CR122: =SUM(CR106:CR121) -> 0 | CT122: 0 | CV122: Total | DB122: =SUM(DB106:DB121) -> 0 | DC122: =SUM(DC106:DC121) -> 0 | DE122: 0
A124: ASSIETTE SOUS-CATÉGORIE RÉSIDUELLE
A125: Classe non résidentielle | B125: Pourcentage de taxation | D125: VALEUR À 100 %
D126: Imposables | E126: Compensables | G126: Imposables pondérées | H126: Compensables pondérées | J126: Total
B127: (1) | D127: (2) | E127: (3) | G127: (4) = (1) X (2) | H127: (5) = (1) X (3) | J127: (6) = (4) + (5)
A128: 1A | B128: 0.999 | D128: ='Sommaire du rôle_sec_2'!F53 -> 0 | E128: ='Sommaire du rôle_sec_2'!G53 -> 0 | G128: =D128*B128 -> 0 | H128: =B128*E128 -> 0 | J128: =G128+H128 -> 0 | K128: 2359638
A129: 1B | B129: 0.995 | D129: ='Sommaire du rôle_sec_2'!F54 -> 0 | E129: ='Sommaire du rôle_sec_2'!G54 -> 0 | G129: 0 | H129: 0 | J129: 0 | K129: 670132.5
A130: 1C | B130: 0.99 | D130: ='Sommaire du rôle_sec_2'!F55 -> 0 | E130: ='Sommaire du rôle_sec_2'!G55 -> 0 | G130: 0 | H130: 0 | J130: 0 | K130: 4405005
A131: 2 | B131: 0.97 | D131: ='Sommaire du rôle_sec_2'!F56 -> 0 | E131: ='Sommaire du rôle_sec_2'!G56 -> 0 | G131: 0 | H131: 0 | J131: 0 | K131: 21413332
A132: 3 | B132: 0.94 | D132: ='Sommaire du rôle_sec_2'!F57 -> 0 | E132: ='Sommaire du rôle_sec_2'!G57 -> 0 | G132: 0 | H132: 0 | J132: 0 | K132: 36190282
A133: 4 | B133: 0.88 | D133: ='Sommaire du rôle_sec_2'!F58 -> 0 | E133: ='Sommaire du rôle_sec_2'!G58 -> 0 | G133: 0 | H133: 0 | J133: 0 | K133: 27846104
A134: 5 | B134: 0.78 | D134: ='Sommaire du rôle_sec_2'!F59 -> 0 | E134: ='Sommaire du rôle_sec_2'!G59 -> 0 | G134: 0 | H134: 0 | J134: 0 | K134: 22550424
A135: 6 | B135: 0.6 | D135: ='Sommaire du rôle_sec_2'!F60 -> 0 | E135: ='Sommaire du rôle_sec_2'!G60 -> 0 | G135: 0 | H135: 0 | J135: 0 | K135: 19039560
A136: 7 | B136: 0.4 | D136: ='Sommaire du rôle_sec_2'!F61 -> 0 | E136: ='Sommaire du rôle_sec_2'!G61 -> 0 | G136: 0 | H136: 0 | J136: 0 | K136: 37782600
A137: 8 | B137: 0.15 | D137: ='Sommaire du rôle_sec_2'!F62 -> 0 | E137: ='Sommaire du rôle_sec_2'!G62 -> 0 | G137: 0 | H137: 0 | J137: 0 | K137: 32037030
A138: IMMEUBLES SANS PARTIE NON RÉSIDENTIELLE | B138: 1 | D138: ='Sommaire du rôle_sec_2'!F63 -> 0 | E138: ='Sommaire du rôle_sec_2'!G63 -> 0 | G138: 0 | H138: 0 | J138: 0 | K138: 7336485128
A139: 12 CHSLD | B139: 0.8 | D139: ='Sommaire du rôle_sec_2'!F64 -> 0 | E139: ='Sommaire du rôle_sec_2'!G64 -> 0 | G139: 0
A140: 13 Cours de triage | B140: 0.6 | D140: ='Sommaire du rôle_sec_2'!F65 -> 0 | E140: ='Sommaire du rôle_sec_2'!G65 -> 0 | G140: 0
A141: Total | G141: =SUM(G128:G140) -> 0 | H141: =SUM(H128:H138) -> 0 | I141: =SUM(I128:I138) -> 0 | J141: =G141+H141 -> 0
A143: ASSIETTE AU TAUX RÉSIDENTIEL SOUS-CATÉGORIE 1 | L143: ASSIETTE AU TAUX RÉSIDENTIEL SOUS-CATÉGORIE 2 | W143: ASSIETTE AU TAUX RÉSIDENTIEL SOUS-CATÉGORIE 3 | AH143: ASSIETTE AU TAUX RÉSIDENTIEL SOUS-CATÉGORIE 4 | AS143: ASSIETTE AU TAUX RÉSIDENTIEL SOUS-CATÉGORIE 5 | BD143: ASSIETTE AU TAUX RÉSIDENTIEL SOUS-CATÉGORIE 6 | BO143: ASSIETTE AU TAUX RÉSIDENTIEL SOUS-CATÉGORIE 7 | BZ143: ASSIETTE AU TAUX RÉSIDENTIEL SOUS-CATÉGORIE 8 | CK143: ASSIETTE AU TAUX RÉSIDENTIEL SOUS-CATÉGORIE 9 | CV143: ASSIETTE AU TAUX RÉSIDENTIEL SOUS-CATÉGORIE 10
A144: Classe non résidentielle | B144: Pourcentage de taxation | D144: VALEUR À 100 % | L144: Classe non résidentielle | M144: Pourcentage de taxation | O144: VALEUR À 100 % | W144: Classe non résidentielle | X144: Pourcentage de taxation | Z144: VALEUR À 100 % | AH144: Classe non résidentielle | AI144: Pourcentage de taxation | AK144: VALEUR À 100 % | AS144: Classe non résidentielle | AT144: Pourcentage de taxation | AV144: VALEUR À 100 % | BD144: Classe non résidentielle | BE144: Pourcentage de taxation | BG144: VALEUR À 100 % | BO144: Classe non résidentielle | BP144: Pourcentage de taxation | BR144: VALEUR À 100 % | BZ144: Classe non résidentielle | CA144: Pourcentage de taxation | CC144: VALEUR À 100 % | CK144: Classe non résidentielle | CL144: Pourcentage de taxation | CN144: VALEUR À 100 % | CV144: Classe non résidentielle | CW144: Pourcentage de taxation | CY144: VALEUR À 100 %
D145: Imposables | E145: Compensables | G145: Imposables pondérées | H145: Compensables pondérées | J145: Total | O145: Imposables | P145: Compensables | R145: Imposables pondérées | S145: Compensables pondérées | U145: Total | Z145: Imposables | AA145: Compensables | AC145: Imposables pondérées | AD145: Compensables pondérées | AF145: Total | AK145: Imposables | AL145: Compensables | AN145: Imposables pondérées | AO145: Compensables pondérées | AQ145: Total | AV145: Imposables | AW145: Compensables | AY145: Imposables pondérées | AZ145: Compensables pondérées | BB145: Total | BG145: Imposables | BH145: Compensables | BJ145: Imposables pondérées | BK145: Compensables pondérées | BM145: Total | BR145: Imposables | BS145: Compensables | BU145: Imposables pondérées | BV145: Compensables pondérées | BX145: Total | CC145: Imposables | CD145: Compensables | CF145: Imposables pondérées | CG145: Compensables pondérées | CI145: Total | CN145: Imposables | CO145: Compensables | CQ145: Imposables pondérées | CR145: Compensables pondérées | CT145: Total | CY145: Imposables | CZ145: Compensables | DB145: Imposables pondérées | DC145: Compensables pondérées | DE145: Total
B146: (1) | D146: (2) | E146: (3) | G146: (4) = (1) X (2) | H146: (5) = (1) X (3) | J146: (6) = (4) + (5) | M146: (1) | O146: (2) | P146: (3) | R146: (4) = (1) X (2) | S146: (5) = (1) X (3) | U146: (6) = (4) + (5) | X146: (1) | Z146: (2) | AA146: (3) | AC146: (4) = (1) X (2) | AD146: (5) = (1) X (3) | AF146: (6) = (4) + (5) | AI146: (1) | AK146: (2) | AL146: (3) | AN146: (4) = (1) X (2) | AO146: (5) = (1) X (3) | AQ146: (6) = (4) + (5) | AT146: (1) | AV146: (2) | AW146: (3) | AY146: (4) = (1) X (2) | AZ146: (5) = (1) X (3) | BB146: (6) = (4) + (5) | BE146: (1) | BG146: (2) | BH146: (3) | BJ146: (4) = (1) X (2) | BK146: (5) = (1) X (3) | BM146: (6) = (4) + (5) | BP146: (1) | BR146: (2) | BS146: (3) | BU146: (4) = (1) X (2) | BV146: (5) = (1) X (3) | BX146: (6) = (4) + (5) | CA146: (1) | CC146: (2) | CD146: (3) | CF146: (4) = (1) X (2) | CG146: (5) = (1) X (3) | CI146: (6) = (4) + (5) | CL146: (1) | CN146: (2) | CO146: (3) | CQ146: (4) = (1) X (2) | CR146: (5) = (1) X (3) | CT146: (6) = (4) + (5) | CW146: (1) | CY146: (2) | CZ146: (3) | DB146: (4) = (1) X (2) | DC146: (5) = (1) X (3) | DE146: (6) = (4) + (5)
A147: 1A | B147: 0.999 | D147: ='Sommaire du rôle_sec_2'!H53 -> 0 | E147: ='Sommaire du rôle_sec_2'!I53 -> 0 | G147: =D147*B147 -> 0 | H147: =B147*E147 -> 0 | J147: =G147+H147 -> 0 | L147: 1A | M147: 0.999 | O147: ='Sommaire du rôle_sec_2'!J53 -> 0 | P147: ='Sommaire du rôle_sec_2'!K53 -> 0 | R147: =O147*M147 -> 0 | S147: =M147*P147 -> 0 | U147: =R147+S147 -> 0 | W147: 1A | X147: 0.999 | Z147: ='Sommaire du rôle_sec_2'!L53 -> 0 | AA147: ='Sommaire du rôle_sec_2'!M53 -> 0 | AC147: =Z147*X147 -> 0 | AD147: =X147*AA147 -> 0 | AF147: =AC147+AD147 -> 0 | AH147: 1A | AI147: 0.999 | AK147: ='Sommaire du rôle_sec_2'!N53 -> 0 | AL147: ='Sommaire du rôle_sec_2'!O53 -> 0 | AN147: =AK147*AI147 -> 0 | AO147: =AI147*AL147 -> 0 | AQ147: =AN147+AO147 -> 0 | AS147: 1A | AT147: 0.999 | AV147: ='Sommaire du rôle_sec_2'!P53 -> 0 | AW147: ='Sommaire du rôle_sec_2'!Q53 -> 0 | AY147: =AV147*AT147 -> 0 | AZ147: =AT147*AW147 -> 0 | BB147: =AY147+AZ147 -> 0 | BD147: 1A | BE147: 0.999 | BG147: ='Sommaire du rôle_sec_2'!R53 -> 0 | BH147: ='Sommaire du rôle_sec_2'!S53 -> 0 | BJ147: =BG147*BE147 -> 0 | BK147: =BE147*BH147 -> 0 | BM147: =BJ147+BK147 -> 0 | BO147: 1A | BP147: 0.999 | BR147: ='Sommaire du rôle_sec_2'!T53 -> 0 | BS147: ='Sommaire du rôle_sec_2'!U53 -> 0 | BU147: =BR147*BP147 -> 0 | BV147: =BP147*BS147 -> 0 | BX147: =BU147+BV147 -> 0 | BZ147: 1A | CA147: 0.999 | CC147: ='Sommaire du rôle_sec_2'!V53 -> 0 | CD147: ='Sommaire du rôle_sec_2'!W53 -> 0 | CF147: =CC147*CA147 -> 0 | CG147: =CA147*CD147 -> 0 | CI147: =CF147+CG147 -> 0 | CK147: 1A | CL147: 0.999 | CN147: ='Sommaire du rôle_sec_2'!X53 -> 0 | CO147: ='Sommaire du rôle_sec_2'!Y53 -> 0 | CQ147: =CN147*CL147 -> 0 | CR147: =CL147*CO147 -> 0 | CT147: =CQ147+CR147 -> 0 | CV147: 1A | CW147: 0.999 | CY147: ='Sommaire du rôle_sec_2'!Z53 -> 0 | CZ147: ='Sommaire du rôle_sec_2'!AA53 -> 0 | DB147: =CY147*CW147 -> 0 | DC147: =CW147*CZ147 -> 0 | DE147: =DB147+DC147 -> 0
A148: 1B | B148: 0.995 | D148: ='Sommaire du rôle_sec_2'!H54 -> 0 | E148: ='Sommaire du rôle_sec_2'!I54 -> 0 | G148: 0 | H148: 0 | J148: 0 | L148: 1B | M148: 0.995 | O148: ='Sommaire du rôle_sec_2'!J54 -> 0 | P148: ='Sommaire du rôle_sec_2'!K54 -> 0 | R148: 0 | S148: 0 | U148: 0 | W148: 1B | X148: 0.995 | Z148: ='Sommaire du rôle_sec_2'!L54 -> 0 | AA148: ='Sommaire du rôle_sec_2'!M54 -> 0 | AC148: 0 | AD148: 0 | AF148: 0 | AH148: 1B | AI148: 0.995 | AK148: ='Sommaire du rôle_sec_2'!N54 -> 0 | AL148: ='Sommaire du rôle_sec_2'!O54 -> 0 | AN148: 0 | AO148: 0 | AQ148: 0 | AS148: 1B | AT148: 0.995 | AV148: ='Sommaire du rôle_sec_2'!P54 -> 0 | AW148: ='Sommaire du rôle_sec_2'!Q54 -> 0 | AY148: 0 | AZ148: 0 | BB148: 0 | BD148: 1B | BE148: 0.995 | BG148: ='Sommaire du rôle_sec_2'!R54 -> 0 | BH148: ='Sommaire du rôle_sec_2'!S54 -> 0 | BJ148: 0 | BK148: 0 | BM148: 0 | BO148: 1B | BP148: 0.995 | BR148: ='Sommaire du rôle_sec_2'!T54 -> 0 | BS148: ='Sommaire du rôle_sec_2'!U54 -> 0 | BU148: 0 | BV148: 0 | BX148: 0 | BZ148: 1B | CA148: 0.995 | CC148: ='Sommaire du rôle_sec_2'!V54 -> 0 | CD148: ='Sommaire du rôle_sec_2'!W54 -> 0 | CF148: 0 | CG148: 0 | CI148: 0 | CK148: 1B | CL148: 0.995 | CN148: ='Sommaire du rôle_sec_2'!X54 -> 0 | CO148: ='Sommaire du rôle_sec_2'!Y54 -> 0 | CQ148: 0 | CR148: 0 | CT148: 0 | CV148: 1B | CW148: 0.995 | CY148: ='Sommaire du rôle_sec_2'!Z54 -> 0 | CZ148: ='Sommaire du rôle_sec_2'!AA54 -> 0 | DB148: 0 | DC148: 0 | DE148: 0
A149: 1C | B149: 0.99 | D149: ='Sommaire du rôle_sec_2'!H55 -> 0 | E149: ='Sommaire du rôle_sec_2'!I55 -> 0 | G149: 0 | H149: 0 | J149: 0 | L149: 1C | M149: 0.99 | O149: ='Sommaire du rôle_sec_2'!J55 -> 0 | P149: ='Sommaire du rôle_sec_2'!K55 -> 0 | R149: 0 | S149: 0 | U149: 0 | W149: 1C | X149: 0.99 | Z149: ='Sommaire du rôle_sec_2'!L55 -> 0 | AA149: ='Sommaire du rôle_sec_2'!M55 -> 0 | AC149: 0 | AD149: 0 | AF149: 0 | AH149: 1C | AI149: 0.99 | AK149: ='Sommaire du rôle_sec_2'!N55 -> 0 | AL149: ='Sommaire du rôle_sec_2'!O55 -> 0 | AN149: 0 | AO149: 0 | AQ149: 0 | AS149: 1C | AT149: 0.99 | AV149: ='Sommaire du rôle_sec_2'!P55 -> 0 | AW149: ='Sommaire du rôle_sec_2'!Q55 -> 0 | AY149: 0 | AZ149: 0 | BB149: 0 | BD149: 1C | BE149: 0.99 | BG149: ='Sommaire du rôle_sec_2'!R55 -> 0 | BH149: ='Sommaire du rôle_sec_2'!S55 -> 0 | BJ149: 0 | BK149: 0 | BM149: 0 | BO149: 1C | BP149: 0.99 | BR149: ='Sommaire du rôle_sec_2'!T55 -> 0 | BS149: ='Sommaire du rôle_sec_2'!U55 -> 0 | BU149: 0 | BV149: 0 | BX149: 0 | BZ149: 1C | CA149: 0.99 | CC149: ='Sommaire du rôle_sec_2'!V55 -> 0 | CD149: ='Sommaire du rôle_sec_2'!W55 -> 0 | CF149: 0 | CG149: 0 | CI149: 0 | CK149: 1C | CL149: 0.99 | CN149: ='Sommaire du rôle_sec_2'!X55 -> 0 | CO149: ='Sommaire du rôle_sec_2'!Y55 -> 0 | CQ149: 0 | CR149: 0 | CT149: 0 | CV149: 1C | CW149: 0.99 | CY149: ='Sommaire du rôle_sec_2'!Z55 -> 0 | CZ149: ='Sommaire du rôle_sec_2'!AA55 -> 0 | DB149: 0 | DC149: 0 | DE149: 0
A150: 2 | B150: 0.97 | D150: ='Sommaire du rôle_sec_2'!H56 -> 0 | E150: ='Sommaire du rôle_sec_2'!I56 -> 0 | G150: 0 | H150: 0 | J150: 0 | L150: 2 | M150: 0.97 | O150: ='Sommaire du rôle_sec_2'!J56 -> 0 | P150: ='Sommaire du rôle_sec_2'!K56 -> 0 | R150: 0 | S150: 0 | U150: 0 | W150: 2 | X150: 0.97 | Z150: ='Sommaire du rôle_sec_2'!L56 -> 0 | AA150: ='Sommaire du rôle_sec_2'!M56 -> 0 | AC150: 0 | AD150: 0 | AF150: 0 | AH150: 2 | AI150: 0.97 | AK150: ='Sommaire du rôle_sec_2'!N56 -> 0 | AL150: ='Sommaire du rôle_sec_2'!O56 -> 0 | AN150: 0 | AO150: 0 | AQ150: 0 | AS150: 2 | AT150: 0.97 | AV150: ='Sommaire du rôle_sec_2'!P56 -> 0 | AW150: ='Sommaire du rôle_sec_2'!Q56 -> 0 | AY150: 0 | AZ150: 0 | BB150: 0 | BD150: 2 | BE150: 0.97 | BG150: ='Sommaire du rôle_sec_2'!R56 -> 0 | BH150: ='Sommaire du rôle_sec_2'!S56 -> 0 | BJ150: 0 | BK150: 0 | BM150: 0 | BO150: 2 | BP150: 0.97 | BR150: ='Sommaire du rôle_sec_2'!T56 -> 0 | BS150: ='Sommaire du rôle_sec_2'!U56 -> 0 | BU150: 0 | BV150: 0 | BX150: 0 | BZ150: 2 | CA150: 0.97 | CC150: ='Sommaire du rôle_sec_2'!V56 -> 0 | CD150: ='Sommaire du rôle_sec_2'!W56 -> 0 | CF150: 0 | CG150: 0 | CI150: 0 | CK150: 2 | CL150: 0.97 | CN150: ='Sommaire du rôle_sec_2'!X56 -> 0 | CO150: ='Sommaire du rôle_sec_2'!Y56 -> 0 | CQ150: 0 | CR150: 0 | CT150: 0 | CV150: 2 | CW150: 0.97 | CY150: ='Sommaire du rôle_sec_2'!Z56 -> 0 | CZ150: ='Sommaire du rôle_sec_2'!AA56 -> 0 | DB150: 0 | DC150: 0 | DE150: 0
A151: 3 | B151: 0.94 | D151: ='Sommaire du rôle_sec_2'!H57 -> 0 | E151: ='Sommaire du rôle_sec_2'!I57 -> 0 | G151: 0 | H151: 0 | J151: 0 | L151: 3 | M151: 0.94 | O151: ='Sommaire du rôle_sec_2'!J57 -> 0 | P151: ='Sommaire du rôle_sec_2'!K57 -> 0 | R151: 0 | S151: 0 | U151: 0 | W151: 3 | X151: 0.94 | Z151: ='Sommaire du rôle_sec_2'!L57 -> 0 | AA151: ='Sommaire du rôle_sec_2'!M57 -> 0 | AC151: 0 | AD151: 0 | AF151: 0 | AH151: 3 | AI151: 0.94 | AK151: ='Sommaire du rôle_sec_2'!N57 -> 0 | AL151: ='Sommaire du rôle_sec_2'!O57 -> 0 | AN151: 0 | AO151: 0 | AQ151: 0 | AS151: 3 | AT151: 0.94 | AV151: ='Sommaire du rôle_sec_2'!P57 -> 0 | AW151: ='Sommaire du rôle_sec_2'!Q57 -> 0 | AY151: 0 | AZ151: 0 | BB151: 0 | BD151: 3 | BE151: 0.94 | BG151: ='Sommaire du rôle_sec_2'!R57 -> 0 | BH151: ='Sommaire du rôle_sec_2'!S57 -> 0 | BJ151: 0 | BK151: 0 | BM151: 0 | BO151: 3 | BP151: 0.94 | BR151: ='Sommaire du rôle_sec_2'!T57 -> 0 | BS151: ='Sommaire du rôle_sec_2'!U57 -> 0 | BU151: 0 | BV151: 0 | BX151: 0 | BZ151: 3 | CA151: 0.94 | CC151: ='Sommaire du rôle_sec_2'!V57 -> 0 | CD151: ='Sommaire du rôle_sec_2'!W57 -> 0 | CF151: 0 | CG151: 0 | CI151: 0 | CK151: 3 | CL151: 0.94 | CN151: ='Sommaire du rôle_sec_2'!X57 -> 0 | CO151: ='Sommaire du rôle_sec_2'!Y57 -> 0 | CQ151: 0 | CR151: 0 | CT151: 0 | CV151: 3 | CW151: 0.94 | CY151: ='Sommaire du rôle_sec_2'!Z57 -> 0 | CZ151: ='Sommaire du rôle_sec_2'!AA57 -> 0 | DB151: 0 | DC151: 0 | DE151: 0
A152: 4 | B152: 0.88 | D152: ='Sommaire du rôle_sec_2'!H58 -> 0 | E152: ='Sommaire du rôle_sec_2'!I58 -> 0 | G152: 0 | H152: 0 | J152: 0 | L152: 4 | M152: 0.88 | O152: ='Sommaire du rôle_sec_2'!J58 -> 0 | P152: ='Sommaire du rôle_sec_2'!K58 -> 0 | R152: 0 | S152: 0 | U152: 0 | W152: 4 | X152: 0.88 | Z152: ='Sommaire du rôle_sec_2'!L58 -> 0 | AA152: ='Sommaire du rôle_sec_2'!M58 -> 0 | AC152: 0 | AD152: 0 | AF152: 0 | AH152: 4 | AI152: 0.88 | AK152: ='Sommaire du rôle_sec_2'!N58 -> 0 | AL152: ='Sommaire du rôle_sec_2'!O58 -> 0 | AN152: 0 | AO152: 0 | AQ152: 0 | AS152: 4 | AT152: 0.88 | AV152: ='Sommaire du rôle_sec_2'!P58 -> 0 | AW152: ='Sommaire du rôle_sec_2'!Q58 -> 0 | AY152: 0 | AZ152: 0 | BB152: 0 | BD152: 4 | BE152: 0.88 | BG152: ='Sommaire du rôle_sec_2'!R58 -> 0 | BH152: ='Sommaire du rôle_sec_2'!S58 -> 0 | BJ152: 0 | BK152: 0 | BM152: 0 | BO152: 4 | BP152: 0.88 | BR152: ='Sommaire du rôle_sec_2'!T58 -> 0 | BS152: ='Sommaire du rôle_sec_2'!U58 -> 0 | BU152: 0 | BV152: 0 | BX152: 0 | BZ152: 4 | CA152: 0.88 | CC152: ='Sommaire du rôle_sec_2'!V58 -> 0 | CD152: ='Sommaire du rôle_sec_2'!W58 -> 0 | CF152: 0 | CG152: 0 | CI152: 0 | CK152: 4 | CL152: 0.88 | CN152: ='Sommaire du rôle_sec_2'!X58 -> 0 | CO152: ='Sommaire du rôle_sec_2'!Y58 -> 0 | CQ152: 0 | CR152: 0 | CT152: 0 | CV152: 4 | CW152: 0.88 | CY152: ='Sommaire du rôle_sec_2'!Z58 -> 0 | CZ152: ='Sommaire du rôle_sec_2'!AA58 -> 0 | DB152: 0 | DC152: 0 | DE152: 0
A153: 5 | B153: 0.78 | D153: ='Sommaire du rôle_sec_2'!H59 -> 0 | E153: ='Sommaire du rôle_sec_2'!I59 -> 0 | G153: 0 | H153: 0 | J153: 0 | L153: 5 | M153: 0.78 | O153: ='Sommaire du rôle_sec_2'!J59 -> 0 | P153: ='Sommaire du rôle_sec_2'!K59 -> 0 | R153: 0 | S153: 0 | U153: 0 | W153: 5 | X153: 0.78 | Z153: ='Sommaire du rôle_sec_2'!L59 -> 0 | AA153: ='Sommaire du rôle_sec_2'!M59 -> 0 | AC153: 0 | AD153: 0 | AF153: 0 | AH153: 5 | AI153: 0.78 | AK153: ='Sommaire du rôle_sec_2'!N59 -> 0 | AL153: ='Sommaire du rôle_sec_2'!O59 -> 0 | AN153: 0 | AO153: 0 | AQ153: 0 | AS153: 5 | AT153: 0.78 | AV153: ='Sommaire du rôle_sec_2'!P59 -> 0 | AW153: ='Sommaire du rôle_sec_2'!Q59 -> 0 | AY153: 0 | AZ153: 0 | BB153: 0 | BD153: 5 | BE153: 0.78 | BG153: ='Sommaire du rôle_sec_2'!R59 -> 0 | BH153: ='Sommaire du rôle_sec_2'!S59 -> 0 | BJ153: 0 | BK153: 0 | BM153: 0 | BO153: 5 | BP153: 0.78 | BR153: ='Sommaire du rôle_sec_2'!T59 -> 0 | BS153: ='Sommaire du rôle_sec_2'!U59 -> 0 | BU153: 0 | BV153: 0 | BX153: 0 | BZ153: 5 | CA153: 0.78 | CC153: ='Sommaire du rôle_sec_2'!V59 -> 0 | CD153: ='Sommaire du rôle_sec_2'!W59 -> 0 | CF153: 0 | CG153: 0 | CI153: 0 | CK153: 5 | CL153: 0.78 | CN153: ='Sommaire du rôle_sec_2'!X59 -> 0 | CO153: ='Sommaire du rôle_sec_2'!Y59 -> 0 | CQ153: 0 | CR153: 0 | CT153: 0 | CV153: 5 | CW153: 0.78 | CY153: ='Sommaire du rôle_sec_2'!Z59 -> 0 | CZ153: ='Sommaire du rôle_sec_2'!AA59 -> 0 | DB153: 0 | DC153: 0 | DE153: 0
A154: 6 | B154: 0.6 | D154: ='Sommaire du rôle_sec_2'!H60 -> 0 | E154: ='Sommaire du rôle_sec_2'!I60 -> 0 | G154: 0 | H154: 0 | J154: 0 | L154: 6 | M154: 0.6 | O154: ='Sommaire du rôle_sec_2'!J60 -> 0 | P154: ='Sommaire du rôle_sec_2'!K60 -> 0 | R154: 0 | S154: 0 | U154: 0 | W154: 6 | X154: 0.6 | Z154: ='Sommaire du rôle_sec_2'!L60 -> 0 | AA154: ='Sommaire du rôle_sec_2'!M60 -> 0 | AC154: 0 | AD154: 0 | AF154: 0 | AH154: 6 | AI154: 0.6 | AK154: ='Sommaire du rôle_sec_2'!N60 -> 0 | AL154: ='Sommaire du rôle_sec_2'!O60 -> 0 | AN154: 0 | AO154: 0 | AQ154: 0 | AS154: 6 | AT154: 0.6 | AV154: ='Sommaire du rôle_sec_2'!P60 -> 0 | AW154: ='Sommaire du rôle_sec_2'!Q60 -> 0 | AY154: 0 | AZ154: 0 | BB154: 0 | BD154: 6 | BE154: 0.6 | BG154: ='Sommaire du rôle_sec_2'!R60 -> 0 | BH154: ='Sommaire du rôle_sec_2'!S60 -> 0 | BJ154: 0 | BK154: 0 | BM154: 0 | BO154: 6 | BP154: 0.6 | BR154: ='Sommaire du rôle_sec_2'!T60 -> 0 | BS154: ='Sommaire du rôle_sec_2'!U60 -> 0 | BU154: 0 | BV154: 0 | BX154: 0 | BZ154: 6 | CA154: 0.6 | CC154: ='Sommaire du rôle_sec_2'!V60 -> 0 | CD154: ='Sommaire du rôle_sec_2'!W60 -> 0 | CF154: 0 | CG154: 0 | CI154: 0 | CK154: 6 | CL154: 0.6 | CN154: ='Sommaire du rôle_sec_2'!X60 -> 0 | CO154: ='Sommaire du rôle_sec_2'!Y60 -> 0 | CQ154: 0 | CR154: 0 | CT154: 0 | CV154: 6 | CW154: 0.6 | CY154: ='Sommaire du rôle_sec_2'!Z60 -> 0 | CZ154: ='Sommaire du rôle_sec_2'!AA60 -> 0 | DB154: 0 | DC154: 0 | DE154: 0
A155: 7 | B155: 0.4 | D155: ='Sommaire du rôle_sec_2'!H61 -> 0 | E155: ='Sommaire du rôle_sec_2'!I61 -> 0 | G155: 0 | H155: 0 | J155: 0 | L155: 7 | M155: 0.4 | O155: ='Sommaire du rôle_sec_2'!J61 -> 0 | P155: ='Sommaire du rôle_sec_2'!K61 -> 0 | R155: 0 | S155: 0 | U155: 0 | W155: 7 | X155: 0.4 | Z155: ='Sommaire du rôle_sec_2'!L61 -> 0 | AA155: ='Sommaire du rôle_sec_2'!M61 -> 0 | AC155: 0 | AD155: 0 | AF155: 0 | AH155: 7 | AI155: 0.4 | AK155: ='Sommaire du rôle_sec_2'!N61 -> 0 | AL155: ='Sommaire du rôle_sec_2'!O61 -> 0 | AN155: 0 | AO155: 0 | AQ155: 0 | AS155: 7 | AT155: 0.4 | AV155: ='Sommaire du rôle_sec_2'!P61 -> 0 | AW155: ='Sommaire du rôle_sec_2'!Q61 -> 0 | AY155: 0 | AZ155: 0 | BB155: 0 | BD155: 7 | BE155: 0.4 | BG155: ='Sommaire du rôle_sec_2'!R61 -> 0 | BH155: ='Sommaire du rôle_sec_2'!S61 -> 0 | BJ155: 0 | BK155: 0 | BM155: 0 | BO155: 7 | BP155: 0.4 | BR155: ='Sommaire du rôle_sec_2'!T61 -> 0 | BS155: ='Sommaire du rôle_sec_2'!U61 -> 0 | BU155: 0 | BV155: 0 | BX155: 0 | BZ155: 7 | CA155: 0.4 | CC155: ='Sommaire du rôle_sec_2'!V61 -> 0 | CD155: ='Sommaire du rôle_sec_2'!W61 -> 0 | CF155: 0 | CG155: 0 | CI155: 0 | CK155: 7 | CL155: 0.4 | CN155: ='Sommaire du rôle_sec_2'!X61 -> 0 | CO155: ='Sommaire du rôle_sec_2'!Y61 -> 0 | CQ155: 0 | CR155: 0 | CT155: 0 | CV155: 7 | CW155: 0.4 | CY155: ='Sommaire du rôle_sec_2'!Z61 -> 0 | CZ155: ='Sommaire du rôle_sec_2'!AA61 -> 0 | DB155: 0 | DC155: 0 | DE155: 0
A156: 8 | B156: 0.15 | D156: ='Sommaire du rôle_sec_2'!H62 -> 0 | E156: ='Sommaire du rôle_sec_2'!I62 -> 0 | G156: 0 | H156: 0 | J156: 0 | L156: 8 | M156: 0.15 | O156: ='Sommaire du rôle_sec_2'!J62 -> 0 | P156: ='Sommaire du rôle_sec_2'!K62 -> 0 | R156: 0 | S156: 0 | U156: 0 | W156: 8 | X156: 0.15 | Z156: ='Sommaire du rôle_sec_2'!L62 -> 0 | AA156: ='Sommaire du rôle_sec_2'!M62 -> 0 | AC156: 0 | AD156: 0 | AF156: 0 | AH156: 8 | AI156: 0.15 | AK156: ='Sommaire du rôle_sec_2'!N62 -> 0 | AL156: ='Sommaire du rôle_sec_2'!O62 -> 0 | AN156: 0 | AO156: 0 | AQ156: 0 | AS156: 8 | AT156: 0.15 | AV156: ='Sommaire du rôle_sec_2'!P62 -> 0 | AW156: ='Sommaire du rôle_sec_2'!Q62 -> 0 | AY156: 0 | AZ156: 0 | BB156: 0 | BD156: 8 | BE156: 0.15 | BG156: ='Sommaire du rôle_sec_2'!R62 -> 0 | BH156: ='Sommaire du rôle_sec_2'!S62 -> 0 | BJ156: 0 | BK156: 0 | BM156: 0 | BO156: 8 | BP156: 0.15 | BR156: ='Sommaire du rôle_sec_2'!T62 -> 0 | BS156: ='Sommaire du rôle_sec_2'!U62 -> 0 | BU156: 0 | BV156: 0 | BX156: 0 | BZ156: 8 | CA156: 0.15 | CC156: ='Sommaire du rôle_sec_2'!V62 -> 0 | CD156: ='Sommaire du rôle_sec_2'!W62 -> 0 | CF156: 0 | CG156: 0 | CI156: 0 | CK156: 8 | CL156: 0.15 | CN156: ='Sommaire du rôle_sec_2'!X62 -> 0 | CO156: ='Sommaire du rôle_sec_2'!Y62 -> 0 | CQ156: 0 | CR156: 0 | CT156: 0 | CV156: 8 | CW156: 0.15 | CY156: ='Sommaire du rôle_sec_2'!Z62 -> 0 | CZ156: ='Sommaire du rôle_sec_2'!AA62 -> 0 | DB156: 0 | DC156: 0 | DE156: 0
A157: IMMEUBLES SANS PARTIE NON RÉSIDENTIELLE | B157: 1 | D157: ='Sommaire du rôle_sec_2'!H63 -> 0 | E157: ='Sommaire du rôle_sec_2'!I63 -> 0 | G157: 0 | H157: 0 | J157: 0 | L157: IMMEUBLES SANS PARTIE NON RÉSIDENTIELLE | M157: 1 | O157: ='Sommaire du rôle_sec_2'!J63 -> 0 | P157: ='Sommaire du rôle_sec_2'!K63 -> 0 | R157: 0 | S157: 0 | U157: 0 | W157: IMMEUBLES SANS PARTIE NON RÉSIDENTIELLE | X157: 1 | Z157: ='Sommaire du rôle_sec_2'!L63 -> 0 | AA157: ='Sommaire du rôle_sec_2'!M63 -> 0 | AC157: 0 | AD157: 0 | AF157: 0 | AH157: IMMEUBLES SANS PARTIE NON RÉSIDENTIELLE | AI157: 1 | AK157: ='Sommaire du rôle_sec_2'!N63 -> 0 | AL157: ='Sommaire du rôle_sec_2'!O63 -> 0 | AN157: 0 | AO157: 0 | AQ157: 0 | AS157: IMMEUBLES SANS PARTIE NON RÉSIDENTIELLE | AT157: 1 | AV157: ='Sommaire du rôle_sec_2'!P63 -> 0 | AW157: ='Sommaire du rôle_sec_2'!Q63 -> 0 | AY157: 0 | AZ157: 0 | BB157: 0 | BD157: IMMEUBLES SANS PARTIE NON RÉSIDENTIELLE | BE157: 1 | BG157: ='Sommaire du rôle_sec_2'!R63 -> 0 | BH157: ='Sommaire du rôle_sec_2'!S63 -> 0 | BJ157: 0 | BK157: 0 | BM157: 0 | BO157: IMMEUBLES SANS PARTIE NON RÉSIDENTIELLE | BP157: 1 | BR157: ='Sommaire du rôle_sec_2'!T63 -> 0 | BS157: ='Sommaire du rôle_sec_2'!U63 -> 0 | BU157: 0 | BV157: 0 | BX157: 0 | BZ157: IMMEUBLES SANS PARTIE NON RÉSIDENTIELLE | CA157: 1 | CC157: ='Sommaire du rôle_sec_2'!V63 -> 0 | CD157: ='Sommaire du rôle_sec_2'!W63 -> 0 | CF157: 0 | CG157: 0 | CI157: 0 | CK157: IMMEUBLES SANS PARTIE NON RÉSIDENTIELLE | CL157: 1 | CN157: ='Sommaire du rôle_sec_2'!X63 -> 0 | CO157: ='Sommaire du rôle_sec_2'!Y63 -> 0 | CQ157: 0 | CR157: 0 | CT157: 0 | CV157: IMMEUBLES SANS PARTIE NON RÉSIDENTIELLE | CW157: 1 | CY157: ='Sommaire du rôle_sec_2'!Z63 -> 0 | CZ157: ='Sommaire du rôle_sec_2'!AA63 -> 0 | DB157: 0 | DC157: 0 | DE157: 0
A158: 12 CHSLD | B158: 0.8 | G158: 0 | L158: 12 CHSLD | M158: 0.8 | R158: 0 | W158: 12 CHSLD | X158: 0.8 | AC158: 0 | AH158: 12 CHSLD | AI158: 0.8 | AN158: 0 | AS158: 12 CHSLD | AT158: 0.8 | AY158: 0 | BD158: 12 CHSLD | BE158: 0.8 | BJ158: 0 | BO158: 12 CHSLD | BP158: 0.8 | BU158: 0 | BZ158: 12 CHSLD | CA158: 0.8 | CF158: 0 | CK158: 12 CHSLD | CL158: 0.8 | CV158: 12 CHSLD | CW158: 0.8
A159: 13 Cours de triage | B159: 0.6 | G159: 0 | L159: 13 Cours de triage | M159: 0.6 | R159: 0 | W159: 13 Cours de triage | X159: 0.6 | AC159: 0 | AH159: 13 Cours de triage | AI159: 0.6 | AN159: 0 | AS159: 13 Cours de triage | AT159: 0.6 | AY159: 0 | BD159: 13 Cours de triage | BE159: 0.6 | BJ159: 0 | BO159: 13 Cours de triage | BP159: 0.6 | BU159: 0 | BZ159: 13 Cours de triage | CA159: 0.6 | CF159: 0 | CK159: 13 Cours de triage | CL159: 0.6 | CV159: 13 Cours de triage | CW159: 0.6
A160: Total | G160: =SUM(G147:G159) -> 0 | H160: =SUM(H147:H157) -> 0 | I160: =SUM(I147:I157) -> 0 | J160: =G160+H160 -> 0 | L160: Total | R160: =SUM(R147:R159) -> 0 | S160: =SUM(S147:S157) -> 0 | U160: =R160+S160 -> 0 | W160: Total | AC160: =SUM(AC147:AC159) -> 0 | AD160: =SUM(AD147:AD157) -> 0 | AF160: =AC160+AD160 -> 0 | AH160: Total | AN160: =SUM(AN147:AN159) -> 0 | AO160: =SUM(AO147:AO157) -> 0 | AQ160: =AN160+AO160 -> 0 | AS160: Total | AY160: =SUM(AY147:AY159) -> 0 | AZ160: =SUM(AZ147:AZ157) -> 0 | BB160: =AY160+AZ160 -> 0 | BD160: Total | BJ160: =SUM(BJ147:BJ159) -> 0 | BK160: =SUM(BK147:BK157) -> 0 | BM160: =BJ160+BK160 -> 0 | BO160: Total | BU160: =SUM(BU147:BU159) -> 0 | BV160: =SUM(BV147:BV157) -> 0 | BX160: =BU160+BV160 -> 0 | BZ160: Total | CF160: =SUM(CF147:CF159) -> 0 | CG160: =SUM(CG147:CG157) -> 0 | CI160: =CF160+CG160 -> 0 | CK160: Total | CQ160: =SUM(CQ147:CQ159) -> 0 | CR160: =SUM(CR147:CR157) -> 0 | CT160: =CQ160+CR160 -> 0 | CV160: Total | DB160: =SUM(DB147:DB159) -> 0 | DC160: =SUM(DC147:DC157) -> 0 | DE160: =DB160+DC160 -> 0

Sheet Sommaire du rôle_sec_3
B2: ASSIETTES D'APPLICATION DES TAUX DE LA TAXE FONCIÈRE GÉNÉRALE 9
B3: TAUX APPLICABLES | F3: TAUX NON RÉSIDENTIEL | H3: TAUX INDUSTRIEL (CLASSE 2) | J3: TAUX IND. (SAUF CL.1 ET 2) | L3: TAUX AGRICOLE | N3: TAUX FORESTIER | P3: TAUX CATÉGORIE RÉSIDUELLE
B4: NOMBRE DE SECTEURS | S4: =IF(OR(F4>0,H4>0,J4>0,L4>0,N4>0,P4>0),"UTILISER LE SIMULATEUR POUR LA TAXATION DE SECTEUR","-") -> -
B5: CLASSE NON RÉSIDENTIELLE ET | F5: VAL. NR À 100 % ET IND. CL. 2 À 50 % | H5: VALEUR À 50 % | J5: VALEUR À 100 % | L5: VALEURS À 100 % IMPOSABLES | N5: VALEURS À 100 % IMPOSABLES | P5: VALEUR À 100 %
B6: POURCENTAGE DE TAXATION | F6: IMPOSABLES | G6: COMPENSABLES | H6: IMPOSABLES | I6: COMPENSABLES | J6: IMPOSABLES | K6: COMPENSABLES | P6: IMPOSABLES | Q6: COMPENSABLES
B7: 1A | C7: : 0,1 % | E7: 901 | F7: 76534150 | G7: 0 | O7: 99,9 % | P7: 76534150 | Q7: 0
B8: 1B | C8: : 0,5 % | E8: 902 | F8: 34712370 | G8: 0 | O8: 99,5 % | P8: 34712370 | Q8: 0
B9: 1C | C9: : 1 % | E9: 903 | F9: 4894450 | G9: 0 | O9: 99 % | P9: 4894450 | Q9: 0
B10: 2 | C10: : 3 % | E10: 904 | F10: 23616670 | G10: 0 | J10: 605900 | O10: 97 % | P10: 23616670 | Q10: 0
B11: 3 | C11: : 6 % | E11: 905 | F11: 44153450 | G11: 0 | J11: 181400 | O11: 94 % | P11: 44153450 | Q11: 0
B12: 4 | C12: : 12 % | E12: 906 | F12: 60256460 | G12: 0 | J12: 215700 | O12: 88 % | P12: 60256460 | Q12: 0
B13: 5 | C13: : 22 % | E13: 907 | F13: 38643990 | G13: 0 | O13: 78 % | P13: 38643990 | Q13: 0
B14: 6 | C14: : 40 % | E14: 908 | F14: 38532890 | G14: 0 | H14: 290100 | J14: 2421200 | O14: 60 % | P14: 38532890 | Q14: 0
B15: 7 | C15: : 60 % | E15: 909 | F15: 39569365 | G15: 72376370 | H15: 350350 | J15: 354000 | O15: 40 % | P15: 39569365 | Q15: 72376370
B16: 8 | C16: : 85 % | E16: 910 | F16: 22323070 | G16: 211592260 | J16: 1875900 | O16: 15 % | P16: 22323070 | Q16: 211592260
B17: 9 | C17: : 100 % | E17: 911 | F17: 3177900 | G17: 0 | L17: TAUX TERRAINS VAGUES DESSERVIS
B18: 10 | C18: : 100 % | E18: 912 | F18: 1155755205 | G18: 61905690 | H18: 10515650 | J18: 225704400 | K18: 2325200 | P18: 8068032861 | Q18: 2100780
B19: 11 | C19: : Cours de triage 100 % | E19: 913 | L19: VALEURS À 100 %
B20: 12 | C20: : CHSLD 20 % | E20: 914 | F20: 13938200 | L20: IMPOSABLES | N20: COMPENSABLES | O20: 80 % | P20: =F20 -> 13938200
B21: 13 | C21: : Cours de triage 40 % | E21: 915 | G21: CFIL (chemin de fer d'intérêt local) | O21: 60 % | P21: =F21 -> 0
B22: APPLICATION DU TNR QUAND TTVD | E22: 916 | F22: 5228300 | I22: (TTVD − TAUX DE BASE) x | L22: =F22 -> 5228300 | N22: =G22 -> 0
B23: ASSIETTES D'APPLICATION | E23: 917 | F23: =F71+F72 -> 1529652563 | I23: =H71+H72 -> 241701840 | K23: (TTVD) x | L23: 76716400 | N23: 58400 | P23: =O71+O72 -> 8447691868
B25: ASSIETTES D'APPLICATION DES TAUX RELATIFS AUX SOUS-CATÉGORIES DES IMMEUBLES NON RÉSIDENTIELS (si applicables)
B26: DÉNOMINATION DE LA SOUS-CATÉGORIE | F26: TAUX SOUS-CATÉGORIE DE RÉFÉRENCE | H26: TAUX SOUS-CATÉGORIE 1 | J26: TAUX SOUS-CATÉGORIE 2 | L26: TAUX SOUS-CATÉGORIE 3 | N26: TAUX SOUS-CATÉGORIE 4 | P26: TAUX SOUS-CATÉGORIE 5 | R26: TAUX SOUS-CATÉGORIE 6 | T26: TAUX SOUS-CATÉGORIE 7 | V26: TAUX SOUS-CATÉGORIE 8 | X26: TAUX SOUS-CATÉGORIE 9 | Z26: TAUX SOUS-CATÉGORIE 10
B28: NOMBRE DE SECTEURS
B29: POURCENTAGE DE TAXATION | F29: IMPOSABLES | G29: COMPENSABLES | H29: IMPOSABLES | I29: COMPENSABLES | J29: IMPOSABLES | K29: COMPENSABLES | L29: IMPOSABLES | M29: COMPENSABLES | N29: IMPOSABLES | O29: COMPENSABLES | P29: IMPOSABLES | Q29: COMPENSABLES | R29: IMPOSABLES | S29: COMPENSABLES | T29: IMPOSABLES | U29: COMPENSABLES | V29: IMPOSABLES | W29: COMPENSABLES | X29: IMPOSABLES | Y29: COMPENSABLES | Z29: IMPOSABLES | AA29: COMPENSABLES
B30: 1A | C30: 0,1 % | E30: =E22+1 -> 917
B31: 1B | C31: 0,5 % | E31: =E30+1 -> 918
B32: 1C | C32: 1 % | E32: 919
B33: 2 | C33: 3 % | E33: 920
B34: 3 | C34: 6 % | E34: 921
B35: 4 | C35: 12 % | E35: 922
B36: 5 | C36: 22 % | E36: 923
B37: 6 | C37: 40 % | E37: 924
B38: 7 | C38: 60 % | E38: 925
B39: 8 | C39: 85 % | E39: 926
B40: 9 | C40: 100 % | E40: 927
B41: 10 | C41: 100 % | E41: 928
B42: 11 | C42: Cours de triage 100 % | E42: 929
B43: 12 | C43: CHSLD 20 % | E43: 930
B44: 13 | C44: Cours de triage 40 % | E44: 931 | G44: CFIL
B45: APPLICATION DU TNR QUAND TTVD | E45: 932
B46: ASSIETTES D'APPLICATION | E46: 933 | F46: =F77+F78 -> 0 | H46: =G77+G78 -> 0 | J46: =H77+H78 -> 0 | L46: =I77+I78 -> 0 | N46: =J77+J78 -> 0 | P46: =K77+K78 -> 0 | R46: =L77+L78 -> 0 | T46: =M77+M78 -> 0 | V46: =N77+N78 -> 0 | X46: =O77+O78 -> 0 | Z46: =P77+P78 -> 0
B48: ASSIETTES D'APPLICATION DES TAUX RELATIFS AUX SOUS-CATÉGORIES DES IMMEUBLES RÉSIDENTIELS (si applicables)
B49: DÉNOMINATION DE LA SOUS-CATÉGORIE | F49: TAUX SOUS-CATÉGORIE RÉSIDUELLE | H49: TAUX SOUS-CATÉGORIE 1 | J49: TAUX SOUS-CATÉGORIE 2 | L49: TAUX SOUS-CATÉGORIE 3 | N49: TAUX SOUS-CATÉGORIE 4 | P49: TAUX SOUS-CATÉGORIE 5 | R49: TAUX SOUS-CATÉGORIE 6 | T49: TAUX SOUS-CATÉGORIE 7 | V49: TAUX SOUS-CATÉGORIE 8 | X49: TAUX SOUS-CATÉGORIE 9 | Z49: TAUX SOUS-CATÉGORIE 10
B51: NOMBRE DE SECTEURS
B52: POURCENTAGE DE TAXATION | F52: IMPOSABLES | G52: COMPENSABLES | H52: IMPOSABLES | I52: COMPENSABLES | J52: IMPOSABLES | K52: COMPENSABLES | L52: IMPOSABLES | M52: COMPENSABLES | N52: IMPOSABLES | O52: COMPENSABLES | P52: IMPOSABLES | Q52: COMPENSABLES | R52: IMPOSABLES | S52: COMPENSABLES | T52: IMPOSABLES | U52: COMPENSABLES | V52: IMPOSABLES | W52: COMPENSABLES | X52: IMPOSABLES | Y52: COMPENSABLES | Z52: IMPOSABLES | AA52: COMPENSABLES
B53: 1A | C53: 99,9 % | E53: 935
B54: 1B | C54: 99,5 % | E54: =E53+1 -> 936
B55: 1C | C55: 99 % | E55: 937
B56: 2 | C56: 97 % | E56: 938
B57: 3 | C57: 94 % | E57: 939
B58: 4 | C58: 88 % | E58: 940
B59: 5 | C59: 78 % | E59: 941
B60: 6 | C60: 60 % | E60: 942
B61: 7 | C61: 40 % | E61: 943
B62: 8 | C62: 15 % | E62: 944
B63: 9 | C63: 100% immeubles sans partie non résidentielle | E63: 945
B64: 12 | C64: CHSLD 80 % | E64: 946
B65: 13 | C65: Cours de triage 60 % | E65: 947
B66: ASSIETTES D'APPLICATION | E66: 948 | F66: =F83+F84 -> 0 | H66: =G83+G84 -> 0 | J66: =H83+H84 -> 0 | L66: =I83+I84 -> 0 | N66: =J83+J84 -> 0 | P66: =K83+K84 -> 0 | R66: =L83+L84 -> 0 | T66: =M83+M84 -> 0 | V66: =N83+N84 -> 0 | X66: =O83+O84 -> 0 | Z66: =P83+P84 -> 0
F69: TAUX NON RÉSIDENTIEL | H69: TAUX INDUSTRIEL | L69: TAUX TERRAINS VAGUES DESSERVIS | O69: TAUX CATÉGORIE RÉSIDUELLE (TAUX DE BASE)
C71: Assiette imposable | F71: ='Détermination_sec_3 '!G23 -> 1244467630 | H71: ='Détermination_sec_3 '!G41+'Détermination_sec_3 '!G59 -> 239376640 | L71: =L23 -> 76716400 | O71: ='Détermination_sec_3 '!G78 -> 8384901701
C72: Assiette compensable | F72: ='Détermination_sec_3 '!H23 -> 285184933 | H72: ='Détermination_sec_3 '!H41+'Détermination_sec_3 '!H59 -> 2325200 | L72: =N23 -> 58400 | O72: ='Détermination_sec_3 '!H78 -> 62790167
B74: Sous-catégorie des immeubles non résidentiels
F75: TAUX SOUS-CATÉGORIE DE RÉFÉRENCE | G75: Sous-catégorie 1 | H75: Sous-catégorie 2 | I75: Sous-catégorie 3 | J75: Sous-catégorie 4 | K75: Sous-catégorie 5 | L75: Sous-catégorie 6 | M75: Sous-catégorie 7 | N75: Sous-catégorie 8 | O75: Sous-catégorie 9 | P75: Sous-catégorie 10
C77: Assiette imposable | F77: ='Détermination_sec_3 '!G100 -> 0 | G77: ='Détermination_sec_3 '!G122 -> 0 | H77: ='Détermination_sec_3 '!R122 -> 0 | I77: ='Détermination_sec_3 '!AC122 -> 0 | J77: ='Détermination_sec_3 '!AN122 -> 0 | K77: ='Détermination_sec_3 '!AY122 -> 0 | L77: ='Détermination_sec_3 '!BJ122 -> 0 | M77: ='Détermination_sec_3 '!BU122 -> 0 | N77: ='Détermination_sec_3 '!CF122 -> 0 | O77: ='Détermination_sec_3 '!CQ122 -> 0 | P77: ='Détermination_sec_3 '!DB122 -> 0
C78: Assiette compensable | F78: ='Détermination_sec_3 '!H100 -> 0 | G78: ='Détermination_sec_3 '!H122 -> 0 | H78: ='Détermination_sec_3 '!S122 -> 0 | I78: ='Détermination_sec_3 '!AD122 -> 0 | J78: ='Détermination_sec_3 '!AO122 -> 0 | K78: ='Détermination_sec_3 '!AZ122 -> 0 | L78: ='Détermination_sec_3 '!BK122 -> 0 | M78: ='Détermination_sec_3 '!BV122 -> 0 | N78: ='Détermination_sec_3 '!CG122 -> 0 | O78: ='Détermination_sec_3 '!CR122 -> 0 | P78: ='Détermination_sec_3 '!DC122 -> 0
B80: Sous-catégorie des immeubles résidentiels
F81: TAUX SOUS-CATÉGORIE RÉSIDUELLE | G81: Sous-catégorie 1 | H81: Sous-catégorie 2 | I81: Sous-catégorie 3 | J81: Sous-catégorie 4 | K81: Sous-catégorie 5 | L81: Sous-catégorie 6 | M81: Sous-catégorie 7 | N81: Sous-catégorie 8 | O81: Sous-catégorie 9 | P81: Sous-catégorie 10
C83: Assiette imposable | F83: ='Détermination_sec_3 '!G141 -> 0 | G83: ='Détermination_sec_3 '!G160 -> 0 | H83: ='Détermination_sec_3 '!R160 -> 0 | I83: ='Détermination_sec_3 '!AC160 -> 0 | J83: ='Détermination_sec_3 '!AN160 -> 0 | K83: ='Détermination_sec_3 '!AY160 -> 0 | L83: ='Détermination_sec_3 '!BJ160 -> 0 | M83: ='Détermination_sec_3 '!BU160 -> 0 | N83: ='Détermination_sec_3 '!CF160 -> 0 | O83: ='Détermination_sec_3 '!CQ160 -> 0 | P83: ='Détermination_sec_3 '!DB160 -> 0
C84: Assiette compensable | F84: ='Détermination_sec_3 '!H141 -> 0 | G84: ='Détermination_sec_3 '!H160 -> 0 | H84: ='Détermination_sec_3 '!S160 -> 0 | I84: ='Détermination_sec_3 '!AD160 -> 0 | J84: ='Détermination_sec_3 '!AO160 -> 0 | K84: ='Détermination_sec_3 '!AZ160 -> 0 | L84: ='Détermination_sec_3 '!BK160 -> 0 | M84: ='Détermination_sec_3 '!BV160 -> 0 | N84: ='Détermination_sec_3 '!CG160 -> 0 | O84: ='Détermination_sec_3 '!CR160 -> 0 | P84: ='Détermination_sec_3 '!DC160 -> 0

Sheet Détermination_sec_3 (hidden)
A1: DÉTERMINATION DES ASSIETTES
A3: ASSIETTE AU TAUX NON RÉSIDENTIEL
A4: Classe non résidentielle | B4: Pourcentage de taxation | D4: VAL. NR À 100 % ET IND. CL. 2 À 50 %
D5: Imposables | E5: Compensables | G5: Imposables pondérées | H5: Compensables pondérées | J5: Total
B6: (1) | D6: (2) | E6: (3) | G6: (4) = (1) X (2) | H6: (5) = (1 ) X (3) | J6: (6) = (4) + (5)
A7: 1A | B7: 0.001 | D7: ='Sommaire du rôle_sec_3'!F7 -> 76534150 | E7: ='Sommaire du rôle_sec_3'!G7 -> 0 | G7: =B7*D7 -> 76534.15 | H7: =B7*E7 -> 0 | J7: =G7+H7 -> 76534.15
A8: 1B | B8: 0.005 | D8: ='Sommaire du rôle_sec_3'!F8 -> 34712370 | E8: ='Sommaire du rôle_sec_3'!G8 -> 0 | G8: 173561.85 | H8: 0 | J8: 173561.85
A9: 1C | B9: 0.01 | D9: ='Sommaire du rôle_sec_3'!F9 -> 4894450 | E9: ='Sommaire du rôle_sec_3'!G9 -> 0 | G9: 48944.5 | H9: 0 | J9: 48944.5
A10: 2 | B10: 0.03 | D10: ='Sommaire du rôle_sec_3'!F10 -> 23616670 | E10: ='Sommaire du rôle_sec_3'!G10 -> 0 | G10: 708500.1 | H10: 0 | J10: 708500.1
A11: 3 | B11: 0.06 | D11: ='Sommaire du rôle_sec_3'!F11 -> 44153450 | E11: ='Sommaire du rôle_sec_3'!G11 -> 0 | G11: 2649207 | H11: 0 | J11: 2649207
A12: 4 | B12: 0.12 | D12: ='Sommaire du rôle_sec_3'!F12 -> 60256460 | E12: ='Sommaire du rôle_sec_3'!G12 -> 0 | G12: 7230775.2 | H12: 0 | J12: 7230775.2
A13: 5 | B13: 0.22 | D13: ='Sommaire du rôle_sec_3'!F13 -> 38643990 | E13: ='Sommaire du rôle_sec_3'!G13 -> 0 | G13: 8501677.8 | H13: 0 | J13: 8501677.8
A14: 6 | B14: 0.4 | D14: ='Sommaire du rôle_sec_3'!F14 -> 38532890 | E14: ='Sommaire du rôle_sec_3'!G14 -> 0 | G14: 15413156 | H14: 0 | J14: 15413156
A15: 7 | B15: 0.6 | D15: ='Sommaire du rôle_sec_3'!F15 -> 39569365 | E15: ='Sommaire du rôle_sec_3'!G15 -> 72376370 | G15: 23741619 | H15: 43425822 | J15: 67167441
A16: 8 | B16: 0.85 | D16: ='Sommaire du rôle_sec_3'!F16 -> 22323070 | E16: ='Sommaire du rôle_sec_3'!G16 -> 211592260 | G16: 18974609.5 | H16: 179853421 | J16: 198828030.5
A17: 9 | B17: 1 | D17: ='Sommaire du rôle_sec_3'!F17 -> 3177900 | E17: ='Sommaire du rôle_sec_3'!G17 -> 0 | G17: 3177900 | H17: 0 | J17: 3177900
A18: 10 | B18: 1 | D18: ='Sommaire du rôle_sec_3'!F18 -> 1155755205 | E18: ='Sommaire du rôle_sec_3'!G18 -> 61905690 | G18: 1155755205 | H18: 61905690 | J18: 1217660895
A19: 11 Cours de triage | B19: 100% | D19: ='Sommaire du rôle_sec_3'!F19 -> 0 | E19: ='Sommaire du rôle_sec_3'!G19 -> 0 | G19: 0 | H19: 0 | J19: 0
A20: 12 CHSLD | B20: 0.2 | D20: ='Sommaire du rôle_sec_3'!F20 -> 13938200 | G20: 2787640 | J20: 2787640
A21: 13 Cours de triage 40 % | B21: 40% | D21: ='Sommaire du rôle_sec_3'!F21 -> 0 | G21: 0 | J21: 0
A22: APPLICATION DU TNR QUAND TTVD | B22: 1 | D22: ='Sommaire du rôle_sec_3'!F22 -> 5228300 | E22: ='Sommaire du rôle_sec_3'!G22 -> 0 | G22: 5228300 | H22: =B22*E22 -> 0 | J22: 5228300
A23: Total | G23: =SUM(G7:G22) -> 1244467630 | H23: =SUM(H7:H22) -> 285184933 | J23: 1529652563
A25: ASSIETTE AU TAUX INDUSTRIEL (CLASSE 2)
A26: Classe non résidentielle | B26: Pourcentage de taxation | D26: VALEUR À 50 %
D27: Imposables | E27: Compensables | G27: Imposables pondérées | H27: Compensables pondérées | J27: Total
B28: (1) | D28: (2) | E28: (3) | G28: (4) = (1) X (2) | H28: (5) = (1) X (3) | J28: (6) = (4) + (5)
A29: 1A | B29: 0.001 | D29: ='Sommaire du rôle_sec_3'!H7 -> 0 | E29: ='Sommaire du rôle_sec_3'!I7 -> 0 | G29: =B29*D29 -> 0 | H29: =B29*E29 -> 0 | J29: =G29+H29 -> 0
A30: 1B | B30: 0.005 | D30: ='Sommaire du rôle_sec_3'!H8 -> 0 | E30: ='Sommaire du rôle_sec_3'!I8 -> 0 | G30: 0 | H30: 0 | J30: 0
A31: 1C | B31: 0.01 | D31: ='Sommaire du rôle_sec_3'!H9 -> 0 | E31: ='Sommaire du rôle_sec_3'!I9 -> 0 | G31: 0 | H31: 0 | J31: 0
A32: 2 | B32: 0.03 | D32: ='Sommaire du rôle_sec_3'!H10 -> 0 | E32: ='Sommaire du rôle_sec_3'!I10 -> 0 | G32: 0 | H32: 0 | J32: 0
A33: 3 | B33: 0.06 | D33: ='Sommaire du rôle_sec_3'!H11 -> 0 | E33: ='Sommaire du rôle_sec_3'!I11 -> 0 | G33: 0 | H33: 0 | J33: 0
A34: 4 | B34: 0.12 | D34: ='Sommaire du rôle_sec_3'!H12 -> 0 | E34: ='Sommaire du rôle_sec_3'!I12 -> 0 | G34: 0 | H34: 0 | J34: 0
A35: 5 | B35: 0.22 | D35: ='Sommaire du rôle_sec_3'!H13 -> 0 | E35: ='Sommaire du rôle_sec_3'!I13 -> 0 | G35: 0 | H35: 0 | J35: 0
A36: 6 | B36: 0.4 | D36: ='Sommaire du rôle_sec_3'!H14 -> 290100 | E36: ='Sommaire du rôle_sec_3'!I14 -> 0 | G36: 116040 | H36: 0 | J36: 116040
A37: 7 | B37: 0.6 | D37: ='Sommaire du rôle_sec_3'!H15 -> 350350 | E37: ='Sommaire du rôle_sec_3'!I15 -> 0 | G37: 210210 | H37: 0 | J37: 210210
A38: 8 | B38: 0.85 | D38: ='Sommaire du rôle_sec_3'!H16 -> 0 | E38: ='Sommaire du rôle_sec_3'!I16 -> 0 | G38: 0 | H38: 0 | J38: 0
A39: 9 | B39: 1 | D39: ='Sommaire du rôle_sec_3'!H17 -> 0 | E39: ='Sommaire du rôle_sec_3'!I17 -> 0 | G39: 0 | H39: 0 | J39: 0
A40: 10 | B40: 1 | D40: ='Sommaire du rôle_sec_3'!H18 -> 10515650 | E40: ='Sommaire du rôle_sec_3'!I18 -> 0 | G40: 10515650 | H40: 0 | J40: 10515650
A41: Total | G41: =SUM(G29:G40) -> 10841900 | H41: =SUM(H29:H40) -> 0 | J41: 10841900
A43: ASSIETTE AU TAUX IND. (SAUF CL.1 ET 2)
A44: Classe non résidentielle | B44: Pourcentage de taxation | D44: VALEUR À 100 %
D45: Imposables | E45: Compensables | G45: Imposables pondérées | H45: Compensables pondérées | J45: Total
B46: (1) | D46: (2) | E46: (3) | G46: (4) = (1) X (2) | H46: (5) = (1) X (3) | J46: (6) = (4) + (5)
A47: 1A | B47: 0.001 | D47: ='Sommaire du rôle_sec_3'!J7 -> 0 | E47: ='Sommaire du rôle_sec_3'!K7 -> 0 | G47: =B47*D47 -> 0 | H47: =B47*E47 -> 0 | J47: =G47+H47 -> 0
A48: 1B | B48: 0.005 | D48: ='Sommaire du rôle_sec_3'!J8 -> 0 | E48: ='Sommaire du rôle_sec_3'!K8 -> 0 | G48: 0 | H48: 0 | J48: 0
A49: 1C | B49: 0.01 | D49: ='Sommaire du rôle_sec_3'!J9 -> 0 | E49: ='Sommaire du rôle_sec_3'!K9 -> 0 | G49: 0 | H49: 0 | J49: 0
A50: 2 | B50: 0.03 | D50: ='Sommaire du rôle_sec_3'!J10 -> 605900 | E50: ='Sommaire du rôle_sec_3'!K10 -> 0 | G50: 18177 | H50: 0 | J50: 18177
A51: 3 | B51: 0.06 | D51: ='Sommaire du rôle_sec_3'!J11 -> 181400 | E51: ='Sommaire du rôle_sec_3'!K11 -> 0 | G51: 10884 | H51: 0 | J51: 10884
A52: 4 | B52: 0.12 | D52: ='Sommaire du rôle_sec_3'!J12 -> 215700 | E52: ='Sommaire du rôle_sec_3'!K12 -> 0 | G52: 25884 | H52: 0 | J52: 25884
A53: 5 | B53: 0.22 | D53: ='Sommaire du rôle_sec_3'!J13 -> 0 | E53: ='Sommaire du rôle_sec_3'!K13 -> 0 | G53: 0 | H53: 0 | J53: 0
A54: 6 | B54: 0.4 | D54: ='Sommaire du rôle_sec_3'!J14 -> 2421200 | E54: ='Sommaire du rôle_sec_3'!K14 -> 0 | G54: 968480 | H54: 0 | J54: 968480
A55: 7 | B55: 0.6 | D55: ='Sommaire du rôle_sec_3'!J15 -> 354000 | E55: ='Sommaire du rôle_sec_3'!K15 -> 0 | G55: 212400 | H55: 0 | J55: 212400
A56: 8 | B56: 0.85 | D56: ='Sommaire du rôle_sec_3'!J16 -> 1875900 | E56: ='Sommaire du rôle_sec_3'!K16 -> 0 | G56: 1594515 | H56: 0 | J56: 1594515
A57: 9 | B57: 1 | D57: ='Sommaire du rôle_sec_3'!J17 -> 0 | E57: ='Sommaire du rôle_sec_3'!K17 -> 0 | G57: 0 | H57: 0 | J57: 0
A58: 10 | B58: 1 | D58: ='Sommaire du rôle_sec_3'!J18 -> 225704400 | E58: ='Sommaire du rôle_sec_3'!K18 -> 2325200 | G58: 225704400 | H58: 2325200 | J58: 228029600
A59: Total | G59: =SUM(G47:G58) -> 228534740 | H59: =SUM(H47:H58) -> 2325200 | J59: 230859940
A61: ASSIETTE AU TAUX DE BASE
A62: Classe non résidentielle | B62: Pourcentage de taxation | D62: VALEUR À 100 %
D63: Imposables | E63: Compensables | G63: Imposables pondérées | H63: Compensables pondérées | J63: Total
B64: (1) | D64: (2) | E64: (3) | G64: (4) = (1) X (2) | H64: (5) = (1) X (3) | J64: (6) = (4) + (5)
A65: 1A | B65: 0.999 | D65: ='Sommaire du rôle_sec_3'!P7 -> 76534150 | E65: ='Sommaire du rôle_sec_3'!Q7 -> 0 | G65: =D65*B65 -> 76457615.85 | H65: =B65*E65 -> 0 | J65: =G65+H65 -> 76457615.85
A66: 1B | B66: 0.995 | D66: ='Sommaire du rôle_sec_3'!P8 -> 34712370 | E66: ='Sommaire du rôle_sec_3'!Q8 -> 0 | G66: 34538808.15 | H66: 0 | J66: 34538808.15
A67: 1C | B67: 0.99 | D67: ='Sommaire du rôle_sec_3'!P9 -> 4894450 | E67: ='Sommaire du rôle_sec_3'!Q9 -> 0 | G67: 4845505.5 | H67: 0 | J67: 4845505.5
A68: 2 | B68: 0.97 | D68: ='Sommaire du rôle_sec_3'!P10 -> 23616670 | E68: ='Sommaire du rôle_sec_3'!Q10 -> 0 | G68: 22908169.9 | H68: 0 | J68: 22908169.9
A69: 3 | B69: 0.94 | D69: ='Sommaire du rôle_sec_3'!P11 -> 44153450 | E69: ='Sommaire du rôle_sec_3'!Q11 -> 0 | G69: 41504243 | H69: 0 | J69: 41504243
A70: 4 | B70: 0.88 | D70: ='Sommaire du rôle_sec_3'!P12 -> 60256460 | E70: ='Sommaire du rôle_sec_3'!Q12 -> 0 | G70: 53025684.8 | H70: 0 | J70: 53025684.8
A71: 5 | B71: 0.78 | D71: ='Sommaire du rôle_sec_3'!P13 -> 38643990 | E71: ='Sommaire du rôle_sec_3'!Q13 -> 0 | G71: 30142312.2 | H71: 0 | J71: 30142312.2
A72: 6 | B72: 0.6 | D72: ='Sommaire du rôle_sec_3'!P14 -> 38532890 | E72: ='Sommaire du rôle_sec_3'!Q14 -> 0 | G72: 23119734 | H72: 0 | J72: 23119734
A73: 7 | B73: 0.4 | D73: ='Sommaire du rôle_sec_3'!P15 -> 39569365 | E73: ='Sommaire du rôle_sec_3'!Q15 -> 72376370 | G73: 15827746 | H73: 28950548 | J73: 44778294
A74: 8 | B74: 0.15 | D74: ='Sommaire du rôle_sec_3'!P16 -> 22323070 | E74: ='Sommaire du rôle_sec_3'!Q16 -> 211592260 | G74: 3348460.5 | H74: 31738839 | J74: 35087299.5
A75: IMMEUBLES SANS PARTIE NON RÉSIDENTIELLE | B75: 1 | D75: ='Sommaire du rôle_sec_3'!P18 -> 8068032861 | E75: ='Sommaire du rôle_sec_3'!Q18 -> 2100780 | G75: 8068032861 | H75: 2100780 | J75: 8070133641
A76: 12 CHSLD | B76: 0.8 | D76: ='Sommaire du rôle_sec_3'!P20 -> 13938200 | G76: 11150560
A77: 13 Cours de triage | B77: 0.6 | D77: ='Sommaire du rôle_sec_3'!P21 -> 0 | G77: 0
A78: Total | G78: =SUM(G65:G77) -> 8384901701 | H78: =SUM(H65:H75) -> 62790167 | I78: =SUM(I65:I75) -> 0 | J78: =G78+H78 -> 8447691868
A80: ASSIETTE AU TAUX NON RÉSIDENTIEL RÉFÉRENCE
A81: Classe non résidentielle | B81: Pourcentage de taxation | D81: VAL. NR À 100 % ET IND. CL. 2 À 50 %
D82: Imposables | E82: Compensables | G82: Imposables pondérées | H82: Compensables pondérées | J82: Total
B83: (1) | D83: (2) | E83: (3) | G83: (4) = (1) X (2) | H83: (5) = (1 ) X (3) | J83: (6) = (4) + (5)
A84: 1A | B84: 0.001 | D84: ='Sommaire du rôle_sec_3'!F30 -> 0 | E84: ='Sommaire du rôle_sec_3'!G30 -> 0 | G84: =B84*D84 -> 0 | H84: =B84*E84 -> 0 | J84: =G84+H84 -> 0
A85: 1B | B85: 0.005 | D85: ='Sommaire du rôle_sec_3'!F31 -> 0 | E85: ='Sommaire du rôle_sec_3'!G31 -> 0 | G85: 0 | H85: 0 | J85: 0
A86: 1C | B86: 0.01 | D86: ='Sommaire du rôle_sec_3'!F32 -> 0 | E86: ='Sommaire du rôle_sec_3'!G32 -> 0 | G86: 0 | H86: 0 | J86: 0
A87: 2 | B87: 0.03 | D87: ='Sommaire du rôle_sec_3'!F33 -> 0 | E87: ='Sommaire du rôle_sec_3'!G33 -> 0 | G87: 0 | H87: 0 | J87: 0
A88: 3 | B88: 0.06 | D88: ='Sommaire du rôle_sec_3'!F34 -> 0 | E88: ='Sommaire du rôle_sec_3'!G34 -> 0 | G88: 0 | H88: 0 | J88: 0
A89: 4 | B89: 0.12 | D89: ='Sommaire du rôle_sec_3'!F35 -> 0 | E89: ='Sommaire du rôle_sec_3'!G35 -> 0 | G89: 0 | H89: 0 | J89: 0
A90: 5 | B90: 0.22 | D90: ='Sommaire du rôle_sec_3'!F36 -> 0 | E90: ='Sommaire du rôle_sec_3'!G36 -> 0 | G90: 0 | H90: 0 | J90: 0
A91: 6 | B91: 0.4 | D91: ='Sommaire du rôle_sec_3'!F37 -> 0 | E91: ='Sommaire du rôle_sec_3'!G37 -> 0 | G91: 0 | H91: 0 | J91: 0
A92: 7 | B92: 0.6 | D92: ='Sommaire du rôle_sec_3'!F38 -> 0 | E92: ='Sommaire du rôle_sec_3'!G38 -> 0 | G92: 0 | H92: 0 | J92: 0
A93: 8 | B93: 0.85 | D93: ='Sommaire du rôle_sec_3'!F39 -> 0 | E93: ='Sommaire du rôle_sec_3'!G39 -> 0 | G93: 0 | H93: 0 | J93: 0
A94: 9 | B94: 1 | D94: ='Sommaire du rôle_sec_3'!F40 -> 0 | E94: ='Sommaire du rôle_sec_3'!G40 -> 0 | G94: 0 | H94: 0 | J94: 0
A95: 10 | B95: 1 | D95: ='Sommaire du rôle_sec_3'!F41 -> 0 | E95: ='Sommaire du rôle_sec_3'!G41 -> 0 | G95: 0 | H95: 0 | J95: 0
A96: 11 Cours de triage | B96: 100% | D96: ='Sommaire du rôle_sec_3'!F42 -> 0 | E96: ='Sommaire du rôle_sec_3'!G42 -> 0 | G96: 0 | H96: 0 | J96: 0
A97: 12 CHSLD | B97: 0.2 | D97: ='Sommaire du rôle_sec_3'!F43 -> 0 | G97: 0 | J97: 0
A98: 13 Cours de triage 40 % | B98: 40% | D98: ='Sommaire du rôle_sec_3'!F44 -> 0 | G98: 0 | J98: 0
A99: APPLICATION DU TNR QUAND TTVD | B99: 1 | D99: ='Sommaire du rôle_sec_3'!F45 -> 0 | E99: ='Sommaire du rôle_sec_3'!G45 -> 0 | G99: 0 | H99: =B99*E99 -> 0 | J99: 0
A100: Total | G100: =SUM(G84:G99) -> 0 | H100: =SUM(H84:H99) -> 0 | J100: 0
A102: ASSIETTE AU TAUX NON RÉSIDENTIEL SOUS-CATÉGORIE 1 | L102: ASSIETTE AU TAUX NON RÉSIDENTIEL SOUS-CATÉGORIE 2 | W102: ASSIETTE AU TAUX NON RÉSIDENTIEL SOUS-CATÉGORIE 3 | AH102: ASSIETTE AU TAUX NON RÉSIDENTIEL SOUS-CATÉGORIE 4 | AS102: ASSIETTE AU TAUX NON RÉSIDENTIEL SOUS-CATÉGORIE 5 | BD102: ASSIETTE AU TAUX NON RÉSIDENTIEL SOUS-CATÉGORIE 6 | BO102: ASSIETTE AU TAUX NON RÉSIDENTIEL SOUS-CATÉGORIE 7 | BZ102: ASSIETTE AU TAUX NON RÉSIDENTIEL SOUS-CATÉGORIE 8 | CK102: ASSIETTE AU TAUX NON RÉSIDENTIEL SOUS-CATÉGORIE 9 | CV102: ASSIETTE AU TAUX NON RÉSIDENTIEL SOUS-CATÉGORIE 10
A103: Classe non résidentielle | B103: Pourcentage de taxation | D103: VAL. NR À 100 % ET IND. CL. 2 À 50 % | L103: Classe non résidentielle | M103: Pourcentage de taxation | O103: VAL. NR À 100 % ET IND. CL. 2 À 50 % | W103: Classe non résidentielle | X103: Pourcentage de taxation | Z103: VAL. NR À 100 % ET IND. CL. 2 À 50 % | AH103: Classe non résidentielle | AI103: Pourcentage de taxation | AK103: VAL. NR À 100 % ET IND. CL. 2 À 50 % | AS103: Classe non résidentielle | AT103: Pourcentage de taxation | AV103: VAL. NR À 100 % ET IND. CL. 2 À 50 % | BD103: Classe non résidentielle | BE103: Pourcentage de taxation | BG103: VAL. NR À 100 % ET IND. CL. 2 À 50 % | BO103: Classe non résidentielle | BP103: Pourcentage de taxation | BR103: VAL. NR À 100 % ET IND. CL. 2 À 50 % | BZ103: Classe non résidentielle | CA103: Pourcentage de taxation | CC103: VAL. NR À 100 % ET IND. CL. 2 À 50 % | CK103: Classe non résidentielle | CL103: Pourcentage de taxation | CN103: VAL. NR À 100 % ET IND. CL. 2 À 50 % | CV103: Classe non résidentielle | CW103: Pourcentage de taxation | CY103: VAL. NR À 100 % ET IND. CL. 2 À 50 %
D104: Imposables | E104: Compensables | G104: Imposables pondérées | H104: Compensables pondérées | J104: Total | O104: Imposables | P104: Compensables | R104: Imposables pondérées | S104: Compensables pondérées | U104: Total | Z104: Imposables | AA104: Compensables | AC104: Imposables pondérées | AD104: Compensables pondérées | AF104: Total | AK104: Imposables | AL104: Compensables | AN104: Imposables pondérées | AO104: Compensables pondérées | AQ104: Total | AV104: Imposables | AW104: Compensables | AY104: Imposables pondérées | AZ104: Compensables pondérées | BB104: Total | BG104: Imposables | BH104: Compensables | BJ104: Imposables pondérées | BK104: Compensables pondérées | BM104: Total | BR104: Imposables | BS104: Compensables | BU104: Imposables pondérées | BV104: Compensables pondérées | BX104: Total | CC104: Imposables | CD104: Compensables | CF104: Imposables pondérées | CG104: Compensables pondérées | CI104: Total | CN104: Imposables | CO104: Compensables | CQ104: Imposables pondérées | CR104: Compensables pondérées | CT104: Total | CY104: Imposables | CZ104: Compensables | DB104: Imposables pondérées | DC104: Compensables pondérées | DE104: Total
B105: (1) | D105: (2) | E105: (3) | G105: (4) = (1) X (2) | H105: (5) = (1 ) X (3) | J105: (6) = (4) + (5) | M105: (1) | O105: (2) | P105: (3) | R105: (4) = (1) X (2) | S105: (5) = (1 ) X (3) | U105: (6) = (4) + (5) | X105: (1) | Z105: (2) | AA105: (3) | AC105: (4) = (1) X (2) | AD105: (5) = (1 ) X (3) | AF105: (6) = (4) + (5) | AI105: (1) | AK105: (2) | AL105: (3) | AN105: (4) = (1) X (2) | AO105: (5) = (1 ) X (3) | AQ105: (6) = (4) + (5) | AT105: (1) | AV105: (2) | AW105: (3) | AY105: (4) = (1) X (2) | AZ105: (5) = (1 ) X (3) | BB105: (6) = (4) + (5) | BE105: (1) | BG105: (2) | BH105: (3) | BJ105: (4) = (1) X (2) | BK105: (5) = (1 ) X (3) | BM105: (6) = (4) + (5) | BP105: (1) | BR105: (2) | BS105: (3) | BU105: (4) = (1) X (2) | BV105: (5) = (1 ) X (3) | BX105: (6) = (4) + (5) | CA105: (1) | CC105: (2) | CD105: (3) | CF105: (4) = (1) X (2) | CG105: (5) = (1 ) X (3) | CI105: (6) = (4) + (5) | CL105: (1) | CN105: (2) | CO105: (3) | CQ105: (4) = (1) X (2) | CR105: (5) = (1 ) X (3) | CT105: (6) = (4) + (5) | CW105: (1) | CY105: (2) | CZ105: (3) | DB105: (4) = (1) X (2) | DC105: (5) = (1 ) X (3) | DE105: (6) = (4) + (5)
A106: 1A | B106: 0.001 | D106: ='Sommaire du rôle_sec_3'!H30 -> 0 | E106: ='Sommaire du rôle_sec_3'!I30 -> 0 | G106: =B106*D106 -> 0 | H106: =B106*E106 -> 0 | J106: =G106+H106 -> 0 | L106: 1A | M106: 0.001 | O106: ='Sommaire du rôle_sec_3'!J30 -> 0 | P106: ='Sommaire du rôle_sec_3'!K30 -> 0 | R106: =M106*O106 -> 0 | S106: =M106*P106 -> 0 | U106: =R106+S106 -> 0 | W106: 1A | X106: 0.001 | Z106: ='Sommaire du rôle_sec_3'!L30 -> 0 | AA106: ='Sommaire du rôle_sec_3'!M30 -> 0 | AC106: =X106*Z106 -> 0 | AD106: =X106*AA106 -> 0 | AF106: =AC106+AD106 -> 0 | AH106: 1A | AI106: 0.001 | AK106: ='Sommaire du rôle_sec_3'!N30 -> 0 | AL106: ='Sommaire du rôle_sec_3'!O30 -> 0 | AN106: =AI106*AK106 -> 0 | AO106: =AI106*AL106 -> 0 | AQ106: =AN106+AO106 -> 0 | AS106: 1A | AT106: 0.001 | AV106: ='Sommaire du rôle_sec_3'!P30 -> 0 | AW106: ='Sommaire du rôle_sec_3'!Q30 -> 0 | AY106: =AT106*AV106 -> 0 | AZ106: =AT106*AW106 -> 0 | BB106: =AY106+AZ106 -> 0 | BD106: 1A | BE106: 0.001 | BG106: ='Sommaire du rôle_sec_3'!R30 -> 0 | BH106: ='Sommaire du rôle_sec_3'!S30 -> 0 | BJ106: =BE106*BG106 -> 0 | BK106: =BE106*BH106 -> 0 | BM106: =BJ106+BK106 -> 0 | BO106: 1A | BP106: 0.001 | BR106: ='Sommaire du rôle_sec_3'!T30 -> 0 | BS106: ='Sommaire du rôle_sec_3'!U30 -> 0 | BU106: =BP106*BR106 -> 0 | BV106: =BP106*BS106 -> 0 | BX106: =BU106+BV106 -> 0 | BZ106: 1A | CA106: 0.001 | CC106: ='Sommaire du rôle_sec_3'!V30 -> 0 | CD106: ='Sommaire du rôle_sec_3'!W30 -> 0 | CF106: =CA106*CC106 -> 0 | CG106: =CA106*CD106 -> 0 | CI106: =CF106+CG106 -> 0 | CK106: 1A | CL106: 0.001 | CN106: ='Sommaire du rôle_sec_3'!X30 -> 0 | CO106: ='Sommaire du rôle_sec_3'!Y30 -> 0 | CQ106: =CL106*CN106 -> 0 | CR106: =CL106*CO106 -> 0 | CT106: =CQ106+CR106 -> 0 | CV106: 1A | CW106: 0.001 | CY106: ='Sommaire du rôle_sec_3'!Z30 -> 0 | CZ106: ='Sommaire du rôle_sec_3'!AA30 -> 0 | DB106: =CW106*CY106 -> 0 | DC106: =CW106*CZ106 -> 0 | DE106: =DB106+DC106 -> 0
A107: 1B | B107: 0.005 | D107: ='Sommaire du rôle_sec_3'!H31 -> 0 | E107: ='Sommaire du rôle_sec_3'!I31 -> 0 | G107: 0 | H107: 0 | J107: 0 | L107: 1B | M107: 0.005 | O107: ='Sommaire du rôle_sec_3'!J31 -> 0 | P107: ='Sommaire du rôle_sec_3'!K31 -> 0 | R107: 0 | S107: 0 | U107: 0 | W107: 1B | X107: 0.005 | Z107: ='Sommaire du rôle_sec_3'!L31 -> 0 | AA107: ='Sommaire du rôle_sec_3'!M31 -> 0 | AC107: 0 | AD107: 0 | AF107: 0 | AH107: 1B | AI107: 0.005 | AK107: ='Sommaire du rôle_sec_3'!N31 -> 0 | AL107: ='Sommaire du rôle_sec_3'!O31 -> 0 | AN107: 0 | AO107: 0 | AQ107: 0 | AS107: 1B | AT107: 0.005 | AV107: ='Sommaire du rôle_sec_3'!P31 -> 0 | AW107: ='Sommaire du rôle_sec_3'!Q31 -> 0 | AY107: 0 | AZ107: 0 | BB107: 0 | BD107: 1B | BE107: 0.005 | BG107: ='Sommaire du rôle_sec_3'!R31 -> 0 | BH107: ='Sommaire du rôle_sec_3'!S31 -> 0 | BJ107: 0 | BK107: 0 | BM107: 0 | BO107: 1B | BP107: 0.005 | BR107: ='Sommaire du rôle_sec_3'!T31 -> 0 | BS107: ='Sommaire du rôle_sec_3'!U31 -> 0 | BU107: 0 | BV107: 0 | BX107: 0 | BZ107: 1B | CA107: 0.005 | CC107: ='Sommaire du rôle_sec_3'!V31 -> 0 | CD107: ='Sommaire du rôle_sec_3'!W31 -> 0 | CF107: 0 | CG107: 0 | CI107: 0 | CK107: 1B | CL107: 0.005 | CN107: ='Sommaire du rôle_sec_3'!X31 -> 0 | CO107: ='Sommaire du rôle_sec_3'!Y31 -> 0 | CQ107: 0 | CR107: 0 | CT107: 0 | CV107: 1B | CW107: 0.005 | CY107: ='Sommaire du rôle_sec_3'!Z31 -> 0 | CZ107: ='Sommaire du rôle_sec_3'!AA31 -> 0 | DB107: 0 | DC107: 0 | DE107: 0
A108: 1C | B108: 0.01 | D108: ='Sommaire du rôle_sec_3'!H32 -> 0 | E108: ='Sommaire du rôle_sec_3'!I32 -> 0 | G108: 0 | H108: 0 | J108: 0 | L108: 1C | M108: 0.01 | O108: ='Sommaire du rôle_sec_3'!J32 -> 0 | P108: ='Sommaire du rôle_sec_3'!K32 -> 0 | R108: 0 | S108: 0 | U108: 0 | W108: 1C | X108: 0.01 | Z108: ='Sommaire du rôle_sec_3'!L32 -> 0 | AA108: ='Sommaire du rôle_sec_3'!M32 -> 0 | AC108: 0 | AD108: 0 | AF108: 0 | AH108: 1C | AI108: 0.01 | AK108: ='Sommaire du rôle_sec_3'!N32 -> 0 | AL108: ='Sommaire du rôle_sec_3'!O32 -> 0 | AN108: 0 | AO108: 0 | AQ108: 0 | AS108: 1C | AT108: 0.01 | AV108: ='Sommaire du rôle_sec_3'!P32 -> 0 | AW108: ='Sommaire du rôle_sec_3'!Q32 -> 0 | AY108: 0 | AZ108: 0 | BB108: 0 | BD108: 1C | BE108: 0.01 | BG108: ='Sommaire du rôle_sec_3'!R32 -> 0 | BH108: ='Sommaire du rôle_sec_3'!S32 -> 0 | BJ108: 0 | BK108: 0 | BM108: 0 | BO108: 1C | BP108: 0.01 | BR108: ='Sommaire du rôle_sec_3'!T32 -> 0 | BS108: ='Sommaire du rôle_sec_3'!U32 -> 0 | BU108: 0 | BV108: 0 | BX108: 0 | BZ108: 1C | CA108: 0.01 | CC108: ='Sommaire du rôle_sec_3'!V32 -> 0 | CD108: ='Sommaire du rôle_sec_3'!W32 -> 0 | CF108: 0 | CG108: 0 | CI108: 0 | CK108: 1C | CL108: 0.01 | CN108: ='Sommaire du rôle_sec_3'!X32 -> 0 | CO108: ='Sommaire du rôle_sec_3'!Y32 -> 0 | CQ108: 0 | CR108: 0 | CT108: 0 | CV108: 1C | CW108: 0.01 | CY108: ='Sommaire du rôle_sec_3'!Z32 -> 0 | CZ108: ='Sommaire du rôle_sec_3'!AA32 -> 0 | DB108: 0 | DC108: 0 | DE108: 0
A109: 2 | B109: 0.03 | D109: ='Sommaire du rôle_sec_3'!H33 -> 0 | E109: ='Sommaire du rôle_sec_3'!I33 -> 0 | G109: 0 | H109: 0 | J109: 0 | L109: 2 | M109: 0.03 | O109: ='Sommaire du rôle_sec_3'!J33 -> 0 | P109: ='Sommaire du rôle_sec_3'!K33 -> 0 | R109: 0 | S109: 0 | U109: 0 | W109: 2 | X109: 0.03 | Z109: ='Sommaire du rôle_sec_3'!L33 -> 0 | AA109: ='Sommaire du rôle_sec_3'!M33 -> 0 | AC109: 0 | AD109: 0 | AF109: 0 | AH109: 2 | AI109: 0.03 | AK109: ='Sommaire du rôle_sec_3'!N33 -> 0 | AL109: ='Sommaire du rôle_sec_3'!O33 -> 0 | AN109: 0 | AO109: 0 | AQ109: 0 | AS109: 2 | AT109: 0.03 | AV109: ='Sommaire du rôle_sec_3'!P33 -> 0 | AW109: ='Sommaire du rôle_sec_3'!Q33 -> 0 | AY109: 0 | AZ109: 0 | BB109: 0 | BD109: 2 | BE109: 0.03 | BG109: ='Sommaire du rôle_sec_3'!R33 -> 0 | BH109: ='Sommaire du rôle_sec_3'!S33 -> 0 | BJ109: 0 | BK109: 0 | BM109: 0 | BO109: 2 | BP109: 0.03 | BR109: ='Sommaire du rôle_sec_3'!T33 -> 0 | BS109: ='Sommaire du rôle_sec_3'!U33 -> 0 | BU109: 0 | BV109: 0 | BX109: 0 | BZ109: 2 | CA109: 0.03 | CC109: ='Sommaire du rôle_sec_3'!V33 -> 0 | CD109: ='Sommaire du rôle_sec_3'!W33 -> 0 | CF109: 0 | CG109: 0 | CI109: 0 | CK109: 2 | CL109: 0.03 | CN109: ='Sommaire du rôle_sec_3'!X33 -> 0 | CO109: ='Sommaire du rôle_sec_3'!Y33 -> 0 | CQ109: 0 | CR109: 0 | CT109: 0 | CV109: 2 | CW109: 0.03 | CY109: ='Sommaire du rôle_sec_3'!Z33 -> 0 | CZ109: ='Sommaire du rôle_sec_3'!AA33 -> 0 | DB109: 0 | DC109: 0 | DE109: 0
A110: 3 | B110: 0.06 | D110: ='Sommaire du rôle_sec_3'!H34 -> 0 | E110: ='Sommaire du rôle_sec_3'!I34 -> 0 | G110: 0 | H110: 0 | J110: 0 | L110: 3 | M110: 0.06 | O110: ='Sommaire du rôle_sec_3'!J34 -> 0 | P110: ='Sommaire du rôle_sec_3'!K34 -> 0 | R110: 0 | S110: 0 | U110: 0 | W110: 3 | X110: 0.06 | Z110: ='Sommaire du rôle_sec_3'!L34 -> 0 | AA110: ='Sommaire du rôle_sec_3'!M34 -> 0 | AC110: 0 | AD110: 0 | AF110: 0 | AH110: 3 | AI110: 0.06 | AK110: ='Sommaire du rôle_sec_3'!N34 -> 0 | AL110: ='Sommaire du rôle_sec_3'!O34 -> 0 | AN110: 0 | AO110: 0 | AQ110: 0 | AS110: 3 | AT110: 0.06 | AV110: ='Sommaire du rôle_sec_3'!P34 -> 0 | AW110: ='Sommaire du rôle_sec_3'!Q34 -> 0 | AY110: 0 | AZ110: 0 | BB110: 0 | BD110: 3 | BE110: 0.06 | BG110: ='Sommaire du rôle_sec_3'!R34 -> 0 | BH110: ='Sommaire du rôle_sec_3'!S34 -> 0 | BJ110: 0 | BK110: 0 | BM110: 0 | BO110: 3 | BP110: 0.06 | BR110: ='Sommaire du rôle_sec_3'!T34 -> 0 | BS110: ='Sommaire du rôle_sec_3'!U34 -> 0 | BU110: 0 | BV110: 0 | BX110: 0 | BZ110: 3 | CA110: 0.06 | CC110: ='Sommaire du rôle_sec_3'!V34 -> 0 | CD110: ='Sommaire du rôle_sec_3'!W34 -> 0 | CF110: 0 | CG110: 0 | CI110: 0 | CK110: 3 | CL110: 0.06 | CN110: ='Sommaire du rôle_sec_3'!X34 -> 0 | CO110: ='Sommaire du rôle_sec_3'!Y34 -> 0 | CQ110: 0 | CR110: 0 | CT110: 0 | CV110: 3 | CW110: 0.06 | CY110: ='Sommaire du rôle_sec_3'!Z34 -> 0 | CZ110: ='Sommaire du rôle_sec_3'!AA34 -> 0 | DB110: 0 | DC110: 0 | DE110: 0
A111: 4 | B111: 0.12 | D111: ='Sommaire du rôle_sec_3'!H35 -> 0 | E111: ='Sommaire du rôle_sec_3'!I35 -> 0 | G111: 0 | H111: 0 | J111: 0 | L111: 4 | M111: 0.12 | O111: ='Sommaire du rôle_sec_3'!J35 -> 0 | P111: ='Sommaire du rôle_sec_3'!K35 -> 0 | R111: 0 | S111: 0 | U111: 0 | W111: 4 | X111: 0.12 | Z111: ='Sommaire du rôle_sec_3'!L35 -> 0 | AA111: ='Sommaire du rôle_sec_3'!M35 -> 0 | AC111: 0 | AD111: 0 | AF111: 0 | AH111: 4 | AI111: 0.12 | AK111: ='Sommaire du rôle_sec_3'!N35 -> 0 | AL111: ='Sommaire du rôle_sec_3'!O35 -> 0 | AN111: 0 | AO111: 0 | AQ111: 0 | AS111: 4 | AT111: 0.12 | AV111: ='Sommaire du rôle_sec_3'!P35 -> 0 | AW111: ='Sommaire du rôle_sec_3'!Q35 -> 0 | AY111: 0 | AZ111: 0 | BB111: 0 | BD111: 4 | BE111: 0.12 | BG111: ='Sommaire du rôle_sec_3'!R35 -> 0 | BH111: ='Sommaire du rôle_sec_3'!S35 -> 0 | BJ111: 0 | BK111: 0 | BM111: 0 | BO111: 4 | BP111: 0.12 | BR111: ='Sommaire du rôle_sec_3'!T35 -> 0 | BS111: ='Sommaire du rôle_sec_3'!U35 -> 0 | BU111: 0 | BV111: 0 | BX111: 0 | BZ111: 4 | CA111: 0.12 | CC111: ='Sommaire du rôle_sec_3'!V35 -> 0 | CD111: ='Sommaire du rôle_sec_3'!W35 -> 0 | CF111: 0 | CG111: 0 | CI111: 0 | CK111: 4 | CL111: 0.12 | CN111: ='Sommaire du rôle_sec_3'!X35 -> 0 | CO111: ='Sommaire du rôle_sec_3'!Y35 -> 0 | CQ111: 0 | CR111: 0 | CT111: 0 | CV111: 4 | CW111: 0.12 | CY111: ='Sommaire du rôle_sec_3'!Z35 -> 0 | CZ111: ='Sommaire du rôle_sec_3'!AA35 -> 0 | DB111: 0 | DC111: 0 | DE111: 0
A112: 5 | B112: 0.22 | D112: ='Sommaire du rôle_sec_3'!H36 -> 0 | E112: ='Sommaire du rôle_sec_3'!I36 -> 0 | G112: 0 | H112: 0 | J112: 0 | L112: 5 | M112: 0.22 | O112: ='Sommaire du rôle_sec_3'!J36 -> 0 | P112: ='Sommaire du rôle_sec_3'!K36 -> 0 | R112: 0 | S112: 0 | U112: 0 | W112: 5 | X112: 0.22 | Z112: ='Sommaire du rôle_sec_3'!L36 -> 0 | AA112: ='Sommaire du rôle_sec_3'!M36 -> 0 | AC112: 0 | AD112: 0 | AF112: 0 | AH112: 5 | AI112: 0.22 | AK112: ='Sommaire du rôle_sec_3'!N36 -> 0 | AL112: ='Sommaire du rôle_sec_3'!O36 -> 0 | AN112: 0 | AO112: 0 | AQ112: 0 | AS112: 5 | AT112: 0.22 | AV112: ='Sommaire du rôle_sec_3'!P36 -> 0 | AW112: ='Sommaire du rôle_sec_3'!Q36 -> 0 | AY112: 0 | AZ112: 0 | BB112: 0 | BD112: 5 | BE112: 0.22 | BG112: ='Sommaire du rôle_sec_3'!R36 -> 0 | BH112: ='Sommaire du rôle_sec_3'!S36 -> 0 | BJ112: 0 | BK112: 0 | BM112: 0 | BO112: 5 | BP112: 0.22 | BR112: ='Sommaire du rôle_sec_3'!T36 -> 0 | BS112: ='Sommaire du rôle_sec_3'!U36 -> 0 | BU112: 0 | BV112: 0 | BX112: 0 | BZ112: 5 | CA112: 0.22 | CC112: ='Sommaire du rôle_sec_3'!V36 -> 0 | CD112: ='Sommaire du rôle_sec_3'!W36 -> 0 | CF112: 0 | CG112: 0 | CI112: 0 | CK112: 5 | CL112: 0.22 | CN112: ='Sommaire du rôle_sec_3'!X36 -> 0 | CO112: ='Sommaire du rôle_sec_3'!Y36 -> 0 | CQ112: 0 | CR112: 0 | CT112: 0 | CV112: 5 | CW112: 0.22 | CY112: ='Sommaire du rôle_sec_3'!Z36 -> 0 | CZ112: ='Sommaire du rôle_sec_3'!AA36 -> 0 | DB112: 0 | DC112: 0 | DE112: 0
A113: 6 | B113: 0.4 | D113: ='Sommaire du rôle_sec_3'!H37 -> 0 | E113: ='Sommaire du rôle_sec_3'!I37 -> 0 | G113: 0 | H113: 0 | J113: 0 | L113: 6 | M113: 0.4 | O113: ='Sommaire du rôle_sec_3'!J37 -> 0 | P113: ='Sommaire du rôle_sec_3'!K37 -> 0 | R113: 0 | S113: 0 | U113: 0 | W113: 6 | X113: 0.4 | Z113: ='Sommaire du rôle_sec_3'!L37 -> 0 | AA113: ='Sommaire du rôle_sec_3'!M37 -> 0 | AC113: 0 | AD113: 0 | AF113: 0 | AH113: 6 | AI113: 0.4 | AK113: ='Sommaire du rôle_sec_3'!N37 -> 0 | AL113: ='Sommaire du rôle_sec_3'!O37 -> 0 | AN113: 0 | AO113: 0 | AQ113: 0 | AS113: 6 | AT113: 0.4 | AV113: ='Sommaire du rôle_sec_3'!P37 -> 0 | AW113: ='Sommaire du rôle_sec_3'!Q37 -> 0 | AY113: 0 | AZ113: 0 | BB113: 0 | BD113: 6 | BE113: 0.4 | BG113: ='Sommaire du rôle_sec_3'!R37 -> 0 | BH113: ='Sommaire du rôle_sec_3'!S37 -> 0 | BJ113: 0 | BK113: 0 | BM113: 0 | BO113: 6 | BP113: 0.4 | BR113: ='Sommaire du rôle_sec_3'!T37 -> 0 | BS113: ='Sommaire du rôle_sec_3'!U37 -> 0 | BU113: 0 | BV113: 0 | BX113: 0 | BZ113: 6 | CA113: 0.4 | CC113: ='Sommaire du rôle_sec_3'!V37 -> 0 | CD113: ='Sommaire du rôle_sec_3'!W37 -> 0 | CF113: 0 | CG113: 0 | CI113: 0 | CK113: 6 | CL113: 0.4 | CN113: ='Sommaire du rôle_sec_3'!X37 -> 0 | CO113: ='Sommaire du rôle_sec_3'!Y37 -> 0 | CQ113: 0 | CR113: 0 | CT113: 0 | CV113: 6 | CW113: 0.4 | CY113: ='Sommaire du rôle_sec_3'!Z37 -> 0 | CZ113: ='Sommaire du rôle_sec_3'!AA37 -> 0 | DB113: 0 | DC113: 0 | DE113: 0
A114: 7 | B114: 0.6 | D114: ='Sommaire du rôle_sec_3'!H38 -> 0 | E114: ='Sommaire du rôle_sec_3'!I38 -> 0 | G114: 0 | H114: 0 | J114: 0 | L114: 7 | M114: 0.6 | O114: ='Sommaire du rôle_sec_3'!J38 -> 0 | P114: ='Sommaire du rôle_sec_3'!K38 -> 0 | R114: 0 | S114: 0 | U114: 0 | W114: 7 | X114: 0.6 | Z114: ='Sommaire du rôle_sec_3'!L38 -> 0 | AA114: ='Sommaire du rôle_sec_3'!M38 -> 0 | AC114: 0 | AD114: 0 | AF114: 0 | AH114: 7 | AI114: 0.6 | AK114: ='Sommaire du rôle_sec_3'!N38 -> 0 | AL114: ='Sommaire du rôle_sec_3'!O38 -> 0 | AN114: 0 | AO114: 0 | AQ114: 0 | AS114: 7 | AT114: 0.6 | AV114: ='Sommaire du rôle_sec_3'!P38 -> 0 | AW114: ='Sommaire du rôle_sec_3'!Q38 -> 0 | AY114: 0 | AZ114: 0 | BB114: 0 | BD114: 7 | BE114: 0.6 | BG114: ='Sommaire du rôle_sec_3'!R38 -> 0 | BH114: ='Sommaire du rôle_sec_3'!S38 -> 0 | BJ114: 0 | BK114: 0 | BM114: 0 | BO114: 7 | BP114: 0.6 | BR114: ='Sommaire du rôle_sec_3'!T38 -> 0 | BS114: ='Sommaire du rôle_sec_3'!U38 -> 0 | BU114: 0 | BV114: 0 | BX114: 0 | BZ114: 7 | CA114: 0.6 | CC114: ='Sommaire du rôle_sec_3'!V38 -> 0 | CD114: ='Sommaire du rôle_sec_3'!W38 -> 0 | CF114: 0 | CG114: 0 | CI114: 0 | CK114: 7 | CL114: 0.6 | CN114: ='Sommaire du rôle_sec_3'!X38 -> 0 | CO114: ='Sommaire du rôle_sec_3'!Y38 -> 0 | CQ114: 0 | CR114: 0 | CT114: 0 | CV114: 7 | CW114: 0.6 | CY114: ='Sommaire du rôle_sec_3'!Z38 -> 0 | CZ114: ='Sommaire du rôle_sec_3'!AA38 -> 0 | DB114: 0 | DC114: 0 | DE114: 0
A115: 8 | B115: 0.85 | D115: ='Sommaire du rôle_sec_3'!H39 -> 0 | E115: ='Sommaire du rôle_sec_3'!I39 -> 0 | G115: 0 | H115: 0 | J115: 0 | L115: 8 | M115: 0.85 | O115: ='Sommaire du rôle_sec_3'!J39 -> 0 | P115: ='Sommaire du rôle_sec_3'!K39 -> 0 | R115: 0 | S115: 0 | U115: 0 | W115: 8 | X115: 0.85 | Z115: ='Sommaire du rôle_sec_3'!L39 -> 0 | AA115: ='Sommaire du rôle_sec_3'!M39 -> 0 | AC115: 0 | AD115: 0 | AF115: 0 | AH115: 8 | AI115: 0.85 | AK115: ='Sommaire du rôle_sec_3'!N39 -> 0 | AL115: ='Sommaire du rôle_sec_3'!O39 -> 0 | AN115: 0 | AO115: 0 | AQ115: 0 | AS115: 8 | AT115: 0.85 | AV115: ='Sommaire du rôle_sec_3'!P39 -> 0 | AW115: ='Sommaire du rôle_sec_3'!Q39 -> 0 | AY115: 0 | AZ115: 0 | BB115: 0 | BD115: 8 | BE115: 0.85 | BG115: ='Sommaire du rôle_sec_3'!R39 -> 0 | BH115: ='Sommaire du rôle_sec_3'!S39 -> 0 | BJ115: 0 | BK115: 0 | BM115: 0 | BO115: 8 | BP115: 0.85 | BR115: ='Sommaire du rôle_sec_3'!T39 -> 0 | BS115: ='Sommaire du rôle_sec_3'!U39 -> 0 | BU115: 0 | BV115: 0 | BX115: 0 | BZ115: 8 | CA115: 0.85 | CC115: ='Sommaire du rôle_sec_3'!V39 -> 0 | CD115: ='Sommaire du rôle_sec_3'!W39 -> 0 | CF115: 0 | CG115: 0 | CI115: 0 | CK115: 8 | CL115: 0.85 | CN115: ='Sommaire du rôle_sec_3'!X39 -> 0 | CO115: ='Sommaire du rôle_sec_3'!Y39 -> 0 | CQ115: 0 | CR115: 0 | CT115: 0 | CV115: 8 | CW115: 0.85 | CY115: ='Sommaire du rôle_sec_3'!Z39 -> 0 | CZ115: ='Sommaire du rôle_sec_3'!AA39 -> 0 | DB115: 0 | DC115: 0 | DE115: 0
A116: 9 | B116: 1 | D116: ='Sommaire du rôle_sec_3'!H40 -> 0 | E116: ='Sommaire du rôle_sec_3'!I40 -> 0 | G116: 0 | H116: 0 | J116: 0 | L116: 9 | M116: 1 | O116: ='Sommaire du rôle_sec_3'!J40 -> 0 | P116: ='Sommaire du rôle_sec_3'!K40 -> 0 | R116: 0 | S116: 0 | U116: 0 | W116: 9 | X116: 1 | Z116: ='Sommaire du rôle_sec_3'!L40 -> 0 | AA116: ='Sommaire du rôle_sec_3'!M40 -> 0 | AC116: 0 | AD116: 0 | AF116: 0 | AH116: 9 | AI116: 1 | AK116: ='Sommaire du rôle_sec_3'!N40 -> 0 | AL116: ='Sommaire du rôle_sec_3'!O40 -> 0 | AN116: 0 | AO116: 0 | AQ116: 0 | AS116: 9 | AT116: 1 | AV116: ='Sommaire du rôle_sec_3'!P40 -> 0 | AW116: ='Sommaire du rôle_sec_3'!Q40 -> 0 | AY116: 0 | AZ116: 0 | BB116: 0 | BD116: 9 | BE116: 1 | BG116: ='Sommaire du rôle_sec_3'!R40 -> 0 | BH116: ='Sommaire du rôle_sec_3'!S40 -> 0 | BJ116: 0 | BK116: 0 | BM116: 0 | BO116: 9 | BP116: 1 | BR116: ='Sommaire du rôle_sec_3'!T40 -> 0 | BS116: ='Sommaire du rôle_sec_3'!U40 -> 0 | BU116: 0 | BV116: 0 | BX116: 0 | BZ116: 9 | CA116: 1 | CC116: ='Sommaire du rôle_sec_3'!V40 -> 0 | CD116: ='Sommaire du rôle_sec_3'!W40 -> 0 | CF116: 0 | CG116: 0 | CI116: 0 | CK116: 9 | CL116: 1 | CN116: ='Sommaire du rôle_sec_3'!X40 -> 0 | CO116: ='Sommaire du rôle_sec_3'!Y40 -> 0 | CQ116: 0 | CR116: 0 | CT116: 0 | CV116: 9 | CW116: 1 | CY116: ='Sommaire du rôle_sec_3'!Z40 -> 0 | CZ116: ='Sommaire du rôle_sec_3'!AA40 -> 0 | DB116: 0 | DC116: 0 | DE116: 0
A117: 10 | B117: 1 | D117: ='Sommaire du rôle_sec_3'!H41 -> 0 | E117: ='Sommaire du rôle_sec_3'!I41 -> 0 | G117: 0 | H117: 0 | J117: 0 | L117: 10 | M117: 1 | O117: ='Sommaire du rôle_sec_3'!J41 -> 0 | P117: ='Sommaire du rôle_sec_3'!K41 -> 0 | R117: 0 | S117: 0 | U117: 0 | W117: 10 | X117: 1 | Z117: ='Sommaire du rôle_sec_3'!L41 -> 0 | AA117: ='Sommaire du rôle_sec_3'!M41 -> 0 | AC117: 0 | AD117: 0 | AF117: 0 | AH117: 10 | AI117: 1 | AK117: ='Sommaire du rôle_sec_3'!N41 -> 0 | AL117: ='Sommaire du rôle_sec_3'!O41 -> 0 | AN117: 0 | AO117: 0 | AQ117: 0 | AS117: 10 | AT117: 1 | AV117: ='Sommaire du rôle_sec_3'!P41 -> 0 | AW117: ='Sommaire du rôle_sec_3'!Q41 -> 0 | AY117: 0 | AZ117: 0 | BB117: 0 | BD117: 10 | BE117: 1 | BG117: ='Sommaire du rôle_sec_3'!R41 -> 0 | BH117: ='Sommaire du rôle_sec_3'!S41 -> 0 | BJ117: 0 | BK117: 0 | BM117: 0 | BO117: 10 | BP117: 1 | BR117: ='Sommaire du rôle_sec_3'!T41 -> 0 | BS117: ='Sommaire du rôle_sec_3'!U41 -> 0 | BU117: 0 | BV117: 0 | BX117: 0 | BZ117: 10 | CA117: 1 | CC117: ='Sommaire du rôle_sec_3'!V41 -> 0 | CD117: ='Sommaire du rôle_sec_3'!W41 -> 0 | CF117: 0 | CG117: 0 | CI117: 0 | CK117: 10 | CL117: 1 | CN117: ='Sommaire du rôle_sec_3'!X41 -> 0 | CO117: ='Sommaire du rôle_sec_3'!Y41 -> 0 | CQ117: 0 | CR117: 0 | CT117: 0 | CV117: 10 | CW117: 1 | CY117: ='Sommaire du rôle_sec_3'!Z41 -> 0 | CZ117: ='Sommaire du rôle_sec_3'!AA41 -> 0 | DB117: 0 | DC117: 0 | DE117: 0
A118: 11 Cours de triage | B118: 100% | D118: ='Sommaire du rôle_sec_3'!H42 -> 0 | E118: ='Sommaire du rôle_sec_3'!I42 -> 0 | G118: 0 | H118: 0 | J118: 0 | L118: 11 Cours de triage | M118: 100% | O118: ='Sommaire du rôle_sec_3'!J42 -> 0 | P118: ='Sommaire du rôle_sec_3'!K42 -> 0 | R118: 0 | S118: 0 | U118: 0 | W118: 11 Cours de triage | X118: 100% | Z118: ='Sommaire du rôle_sec_3'!L42 -> 0 | AA118: ='Sommaire du rôle_sec_3'!M42 -> 0 | AC118: 0 | AD118: 0 | AF118: 0 | AH118: 11 Cours de triage | AI118: 100% | AK118: ='Sommaire du rôle_sec_3'!N42 -> 0 | AL118: ='Sommaire du rôle_sec_3'!O42 -> 0 | AN118: 0 | AO118: 0 | AQ118: 0 | AS118: 11 Cours de triage | AT118: 100% | AV118: ='Sommaire du rôle_sec_3'!P42 -> 0 | AW118: ='Sommaire du rôle_sec_3'!Q42 -> 0 | AY118: 0 | AZ118: 0 | BB118: 0 | BD118: 11 Cours de triage | BE118: 100% | BG118: ='Sommaire du rôle_sec_3'!R42 -> 0 | BH118: ='Sommaire du rôle_sec_3'!S42 -> 0 | BJ118: 0 | BK118: 0 | BM118: 0 | BO118: 11 Cours de triage | BP118: 100% | BR118: ='Sommaire du rôle_sec_3'!T42 -> 0 | BS118: ='Sommaire du rôle_sec_3'!U42 -> 0 | BU118: 0 | BV118: 0 | BX118: 0 | BZ118: 11 Cours de triage | CA118: 100% | CC118: ='Sommaire du rôle_sec_3'!V42 -> 0 | CD118: ='Sommaire du rôle_sec_3'!W42 -> 0 | CF118: 0 | CG118: 0 | CI118: 0 | CK118: 11 Cours de triage | CL118: 100% | CN118: ='Sommaire du rôle_sec_3'!X42 -> 0 | CO118: ='Sommaire du rôle_sec_3'!Y42 -> 0 | CQ118: 0 | CR118: 0 | CT118: 0 | CV118: 11 Cours de triage | CW118: 100% | CY118: ='Sommaire du rôle_sec_3'!Z42 -> 0 | CZ118: ='Sommaire du rôle_sec_3'!AA42 -> 0 | DB118: 0 | DC118: 0 | DE118: 0
A119: 12 CHSLD | B119: 0.2 | D119: ='Sommaire du rôle_sec_3'!H43 -> 0 | G119: 0 | J119: 0 | L119: 12 CHSLD | M119: 0.2 | O119: ='Sommaire du rôle_sec_3'!J43 -> 0 | R119: 0 | U119: 0 | W119: 12 CHSLD | X119: 0.2 | Z119: ='Sommaire du rôle_sec_3'!L43 -> 0 | AC119: 0 | AF119: 0 | AH119: 12 CHSLD | AI119: 0.2 | AK119: ='Sommaire du rôle_sec_3'!N43 -> 0 | AN119: 0 | AQ119: 0 | AS119: 12 CHSLD | AT119: 0.2 | AV119: ='Sommaire du rôle_sec_3'!P43 -> 0 | AY119: 0 | BB119: 0 | BD119: 12 CHSLD | BE119: 0.2 | BG119: ='Sommaire du rôle_sec_3'!R43 -> 0 | BJ119: 0 | BM119: 0 | BO119: 12 CHSLD | BP119: 0.2 | BR119: ='Sommaire du rôle_sec_3'!T43 -> 0 | BU119: 0 | BX119: 0 | BZ119: 12 CHSLD | CA119: 0.2 | CC119: ='Sommaire du rôle_sec_3'!V43 -> 0 | CF119: 0 | CI119: 0 | CK119: 12 CHSLD | CL119: 0.2 | CN119: ='Sommaire du rôle_sec_3'!X43 -> 0 | CQ119: 0 | CT119: 0 | CV119: 12 CHSLD | CW119: 0.2 | CY119: ='Sommaire du rôle_sec_3'!Z43 -> 0 | DB119: 0 | DE119: 0
A120: 13 Cours de triage 40 % | B120: 40% | D120: ='Sommaire du rôle_sec_3'!H44 -> 0 | G120: 0 | J120: 0 | L120: 13 Cours de triage 40 % | M120: 40% | O120: ='Sommaire du rôle_sec_3'!J44 -> 0 | R120: 0 | U120: 0 | W120: 13 Cours de triage 40 % | X120: 40% | Z120: ='Sommaire du rôle_sec_3'!L44 -> 0 | AC120: 0 | AF120: 0 | AH120: 13 Cours de triage 40 % | AI120: 40% | AK120: ='Sommaire du rôle_sec_3'!N44 -> 0 | AN120: 0 | AQ120: 0 | AS120: 13 Cours de triage 40 % | AT120: 40% | AV120: ='Sommaire du rôle_sec_3'!P44 -> 0 | AY120: 0 | BB120: 0 | BD120: 13 Cours de triage 40 % | BE120: 40% | BG120: ='Sommaire du rôle_sec_3'!R44 -> 0 | BJ120: 0 | BM120: 0 | BO120: 13 Cours de triage 40 % | BP120: 40% | BR120: ='Sommaire du rôle_sec_3'!T44 -> 0 | BU120: 0 | BX120: 0 | BZ120: 13 Cours de triage 40 % | CA120: 40% | CC120: ='Sommaire du rôle_sec_3'!V44 -> 0 | CF120: 0 | CI120: 0 | CK120: 13 Cours de triage 40 % | CL120: 40% | CN120: ='Sommaire du rôle_sec_3'!X44 -> 0 | CQ120: 0 | CT120: 0 | CV120: 13 Cours de triage 40 % | CW120: 40% | CY120: ='Sommaire du rôle_sec_3'!Z44 -> 0 | DB120: 0 | DE120: 0
A121: APPLICATION DU TNR QUAND TTVD | B121: 1 | D121: ='Sommaire du rôle_sec_3'!H45 -> 0 | E121: ='Sommaire du rôle_sec_3'!I45 -> 0 | G121: 0 | H121: =B121*E121 -> 0 | J121: 0 | L121: APPLICATION DU TNR QUAND TTVD | M121: 1 | O121: ='Sommaire du rôle_sec_3'!J45 -> 0 | P121: ='Sommaire du rôle_sec_3'!K45 -> 0 | R121: 0 | S121: =M121*P121 -> 0 | U121: 0 | W121: APPLICATION DU TNR QUAND TTVD | X121: 1 | Z121: ='Sommaire du rôle_sec_3'!L45 -> 0 | AA121: ='Sommaire du rôle_sec_3'!M45 -> 0 | AC121: 0 | AD121: =X121*AA121 -> 0 | AF121: 0 | AH121: APPLICATION DU TNR QUAND TTVD | AI121: 1 | AK121: ='Sommaire du rôle_sec_3'!N45 -> 0 | AL121: ='Sommaire du rôle_sec_3'!O45 -> 0 | AN121: 0 | AO121: =AI121*AL121 -> 0 | AQ121: 0 | AS121: APPLICATION DU TNR QUAND TTVD | AT121: 1 | AV121: ='Sommaire du rôle_sec_3'!P45 -> 0 | AW121: ='Sommaire du rôle_sec_3'!Q45 -> 0 | AY121: 0 | AZ121: =AT121*AW121 -> 0 | BB121: 0 | BD121: APPLICATION DU TNR QUAND TTVD | BE121: 1 | BG121: ='Sommaire du rôle_sec_3'!R45 -> 0 | BH121: ='Sommaire du rôle_sec_3'!S45 -> 0 | BJ121: 0 | BK121: =BE121*BH121 -> 0 | BM121: 0 | BO121: APPLICATION DU TNR QUAND TTVD | BP121: 1 | BR121: ='Sommaire du rôle_sec_3'!T45 -> 0 | BS121: ='Sommaire du rôle_sec_3'!U45 -> 0 | BU121: 0 | BV121: =BP121*BS121 -> 0 | BX121: 0 | BZ121: APPLICATION DU TNR QUAND TTVD | CA121: 1 | CC121: ='Sommaire du rôle_sec_3'!AE45 -> 0 | CD121: ='Sommaire du rôle_sec_3'!AF45 -> 0 | CF121: 0 | CG121: =CA121*CD121 -> 0 | CI121: 0 | CK121: APPLICATION DU TNR QUAND TTVD | CL121: 1 | CN121: ='Sommaire du rôle_sec_3'!X45 -> 0 | CO121: ='Sommaire du rôle_sec_3'!Y45 -> 0 | CQ121: 0 | CR121: =CL121*CO121 -> 0 | CT121: 0 | CV121: APPLICATION DU TNR QUAND TTVD | CW121: 1 | CY121: ='Sommaire du rôle_sec_3'!Z45 -> 0 | CZ121: ='Sommaire du rôle_sec_3'!AA45 -> 0 | DB121: 0 | DC121: =CW121*CZ121 -> 0 | DE121: 0
A122: Total | G122: =SUM(G106:G121) -> 0 | H122: =SUM(H106:H121) -> 0 | J122: 0 | L122: Total | R122: =SUM(R106:R121) -> 0 | S122: =SUM(S106:S121) -> 0 | U122: 0 | W122: Total | AC122: =SUM(AC106:AC121) -> 0 | AD122: =SUM(AD106:AD121) -> 0 | AF122: 0 | AH122: Total | AN122: =SUM(AN106:AN121) -> 0 | AO122: =SUM(AO106:AO121) -> 0 | AQ122: 0 | AS122: Total | AY122: =SUM(AY106:AY121) -> 0 | AZ122: =SUM(AZ106:AZ121) -> 0 | BB122: 0 | BD122: Total | BJ122: =SUM(BJ106:BJ121) -> 0 | BK122: =SUM(BK106:BK121) -> 0 | BM122: 0 | BO122: Total | BU122: =SUM(BU106:BU121) -> 0 | BV122: =SUM(BV106:BV121) -> 0 | BX122: 0 | BZ122: Total | CF122: =SUM(CF106:CF121) -> 0 | CG122: =SUM(CG106:CG121) -> 0 | CI122: 0 | CK122: Total | CQ122: =SUM(CQ106:CQ121) -> 0 | CR122: =SUM(CR106:CR121) -> 0 | CT122: 0 | CV122: Total | DB122: =SUM(DB106:DB121) -> 0 | DC122: =SUM(DC106:DC121) -> 0 | DE122: 0
A124: ASSIETTE SOUS-CATÉGORIE RÉSIDUELLE
A125: Classe non résidentielle | B125: Pourcentage de taxation | D125: VALEUR À 100 %
D126: Imposables | E126: Compensables | G126: Imposables pondérées | H126: Compensables pondérées | J126: Total
B127: (1) | D127: (2) | E127: (3) | G127: (4) = (1) X (2) | H127: (5) = (1) X (3) | J127: (6) = (4) + (5)
A128: 1A | B128: 0.999 | D128: ='Sommaire du rôle_sec_3'!F53 -> 0 | E128: ='Sommaire du rôle_sec_3'!G53 -> 0 | G128: =D128*B128 -> 0 | H128: =B128*E128 -> 0 | J128: =G128+H128 -> 0 | K128: 2359638
A129: 1B | B129: 0.995 | D129: ='Sommaire du rôle_sec_3'!F54 -> 0 | E129: ='Sommaire du rôle_sec_3'!G54 -> 0 | G129: 0 | H129: 0 | J129: 0 | K129: 670132.5
A130: 1C | B130: 0.99 | D130: ='Sommaire du rôle_sec_3'!F55 -> 0 | E130: ='Sommaire du rôle_sec_3'!G55 -> 0 | G130: 0 | H130: 0 | J130: 0 | K130: 4405005
A131: 2 | B131: 0.97 | D131: ='Sommaire du rôle_sec_3'!F56 -> 0 | E131: ='Sommaire du rôle_sec_3'!G56 -> 0 | G131: 0 | H131: 0 | J131: 0 | K131: 21413332
A132: 3 | B132: 0.94 | D132: ='Sommaire du rôle_sec_3'!F57 -> 0 | E132: ='Sommaire du rôle_sec_3'!G57 -> 0 | G132: 0 | H132: 0 | J132: 0 | K132: 36190282
A133: 4 | B133: 0.88 | D133: ='Sommaire du rôle_sec_3'!F58 -> 0 | E133: ='Sommaire du rôle_sec_3'!G58 -> 0 | G133: 0 | H133: 0 | J133: 0 | K133: 27846104
A134: 5 | B134: 0.78 | D134: ='Sommaire du rôle_sec_3'!F59 -> 0 | E134: ='Sommaire du rôle_sec_3'!G59 -> 0 | G134: 0 | H134: 0 | J134: 0 | K134: 22550424
A135: 6 | B135: 0.6 | D135: ='Sommaire du rôle_sec_3'!F60 -> 0 | E135: ='Sommaire du rôle_sec_3'!G60 -> 0 | G135: 0 | H135: 0 | J135: 0 | K135: 19039560
A136: 7 | B136: 0.4 | D136: ='Sommaire du rôle_sec_3'!F61 -> 0 | E136: ='Sommaire du rôle_sec_3'!G61 -> 0 | G136: 0 | H136: 0 | J136: 0 | K136: 37782600
A137: 8 | B137: 0.15 | D137: ='Sommaire du rôle_sec_3'!F62 -> 0 | E137: ='Sommaire du rôle_sec_3'!G62 -> 0 | G137: 0 | H137: 0 | J137: 0 | K137: 32037030
A138: IMMEUBLES SANS PARTIE NON RÉSIDENTIELLE | B138: 1 | D138: ='Sommaire du rôle_sec_3'!F63 -> 0 | E138: ='Sommaire du rôle_sec_3'!G63 -> 0 | G138: 0 | H138: 0 | J138: 0 | K138: 7336485128
A139: 12 CHSLD | B139: 0.8 | D139: ='Sommaire du rôle_sec_3'!F64 -> 0 | E139: ='Sommaire du rôle_sec_3'!G64 -> 0 | G139: 0
A140: 13 Cours de triage | B140: 0.6 | D140: ='Sommaire du rôle_sec_3'!F65 -> 0 | E140: ='Sommaire du rôle_sec_3'!G65 -> 0 | G140: 0
A141: Total | G141: =SUM(G128:G140) -> 0 | H141: =SUM(H128:H138) -> 0 | I141: =SUM(I128:I138) -> 0 | J141: =G141+H141 -> 0
A143: ASSIETTE AU TAUX RÉSIDENTIEL SOUS-CATÉGORIE 1 | L143: ASSIETTE AU TAUX RÉSIDENTIEL SOUS-CATÉGORIE 2 | W143: ASSIETTE AU TAUX RÉSIDENTIEL SOUS-CATÉGORIE 3 | AH143: ASSIETTE AU TAUX RÉSIDENTIEL SOUS-CATÉGORIE 4 | AS143: ASSIETTE AU TAUX RÉSIDENTIEL SOUS-CATÉGORIE 5 | BD143: ASSIETTE AU TAUX RÉSIDENTIEL SOUS-CATÉGORIE 6 | BO143: ASSIETTE AU TAUX RÉSIDENTIEL SOUS-CATÉGORIE 7 | BZ143: ASSIETTE AU TAUX RÉSIDENTIEL SOUS-CATÉGORIE 8 | CK143: ASSIETTE AU TAUX RÉSIDENTIEL SOUS-CATÉGORIE 9 | CV143: ASSIETTE AU TAUX RÉSIDENTIEL SOUS-CATÉGORIE 10
A144: Classe non résidentielle | B144: Pourcentage de taxation | D144: VALEUR À 100 % | L144: Classe non résidentielle | M144: Pourcentage de taxation | O144: VALEUR À 100 % | W144: Classe non résidentielle | X144: Pourcentage de taxation | Z144: VALEUR À 100 % | AH144: Classe non résidentielle | AI144: Pourcentage de taxation | AK144: VALEUR À 100 % | AS144: Classe non résidentielle | AT144: Pourcentage de taxation | AV144: VALEUR À 100 % | BD144: Classe non résidentielle | BE144: Pourcentage de taxation | BG144: VALEUR À 100 % | BO144: Classe non résidentielle | BP144: Pourcentage de taxation | BR144: VALEUR À 100 % | BZ144: Classe non résidentielle | CA144: Pourcentage de taxation | CC144: VALEUR À 100 % | CK144: Classe non résidentielle | CL144: Pourcentage de taxation | CN144: VALEUR À 100 % | CV144: Classe non résidentielle | CW144: Pourcentage de taxation | CY144: VALEUR À 100 %
D145: Imposables | E145: Compensables | G145: Imposables pondérées | H145: Compensables pondérées | J145: Total | O145: Imposables | P145: Compensables | R145: Imposables pondérées | S145: Compensables pondérées | U145: Total | Z145: Imposables | AA145: Compensables | AC145: Imposables pondérées | AD145: Compensables pondérées | AF145: Total | AK145: Imposables | AL145: Compensables | AN145: Imposables pondérées | AO145: Compensables pondérées | AQ145: Total | AV145: Imposables | AW145: Compensables | AY145: Imposables pondérées | AZ145: Compensables pondérées | BB145: Total | BG145: Imposables | BH145: Compensables | BJ145: Imposables pondérées | BK145: Compensables pondérées | BM145: Total | BR145: Imposables | BS145: Compensables | BU145: Imposables pondérées | BV145: Compensables pondérées | BX145: Total | CC145: Imposables | CD145: Compensables | CF145: Imposables pondérées | CG145: Compensables pondérées | CI145: Total | CN145: Imposables | CO145: Compensables | CQ145: Imposables pondérées | CR145: Compensables pondérées | CT145: Total | CY145: Imposables | CZ145: Compensables | DB145: Imposables pondérées | DC145: Compensables pondérées | DE145: Total
B146: (1) | D146: (2) | E146: (3) | G146: (4) = (1) X (2) | H146: (5) = (1) X (3) | J146: (6) = (4) + (5) | M146: (1) | O146: (2) | P146: (3) | R146: (4) = (1) X (2) | S146: (5) = (1) X (3) | U146: (6) = (4) + (5) | X146: (1) | Z146: (2) | AA146: (3) | AC146: (4) = (1) X (2) | AD146: (5) = (1) X (3) | AF146: (6) = (4) + (5) | AI146: (1) | AK146: (2) | AL146: (3) | AN146: (4) = (1) X (2) | AO146: (5) = (1) X (3) | AQ146: (6) = (4) + (5) | AT146: (1) | AV146: (2) | AW146: (3) | AY146: (4) = (1) X (2) | AZ146: (5) = (1) X (3) | BB146: (6) = (4) + (5) | BE146: (1) | BG146: (2) | BH146: (3) | BJ146: (4) = (1) X (2) | BK146: (5) = (1) X (3) | BM146: (6) = (4) + (5) | BP146: (1) | BR146: (2) | BS146: (3) | BU146: (4) = (1) X (2) | BV146: (5) = (1) X (3) | BX146: (6) = (4) + (5) | CA146: (1) | CC146: (2) | CD146: (3) | CF146: (4) = (1) X (2) | CG146: (5) = (1) X (3) | CI146: (6) = (4) + (5) | CL146: (1) | CN146: (2) | CO146: (3) | CQ146: (4) = (1) X (2) | CR146: (5) = (1) X (3) | CT146: (6) = (4) + (5) | CW146: (1) | CY146: (2) | CZ146: (3) | DB146: (4) = (1) X (2) | DC146: (5) = (1) X (3) | DE146: (6) = (4) + (5)
A147: 1A | B147: 0.999 | D147: ='Sommaire du rôle_sec_3'!H53 -> 0 | E147: ='Sommaire du rôle_sec_3'!I53 -> 0 | G147: =D147*B147 -> 0 | H147: =B147*E147 -> 0 | J147: =G147+H147 -> 0 | L147: 1A | M147: 0.999 | O147: ='Sommaire du rôle_sec_3'!J53 -> 0 | P147: ='Sommaire du rôle_sec_3'!K53 -> 0 | R147: =O147*M147 -> 0 | S147: =M147*P147 -> 0 | U147: =R147+S147 -> 0 | W147: 1A | X147: 0.999 | Z147: ='Sommaire du rôle_sec_3'!L53 -> 0 | AA147: ='Sommaire du rôle_sec_3'!M53 -> 0 | AC147: =Z147*X147 -> 0 | AD147: =X147*AA147 -> 0 | AF147: =AC147+AD147 -> 0 | AH147: 1A | AI147: 0.999 | AK147: ='Sommaire du rôle_sec_3'!N53 -> 0 | AL147: ='Sommaire du rôle_sec_3'!O53 -> 0 | AN147: =AK147*AI147 -> 0 | AO147: =AI147*AL147 -> 0 | AQ147: =AN147+AO147 -> 0 | AS147: 1A | AT147: 0.999 | AV147: ='Sommaire du rôle_sec_3'!P53 -> 0 | AW147: ='Sommaire du rôle_sec_3'!Q53 -> 0 | AY147: =AV147*AT147 -> 0 | AZ147: =AT147*AW147 -> 0 | BB147: =AY147+AZ147 -> 0 | BD147: 1A | BE147: 0.999 | BG147: ='Sommaire du rôle_sec_3'!R53 -> 0 | BH147: ='Sommaire du rôle_sec_3'!S53 -> 0 | BJ147: =BG147*BE147 -> 0 | BK147: =BE147*BH147 -> 0 | BM147: =BJ147+BK147 -> 0 | BO147: 1A | BP147: 0.999 | BR147: ='Sommaire du rôle_sec_3'!T53 -> 0 | BS147: ='Sommaire du rôle_sec_3'!U53 -> 0 | BU147: =BR147*BP147 -> 0 | BV147: =BP147*BS147 -> 0 | BX147: =BU147+BV147 -> 0 | BZ147: 1A | CA147: 0.999 | CC147: ='Sommaire du rôle_sec_3'!V53 -> 0 | CD147: ='Sommaire du rôle_sec_3'!W53 -> 0 | CF147: =CC147*CA147 -> 0 | CG147: =CA147*CD147 -> 0 | CI147: =CF147+CG147 -> 0 | CK147: 1A | CL147: 0.999 | CN147: ='Sommaire du rôle_sec_3'!X53 -> 0 | CO147: ='Sommaire du rôle_sec_3'!Y53 -> 0 | CQ147: =CN147*CL147 -> 0 | CR147: =CL147*CO147 -> 0 | CT147: =CQ147+CR147 -> 0 | CV147: 1A | CW147: 0.999 | CY147: ='Sommaire du rôle_sec_3'!Z53 -> 0 | CZ147: ='Sommaire du rôle_sec_3'!AA53 -> 0 | DB147: =CY147*CW147 -> 0 | DC147: =CW147*CZ147 -> 0 | DE147: =DB147+DC147 -> 0
A148: 1B | B148: 0.995 | D148: ='Sommaire du rôle_sec_3'!H54 -> 0 | E148: ='Sommaire du rôle_sec_3'!I54 -> 0 | G148: 0 | H148: 0 | J148: 0 | L148: 1B | M148: 0.995 | O148: ='Sommaire du rôle_sec_3'!J54 -> 0 | P148: ='Sommaire du rôle_sec_3'!K54 -> 0 | R148: 0 | S148: 0 | U148: 0 | W148: 1B | X148: 0.995 | Z148: ='Sommaire du rôle_sec_3'!L54 -> 0 | AA148: ='Sommaire du rôle_sec_3'!M54 -> 0 | AC148: 0 | AD148: 0 | AF148: 0 | AH148: 1B | AI148: 0.995 | AK148: ='Sommaire du rôle_sec_3'!N54 -> 0 | AL148: ='Sommaire du rôle_sec_3'!O54 -> 0 | AN148: 0 | AO148: 0 | AQ148: 0 | AS148: 1B | AT148: 0.995 | AV148: ='Sommaire du rôle_sec_3'!P54 -> 0 | AW148: ='Sommaire du rôle_sec_3'!Q54 -> 0 | AY148: 0 | AZ148: 0 | BB148: 0 | BD148: 1B | BE148: 0.995 | BG148: ='Sommaire du rôle_sec_3'!R54 -> 0 | BH148: ='Sommaire du rôle_sec_3'!S54 -> 0 | BJ148: 0 | BK148: 0 | BM148: 0 | BO148: 1B | BP148: 0.995 | BR148: ='Sommaire du rôle_sec_3'!T54 -> 0 | BS148: ='Sommaire du rôle_sec_3'!U54 -> 0 | BU148: 0 | BV148: 0 | BX148: 0 | BZ148: 1B | CA148: 0.995 | CC148: ='Sommaire du rôle_sec_3'!V54 -> 0 | CD148: ='Sommaire du rôle_sec_3'!W54 -> 0 | CF148: 0 | CG148: 0 | CI148: 0 | CK148: 1B | CL148: 0.995 | CN148: ='Sommaire du rôle_sec_3'!X54 -> 0 | CO148: ='Sommaire du rôle_sec_3'!Y54 -> 0 | CQ148: 0 | CR148: 0 | CT148: 0 | CV148: 1B | CW148: 0.995 | CY148: ='Sommaire du rôle_sec_3'!Z54 -> 0 | CZ148: ='Sommaire du rôle_sec_3'!AA54 -> 0 | DB148: 0 | DC148: 0 | DE148: 0
A149: 1C | B149: 0.99 | D149: ='Sommaire du rôle_sec_3'!H55 -> 0 | E149: ='Sommaire du rôle_sec_3'!I55 -> 0 | G149: 0 | H149: 0 | J149: 0 | L149: 1C | M149: 0.99 | O149: ='Sommaire du rôle_sec_3'!J55 -> 0 | P149: ='Sommaire du rôle_sec_3'!K55 -> 0 | R149: 0 | S149: 0 | U149: 0 | W149: 1C | X149: 0.99 | Z149: ='Sommaire du rôle_sec_3'!L55 -> 0 | AA149: ='Sommaire du rôle_sec_3'!M55 -> 0 | AC149: 0 | AD149: 0 | AF149: 0 | AH149: 1C | AI149: 0.99 | AK149: ='Sommaire du rôle_sec_3'!N55 -> 0 | AL149: ='Sommaire du rôle_sec_3'!O55 -> 0 | AN149: 0 | AO149: 0 | AQ149: 0 | AS149: 1C | AT149: 0.99 | AV149: ='Sommaire du rôle_sec_3'!P55 -> 0 | AW149: ='Sommaire du rôle_sec_3'!Q55 -> 0 | AY149: 0 | AZ149: 0 | BB149: 0 | BD149: 1C | BE149: 0.99 | BG149: ='Sommaire du rôle_sec_3'!R55 -> 0 | BH149: ='Sommaire du rôle_sec_3'!S55 -> 0 | BJ149: 0 | BK149: 0 | BM149: 0 | BO149: 1C | BP149: 0.99 | BR149: ='Sommaire du rôle_sec_3'!T55 -> 0 | BS149: ='Sommaire du rôle_sec_3'!U55 -> 0 | BU149: 0 | BV149: 0 | BX149: 0 | BZ149: 1C | CA149: 0.99 | CC149: ='Sommaire du rôle_sec_3'!V55 -> 0 | CD149: ='Sommaire du rôle_sec_3'!W55 -> 0 | CF149: 0 | CG149: 0 | CI149: 0 | CK149: 1C | CL149: 0.99 | CN149: ='Sommaire du rôle_sec_3'!X55 -> 0 | CO149: ='Sommaire du rôle_sec_3'!Y55 -> 0 | CQ149: 0 | CR149: 0 | CT149: 0 | CV149: 1C | CW149: 0.99 | CY149: ='Sommaire du rôle_sec_3'!Z55 -> 0 | CZ149: ='Sommaire du rôle_sec_3'!AA55 -> 0 | DB149: 0 | DC149: 0 | DE149: 0
A150: 2 | B150: 0.97 | D150: ='Sommaire du rôle_sec_3'!H56 -> 0 | E150: ='Sommaire du rôle_sec_3'!I56 -> 0 | G150: 0 | H150: 0 | J150: 0 | L150: 2 | M150: 0.97 | O150: ='Sommaire du rôle_sec_3'!J56 -> 0 | P150: ='Sommaire du rôle_sec_3'!K56 -> 0 | R150: 0 | S150: 0 | U150: 0 | W150: 2 | X150: 0.97 | Z150: ='Sommaire du rôle_sec_3'!L56 -> 0 | AA150: ='Sommaire du rôle_sec_3'!M56 -> 0 | AC150: 0 | AD150: 0 | AF150: 0 | AH150: 2 | AI150: 0.97 | AK150: ='Sommaire du rôle_sec_3'!N56 -> 0 | AL150: ='Sommaire du rôle_sec_3'!O56 -> 0 | AN150: 0 | AO150: 0 | AQ150: 0 | AS150: 2 | AT150: 0.97 | AV150: ='Sommaire du rôle_sec_3'!P56 -> 0 | AW150: ='Sommaire du rôle_sec_3'!Q56 -> 0 | AY150: 0 | AZ150: 0 | BB150: 0 | BD150: 2 | BE150: 0.97 | BG150: ='Sommaire du rôle_sec_3'!R56 -> 0 | BH150: ='Sommaire du rôle_sec_3'!S56 -> 0 | BJ150: 0 | BK150: 0 | BM150: 0 | BO150: 2 | BP150: 0.97 | BR150: ='Sommaire du rôle_sec_3'!T56 -> 0 | BS150: ='Sommaire du rôle_sec_3'!U56 -> 0 | BU150: 0 | BV150: 0 | BX150: 0 | BZ150: 2 | CA150: 0.97 | CC150: ='Sommaire du rôle_sec_3'!V56 -> 0 | CD150: ='Sommaire du rôle_sec_3'!W56 -> 0 | CF150: 0 | CG150: 0 | CI150: 0 | CK150: 2 | CL150: 0.97 | CN150: ='Sommaire du rôle_sec_3'!X56 -> 0 | CO150: ='Sommaire du rôle_sec_3'!Y56 -> 0 | CQ150: 0 | CR150: 0 | CT150: 0 | CV150: 2 | CW150: 0.97 | CY150: ='Sommaire du rôle_sec_3'!Z56 -> 0 | CZ150: ='Sommaire du rôle_sec_3'!AA56 -> 0 | DB150: 0 | DC150: 0 | DE150: 0
A151: 3 | B151: 0.94 | D151: ='Sommaire du rôle_sec_3'!H57 -> 0 | E151: ='Sommaire du rôle_sec_3'!I57 -> 0 | G151: 0 | H151: 0 | J151: 0 | L151: 3 | M151: 0.94 | O151: ='Sommaire du rôle_sec_3'!J57 -> 0 | P151: ='Sommaire du rôle_sec_3'!K57 -> 0 | R151: 0 | S151: 0 | U151: 0 | W151: 3 | X151: 0.94 | Z151: ='Sommaire du rôle_sec_3'!L57 -> 0 | AA151: ='Sommaire du rôle_sec_3'!M57 -> 0 | AC151: 0 | AD151: 0 | AF151: 0 | AH151: 3 | AI151: 0.94 | AK151: ='Sommaire du rôle_sec_3'!N57 -> 0 | AL151: ='Sommaire du rôle_sec_3'!O57 -> 0 | AN151: 0 | AO151: 0 | AQ151: 0 | AS151: 3 | AT151: 0.94 | AV151: ='Sommaire du rôle_sec_3'!P57 -> 0 | AW151: ='Sommaire du rôle_sec_3'!Q57 -> 0 | AY151: 0 | AZ151: 0 | BB151: 0 | BD151: 3 | BE151: 0.94 | BG151: ='Sommaire du rôle_sec_3'!R57 -> 0 | BH151: ='Sommaire du rôle_sec_3'!S57 -> 0 | BJ151: 0 | BK151: 0 | BM151: 0 | BO151: 3 | BP151: 0.94 | BR151: ='Sommaire du rôle_sec_3'!T57 -> 0 | BS151: ='Sommaire du rôle_sec_3'!U57 -> 0 | BU151: 0 | BV151: 0 | BX151: 0 | BZ151: 3 | CA151: 0.94 | CC151: ='Sommaire du rôle_sec_3'!V57 -> 0 | CD151: ='Sommaire du rôle_sec_3'!W57 -> 0 | CF151: 0 | CG151: 0 | CI151: 0 | CK151: 3 | CL151: 0.94 | CN151: ='Sommaire du rôle_sec_3'!X57 -> 0 | CO151: ='Sommaire du rôle_sec_3'!Y57 -> 0 | CQ151: 0 | CR151: 0 | CT151: 0 | CV151: 3 | CW151: 0.94 | CY151: ='Sommaire du rôle_sec_3'!Z57 -> 0 | CZ151: ='Sommaire du rôle_sec_3'!AA57 -> 0 | DB151: 0 | DC151: 0 | DE151: 0
A152: 4 | B152: 0.88 | D152: ='Sommaire du rôle_sec_3'!H58 -> 0 | E152: ='Sommaire du rôle_sec_3'!I58 -> 0 | G152: 0 | H152: 0 | J152: 0 | L152: 4 | M152: 0.88 | O152: ='Sommaire du rôle_sec_3'!J58 -> 0 | P152: ='Sommaire du rôle_sec_3'!K58 -> 0 | R152: 0 | S152: 0 | U152: 0 | W152: 4 | X152: 0.88 | Z152: ='Sommaire du rôle_sec_3'!L58 -> 0 | AA152: ='Sommaire du rôle_sec_3'!M58 -> 0 | AC152: 0 | AD152: 0 | AF152: 0 | AH152: 4 | AI152: 0.88 | AK152: ='Sommaire du rôle_sec_3'!N58 -> 0 | AL152: ='Sommaire du rôle_sec_3'!O58 -> 0 | AN152: 0 | AO152: 0 | AQ152: 0 | AS152: 4 | AT152: 0.88 | AV152: ='Sommaire du rôle_sec_3'!P58 -> 0 | AW152: ='Sommaire du rôle_sec_3'!Q58 -> 0 | AY152: 0 | AZ152: 0 | BB152: 0 | BD152: 4 | BE152: 0.88 | BG152: ='Sommaire du rôle_sec_3'!R58 -> 0 | BH152: ='Sommaire du rôle_sec_3'!S58 -> 0 | BJ152: 0 | BK152: 0 | BM152: 0 | BO152: 4 | BP152: 0.88 | BR152: ='Sommaire du rôle_sec_3'!T58 -> 0 | BS152: ='Sommaire du rôle_sec_3'!U58 -> 0 | BU152: 0 | BV152: 0 | BX152: 0 | BZ152: 4 | CA152: 0.88 | CC152: ='Sommaire du rôle_sec_3'!V58 -> 0 | CD152: ='Sommaire du rôle_sec_3'!W58 -> 0 | CF152: 0 | CG152: 0 | CI152: 0 | CK152: 4 | CL152: 0.88 | CN152: ='Sommaire du rôle_sec_3'!X58 -> 0 | CO152: ='Sommaire du rôle_sec_3'!Y58 -> 0 | CQ152: 0 | CR152: 0 | CT152: 0 | CV152: 4 | CW152: 0.88 | CY152: ='Sommaire du rôle_sec_3'!Z58 -> 0 | CZ152: ='Sommaire du rôle_sec_3'!AA58 -> 0 | DB152: 0 | DC152: 0 | DE152: 0
A153: 5 | B153: 0.78 | D153: ='Sommaire du rôle_sec_3'!H59 -> 0 | E153: ='Sommaire du rôle_sec_3'!I59 -> 0 | G153: 0 | H153: 0 | J153: 0 | L153: 5 | M153: 0.78 | O153: ='Sommaire du rôle_sec_3'!J59 -> 0 | P153: ='Sommaire du rôle_sec_3'!K59 -> 0 | R153: 0 | S153: 0 | U153: 0 | W153: 5 | X153: 0.78 | Z153: ='Sommaire du rôle_sec_3'!L59 -> 0 | AA153: ='Sommaire du rôle_sec_3'!M59 -> 0 | AC153: 0 | AD153: 0 | AF153: 0 | AH153: 5 | AI153: 0.78 | AK153: ='Sommaire du rôle_sec_3'!N59 -> 0 | AL153: ='Sommaire du rôle_sec_3'!O59 -> 0 | AN153: 0 | AO153: 0 | AQ153: 0 | AS153: 5 | AT153: 0.78 | AV153: ='Sommaire du rôle_sec_3'!P59 -> 0 | AW153: ='Sommaire du rôle_sec_3'!Q59 -> 0 | AY153: 0 | AZ153: 0 | BB153: 0 | BD153: 5 | BE153: 0.78 | BG153: ='Sommaire du rôle_sec_3'!R59 -> 0 | BH153: ='Sommaire du rôle_sec_3'!S59 -> 0 | BJ153: 0 | BK153: 0 | BM153: 0 | BO153: 5 | BP153: 0.78 | BR153: ='Sommaire du rôle_sec_3'!T59 -> 0 | BS153: ='Sommaire du rôle_sec_3'!U59 -> 0 | BU153: 0 | BV153: 0 | BX153: 0 | BZ153: 5 | CA153: 0.78 | CC153: ='Sommaire du rôle_sec_3'!V59 -> 0 | CD153: ='Sommaire du rôle_sec_3'!W59 -> 0 | CF153: 0 | CG153: 0 | CI153: 0 | CK153: 5 | CL153: 0.78 | CN153: ='Sommaire du rôle_sec_3'!X59 -> 0 | CO153: ='Sommaire du rôle_sec_3'!Y59 -> 0 | CQ153: 0 | CR153: 0 | CT153: 0 | CV153: 5 | CW153: 0.78 | CY153: ='Sommaire du rôle_sec_3'!Z59 -> 0 | CZ153: ='Sommaire du rôle_sec_3'!AA59 -> 0 | DB153: 0 | DC153: 0 | DE153: 0
A154: 6 | B154: 0.6 | D154: ='Sommaire du rôle_sec_3'!H60 -> 0 | E154: ='Sommaire du rôle_sec_3'!I60 -> 0 | G154: 0 | H154: 0 | J154: 0 | L154: 6 | M154: 0.6 | O154: ='Sommaire du rôle_sec_3'!J60 -> 0 | P154: ='Sommaire du rôle_sec_3'!K60 -> 0 | R154: 0 | S154: 0 | U154: 0 | W154: 6 | X154: 0.6 | Z154: ='Sommaire du rôle_sec_3'!L60 -> 0 | AA154: ='Sommaire du rôle_sec_3'!M60 -> 0 | AC154: 0 | AD154: 0 | AF154: 0 | AH154: 6 | AI154: 0.6 | AK154: ='Sommaire du rôle_sec_3'!N60 -> 0 | AL154: ='Sommaire du rôle_sec_3'!O60 -> 0 | AN154: 0 | AO154: 0 | AQ154: 0 | AS154: 6 | AT154: 0.6 | AV154: ='Sommaire du rôle_sec_3'!P60 -> 0 | AW154: ='Sommaire du rôle_sec_3'!Q60 -> 0 | AY154: 0 | AZ154: 0 | BB154: 0 | BD154: 6 | BE154: 0.6 | BG154: ='Sommaire du rôle_sec_3'!R60 -> 0 | BH154: ='Sommaire du rôle_sec_3'!S60 -> 0 | BJ154: 0 | BK154: 0 | BM154: 0 | BO154: 6 | BP154: 0.6 | BR154: ='Sommaire du rôle_sec_3'!T60 -> 0 | BS154: ='Sommaire du rôle_sec_3'!U60 -> 0 | BU154: 0 | BV154: 0 | BX154: 0 | BZ154: 6 | CA154: 0.6 | CC154: ='Sommaire du rôle_sec_3'!V60 -> 0 | CD154: ='Sommaire du rôle_sec_3'!W60 -> 0 | CF154: 0 | CG154: 0 | CI154: 0 | CK154: 6 | CL154: 0.6 | CN154: ='Sommaire du rôle_sec_3'!X60 -> 0 | CO154: ='Sommaire du rôle_sec_3'!Y60 -> 0 | CQ154: 0 | CR154: 0 | CT154: 0 | CV154: 6 | CW154: 0.6 | CY154: ='Sommaire du rôle_sec_3'!Z60 -> 0 | CZ154: ='Sommaire du rôle_sec_3'!AA60 -> 0 | DB154: 0 | DC154: 0 | DE154: 0
A155: 7 | B155: 0.4 | D155: ='Sommaire du rôle_sec_3'!H61 -> 0 | E155: ='Sommaire du rôle_sec_3'!I61 -> 0 | G155: 0 | H155: 0 | J155: 0 | L155: 7 | M155: 0.4 | O155: ='Sommaire du rôle_sec_3'!J61 -> 0 | P155: ='Sommaire du rôle_sec_3'!K61 -> 0 | R155: 0 | S155: 0 | U155: 0 | W155: 7 | X155: 0.4 | Z155: ='Sommaire du rôle_sec_3'!L61 -> 0 | AA155: ='Sommaire du rôle_sec_3'!M61 -> 0 | AC155: 0 | AD155: 0 | AF155: 0 | AH155: 7 | AI155: 0.4 | AK155: ='Sommaire du rôle_sec_3'!N61 -> 0 | AL155: ='Sommaire du rôle_sec_3'!O61 -> 0 | AN155: 0 | AO155: 0 | AQ155: 0 | AS155: 7 | AT155: 0.4 | AV155: ='Sommaire du rôle_sec_3'!P61 -> 0 | AW155: ='Sommaire du rôle_sec_3'!Q61 -> 0 | AY155: 0 | AZ155: 0 | BB155: 0 | BD155: 7 | BE155: 0.4 | BG155: ='Sommaire du rôle_sec_3'!R61 -> 0 | BH155: ='Sommaire du rôle_sec_3'!S61 -> 0 | BJ155: 0 | BK155: 0 | BM155: 0 | BO155: 7 | BP155: 0.4 | BR155: ='Sommaire du rôle_sec_3'!T61 -> 0 | BS155: ='Sommaire du rôle_sec_3'!U61 -> 0 | BU155: 0 | BV155: 0 | BX155: 0 | BZ155: 7 | CA155: 0.4 | CC155: ='Sommaire du rôle_sec_3'!V61 -> 0 | CD155: ='Sommaire du rôle_sec_3'!W61 -> 0 | CF155: 0 | CG155: 0 | CI155: 0 | CK155: 7 | CL155: 0.4 | CN155: ='Sommaire du rôle_sec_3'!X61 -> 0 | CO155: ='Sommaire du rôle_sec_3'!Y61 -> 0 | CQ155: 0 | CR155: 0 | CT155: 0 | CV155: 7 | CW155: 0.4 | CY155: ='Sommaire du rôle_sec_3'!Z61 -> 0 | CZ155: ='Sommaire du rôle_sec_3'!AA61 -> 0 | DB155: 0 | DC155: 0 | DE155: 0
A156: 8 | B156: 0.15 | D156: ='Sommaire du rôle_sec_3'!H62 -> 0 | E156: ='Sommaire du rôle_sec_3'!I62 -> 0 | G156: 0 | H156: 0 | J156: 0 | L156: 8 | M156: 0.15 | O156: ='Sommaire du rôle_sec_3'!J62 -> 0 | P156: ='Sommaire du rôle_sec_3'!K62 -> 0 | R156: 0 | S156: 0 | U156: 0 | W156: 8 | X156: 0.15 | Z156: ='Sommaire du rôle_sec_3'!L62 -> 0 | AA156: ='Sommaire du rôle_sec_3'!M62 -> 0 | AC156: 0 | AD156: 0 | AF156: 0 | AH156: 8 | AI156: 0.15 | AK156: ='Sommaire du rôle_sec_3'!N62 -> 0 | AL156: ='Sommaire du rôle_sec_3'!O62 -> 0 | AN156: 0 | AO156: 0 | AQ156: 0 | AS156: 8 | AT156: 0.15 | AV156: ='Sommaire du rôle_sec_3'!P62 -> 0 | AW156: ='Sommaire du rôle_sec_3'!Q62 -> 0 | AY156: 0 | AZ156: 0 | BB156: 0 | BD156: 8 | BE156: 0.15 | BG156: ='Sommaire du rôle_sec_3'!R62 -> 0 | BH156: ='Sommaire du rôle_sec_3'!S62 -> 0 | BJ156: 0 | BK156: 0 | BM156: 0 | BO156: 8 | BP156: 0.15 | BR156: ='Sommaire du rôle_sec_3'!T62 -> 0 | BS156: ='Sommaire du rôle_sec_3'!U62 -> 0 | BU156: 0 | BV156: 0 | BX156: 0 | BZ156: 8 | CA156: 0.15 | CC156: ='Sommaire du rôle_sec_3'!V62 -> 0 | CD156: ='Sommaire du rôle_sec_3'!W62 -> 0 | CF156: 0 | CG156: 0 | CI156: 0 | CK156: 8 | CL156: 0.15 | CN156: ='Sommaire du rôle_sec_3'!X62 -> 0 | CO156: ='Sommaire du rôle_sec_3'!Y62 -> 0 | CQ156: 0 | CR156: 0 | CT156: 0 | CV156: 8 | CW156: 0.15 | CY156: ='Sommaire du rôle_sec_3'!Z62 -> 0 | CZ156: ='Sommaire du rôle_sec_3'!AA62 -> 0 | DB156: 0 | DC156: 0 | DE156: 0
A157: IMMEUBLES SANS PARTIE NON RÉSIDENTIELLE | B157: 1 | D157: ='Sommaire du rôle_sec_3'!H63 -> 0 | E157: ='Sommaire du rôle_sec_3'!I63 -> 0 | G157: 0 | H157: 0 | J157: 0 | L157: IMMEUBLES SANS PARTIE NON RÉSIDENTIELLE | M157: 1 | O157: ='Sommaire du rôle_sec_3'!J63 -> 0 | P157: ='Sommaire du rôle_sec_3'!K63 -> 0 | R157: 0 | S157: 0 | U157: 0 | W157: IMMEUBLES SANS PARTIE NON RÉSIDENTIELLE | X157: 1 | Z157: ='Sommaire du rôle_sec_3'!L63 -> 0 | AA157: ='Sommaire du rôle_sec_3'!M63 -> 0 | AC157: 0 | AD157: 0 | AF157: 0 | AH157: IMMEUBLES SANS PARTIE NON RÉSIDENTIELLE | AI157: 1 | AK157: ='Sommaire du rôle_sec_3'!N63 -> 0 | AL157: ='Sommaire du rôle_sec_3'!O63 -> 0 | AN157: 0 | AO157: 0 | AQ157: 0 | AS157: IMMEUBLES SANS PARTIE NON RÉSIDENTIELLE | AT157: 1 | AV157: ='Sommaire du rôle_sec_3'!P63 -> 0 | AW157: ='Sommaire du rôle_sec_3'!Q63 -> 0 | AY157: 0 | AZ157: 0 | BB157: 0 | BD157: IMMEUBLES SANS PARTIE NON RÉSIDENTIELLE | BE157: 1 | BG157: ='Sommaire du rôle_sec_3'!R63 -> 0 | BH157: ='Sommaire du rôle_sec_3'!S63 -> 0 | BJ157: 0 | BK157: 0 | BM157: 0 | BO157: IMMEUBLES SANS PARTIE NON RÉSIDENTIELLE | BP157: 1 | BR157: ='Sommaire du rôle_sec_3'!T63 -> 0 | BS157: ='Sommaire du rôle_sec_3'!U63 -> 0 | BU157: 0 | BV157: 0 | BX157: 0 | BZ157: IMMEUBLES SANS PARTIE NON RÉSIDENTIELLE | CA157: 1 | CC157: ='Sommaire du rôle_sec_3'!V63 -> 0 | CD157: ='Sommaire du rôle_sec_3'!W63 -> 0 | CF157: 0 | CG157: 0 | CI157: 0 | CK157: IMMEUBLES SANS PARTIE NON RÉSIDENTIELLE | CL157: 1 | CN157: ='Sommaire du rôle_sec_3'!X63 -> 0 | CO157: ='Sommaire du rôle_sec_3'!Y63 -> 0 | CQ157: 0 | CR157: 0 | CT157: 0 | CV157: IMMEUBLES SANS PARTIE NON RÉSIDENTIELLE | CW157: 1 | CY157: ='Sommaire du rôle_sec_3'!Z63 -> 0 | CZ157: ='Sommaire du rôle_sec_3'!AA63 -> 0 | DB157: 0 | DC157: 0 | DE157: 0
A158: 12 CHSLD | B158: 0.8 | G158: 0 | L158: 12 CHSLD | M158: 0.8 | R158: 0 | W158: 12 CHSLD | X158: 0.8 | AC158: 0 | AH158: 12 CHSLD | AI158: 0.8 | AN158: 0 | AS158: 12 CHSLD | AT158: 0.8 | AY158: 0 | BD158: 12 CHSLD | BE158: 0.8 | BJ158: 0 | BO158: 12 CHSLD | BP158: 0.8 | BU158: 0 | BZ158: 12 CHSLD | CA158: 0.8 | CF158: 0 | CK158: 12 CHSLD | CL158: 0.8 | CV158: 12 CHSLD | CW158: 0.8
A159: 13 Cours de triage | B159: 0.6 | G159: 0 | L159: 13 Cours de triage | M159: 0.6 | R159: 0 | W159: 13 Cours de triage | X159: 0.6 | AC159: 0 | AH159: 13 Cours de triage | AI159: 0.6 | AN159: 0 | AS159: 13 Cours de triage | AT159: 0.6 | AY159: 0 | BD159: 13 Cours de triage | BE159: 0.6 | BJ159: 0 | BO159: 13 Cours de triage | BP159: 0.6 | BU159: 0 | BZ159: 13 Cours de triage | CA159: 0.6 | CF159: 0 | CK159: 13 Cours de triage | CL159: 0.6 | CV159: 13 Cours de triage | CW159: 0.6
A160: Total | G160: =SUM(G147:G159) -> 0 | H160: =SUM(H147:H157) -> 0 | I160: =SUM(I147:I157) -> 0 | J160: =G160+H160 -> 0 | L160: Total | R160: =SUM(R147:R159) -> 0 | S160: =SUM(S147:S157) -> 0 | U160: =R160+S160 -> 0 | W160: Total | AC160: =SUM(AC147:AC159) -> 0 | AD160: =SUM(AD147:AD157) -> 0 | AF160: =AC160+AD160 -> 0 | AH160: Total | AN160: =SUM(AN147:AN159) -> 0 | AO160: =SUM(AO147:AO157) -> 0 | AQ160: =AN160+AO160 -> 0 | AS160: Total | AY160: =SUM(AY147:AY159) -> 0 | AZ160: =SUM(AZ147:AZ157) -> 0 | BB160: =AY160+AZ160 -> 0 | BD160: Total | BJ160: =SUM(BJ147:BJ159) -> 0 | BK160: =SUM(BK147:BK157) -> 0 | BM160: =BJ160+BK160 -> 0 | BO160: Total | BU160: =SUM(BU147:BU159) -> 0 | BV160: =SUM(BV147:BV157) -> 0 | BX160: =BU160+BV160 -> 0 | BZ160: Total | CF160: =SUM(CF147:CF159) -> 0 | CG160: =SUM(CG147:CG157) -> 0 | CI160: =CF160+CG160 -> 0 | CK160: Total | CQ160: =SUM(CQ147:CQ159) -> 0 | CR160: =SUM(CR147:CR157) -> 0 | CT160: =CQ160+CR160 -> 0 | CV160: Total | DB160: =SUM(DB147:DB159) -> 0 | DC160: =SUM(DC147:DC157) -> 0 | DE160: =DB160+DC160 -> 0

Sheet Sommaire du rôle_sec_4
B2: ASSIETTES D'APPLICATION DES TAUX DE LA TAXE FONCIÈRE GÉNÉRALE 9
B3: TAUX APPLICABLES | F3: TAUX NON RÉSIDENTIEL | H3: TAUX INDUSTRIEL (CLASSE 2) | J3: TAUX IND. (SAUF CL.1 ET 2) | L3: TAUX AGRICOLE | N3: TAUX FORESTIER | P3: TAUX CATÉGORIE RÉSIDUELLE
B4: NOMBRE DE SECTEURS | S4: =IF(OR(F4>0,H4>0,J4>0,L4>0,N4>0,P4>0),"UTILISER LE SIMULATEUR POUR LA TAXATION DE SECTEUR","-") -> -
B5: CLASSE NON RÉSIDENTIELLE ET | F5: VAL. NR À 100 % ET IND. CL. 2 À 50 % | H5: VALEUR À 50 % | J5: VALEUR À 100 % | L5: VALEURS À 100 % IMPOSABLES | N5: VALEURS À 100 % IMPOSABLES | P5: VALEUR À 100 %
B6: POURCENTAGE DE TAXATION | F6: IMPOSABLES | G6: COMPENSABLES | H6: IMPOSABLES | I6: COMPENSABLES | J6: IMPOSABLES | K6: COMPENSABLES | P6: IMPOSABLES | Q6: COMPENSABLES
B7: 1A | C7: : 0,1 % | E7: 901 | F7: 76534150 | G7: 0 | O7: 99,9 % | P7: 76534150 | Q7: 0
B8: 1B | C8: : 0,5 % | E8: 902 | F8: 34712370 | G8: 0 | O8: 99,5 % | P8: 34712370 | Q8: 0
B9: 1C | C9: : 1 % | E9: 903 | F9: 4894450 | G9: 0 | O9: 99 % | P9: 4894450 | Q9: 0
B10: 2 | C10: : 3 % | E10: 904 | F10: 23616670 | G10: 0 | J10: 605900 | O10: 97 % | P10: 23616670 | Q10: 0
B11: 3 | C11: : 6 % | E11: 905 | F11: 44153450 | G11: 0 | J11: 181400 | O11: 94 % | P11: 44153450 | Q11: 0
B12: 4 | C12: : 12 % | E12: 906 | F12: 60256460 | G12: 0 | J12: 215700 | O12: 88 % | P12: 60256460 | Q12: 0
B13: 5 | C13: : 22 % | E13: 907 | F13: 38643990 | G13: 0 | O13: 78 % | P13: 38643990 | Q13: 0
B14: 6 | C14: : 40 % | E14: 908 | F14: 38532890 | G14: 0 | H14: 290100 | J14: 2421200 | O14: 60 % | P14: 38532890 | Q14: 0
B15: 7 | C15: : 60 % | E15: 909 | F15: 39569365 | G15: 72376370 | H15: 350350 | J15: 354000 | O15: 40 % | P15: 39569365 | Q15: 72376370
B16: 8 | C16: : 85 % | E16: 910 | F16: 22323070 | G16: 211592260 | J16: 1875900 | O16: 15 % | P16: 22323070 | Q16: 211592260
B17: 9 | C17: : 100 % | E17: 911 | F17: 3177900 | G17: 0 | L17: TAUX TERRAINS VAGUES DESSERVIS
B18: 10 | C18: : 100 % | E18: 912 | F18: 1155755205 | G18: 61905690 | H18: 10515650 | J18: 225704400 | K18: 2325200 | P18: 8068032861 | Q18: 2100780
B19: 11 | C19: : Cours de triage 100 % | E19: 913 | L19: VALEURS À 100 %
B20: 12 | C20: : CHSLD 20 % | E20: 914 | F20: 13938200 | L20: IMPOSABLES | N20: COMPENSABLES | O20: 80 % | P20: =F20 -> 13938200
B21: 13 | C21: : Cours de triage 40 % | E21: 915 | G21: CFIL (chemin de fer d'intérêt local) | O21: 60 % | P21: =F21 -> 0
B22: APPLICATION DU TNR QUAND TTVD | E22: 916 | F22: 5228300 | I22: (TTVD − TAUX DE BASE) x | L22: =F22 -> 5228300 | N22: =G22 -> 0
B23: ASSIETTES D'APPLICATION | E23: 917 | F23: =F71+F72 -> 1529652563 | I23: =H71+H72 -> 241701840 | K23: (TTVD) x | L23: 76716400 | N23: 58400 | P23: =O71+O72 -> 8447691868
B25: ASSIETTES D'APPLICATION DES TAUX RELATIFS AUX SOUS-CATÉGORIES DES IMMEUBLES NON RÉSIDENTIELS (si applicables)
B26: DÉNOMINATION DE LA SOUS-CATÉGORIE | F26: TAUX SOUS-CATÉGORIE DE RÉFÉRENCE | H26: TAUX SOUS-CATÉGORIE 1 | J26: TAUX SOUS-CATÉGORIE 2 | L26: TAUX SOUS-CATÉGORIE 3 | N26: TAUX SOUS-CATÉGORIE 4 | P26: TAUX SOUS-CATÉGORIE 5 | R26: TAUX SOUS-CATÉGORIE 6 | T26: TAUX SOUS-CATÉGORIE 7 | V26: TAUX SOUS-CATÉGORIE 8 | X26: TAUX SOUS-CATÉGORIE 9 | Z26: TAUX SOUS-CATÉGORIE 10
B28: NOMBRE DE SECTEURS
B29: POURCENTAGE DE TAXATION | F29: IMPOSABLES | G29: COMPENSABLES | H29: IMPOSABLES | I29: COMPENSABLES | J29: IMPOSABLES | K29: COMPENSABLES | L29: IMPOSABLES | M29: COMPENSABLES | N29: IMPOSABLES | O29: COMPENSABLES | P29: IMPOSABLES | Q29: COMPENSABLES | R29: IMPOSABLES | S29: COMPENSABLES | T29: IMPOSABLES | U29: COMPENSABLES | V29: IMPOSABLES | W29: COMPENSABLES | X29: IMPOSABLES | Y29: COMPENSABLES | Z29: IMPOSABLES | AA29: COMPENSABLES
B30: 1A | C30: 0,1 % | E30: =E22+1 -> 917
B31: 1B | C31: 0,5 % | E31: =E30+1 -> 918
B32: 1C | C32: 1 % | E32: 919
B33: 2 | C33: 3 % | E33: 920
B34: 3 | C34: 6 % | E34: 921
B35: 4 | C35: 12 % | E35: 922
B36: 5 | C36: 22 % | E36: 923
B37: 6 | C37: 40 % | E37: 924
B38: 7 | C38: 60 % | E38: 925
B39: 8 | C39: 85 % | E39: 926
B40: 9 | C40: 100 % | E40: 927
B41: 10 | C41: 100 % | E41: 928
B42: 11 | C42: Cours de triage 100 % | E42: 929
B43: 12 | C43: CHSLD 20 % | E43: 930
B44: 13 | C44: Cours de triage 40 % | E44: 931 | G44: CFIL
B45: APPLICATION DU TNR QUAND TTVD | E45: 932
B46: ASSIETTES D'APPLICATION | E46: 933 | F46: =F77+F78 -> 0 | H46: =G77+G78 -> 0 | J46: =H77+H78 -> 0 | L46: =I77+I78 -> 0 | N46: =J77+J78 -> 0 | P46: =K77+K78 -> 0 | R46: =L77+L78 -> 0 | T46: =M77+M78 -> 0 | V46: =N77+N78 -> 0 | X46: =O77+O78 -> 0 | Z46: =P77+P78 -> 0
B48: ASSIETTES D'APPLICATION DES TAUX RELATIFS AUX SOUS-CATÉGORIES DES IMMEUBLES RÉSIDENTIELS (si applicables)
B49: DÉNOMINATION DE LA SOUS-CATÉGORIE | F49: TAUX SOUS-CATÉGORIE RÉSIDUELLE | H49: TAUX SOUS-CATÉGORIE 1 | J49: TAUX SOUS-CATÉGORIE 2 | L49: TAUX SOUS-CATÉGORIE 3 | N49: TAUX SOUS-CATÉGORIE 4 | P49: TAUX SOUS-CATÉGORIE 5 | R49: TAUX SOUS-CATÉGORIE 6 | T49: TAUX SOUS-CATÉGORIE 7 | V49: TAUX SOUS-CATÉGORIE 8 | X49: TAUX SOUS-CATÉGORIE 9 | Z49: TAUX SOUS-CATÉGORIE 10
B51: NOMBRE DE SECTEURS
B52: POURCENTAGE DE TAXATION | F52: IMPOSABLES | G52: COMPENSABLES | H52: IMPOSABLES | I52: COMPENSABLES | J52: IMPOSABLES | K52: COMPENSABLES | L52: IMPOSABLES | M52: COMPENSABLES | N52: IMPOSABLES | O52: COMPENSABLES | P52: IMPOSABLES | Q52: COMPENSABLES | R52: IMPOSABLES | S52: COMPENSABLES | T52: IMPOSABLES | U52: COMPENSABLES | V52: IMPOSABLES | W52: COMPENSABLES | X52: IMPOSABLES | Y52: COMPENSABLES | Z52: IMPOSABLES | AA52: COMPENSABLES
B53: 1A | C53: 99,9 % | E53: 935
B54: 1B | C54: 99,5 % | E54: =E53+1 -> 936
B55: 1C | C55: 99 % | E55: 937
B56: 2 | C56: 97 % | E56: 938
B57: 3 | C57: 94 % | E57: 939
B58: 4 | C58: 88 % | E58: 940
B59: 5 | C59: 78 % | E59: 941
B60: 6 | C60: 60 % | E60: 942
B61: 7 | C61: 40 % | E61: 943
B62: 8 | C62: 15 % | E62: 944
B63: 9 | C63: 100% immeubles sans partie non résidentielle | E63: 945
B64: 12 | C64: CHSLD 80 % | E64: 946
B65: 13 | C65: Cours de triage 60 % | E65: 947
B66: ASSIETTES D'APPLICATION | E66: 948 | F66: =F83+F84 -> 0 | H66: =G83+G84 -> 0 | J66: =H83+H84 -> 0 | L66: =I83+I84 -> 0 | N66: =J83+J84 -> 0 | P66: =K83+K84 -> 0 | R66: =L83+L84 -> 0 | T66: =M83+M84 -> 0 | V66: =N83+N84 -> 0 | X66: =O83+O84 -> 0 | Z66: =P83+P84 -> 0
F69: TAUX NON RÉSIDENTIEL | H69: TAUX INDUSTRIEL | L69: TAUX TERRAINS VAGUES DESSERVIS | O69: TAUX CATÉGORIE RÉSIDUELLE (TAUX DE BASE)
C71: Assiette imposable | F71: =Détermination_sec_4!G23 -> 1244467630 | H71: =Détermination_sec_4!G41+Détermination_sec_4!G59 -> 239376640 | L71: =L23 -> 76716400 | O71: =Détermination_sec_4!G78 -> 8384901701
C72: Assiette compensable | F72: =Détermination_sec_4!H23 -> 285184933 | H72: =Détermination_sec_4!H41+Détermination_sec_4!H59 -> 2325200 | L72: =N23 -> 58400 | O72: =Détermination_sec_4!H78 -> 62790167
B74: Sous-catégorie des immeubles non résidentiels
F75: TAUX SOUS-CATÉGORIE DE RÉFÉRENCE | G75: Sous-catégorie 1 | H75: Sous-catégorie 2 | I75: Sous-catégorie 3 | J75: Sous-catégorie 4 | K75: Sous-catégorie 5 | L75: Sous-catégorie 6 | M75: Sous-catégorie 7 | N75: Sous-catégorie 8 | O75: Sous-catégorie 9 | P75: Sous-catégorie 10
C77: Assiette imposable | F77: =Détermination_sec_4!G100 -> 0 | G77: =Détermination_sec_4!G122 -> 0 | H77: =Détermination_sec_4!R122 -> 0 | I77: =Détermination_sec_4!AC122 -> 0 | J77: =Détermination_sec_4!AN122 -> 0 | K77: =Détermination_sec_4!AY122 -> 0 | L77: =Détermination_sec_4!BJ122 -> 0 | M77: =Détermination_sec_4!BU122 -> 0 | N77: =Détermination_sec_4!CF122 -> 0 | O77: =Détermination_sec_4!CQ122 -> 0 | P77: =Détermination_sec_4!DB122 -> 0
C78: Assiette compensable | F78: =Détermination_sec_4!H100 -> 0 | G78: =Détermination_sec_4!H122 -> 0 | H78: =Détermination_sec_4!S122 -> 0 | I78: =Détermination_sec_4!AD122 -> 0 | J78: =Détermination_sec_4!AO122 -> 0 | K78: =Détermination_sec_4!AZ122 -> 0 | L78: =Détermination_sec_4!BK122 -> 0 | M78: =Détermination_sec_4!BV122 -> 0 | N78: =Détermination_sec_4!CG122 -> 0 | O78: =Détermination_sec_4!CR122 -> 0 | P78: =Détermination_sec_4!DC122 -> 0
B80: Sous-catégorie des immeubles résidentiels
F81: TAUX SOUS-CATÉGORIE RÉSIDUELLE | G81: Sous-catégorie 1 | H81: Sous-catégorie 2 | I81: Sous-catégorie 3 | J81: Sous-catégorie 4 | K81: Sous-catégorie 5 | L81: Sous-catégorie 6 | M81: Sous-catégorie 7 | N81: Sous-catégorie 8 | O81: Sous-catégorie 9 | P81: Sous-catégorie 10
C83: Assiette imposable | F83: =Détermination_sec_4!G141 -> 0 | G83: =Détermination_sec_4!G160 -> 0 | H83: =Détermination_sec_4!R160 -> 0 | I83: =Détermination_sec_4!AC160 -> 0 | J83: =Détermination_sec_4!AN160 -> 0 | K83: =Détermination_sec_4!AY160 -> 0 | L83: =Détermination_sec_4!BJ160 -> 0 | M83: =Détermination_sec_4!BU160 -> 0 | N83: =Détermination_sec_4!CF160 -> 0 | O83: =Détermination_sec_4!CQ160 -> 0 | P83: =Détermination_sec_4!DB160 -> 0
C84: Assiette compensable | F84: =Détermination_sec_4!H141 -> 0 | G84: =Détermination_sec_4!H160 -> 0 | H84: =Détermination_sec_4!S160 -> 0 | I84: =Détermination_sec_4!AD160 -> 0 | J84: =Détermination_sec_4!AO160 -> 0 | K84: =Détermination_sec_4!AZ160 -> 0 | L84: =Détermination_sec_4!BK160 -> 0 | M84: =Détermination_sec_4!BV160 -> 0 | N84: =Détermination_sec_4!CG160 -> 0 | O84: =Détermination_sec_4!CR160 -> 0 | P84: =Détermination_sec_4!DC160 -> 0

Sheet Sommaire du rôle_sec_5
B2: ASSIETTES D'APPLICATION DES TAUX DE LA TAXE FONCIÈRE GÉNÉRALE 9
B3: TAUX APPLICABLES | F3: TAUX NON RÉSIDENTIEL | H3: TAUX INDUSTRIEL (CLASSE 2) | J3: TAUX IND. (SAUF CL.1 ET 2) | L3: TAUX AGRICOLE | N3: TAUX FORESTIER | P3: TAUX CATÉGORIE RÉSIDUELLE
B4: NOMBRE DE SECTEURS | S4: =IF(OR(F4>0,H4>0,J4>0,L4>0,N4>0,P4>0),"UTILISER LE SIMULATEUR POUR LA TAXATION DE SECTEUR","-") -> -
B5: CLASSE NON RÉSIDENTIELLE ET | F5: VAL. NR À 100 % ET IND. CL. 2 À 50 % | H5: VALEUR À 50 % | J5: VALEUR À 100 % | L5: VALEURS À 100 % IMPOSABLES | N5: VALEURS À 100 % IMPOSABLES | P5: VALEUR À 100 %
B6: POURCENTAGE DE TAXATION | F6: IMPOSABLES | G6: COMPENSABLES | H6: IMPOSABLES | I6: COMPENSABLES | J6: IMPOSABLES | K6: COMPENSABLES | P6: IMPOSABLES | Q6: COMPENSABLES
B7: 1A | C7: : 0,1 % | E7: 901 | F7: 76534150 | G7: 0 | O7: 99,9 % | P7: 76534150 | Q7: 0
B8: 1B | C8: : 0,5 % | E8: 902 | F8: 34712370 | G8: 0 | O8: 99,5 % | P8: 34712370 | Q8: 0
B9: 1C | C9: : 1 % | E9: 903 | F9: 4894450 | G9: 0 | O9: 99 % | P9: 4894450 | Q9: 0
B10: 2 | C10: : 3 % | E10: 904 | F10: 23616670 | G10: 0 | J10: 605900 | O10: 97 % | P10: 23616670 | Q10: 0
B11: 3 | C11: : 6 % | E11: 905 | F11: 44153450 | G11: 0 | J11: 181400 | O11: 94 % | P11: 44153450 | Q11: 0
B12: 4 | C12: : 12 % | E12: 906 | F12: 60256460 | G12: 0 | J12: 215700 | O12: 88 % | P12: 60256460 | Q12: 0
B13: 5 | C13: : 22 % | E13: 907 | F13: 38643990 | G13: 0 | O13: 78 % | P13: 38643990 | Q13: 0
B14: 6 | C14: : 40 % | E14: 908 | F14: 38532890 | G14: 0 | H14: 290100 | J14: 2421200 | O14: 60 % | P14: 38532890 | Q14: 0
B15: 7 | C15: : 60 % | E15: 909 | F15: 39569365 | G15: 72376370 | H15: 350350 | J15: 354000 | O15: 40 % | P15: 39569365 | Q15: 72376370
B16: 8 | C16: : 85 % | E16: 910 | F16: 22323070 | G16: 211592260 | J16: 1875900 | O16: 15 % | P16: 22323070 | Q16: 211592260
B17: 9 | C17: : 100 % | E17: 911 | F17: 3177900 | G17: 0 | L17: TAUX TERRAINS VAGUES DESSERVIS
B18: 10 | C18: : 100 % | E18: 912 | F18: 1155755205 | G18: 61905690 | H18: 10515650 | J18: 225704400 | K18: 2325200 | P18: 8068032861 | Q18: 2100780
B19: 11 | C19: : Cours de triage 100 % | E19: 913 | L19: VALEURS À 100 %
B20: 12 | C20: : CHSLD 20 % | E20: 914 | F20: 13938200 | L20: IMPOSABLES | N20: COMPENSABLES | O20: 80 % | P20: =F20 -> 13938200
B21: 13 | C21: : Cours de triage 40 % | E21: 915 | G21: CFIL (chemin de fer d'intérêt local) | O21: 60 % | P21: =F21 -> 0
B22: APPLICATION DU TNR QUAND TTVD | E22: 916 | F22: 5228300 | I22: (TTVD − TAUX DE BASE) x | L22: =F22 -> 5228300 | N22: =G22 -> 0
B23: ASSIETTES D'APPLICATION | E23: 917 | F23: =F71+F72 -> 1529652563 | I23: =H71+H72 -> 241701840 | K23: (TTVD) x | L23: 76716400 | N23: 58400 | P23: =O71+O72 -> 8447691868
B25: ASSIETTES D'APPLICATION DES TAUX RELATIFS AUX SOUS-CATÉGORIES DES IMMEUBLES NON RÉSIDENTIELS (si applicables)
B26: DÉNOMINATION DE LA SOUS-CATÉGORIE | F26: TAUX SOUS-CATÉGORIE DE RÉFÉRENCE | H26: TAUX SOUS-CATÉGORIE 1 | J26: TAUX SOUS-CATÉGORIE 2 | L26: TAUX SOUS-CATÉGORIE 3 | N26: TAUX SOUS-CATÉGORIE 4 | P26: TAUX SOUS-CATÉGORIE 5 | R26: TAUX SOUS-CATÉGORIE 6 | T26: TAUX SOUS-CATÉGORIE 7 | V26: TAUX SOUS-CATÉGORIE 8 | X26: TAUX SOUS-CATÉGORIE 9 | Z26: TAUX SOUS-CATÉGORIE 10
B28: NOMBRE DE SECTEURS
B29: POURCENTAGE DE TAXATION | F29: IMPOSABLES | G29: COMPENSABLES | H29: IMPOSABLES | I29: COMPENSABLES | J29: IMPOSABLES | K29: COMPENSABLES | L29: IMPOSABLES | M29: COMPENSABLES | N29: IMPOSABLES | O29: COMPENSABLES | P29: IMPOSABLES | Q29: COMPENSABLES | R29: IMPOSABLES | S29: COMPENSABLES | T29: IMPOSABLES | U29: COMPENSABLES | V29: IMPOSABLES | W29: COMPENSABLES | X29: IMPOSABLES | Y29: COMPENSABLES | Z29: IMPOSABLES | AA29: COMPENSABLES
B30: 1A | C30: 0,1 % | E30: =E22+1 -> 917
B31: 1B | C31: 0,5 % | E31: =E30+1 -> 918
B32: 1C | C32: 1 % | E32: 919
B33: 2 | C33: 3 % | E33: 920
B34: 3 | C34: 6 % | E34: 921
B35: 4 | C35: 12 % | E35: 922
B36: 5 | C36: 22 % | E36: 923
B37: 6 | C37: 40 % | E37: 924
B38: 7 | C38: 60 % | E38: 925
B39: 8 | C39: 85 % | E39: 926
B40: 9 | C40: 100 % | E40: 927
B41: 10 | C41: 100 % | E41: 928
B42: 11 | C42: Cours de triage 100 % | E42: 929
B43: 12 | C43: CHSLD 20 % | E43: 930
B44: 13 | C44: Cours de triage 40 % | E44: 931 | G44: CFIL
B45: APPLICATION DU TNR QUAND TTVD | E45: 932
B46: ASSIETTES D'APPLICATION | E46: 933 | F46: =F77+F78 -> 0 | H46: =G77+G78 -> 0 | J46: =H77+H78 -> 0 | L46: =I77+I78 -> 0 | N46: =J77+J78 -> 0 | P46: =K77+K78 -> 0 | R46: =L77+L78 -> 0 | T46: =M77+M78 -> 0 | V46: =N77+N78 -> 0 | X46: =O77+O78 -> 0 | Z46: =P77+P78 -> 0
B48: ASSIETTES D'APPLICATION DES TAUX RELATIFS AUX SOUS-CATÉGORIES DES IMMEUBLES RÉSIDENTIELS (si applicables)
B49: DÉNOMINATION DE LA SOUS-CATÉGORIE | F49: TAUX SOUS-CATÉGORIE RÉSIDUELLE | H49: TAUX SOUS-CATÉGORIE 1 | J49: TAUX SOUS-CATÉGORIE 2 | L49: TAUX SOUS-CATÉGORIE 3 | N49: TAUX SOUS-CATÉGORIE 4 | P49: TAUX SOUS-CATÉGORIE 5 | R49: TAUX SOUS-CATÉGORIE 6 | T49: TAUX SOUS-CATÉGORIE 7 | V49: TAUX SOUS-CATÉGORIE 8 | X49: TAUX SOUS-CATÉGORIE 9 | Z49: TAUX SOUS-CATÉGORIE 10
B51: NOMBRE DE SECTEURS
B52: POURCENTAGE DE TAXATION | F52: IMPOSABLES | G52: COMPENSABLES | H52: IMPOSABLES | I52: COMPENSABLES | J52: IMPOSABLES | K52: COMPENSABLES | L52: IMPOSABLES | M52: COMPENSABLES | N52: IMPOSABLES | O52: COMPENSABLES | P52: IMPOSABLES | Q52: COMPENSABLES | R52: IMPOSABLES | S52: COMPENSABLES | T52: IMPOSABLES | U52: COMPENSABLES | V52: IMPOSABLES | W52: COMPENSABLES | X52: IMPOSABLES | Y52: COMPENSABLES | Z52: IMPOSABLES | AA52: COMPENSABLES
B53: 1A | C53: 99,9 % | E53: 935
B54: 1B | C54: 99,5 % | E54: =E53+1 -> 936
B55: 1C | C55: 99 % | E55: 937
B56: 2 | C56: 97 % | E56: 938
B57: 3 | C57: 94 % | E57: 939
B58: 4 | C58: 88 % | E58: 940
B59: 5 | C59: 78 % | E59: 941
B60: 6 | C60: 60 % | E60: 942
B61: 7 | C61: 40 % | E61: 943
B62: 8 | C62: 15 % | E62: 944
B63: 9 | C63: 100% immeubles sans partie non résidentielle | E63: 945
B64: 12 | C64: CHSLD 80 % | E64: 946
B65: 13 | C65: Cours de triage 60 % | E65: 947
B66: ASSIETTES D'APPLICATION | E66: 948 | F66: =F83+F84 -> 0 | H66: =G83+G84 -> 0 | J66: =H83+H84 -> 0 | L66: =I83+I84 -> 0 | N66: =J83+J84 -> 0 | P66: =K83+K84 -> 0 | R66: =L83+L84 -> 0 | T66: =M83+M84 -> 0 | V66: =N83+N84 -> 0 | X66: =O83+O84 -> 0 | Z66: =P83+P84 -> 0
F69: TAUX NON RÉSIDENTIEL | H69: TAUX INDUSTRIEL | L69: TAUX TERRAINS VAGUES DESSERVIS | O69: TAUX CATÉGORIE RÉSIDUELLE (TAUX DE BASE)
C71: Assiette imposable | F71: =Détermination_sec_5!G23 -> 1244467630 | H71: =Détermination_sec_5!G41+Détermination_sec_5!G59 -> 239376640 | L71: =L23 -> 76716400 | O71: =Détermination_sec_5!G78 -> 8384901701
C72: Assiette compensable | F72: =Détermination_sec_5!H23 -> 285184933 | H72: =Détermination_sec_5!H41+Détermination_sec_5!H59 -> 2325200 | L72: =N23 -> 58400 | O72: =Détermination_sec_5!H78 -> 62790167
B74: Sous-catégorie des immeubles non résidentiels
F75: TAUX SOUS-CATÉGORIE DE RÉFÉRENCE | G75: Sous-catégorie 1 | H75: Sous-catégorie 2 | I75: Sous-catégorie 3 | J75: Sous-catégorie 4 | K75: Sous-catégorie 5 | L75: Sous-catégorie 6 | M75: Sous-catégorie 7 | N75: Sous-catégorie 8 | O75: Sous-catégorie 9 | P75: Sous-catégorie 10
C77: Assiette imposable | F77: =Détermination_sec_5!G100 -> 0 | G77: =Détermination_sec_5!G122 -> 0 | H77: =Détermination_sec_5!R122 -> 0 | I77: =Détermination_sec_5!AC122 -> 0 | J77: =Détermination_sec_5!AN122 -> 0 | K77: =Détermination_sec_5!AY122 -> 0 | L77: =Détermination_sec_5!BJ122 -> 0 | M77: =Détermination_sec_5!BU122 -> 0 | N77: =Détermination_sec_5!CF122 -> 0 | O77: =Détermination_sec_5!CQ122 -> 0 | P77: =Détermination_sec_5!DB122 -> 0
C78: Assiette compensable | F78: =Détermination_sec_5!H100 -> 0 | G78: =Détermination_sec_5!H122 -> 0 | H78: =Détermination_sec_5!S122 -> 0 | I78: =Détermination_sec_5!AD122 -> 0 | J78: =Détermination_sec_5!AO122 -> 0 | K78: =Détermination_sec_5!AZ122 -> 0 | L78: =Détermination_sec_5!BK122 -> 0 | M78: =Détermination_sec_5!BV122 -> 0 | N78: =Détermination_sec_5!CG122 -> 0 | O78: =Détermination_sec_5!CR122 -> 0 | P78: =Détermination_sec_5!DC122 -> 0
B80: Sous-catégorie des immeubles résidentiels
F81: TAUX SOUS-CATÉGORIE RÉSIDUELLE | G81: Sous-catégorie 1 | H81: Sous-catégorie 2 | I81: Sous-catégorie 3 | J81: Sous-catégorie 4 | K81: Sous-catégorie 5 | L81: Sous-catégorie 6 | M81: Sous-catégorie 7 | N81: Sous-catégorie 8 | O81: Sous-catégorie 9 | P81: Sous-catégorie 10
C83: Assiette imposable | F83: =Détermination_sec_5!G141 -> 0 | G83: =Détermination_sec_5!G160 -> 0 | H83: =Détermination_sec_5!R160 -> 0 | I83: =Détermination_sec_5!AC160 -> 0 | J83: =Détermination_sec_5!AN160 -> 0 | K83: =Détermination_sec_5!AY160 -> 0 | L83: =Détermination_sec_5!BJ160 -> 0 | M83: =Détermination_sec_5!BU160 -> 0 | N83: =Détermination_sec_5!CF160 -> 0 | O83: =Détermination_sec_5!CQ160 -> 0 | P83: =Détermination_sec_5!DB160 -> 0
C84: Assiette compensable | F84: =Détermination_sec_5!H141 -> 0 | G84: =Détermination_sec_5!H160 -> 0 | H84: =Détermination_sec_5!S160 -> 0 | I84: =Détermination_sec_5!AD160 -> 0 | J84: =Détermination_sec_5!AO160 -> 0 | K84: =Détermination_sec_5!AZ160 -> 0 | L84: =Détermination_sec_5!BK160 -> 0 | M84: =Détermination_sec_5!BV160 -> 0 | N84: =Détermination_sec_5!CG160 -> 0 | O84: =Détermination_sec_5!CR160 -> 0 | P84: =Détermination_sec_5!DC160 -> 0

Sheet Détermination_sec_4 (hidden)
A1: DÉTERMINATION DES ASSIETTES
A3: ASSIETTE AU TAUX NON RÉSIDENTIEL
A4: Classe non résidentielle | B4: Pourcentage de taxation | D4: VAL. NR À 100 % ET IND. CL. 2 À 50 %
D5: Imposables | E5: Compensables | G5: Imposables pondérées | H5: Compensables pondérées | J5: Total
B6: (1) | D6: (2) | E6: (3) | G6: (4) = (1) X (2) | H6: (5) = (1 ) X (3) | J6: (6) = (4) + (5)
A7: 1A | B7: 0.001 | D7: ='Sommaire du rôle_sec_4'!F7 -> 76534150 | E7: ='Sommaire du rôle_sec_4'!G7 -> 0 | G7: =B7*D7 -> 76534.15 | H7: =B7*E7 -> 0 | J7: =G7+H7 -> 76534.15
A8: 1B | B8: 0.005 | D8: ='Sommaire du rôle_sec_4'!F8 -> 34712370 | E8: ='Sommaire du rôle_sec_4'!G8 -> 0 | G8: 173561.85 | H8: 0 | J8: 173561.85
A9: 1C | B9: 0.01 | D9: ='Sommaire du rôle_sec_4'!F9 -> 4894450 | E9: ='Sommaire du rôle_sec_4'!G9 -> 0 | G9: 48944.5 | H9: 0 | J9: 48944.5
A10: 2 | B10: 0.03 | D10: ='Sommaire du rôle_sec_4'!F10 -> 23616670 | E10: ='Sommaire du rôle_sec_4'!G10 -> 0 | G10: 708500.1 | H10: 0 | J10: 708500.1
A11: 3 | B11: 0.06 | D11: ='Sommaire du rôle_sec_4'!F11 -> 44153450 | E11: ='Sommaire du rôle_sec_4'!G11 -> 0 | G11: 2649207 | H11: 0 | J11: 2649207
A12: 4 | B12: 0.12 | D12: ='Sommaire du rôle_sec_4'!F12 -> 60256460 | E12: ='Sommaire du rôle_sec_4'!G12 -> 0 | G12: 7230775.2 | H12: 0 | J12: 7230775.2
A13: 5 | B13: 0.22 | D13: ='Sommaire du rôle_sec_4'!F13 -> 38643990 | E13: ='Sommaire du rôle_sec_4'!G13 -> 0 | G13: 8501677.8 | H13: 0 | J13: 8501677.8
A14: 6 | B14: 0.4 | D14: ='Sommaire du rôle_sec_4'!F14 -> 38532890 | E14: ='Sommaire du rôle_sec_4'!G14 -> 0 | G14: 15413156 | H14: 0 | J14: 15413156
A15: 7 | B15: 0.6 | D15: ='Sommaire du rôle_sec_4'!F15 -> 39569365 | E15: ='Sommaire du rôle_sec_4'!G15 -> 72376370 | G15: 23741619 | H15: 43425822 | J15: 67167441
A16: 8 | B16: 0.85 | D16: ='Sommaire du rôle_sec_4'!F16 -> 22323070 | E16: ='Sommaire du rôle_sec_4'!G16 -> 211592260 | G16: 18974609.5 | H16: 179853421 | J16: 198828030.5
A17: 9 | B17: 1 | D17: ='Sommaire du rôle_sec_4'!F17 -> 3177900 | E17: ='Sommaire du rôle_sec_4'!G17 -> 0 | G17: 3177900 | H17: 0 | J17: 3177900
A18: 10 | B18: 1 | D18: ='Sommaire du rôle_sec_4'!F18 -> 1155755205 | E18: ='Sommaire du rôle_sec_4'!G18 -> 61905690 | G18: 1155755205 | H18: 61905690 | J18: 1217660895
A19: 11 Cours de triage | B19: 100% | D19: ='Sommaire du rôle_sec_4'!F19 -> 0 | E19: ='Sommaire du rôle_sec_4'!G19 -> 0 | G19: 0 | H19: 0 | J19: 0
A20: 12 CHSLD | B20: 0.2 | D20: ='Sommaire du rôle_sec_4'!F20 -> 13938200 | G20: 2787640 | J20: 2787640
A21: 13 Cours de triage 40 % | B21: 40% | D21: ='Sommaire du rôle_sec_4'!F21 -> 0 | G21: 0 | J21: 0
A22: APPLICATION DU TNR QUAND TTVD | B22: 1 | D22: ='Sommaire du rôle_sec_4'!F22 -> 5228300 | E22: ='Sommaire du rôle_sec_4'!G22 -> 0 | G22: 5228300 | H22: =B22*E22 -> 0 | J22: 5228300
A23: Total | G23: =SUM(G7:G22) -> 1244467630 | H23: =SUM(H7:H22) -> 285184933 | J23: 1529652563
A25: ASSIETTE AU TAUX INDUSTRIEL (CLASSE 2)
A26: Classe non résidentielle | B26: Pourcentage de taxation | D26: VALEUR À 50 %
D27: Imposables | E27: Compensables | G27: Imposables pondérées | H27: Compensables pondérées | J27: Total
B28: (1) | D28: (2) | E28: (3) | G28: (4) = (1) X (2) | H28: (5) = (1) X (3) | J28: (6) = (4) + (5)
A29: 1A | B29: 0.001 | D29: ='Sommaire du rôle_sec_4'!H7 -> 0 | E29: ='Sommaire du rôle_sec_4'!I7 -> 0 | G29: =B29*D29 -> 0 | H29: =B29*E29 -> 0 | J29: =G29+H29 -> 0
A30: 1B | B30: 0.005 | D30: ='Sommaire du rôle_sec_4'!H8 -> 0 | E30: ='Sommaire du rôle_sec_4'!I8 -> 0 | G30: 0 | H30: 0 | J30: 0
A31: 1C | B31: 0.01 | D31: ='Sommaire du rôle_sec_4'!H9 -> 0 | E31: ='Sommaire du rôle_sec_4'!I9 -> 0 | G31: 0 | H31: 0 | J31: 0
A32: 2 | B32: 0.03 | D32: ='Sommaire du rôle_sec_4'!H10 -> 0 | E32: ='Sommaire du rôle_sec_4'!I10 -> 0 | G32: 0 | H32: 0 | J32: 0
A33: 3 | B33: 0.06 | D33: ='Sommaire du rôle_sec_4'!H11 -> 0 | E33: ='Sommaire du rôle_sec_4'!I11 -> 0 | G33: 0 | H33: 0 | J33: 0
A34: 4 | B34: 0.12 | D34: ='Sommaire du rôle_sec_4'!H12 -> 0 | E34: ='Sommaire du rôle_sec_4'!I12 -> 0 | G34: 0 | H34: 0 | J34: 0
A35: 5 | B35: 0.22 | D35: ='Sommaire du rôle_sec_4'!H13 -> 0 | E35: ='Sommaire du rôle_sec_4'!I13 -> 0 | G35: 0 | H35: 0 | J35: 0
A36: 6 | B36: 0.4 | D36: ='Sommaire du rôle_sec_4'!H14 -> 290100 | E36: ='Sommaire du rôle_sec_4'!I14 -> 0 | G36: 116040 | H36: 0 | J36: 116040
A37: 7 | B37: 0.6 | D37: ='Sommaire du rôle_sec_4'!H15 -> 350350 | E37: ='Sommaire du rôle_sec_4'!I15 -> 0 | G37: 210210 | H37: 0 | J37: 210210
A38: 8 | B38: 0.85 | D38: ='Sommaire du rôle_sec_4'!H16 -> 0 | E38: ='Sommaire du rôle_sec_4'!I16 -> 0 | G38: 0 | H38: 0 | J38: 0
A39: 9 | B39: 1 | D39: ='Sommaire du rôle_sec_4'!H17 -> 0 | E39: ='Sommaire du rôle_sec_4'!I17 -> 0 | G39: 0 | H39: 0 | J39: 0
A40: 10 | B40: 1 | D40: ='Sommaire du rôle_sec_4'!H18 -> 10515650 | E40: ='Sommaire du rôle_sec_4'!I18 -> 0 | G40: 10515650 | H40: 0 | J40: 10515650
A41: Total | G41: =SUM(G29:G40) -> 10841900 | H41: =SUM(H29:H40) -> 0 | J41: 10841900
A43: ASSIETTE AU TAUX IND. (SAUF CL.1 ET 2)
A44: Classe non résidentielle | B44: Pourcentage de taxation | D44: VALEUR À 100 %
D45: Imposables | E45: Compensables | G45: Imposables pondérées | H45: Compensables pondérées | J45: Total
B46: (1) | D46: (2) | E46: (3) | G46: (4) = (1) X (2) | H46: (5) = (1) X (3) | J46: (6) = (4) + (5)
A47: 1A | B47: 0.001 | D47: ='Sommaire du rôle_sec_4'!J7 -> 0 | E47: ='Sommaire du rôle_sec_4'!K7 -> 0 | G47: =B47*D47 -> 0 | H47: =B47*E47 -> 0 | J47: =G47+H47 -> 0
A48: 1B | B48: 0.005 | D48: ='Sommaire du rôle_sec_4'!J8 -> 0 | E48: ='Sommaire du rôle_sec_4'!K8 -> 0 | G48: 0 | H48: 0 | J48: 0
A49: 1C | B49: 0.01 | D49: ='Sommaire du rôle_sec_4'!J9 -> 0 | E49: ='Sommaire du rôle_sec_4'!K9 -> 0 | G49: 0 | H49: 0 | J49: 0
A50: 2 | B50: 0.03 | D50: ='Sommaire du rôle_sec_4'!J10 -> 605900 | E50: ='Sommaire du rôle_sec_4'!K10 -> 0 | G50: 18177 | H50: 0 | J50: 18177
A51: 3 | B51: 0.06 | D51: ='Sommaire du rôle_sec_4'!J11 -> 181400 | E51: ='Sommaire du rôle_sec_4'!K11 -> 0 | G51: 10884 | H51: 0 | J51: 10884
A52: 4 | B52: 0.12 | D52: ='Sommaire du rôle_sec_4'!J12 -> 215700 | E52: ='Sommaire du rôle_sec_4'!K12 -> 0 | G52: 25884 | H52: 0 | J52: 25884
A53: 5 | B53: 0.22 | D53: ='Sommaire du rôle_sec_4'!J13 -> 0 | E53: ='Sommaire du rôle_sec_4'!K13 -> 0 | G53: 0 | H53: 0 | J53: 0
A54: 6 | B54: 0.4 | D54: ='Sommaire du rôle_sec_4'!J14 -> 2421200 | E54: ='Sommaire du rôle_sec_4'!K14 -> 0 | G54: 968480 | H54: 0 | J54: 968480
A55: 7 | B55: 0.6 | D55: ='Sommaire du rôle_sec_4'!J15 -> 354000 | E55: ='Sommaire du rôle_sec_4'!K15 -> 0 | G55: 212400 | H55: 0 | J55: 212400
A56: 8 | B56: 0.85 | D56: ='Sommaire du rôle_sec_4'!J16 -> 1875900 | E56: ='Sommaire du rôle_sec_4'!K16 -> 0 | G56: 1594515 | H56: 0 | J56: 1594515
A57: 9 | B57: 1 | D57: ='Sommaire du rôle_sec_4'!J17 -> 0 | E57: ='Sommaire du rôle_sec_4'!K17 -> 0 | G57: 0 | H57: 0 | J57: 0
A58: 10 | B58: 1 | D58: ='Sommaire du rôle_sec_4'!J18 -> 225704400 | E58: ='Sommaire du rôle_sec_4'!K18 -> 2325200 | G58: 225704400 | H58: 2325200 | J58: 228029600
A59: Total | G59: =SUM(G47:G58) -> 228534740 | H59: =SUM(H47:H58) -> 2325200 | J59: 230859940
A61: ASSIETTE AU TAUX DE BASE
A62: Classe non résidentielle | B62: Pourcentage de taxation | D62: VALEUR À 100 %
D63: Imposables | E63: Compensables | G63: Imposables pondérées | H63: Compensables pondérées | J63: Total
B64: (1) | D64: (2) | E64: (3) | G64: (4) = (1) X (2) | H64: (5) = (1) X (3) | J64: (6) = (4) + (5)
A65: 1A | B65: 0.999 | D65: ='Sommaire du rôle_sec_4'!P7 -> 76534150 | E65: ='Sommaire du rôle_sec_4'!Q7 -> 0 | G65: =D65*B65 -> 76457615.85 | H65: =B65*E65 -> 0 | J65: =G65+H65 -> 76457615.85
A66: 1B | B66: 0.995 | D66: ='Sommaire du rôle_sec_4'!P8 -> 34712370 | E66: ='Sommaire du rôle_sec_4'!Q8 -> 0 | G66: 34538808.15 | H66: 0 | J66: 34538808.15
A67: 1C | B67: 0.99 | D67: ='Sommaire du rôle_sec_4'!P9 -> 4894450 | E67: ='Sommaire du rôle_sec_4'!Q9 -> 0 | G67: 4845505.5 | H67: 0 | J67: 4845505.5
A68: 2 | B68: 0.97 | D68: ='Sommaire du rôle_sec_4'!P10 -> 23616670 | E68: ='Sommaire du rôle_sec_4'!Q10 -> 0 | G68: 22908169.9 | H68: 0 | J68: 22908169.9
A69: 3 | B69: 0.94 | D69: ='Sommaire du rôle_sec_4'!P11 -> 44153450 | E69: ='Sommaire du rôle_sec_4'!Q11 -> 0 | G69: 41504243 | H69: 0 | J69: 41504243
A70: 4 | B70: 0.88 | D70: ='Sommaire du rôle_sec_4'!P12 -> 60256460 | E70: ='Sommaire du rôle_sec_4'!Q12 -> 0 | G70: 53025684.8 | H70: 0 | J70: 53025684.8
A71: 5 | B71: 0.78 | D71: ='Sommaire du rôle_sec_4'!P13 -> 38643990 | E71: ='Sommaire du rôle_sec_4'!Q13 -> 0 | G71: 30142312.2 | H71: 0 | J71: 30142312.2
A72: 6 | B72: 0.6 | D72: ='Sommaire du rôle_sec_4'!P14 -> 38532890 | E72: ='Sommaire du rôle_sec_4'!Q14 -> 0 | G72: 23119734 | H72: 0 | J72: 23119734
A73: 7 | B73: 0.4 | D73: ='Sommaire du rôle_sec_4'!P15 -> 39569365 | E73: ='Sommaire du rôle_sec_4'!Q15 -> 72376370 | G73: 15827746 | H73: 28950548 | J73: 44778294
A74: 8 | B74: 0.15 | D74: ='Sommaire du rôle_sec_4'!P16 -> 22323070 | E74: ='Sommaire du rôle_sec_4'!Q16 -> 211592260 | G74: 3348460.5 | H74: 31738839 | J74: 35087299.5
A75: IMMEUBLES SANS PARTIE NON RÉSIDENTIELLE | B75: 1 | D75: ='Sommaire du rôle_sec_4'!P18 -> 8068032861 | E75: ='Sommaire du rôle_sec_4'!Q18 -> 2100780 | G75: 8068032861 | H75: 2100780 | J75: 8070133641
A76: 12 CHSLD | B76: 0.8 | D76: ='Sommaire du rôle_sec_4'!P20 -> 13938200 | G76: 11150560
A77: 13 Cours de triage | B77: 0.6 | D77: ='Sommaire du rôle_sec_4'!P21 -> 0 | G77: 0
A78: Total | G78: =SUM(G65:G77) -> 8384901701 | H78: =SUM(H65:H75) -> 62790167 | I78: =SUM(I65:I75) -> 0 | J78: =G78+H78 -> 8447691868
A80: ASSIETTE AU TAUX NON RÉSIDENTIEL RÉFÉRENCE
A81: Classe non résidentielle | B81: Pourcentage de taxation | D81: VAL. NR À 100 % ET IND. CL. 2 À 50 %
D82: Imposables | E82: Compensables | G82: Imposables pondérées | H82: Compensables pondérées | J82: Total
B83: (1) | D83: (2) | E83: (3) | G83: (4) = (1) X (2) | H83: (5) = (1 ) X (3) | J83: (6) = (4) + (5)
A84: 1A | B84: 0.001 | D84: ='Sommaire du rôle_sec_4'!F30 -> 0 | E84: ='Sommaire du rôle_sec_4'!G30 -> 0 | G84: =B84*D84 -> 0 | H84: =B84*E84 -> 0 | J84: =G84+H84 -> 0
A85: 1B | B85: 0.005 | D85: ='Sommaire du rôle_sec_4'!F31 -> 0 | E85: ='Sommaire du rôle_sec_4'!G31 -> 0 | G85: 0 | H85: 0 | J85: 0
A86: 1C | B86: 0.01 | D86: ='Sommaire du rôle_sec_4'!F32 -> 0 | E86: ='Sommaire du rôle_sec_4'!G32 -> 0 | G86: 0 | H86: 0 | J86: 0
A87: 2 | B87: 0.03 | D87: ='Sommaire du rôle_sec_4'!F33 -> 0 | E87: ='Sommaire du rôle_sec_4'!G33 -> 0 | G87: 0 | H87: 0 | J87: 0
A88: 3 | B88: 0.06 | D88: ='Sommaire du rôle_sec_4'!F34 -> 0 | E88: ='Sommaire du rôle_sec_4'!G34 -> 0 | G88: 0 | H88: 0 | J88: 0
A89: 4 | B89: 0.12 | D89: ='Sommaire du rôle_sec_4'!F35 -> 0 | E89: ='Sommaire du rôle_sec_4'!G35 -> 0 | G89: 0 | H89: 0 | J89: 0
A90: 5 | B90: 0.22 | D90: ='Sommaire du rôle_sec_4'!F36 -> 0 | E90: ='Sommaire du rôle_sec_4'!G36 -> 0 | G90: 0 | H90: 0 | J90: 0
A91: 6 | B91: 0.4 | D91: ='Sommaire du rôle_sec_4'!F37 -> 0 | E91: ='Sommaire du rôle_sec_4'!G37 -> 0 | G91: 0 | H91: 0 | J91: 0
A92: 7 | B92: 0.6 | D92: ='Sommaire du rôle_sec_4'!F38 -> 0 | E92: ='Sommaire du rôle_sec_4'!G38 -> 0 | G92: 0 | H92: 0 | J92: 0
A93: 8 | B93: 0.85 | D93: ='Sommaire du rôle_sec_4'!F39 -> 0 | E93: ='Sommaire du rôle_sec_4'!G39 -> 0 | G93: 0 | H93: 0 | J93: 0
A94: 9 | B94: 1 | D94: ='Sommaire du rôle_sec_4'!F40 -> 0 | E94: ='Sommaire du rôle_sec_4'!G40 -> 0 | G94: 0 | H94: 0 | J94: 0
A95: 10 | B95: 1 | D95: ='Sommaire du rôle_sec_4'!F41 -> 0 | E95: ='Sommaire du rôle_sec_4'!G41 -> 0 | G95: 0 | H95: 0 | J95: 0
A96: 11 Cours de triage | B96: 100% | D96: ='Sommaire du rôle_sec_4'!F42 -> 0 | E96: ='Sommaire du rôle_sec_4'!G42 -> 0 | G96: 0 | H96: 0 | J96: 0
A97: 12 CHSLD | B97: 0.2 | D97: ='Sommaire du rôle_sec_4'!F43 -> 0 | G97: 0 | J97: 0
A98: 13 Cours de triage 40 % | B98: 40% | D98: ='Sommaire du rôle_sec_4'!F44 -> 0 | G98: 0 | J98: 0
A99: APPLICATION DU TNR QUAND TTVD | B99: 1 | D99: ='Sommaire du rôle_sec_4'!F45 -> 0 | E99: ='Sommaire du rôle_sec_4'!G45 -> 0 | G99: 0 | H99: =B99*E99 -> 0 | J99: 0
A100: Total | G100: =SUM(G84:G99) -> 0 | H100: =SUM(H84:H99) -> 0 | J100: 0
A102: ASSIETTE AU TAUX NON RÉSIDENTIEL SOUS-CATÉGORIE 1 | L102: ASSIETTE AU TAUX NON RÉSIDENTIEL SOUS-CATÉGORIE 2 | W102: ASSIETTE AU TAUX NON RÉSIDENTIEL SOUS-CATÉGORIE 3 | AH102: ASSIETTE AU TAUX NON RÉSIDENTIEL SOUS-CATÉGORIE 4 | AS102: ASSIETTE AU TAUX NON RÉSIDENTIEL SOUS-CATÉGORIE 5 | BD102: ASSIETTE AU TAUX NON RÉSIDENTIEL SOUS-CATÉGORIE 6 | BO102: ASSIETTE AU TAUX NON RÉSIDENTIEL SOUS-CATÉGORIE 7 | BZ102: ASSIETTE AU TAUX NON RÉSIDENTIEL SOUS-CATÉGORIE 8 | CK102: ASSIETTE AU TAUX NON RÉSIDENTIEL SOUS-CATÉGORIE 9 | CV102: ASSIETTE AU TAUX NON RÉSIDENTIEL SOUS-CATÉGORIE 10
A103: Classe non résidentielle | B103: Pourcentage de taxation | D103: VAL. NR À 100 % ET IND. CL. 2 À 50 % | L103: Classe non résidentielle | M103: Pourcentage de taxation | O103: VAL. NR À 100 % ET IND. CL. 2 À 50 % | W103: Classe non résidentielle | X103: Pourcentage de taxation | Z103: VAL. NR À 100 % ET IND. CL. 2 À 50 % | AH103: Classe non résidentielle | AI103: Pourcentage de taxation | AK103: VAL. NR À 100 % ET IND. CL. 2 À 50 % | AS103: Classe non résidentielle | AT103: Pourcentage de taxation | AV103: VAL. NR À 100 % ET IND. CL. 2 À 50 % | BD103: Classe non résidentielle | BE103: Pourcentage de taxation | BG103: VAL. NR À 100 % ET IND. CL. 2 À 50 % | BO103: Classe non résidentielle | BP103: Pourcentage de taxation | BR103: VAL. NR À 100 % ET IND. CL. 2 À 50 % | BZ103: Classe non résidentielle | CA103: Pourcentage de taxation | CC103: VAL. NR À 100 % ET IND. CL. 2 À 50 % | CK103: Classe non résidentielle | CL103: Pourcentage de taxation | CN103: VAL. NR À 100 % ET IND. CL. 2 À 50 % | CV103: Classe non résidentielle | CW103: Pourcentage de taxation | CY103: VAL. NR À 100 % ET IND. CL. 2 À 50 %
D104: Imposables | E104: Compensables | G104: Imposables pondérées | H104: Compensables pondérées | J104: Total | O104: Imposables | P104: Compensables | R104: Imposables pondérées | S104: Compensables pondérées | U104: Total | Z104: Imposables | AA104: Compensables | AC104: Imposables pondérées | AD104: Compensables pondérées | AF104: Total | AK104: Imposables | AL104: Compensables | AN104: Imposables pondérées | AO104: Compensables pondérées | AQ104: Total | AV104: Imposables | AW104: Compensables | AY104: Imposables pondérées | AZ104: Compensables pondérées | BB104: Total | BG104: Imposables | BH104: Compensables | BJ104: Imposables pondérées | BK104: Compensables pondérées | BM104: Total | BR104: Imposables | BS104: Compensables | BU104: Imposables pondérées | BV104: Compensables pondérées | BX104: Total | CC104: Imposables | CD104: Compensables | CF104: Imposables pondérées | CG104: Compensables pondérées | CI104: Total | CN104: Imposables | CO104: Compensables | CQ104: Imposables pondérées | CR104: Compensables pondérées | CT104: Total | CY104: Imposables | CZ104: Compensables | DB104: Imposables pondérées | DC104: Compensables pondérées | DE104: Total
B105: (1) | D105: (2) | E105: (3) | G105: (4) = (1) X (2) | H105: (5) = (1 ) X (3) | J105: (6) = (4) + (5) | M105: (1) | O105: (2) | P105: (3) | R105: (4) = (1) X (2) | S105: (5) = (1 ) X (3) | U105: (6) = (4) + (5) | X105: (1) | Z105: (2) | AA105: (3) | AC105: (4) = (1) X (2) | AD105: (5) = (1 ) X (3) | AF105: (6) = (4) + (5) | AI105: (1) | AK105: (2) | AL105: (3) | AN105: (4) = (1) X (2) | AO105: (5) = (1 ) X (3) | AQ105: (6) = (4) + (5) | AT105: (1) | AV105: (2) | AW105: (3) | AY105: (4) = (1) X (2) | AZ105: (5) = (1 ) X (3) | BB105: (6) = (4) + (5) | BE105: (1) | BG105: (2) | BH105: (3) | BJ105: (4) = (1) X (2) | BK105: (5) = (1 ) X (3) | BM105: (6) = (4) + (5) | BP105: (1) | BR105: (2) | BS105: (3) | BU105: (4) = (1) X (2) | BV105: (5) = (1 ) X (3) | BX105: (6) = (4) + (5) | CA105: (1) | CC105: (2) | CD105: (3) | CF105: (4) = (1) X (2) | CG105: (5) = (1 ) X (3) | CI105: (6) = (4) + (5) | CL105: (1) | CN105: (2) | CO105: (3) | CQ105: (4) = (1) X (2) | CR105: (5) = (1 ) X (3) | CT105: (6) = (4) + (5) | CW105: (1) | CY105: (2) | CZ105: (3) | DB105: (4) = (1) X (2) | DC105: (5) = (1 ) X (3) | DE105: (6) = (4) + (5)
A106: 1A | B106: 0.001 | D106: ='Sommaire du rôle_sec_4'!H30 -> 0 | E106: ='Sommaire du rôle_sec_4'!I30 -> 0 | G106: =B106*D106 -> 0 | H106: =B106*E106 -> 0 | J106: =G106+H106 -> 0 | L106: 1A | M106: 0.001 | O106: ='Sommaire du rôle_sec_4'!J30 -> 0 | P106: ='Sommaire du rôle_sec_4'!K30 -> 0 | R106: =M106*O106 -> 0 | S106: =M106*P106 -> 0 | U106: =R106+S106 -> 0 | W106: 1A | X106: 0.001 | Z106: ='Sommaire du rôle_sec_4'!L30 -> 0 | AA106: ='Sommaire du rôle_sec_4'!M30 -> 0 | AC106: =X106*Z106 -> 0 | AD106: =X106*AA106 -> 0 | AF106: =AC106+AD106 -> 0 | AH106: 1A | AI106: 0.001 | AK106: ='Sommaire du rôle_sec_4'!N30 -> 0 | AL106: ='Sommaire du rôle_sec_4'!O30 -> 0 | AN106: =AI106*AK106 -> 0 | AO106: =AI106*AL106 -> 0 | AQ106: =AN106+AO106 -> 0 | AS106: 1A | AT106: 0.001 | AV106: ='Sommaire du rôle_sec_4'!P30 -> 0 | AW106: ='Sommaire du rôle_sec_4'!Q30 -> 0 | AY106: =AT106*AV106 -> 0 | AZ106: =AT106*AW106 -> 0 | BB106: =AY106+AZ106 -> 0 | BD106: 1A | BE106: 0.001 | BG106: ='Sommaire du rôle_sec_4'!R30 -> 0 | BH106: ='Sommaire du rôle_sec_4'!S30 -> 0 | BJ106: =BE106*BG106 -> 0 | BK106: =BE106*BH106 -> 0 | BM106: =BJ106+BK106 -> 0 | BO106: 1A | BP106: 0.001 | BR106: ='Sommaire du rôle_sec_4'!T30 -> 0 | BS106: ='Sommaire du rôle_sec_4'!U30 -> 0 | BU106: =BP106*BR106 -> 0 | BV106: =BP106*BS106 -> 0 | BX106: =BU106+BV106 -> 0 | BZ106: 1A | CA106: 0.001 | CC106: ='Sommaire du rôle_sec_4'!V30 -> 0 | CD106: ='Sommaire du rôle_sec_4'!W30 -> 0 | CF106: =CA106*CC106 -> 0 | CG106: =CA106*CD106 -> 0 | CI106: =CF106+CG106 -> 0 | CK106: 1A | CL106: 0.001 | CN106: ='Sommaire du rôle_sec_4'!X30 -> 0 | CO106: ='Sommaire du rôle_sec_4'!Y30 -> 0 | CQ106: =CL106*CN106 -> 0 | CR106: =CL106*CO106 -> 0 | CT106: =CQ106+CR106 -> 0 | CV106: 1A | CW106: 0.001 | CY106: ='Sommaire du rôle_sec_4'!Z30 -> 0 | CZ106: ='Sommaire du rôle_sec_4'!AA30 -> 0 | DB106: =CW106*CY106 -> 0 | DC106: =CW106*CZ106 -> 0 | DE106: =DB106+DC106 -> 0
A107: 1B | B107: 0.005 | D107: ='Sommaire du rôle_sec_4'!H31 -> 0 | E107: ='Sommaire du rôle_sec_4'!I31 -> 0 | G107: 0 | H107: 0 | J107: 0 | L107: 1B | M107: 0.005 | O107: ='Sommaire du rôle_sec_4'!J31 -> 0 | P107: ='Sommaire du rôle_sec_4'!K31 -> 0 | R107: 0 | S107: 0 | U107: 0 | W107: 1B | X107: 0.005 | Z107: ='Sommaire du rôle_sec_4'!L31 -> 0 | AA107: ='Sommaire du rôle_sec_4'!M31 -> 0 | AC107: 0 | AD107: 0 | AF107: 0 | AH107: 1B | AI107: 0.005 | AK107: ='Sommaire du rôle_sec_4'!N31 -> 0 | AL107: ='Sommaire du rôle_sec_4'!O31 -> 0 | AN107: 0 | AO107: 0 | AQ107: 0 | AS107: 1B | AT107: 0.005 | AV107: ='Sommaire du rôle_sec_4'!P31 -> 0 | AW107: ='Sommaire du rôle_sec_4'!Q31 -> 0 | AY107: 0 | AZ107: 0 | BB107: 0 | BD107: 1B | BE107: 0.005 | BG107: ='Sommaire du rôle_sec_4'!R31 -> 0 | BH107: ='Sommaire du rôle_sec_4'!S31 -> 0 | BJ107: 0 | BK107: 0 | BM107: 0 | BO107: 1B | BP107: 0.005 | BR107: ='Sommaire du rôle_sec_4'!T31 -> 0 | BS107: ='Sommaire du rôle_sec_4'!U31 -> 0 | BU107: 0 | BV107: 0 | BX107: 0 | BZ107: 1B | CA107: 0.005 | CC107: ='Sommaire du rôle_sec_4'!V31 -> 0 | CD107: ='Sommaire du rôle_sec_4'!W31 -> 0 | CF107: 0 | CG107: 0 | CI107: 0 | CK107: 1B | CL107: 0.005 | CN107: ='Sommaire du rôle_sec_4'!X31 -> 0 | CO107: ='Sommaire du rôle_sec_4'!Y31 -> 0 | CQ107: 0 | CR107: 0 | CT107: 0 | CV107: 1B | CW107: 0.005 | CY107: ='Sommaire du rôle_sec_4'!Z31 -> 0 | CZ107: ='Sommaire du rôle_sec_4'!AA31 -> 0 | DB107: 0 | DC107: 0 | DE107: 0
A108: 1C | B108: 0.01 | D108: ='Sommaire du rôle_sec_4'!H32 -> 0 | E108: ='Sommaire du rôle_sec_4'!I32 -> 0 | G108: 0 | H108: 0 | J108: 0 | L108: 1C | M108: 0.01 | O108: ='Sommaire du rôle_sec_4'!J32 -> 0 | P108: ='Sommaire du rôle_sec_4'!K32 -> 0 | R108: 0 | S108: 0 | U108: 0 | W108: 1C | X108: 0.01 | Z108: ='Sommaire du rôle_sec_4'!L32 -> 0 | AA108: ='Sommaire du rôle_sec_4'!M32 -> 0 | AC108: 0 | AD108: 0 | AF108: 0 | AH108: 1C | AI108: 0.01 | AK108: ='Sommaire du rôle_sec_4'!N32 -> 0 | AL108: ='Sommaire du rôle_sec_4'!O32 -> 0 | AN108: 0 | AO108: 0 | AQ108: 0 | AS108: 1C | AT108: 0.01 | AV108: ='Sommaire du rôle_sec_4'!P32 -> 0 | AW108: ='Sommaire du rôle_sec_4'!Q32 -> 0 | AY108: 0 | AZ108: 0 | BB108: 0 | BD108: 1C | BE108: 0.01 | BG108: ='Sommaire du rôle_sec_4'!R32 -> 0 | BH108: ='Sommaire du rôle_sec_4'!S32 -> 0 | BJ108: 0 | BK108: 0 | BM108: 0 | BO108: 1C | BP108: 0.01 | BR108: ='Sommaire du rôle_sec_4'!T32 -> 0 | BS108: ='Sommaire du rôle_sec_4'!U32 -> 0 | BU108: 0 | BV108: 0 | BX108: 0 | BZ108: 1C | CA108: 0.01 | CC108: ='Sommaire du rôle_sec_4'!V32 -> 0 | CD108: ='Sommaire du rôle_sec_4'!W32 -> 0 | CF108: 0 | CG108: 0 | CI108: 0 | CK108: 1C | CL108: 0.01 | CN108: ='Sommaire du rôle_sec_4'!X32 -> 0 | CO108: ='Sommaire du rôle_sec_4'!Y32 -> 0 | CQ108: 0 | CR108: 0 | CT108: 0 | CV108: 1C | CW108: 0.01 | CY108: ='Sommaire du rôle_sec_4'!Z32 -> 0 | CZ108: ='Sommaire du rôle_sec_4'!AA32 -> 0 | DB108: 0 | DC108: 0 | DE108: 0
A109: 2 | B109: 0.03 | D109: ='Sommaire du rôle_sec_4'!H33 -> 0 | E109: ='Sommaire du rôle_sec_4'!I33 -> 0 | G109: 0 | H109: 0 | J109: 0 | L109: 2 | M109: 0.03 | O109: ='Sommaire du rôle_sec_4'!J33 -> 0 | P109: ='Sommaire du rôle_sec_4'!K33 -> 0 | R109: 0 | S109: 0 | U109: 0 | W109: 2 | X109: 0.03 | Z109: ='Sommaire du rôle_sec_4'!L33 -> 0 | AA109: ='Sommaire du rôle_sec_4'!M33 -> 0 | AC109: 0 | AD109: 0 | AF109: 0 | AH109: 2 | AI109: 0.03 | AK109: ='Sommaire du rôle_sec_4'!N33 -> 0 | AL109: ='Sommaire du rôle_sec_4'!O33 -> 0 | AN109: 0 | AO109: 0 | AQ109: 0 | AS109: 2 | AT109: 0.03 | AV109: ='Sommaire du rôle_sec_4'!P33 -> 0 | AW109: ='Sommaire du rôle_sec_4'!Q33 -> 0 | AY109: 0 | AZ109: 0 | BB109: 0 | BD109: 2 | BE109: 0.03 | BG109: ='Sommaire du rôle_sec_4'!R33 -> 0 | BH109: ='Sommaire du rôle_sec_4'!S33 -> 0 | BJ109: 0 | BK109: 0 | BM109: 0 | BO109: 2 | BP109: 0.03 | BR109: ='Sommaire du rôle_sec_4'!T33 -> 0 | BS109: ='Sommaire du rôle_sec_4'!U33 -> 0 | BU109: 0 | BV109: 0 | BX109: 0 | BZ109: 2 | CA109: 0.03 | CC109: ='Sommaire du rôle_sec_4'!V33 -> 0 | CD109: ='Sommaire du rôle_sec_4'!W33 -> 0 | CF109: 0 | CG109: 0 | CI109: 0 | CK109: 2 | CL109: 0.03 | CN109: ='Sommaire du rôle_sec_4'!X33 -> 0 | CO109: ='Sommaire du rôle_sec_4'!Y33 -> 0 | CQ109: 0 | CR109: 0 | CT109: 0 | CV109: 2 | CW109: 0.03 | CY109: ='Sommaire du rôle_sec_4'!Z33 -> 0 | CZ109: ='Sommaire du rôle_sec_4'!AA33 -> 0 | DB109: 0 | DC109: 0 | DE109: 0
A110: 3 | B110: 0.06 | D110: ='Sommaire du rôle_sec_4'!H34 -> 0 | E110: ='Sommaire du rôle_sec_4'!I34 -> 0 | G110: 0 | H110: 0 | J110: 0 | L110: 3 | M110: 0.06 | O110: ='Sommaire du rôle_sec_4'!J34 -> 0 | P110: ='Sommaire du rôle_sec_4'!K34 -> 0 | R110: 0 | S110: 0 | U110: 0 | W110: 3 | X110: 0.06 | Z110: ='Sommaire du rôle_sec_4'!L34 -> 0 | AA110: ='Sommaire du rôle_sec_4'!M34 -> 0 | AC110: 0 | AD110: 0 | AF110: 0 | AH110: 3 | AI110: 0.06 | AK110: ='Sommaire du rôle_sec_4'!N34 -> 0 | AL110: ='Sommaire du rôle_sec_4'!O34 -> 0 | AN110: 0 | AO110: 0 | AQ110: 0 | AS110: 3 | AT110: 0.06 | AV110: ='Sommaire du rôle_sec_4'!P34 -> 0 | AW110: ='Sommaire du rôle_sec_4'!Q34 -> 0 | AY110: 0 | AZ110: 0 | BB110: 0 | BD110: 3 | BE110: 0.06 | BG110: ='Sommaire du rôle_sec_4'!R34 -> 0 | BH110: ='Sommaire du rôle_sec_4'!S34 -> 0 | BJ110: 0 | BK110: 0 | BM110: 0 | BO110: 3 | BP110: 0.06 | BR110: ='Sommaire du rôle_sec_4'!T34 -> 0 | BS110: ='Sommaire du rôle_sec_4'!U34 -> 0 | BU110: 0 | BV110: 0 | BX110: 0 | BZ110: 3 | CA110: 0.06 | CC110: ='Sommaire du rôle_sec_4'!V34 -> 0 | CD110: ='Sommaire du rôle_sec_4'!W34 -> 0 | CF110: 0 | CG110: 0 | CI110: 0 | CK110: 3 | CL110: 0.06 | CN110: ='Sommaire du rôle_sec_4'!X34 -> 0 | CO110: ='Sommaire du rôle_sec_4'!Y34 -> 0 | CQ110: 0 | CR110: 0 | CT110: 0 | CV110: 3 | CW110: 0.06 | CY110: ='Sommaire du rôle_sec_4'!Z34 -> 0 | CZ110: ='Sommaire du rôle_sec_4'!AA34 -> 0 | DB110: 0 | DC110: 0 | DE110: 0
A111: 4 | B111: 0.12 | D111: ='Sommaire du rôle_sec_4'!H35 -> 0 | E111: ='Sommaire du rôle_sec_4'!I35 -> 0 | G111: 0 | H111: 0 | J111: 0 | L111: 4 | M111: 0.12 | O111: ='Sommaire du rôle_sec_4'!J35 -> 0 | P111: ='Sommaire du rôle_sec_4'!K35 -> 0 | R111: 0 | S111: 0 | U111: 0 | W111: 4 | X111: 0.12 | Z111: ='Sommaire du rôle_sec_4'!L35 -> 0 | AA111: ='Sommaire du rôle_sec_4'!M35 -> 0 | AC111: 0 | AD111: 0 | AF111: 0 | AH111: 4 | AI111: 0.12 | AK111: ='Sommaire du rôle_sec_4'!N35 -> 0 | AL111: ='Sommaire du rôle_sec_4'!O35 -> 0 | AN111: 0 | AO111: 0 | AQ111: 0 | AS111: 4 | AT111: 0.12 | AV111: ='Sommaire du rôle_sec_4'!P35 -> 0 | AW111: ='Sommaire du rôle_sec_4'!Q35 -> 0 | AY111: 0 | AZ111: 0 | BB111: 0 | BD111: 4 | BE111: 0.12 | BG111: ='Sommaire du rôle_sec_4'!R35 -> 0 | BH111: ='Sommaire du rôle_sec_4'!S35 -> 0 | BJ111: 0 | BK111: 0 | BM111: 0 | BO111: 4 | BP111: 0.12 | BR111: ='Sommaire du rôle_sec_4'!T35 -> 0 | BS111: ='Sommaire du rôle_sec_4'!U35 -> 0 | BU111: 0 | BV111: 0 | BX111: 0 | BZ111: 4 | CA111: 0.12 | CC111: ='Sommaire du rôle_sec_4'!V35 -> 0 | CD111: ='Sommaire du rôle_sec_4'!W35 -> 0 | CF111: 0 | CG111: 0 | CI111: 0 | CK111: 4 | CL111: 0.12 | CN111: ='Sommaire du rôle_sec_4'!X35 -> 0 | CO111: ='Sommaire du rôle_sec_4'!Y35 -> 0 | CQ111: 0 | CR111: 0 | CT111: 0 | CV111: 4 | CW111: 0.12 | CY111: ='Sommaire du rôle_sec_4'!Z35 -> 0 | CZ111: ='Sommaire du rôle_sec_4'!AA35 -> 0 | DB111: 0 | DC111: 0 | DE111: 0
A112: 5 | B112: 0.22 | D112: ='Sommaire du rôle_sec_4'!H36 -> 0 | E112: ='Sommaire du rôle_sec_4'!I36 -> 0 | G112: 0 | H112: 0 | J112: 0 | L112: 5 | M112: 0.22 | O112: ='Sommaire du rôle_sec_4'!J36 -> 0 | P112: ='Sommaire du rôle_sec_4'!K36 -> 0 | R112: 0 | S112: 0 | U112: 0 | W112: 5 | X112: 0.22 | Z112: ='Sommaire du rôle_sec_4'!L36 -> 0 | AA112: ='Sommaire du rôle_sec_4'!M36 -> 0 | AC112: 0 | AD112: 0 | AF112: 0 | AH112: 5 | AI112: 0.22 | AK112: ='Sommaire du rôle_sec_4'!N36 -> 0 | AL112: ='Sommaire du rôle_sec_4'!O36 -> 0 | AN112: 0 | AO112: 0 | AQ112: 0 | AS112: 5 | AT112: 0.22 | AV112: ='Sommaire du rôle_sec_4'!P36 -> 0 | AW112: ='Sommaire du rôle_sec_4'!Q36 -> 0 | AY112: 0 | AZ112: 0 | BB112: 0 | BD112: 5 | BE112: 0.22 | BG112: ='Sommaire du rôle_sec_4'!R36 -> 0 | BH112: ='Sommaire du rôle_sec_4'!S36 -> 0 | BJ112: 0 | BK112: 0 | BM112: 0 | BO112: 5 | BP112: 0.22 | BR112: ='Sommaire du rôle_sec_4'!T36 -> 0 | BS112: ='Sommaire du rôle_sec_4'!U36 -> 0 | BU112: 0 | BV112: 0 | BX112: 0 | BZ112: 5 | CA112: 0.22 | CC112: ='Sommaire du rôle_sec_4'!V36 -> 0 | CD112: ='Sommaire du rôle_sec_4'!W36 -> 0 | CF112: 0 | CG112: 0 | CI112: 0 | CK112: 5 | CL112: 0.22 | CN112: ='Sommaire du rôle_sec_4'!X36 -> 0 | CO112: ='Sommaire du rôle_sec_4'!Y36 -> 0 | CQ112: 0 | CR112: 0 | CT112: 0 | CV112: 5 | CW112: 0.22 | CY112: ='Sommaire du rôle_sec_4'!Z36 -> 0 | CZ112: ='Sommaire du rôle_sec_4'!AA36 -> 0 | DB112: 0 | DC112: 0 | DE112: 0
A113: 6 | B113: 0.4 | D113: ='Sommaire du rôle_sec_4'!H37 -> 0 | E113: ='Sommaire du rôle_sec_4'!I37 -> 0 | G113: 0 | H113: 0 | J113: 0 | L113: 6 | M113: 0.4 | O113: ='Sommaire du rôle_sec_4'!J37 -> 0 | P113: ='Sommaire du rôle_sec_4'!K37 -> 0 | R113: 0 | S113: 0 | U113: 0 | W113: 6 | X113: 0.4 | Z113: ='Sommaire du rôle_sec_4'!L37 -> 0 | AA113: ='Sommaire du rôle_sec_4'!M37 -> 0 | AC113: 0 | AD113: 0 | AF113: 0 | AH113: 6 | AI113: 0.4 | AK113: ='Sommaire du rôle_sec_4'!N37 -> 0 | AL113: ='Sommaire du rôle_sec_4'!O37 -> 0 | AN113: 0 | AO113: 0 | AQ113: 0 | AS113: 6 | AT113: 0.4 | AV113: ='Sommaire du rôle_sec_4'!P37 -> 0 | AW113: ='Sommaire du rôle_sec_4'!Q37 -> 0 | AY113: 0 | AZ113: 0 | BB113: 0 | BD113: 6 | BE113: 0.4 | BG113: ='Sommaire du rôle_sec_4'!R37 -> 0 | BH113: ='Sommaire du rôle_sec_4'!S37 -> 0 | BJ113: 0 | BK113: 0 | BM113: 0 | BO113: 6 | BP113: 0.4 | BR113: ='Sommaire du rôle_sec_4'!T37 -> 0 | BS113: ='Sommaire du rôle_sec_4'!U37 -> 0 | BU113: 0 | BV113: 0 | BX113: 0 | BZ113: 6 | CA113: 0.4 | CC113: ='Sommaire du rôle_sec_4'!V37 -> 0 | CD113: ='Sommaire du rôle_sec_4'!W37 -> 0 | CF113: 0 | CG113: 0 | CI113: 0 | CK113: 6 | CL113: 0.4 | CN113: ='Sommaire du rôle_sec_4'!X37 -> 0 | CO113: ='Sommaire du rôle_sec_4'!Y37 -> 0 | CQ113: 0 | CR113: 0 | CT113: 0 | CV113: 6 | CW113: 0.4 | CY113: ='Sommaire du rôle_sec_4'!Z37 -> 0 | CZ113: ='Sommaire du rôle_sec_4'!AA37 -> 0 | DB113: 0 | DC113: 0 | DE113: 0
A114: 7 | B114: 0.6 | D114: ='Sommaire du rôle_sec_4'!H38 -> 0 | E114: ='Sommaire du rôle_sec_4'!I38 -> 0 | G114: 0 | H114: 0 | J114: 0 | L114: 7 | M114: 0.6 | O114: ='Sommaire du rôle_sec_4'!J38 -> 0 | P114: ='Sommaire du rôle_sec_4'!K38 -> 0 | R114: 0 | S114: 0 | U114: 0 | W114: 7 | X114: 0.6 | Z114: ='Sommaire du rôle_sec_4'!L38 -> 0 | AA114: ='Sommaire du rôle_sec_4'!M38 -> 0 | AC114: 0 | AD114: 0 | AF114: 0 | AH114: 7 | AI114: 0.6 | AK114: ='Sommaire du rôle_sec_4'!N38 -> 0 | AL114: ='Sommaire du rôle_sec_4'!O38 -> 0 | AN114: 0 | AO114: 0 | AQ114: 0 | AS114: 7 | AT114: 0.6 | AV114: ='Sommaire du rôle_sec_4'!P38 -> 0 | AW114: ='Sommaire du rôle_sec_4'!Q38 -> 0 | AY114: 0 | AZ114: 0 | BB114: 0 | BD114: 7 | BE114: 0.6 | BG114: ='Sommaire du rôle_sec_4'!R38 -> 0 | BH114: ='Sommaire du rôle_sec_4'!S38 -> 0 | BJ114: 0 | BK114: 0 | BM114: 0 | BO114: 7 | BP114: 0.6 | BR114: ='Sommaire du rôle_sec_4'!T38 -> 0 | BS114: ='Sommaire du rôle_sec_4'!U38 -> 0 | BU114: 0 | BV114: 0 | BX114: 0 | BZ114: 7 | CA114: 0.6 | CC114: ='Sommaire du rôle_sec_4'!V38 -> 0 | CD114: ='Sommaire du rôle_sec_4'!W38 -> 0 | CF114: 0 | CG114: 0 | CI114: 0 | CK114: 7 | CL114: 0.6 | CN114: ='Sommaire du rôle_sec_4'!X38 -> 0 | CO114: ='Sommaire du rôle_sec_4'!Y38 -> 0 | CQ114: 0 | CR114: 0 | CT114: 0 | CV114: 7 | CW114: 0.6 | CY114: ='Sommaire du rôle_sec_4'!Z38 -> 0 | CZ114: ='Sommaire du rôle_sec_4'!AA38 -> 0 | DB114: 0 | DC114: 0 | DE114: 0
A115: 8 | B115: 0.85 | D115: ='Sommaire du rôle_sec_4'!H39 -> 0 | E115: ='Sommaire du rôle_sec_4'!I39 -> 0 | G115: 0 | H115: 0 | J115: 0 | L115: 8 | M115: 0.85 | O115: ='Sommaire du rôle_sec_4'!J39 -> 0 | P115: ='Sommaire du rôle_sec_4'!K39 -> 0 | R115: 0 | S115: 0 | U115: 0 | W115: 8 | X115: 0.85 | Z115: ='Sommaire du rôle_sec_4'!L39 -> 0 | AA115: ='Sommaire du rôle_sec_4'!M39 -> 0 | AC115: 0 | AD115: 0 | AF115: 0 | AH115: 8 | AI115: 0.85 | AK115: ='Sommaire du rôle_sec_4'!N39 -> 0 | AL115: ='Sommaire du rôle_sec_4'!O39 -> 0 | AN115: 0 | AO115: 0 | AQ115: 0 | AS115: 8 | AT115: 0.85 | AV115: ='Sommaire du rôle_sec_4'!P39 -> 0 | AW115: ='Sommaire du rôle_sec_4'!Q39 -> 0 | AY115: 0 | AZ115: 0 | BB115: 0 | BD115: 8 | BE115: 0.85 | BG115: ='Sommaire du rôle_sec_4'!R39 -> 0 | BH115: ='Sommaire du rôle_sec_4'!S39 -> 0 | BJ115: 0 | BK115: 0 | BM115: 0 | BO115: 8 | BP115: 0.85 | BR115: ='Sommaire du rôle_sec_4'!T39 -> 0 | BS115: ='Sommaire du rôle_sec_4'!U39 -> 0 | BU115: 0 | BV115: 0 | BX115: 0 | BZ115: 8 | CA115: 0.85 | CC115: ='Sommaire du rôle_sec_4'!V39 -> 0 | CD115: ='Sommaire du rôle_sec_4'!W39 -> 0 | CF115: 0 | CG115: 0 | CI115: 0 | CK115: 8 | CL115: 0.85 | CN115: ='Sommaire du rôle_sec_4'!X39 -> 0 | CO115: ='Sommaire du rôle_sec_4'!Y39 -> 0 | CQ115: 0 | CR115: 0 | CT115: 0 | CV115: 8 | CW115: 0.85 | CY115: ='Sommaire du rôle_sec_4'!Z39 -> 0 | CZ115: ='Sommaire du rôle_sec_4'!AA39 -> 0 | DB115: 0 | DC115: 0 | DE115: 0
A116: 9 | B116: 1 | D116: ='Sommaire du rôle_sec_4'!H40 -> 0 | E116: ='Sommaire du rôle_sec_4'!I40 -> 0 | G116: 0 | H116: 0 | J116: 0 | L116: 9 | M116: 1 | O116: ='Sommaire du rôle_sec_4'!J40 -> 0 | P116: ='Sommaire du rôle_sec_4'!K40 -> 0 | R116: 0 | S116: 0 | U116: 0 | W116: 9 | X116: 1 | Z116: ='Sommaire du rôle_sec_4'!L40 -> 0 | AA116: ='Sommaire du rôle_sec_4'!M40 -> 0 | AC116: 0 | AD116: 0 | AF116: 0 | AH116: 9 | AI116: 1 | AK116: ='Sommaire du rôle_sec_4'!N40 -> 0 | AL116: ='Sommaire du rôle_sec_4'!O40 -> 0 | AN116: 0 | AO116: 0 | AQ116: 0 | AS116: 9 | AT116: 1 | AV116: ='Sommaire du rôle_sec_4'!P40 -> 0 | AW116: ='Sommaire du rôle_sec_4'!Q40 -> 0 | AY116: 0 | AZ116: 0 | BB116: 0 | BD116: 9 | BE116: 1 | BG116: ='Sommaire du rôle_sec_4'!R40 -> 0 | BH116: ='Sommaire du rôle_sec_4'!S40 -> 0 | BJ116: 0 | BK116: 0 | BM116: 0 | BO116: 9 | BP116: 1 | BR116: ='Sommaire du rôle_sec_4'!T40 -> 0 | BS116: ='Sommaire du rôle_sec_4'!U40 -> 0 | BU116: 0 | BV116: 0 | BX116: 0 | BZ116: 9 | CA116: 1 | CC116: ='Sommaire du rôle_sec_4'!V40 -> 0 | CD116: ='Sommaire du rôle_sec_4'!W40 -> 0 | CF116: 0 | CG116: 0 | CI116: 0 | CK116: 9 | CL116: 1 | CN116: ='Sommaire du rôle_sec_4'!X40 -> 0 | CO116: ='Sommaire du rôle_sec_4'!Y40 -> 0 | CQ116: 0 | CR116: 0 | CT116: 0 | CV116: 9 | CW116: 1 | CY116: ='Sommaire du rôle_sec_4'!Z40 -> 0 | CZ116: ='Sommaire du rôle_sec_4'!AA40 -> 0 | DB116: 0 | DC116: 0 | DE116: 0
A117: 10 | B117: 1 | D117: ='Sommaire du rôle_sec_4'!H41 -> 0 | E117: ='Sommaire du rôle_sec_4'!I41 -> 0 | G117: 0 | H117: 0 | J117: 0 | L117: 10 | M117: 1 | O117: ='Sommaire du rôle_sec_4'!J41 -> 0 | P117: ='Sommaire du rôle_sec_4'!K41 -> 0 | R117: 0 | S117: 0 | U117: 0 | W117: 10 | X117: 1 | Z117: ='Sommaire du rôle_sec_4'!L41 -> 0 | AA117: ='Sommaire du rôle_sec_4'!M41 -> 0 | AC117: 0 | AD117: 0 | AF117: 0 | AH117: 10 | AI117: 1 | AK117: ='Sommaire du rôle_sec_4'!N41 -> 0 | AL117: ='Sommaire du rôle_sec_4'!O41 -> 0 | AN117: 0 | AO117: 0 | AQ117: 0 | AS117: 10 | AT117: 1 | AV117: ='Sommaire du rôle_sec_4'!P41 -> 0 | AW117: ='Sommaire du rôle_sec_4'!Q41 -> 0 | AY117: 0 | AZ117: 0 | BB117: 0 | BD117: 10 | BE117: 1 | BG117: ='Sommaire du rôle_sec_4'!R41 -> 0 | BH117: ='Sommaire du rôle_sec_4'!S41 -> 0 | BJ117: 0 | BK117: 0 | BM117: 0 | BO117: 10 | BP117: 1 | BR117: ='Sommaire du rôle_sec_4'!T41 -> 0 | BS117: ='Sommaire du rôle_sec_4'!U41 -> 0 | BU117: 0 | BV117: 0 | BX117: 0 | BZ117: 10 | CA117: 1 | CC117: ='Sommaire du rôle_sec_4'!V41 -> 0 | CD117: ='Sommaire du rôle_sec_4'!W41 -> 0 | CF117: 0 | CG117: 0 | CI117: 0 | CK117: 10 | CL117: 1 | CN117: ='Sommaire du rôle_sec_4'!X41 -> 0 | CO117: ='Sommaire du rôle_sec_4'!Y41 -> 0 | CQ117: 0 | CR117: 0 | CT117: 0 | CV117: 10 | CW117: 1 | CY117: ='Sommaire du rôle_sec_4'!Z41 -> 0 | CZ117: ='Sommaire du rôle_sec_4'!AA41 -> 0 | DB117: 0 | DC117: 0 | DE117: 0
A118: 11 Cours de triage | B118: 100% | D118: ='Sommaire du rôle_sec_4'!H42 -> 0 | E118: ='Sommaire du rôle_sec_4'!I42 -> 0 | G118: 0 | H118: 0 | J118: 0 | L118: 11 Cours de triage | M118: 100% | O118: ='Sommaire du rôle_sec_4'!J42 -> 0 | P118: ='Sommaire du rôle_sec_4'!K42 -> 0 | R118: 0 | S118: 0 | U118: 0 | W118: 11 Cours de triage | X118: 100% | Z118: ='Sommaire du rôle_sec_4'!L42 -> 0 | AA118: ='Sommaire du rôle_sec_4'!M42 -> 0 | AC118: 0 | AD118: 0 | AF118: 0 | AH118: 11 Cours de triage | AI118: 100% | AK118: ='Sommaire du rôle_sec_4'!N42 -> 0 | AL118: ='Sommaire du rôle_sec_4'!O42 -> 0 | AN118: 0 | AO118: 0 | AQ118: 0 | AS118: 11 Cours de triage | AT118: 100% | AV118: ='Sommaire du rôle_sec_4'!P42 -> 0 | AW118: ='Sommaire du rôle_sec_4'!Q42 -> 0 | AY118: 0 | AZ118: 0 | BB118: 0 | BD118: 11 Cours de triage | BE118: 100% | BG118: ='Sommaire du rôle_sec_4'!R42 -> 0 | BH118: ='Sommaire du rôle_sec_4'!S42 -> 0 | BJ118: 0 | BK118: 0 | BM118: 0 | BO118: 11 Cours de triage | BP118: 100% | BR118: ='Sommaire du rôle_sec_4'!T42 -> 0 | BS118: ='Sommaire du rôle_sec_4'!U42 -> 0 | BU118: 0 | BV118: 0 | BX118: 0 | BZ118: 11 Cours de triage | CA118: 100% | CC118: ='Sommaire du rôle_sec_4'!V42 -> 0 | CD118: ='Sommaire du rôle_sec_4'!W42 -> 0 | CF118: 0 | CG118: 0 | CI118: 0 | CK118: 11 Cours de triage | CL118: 100% | CN118: ='Sommaire du rôle_sec_4'!X42 -> 0 | CO118: ='Sommaire du rôle_sec_4'!Y42 -> 0 | CQ118: 0 | CR118: 0 | CT118: 0 | CV118: 11 Cours de triage | CW118: 100% | CY118: ='Sommaire du rôle_sec_4'!Z42 -> 0 | CZ118: ='Sommaire du rôle_sec_4'!AA42 -> 0 | DB118: 0 | DC118: 0 | DE118: 0
A119: 12 CHSLD | B119: 0.2 | D119: ='Sommaire du rôle_sec_4'!H43 -> 0 | G119: 0 | J119: 0 | L119: 12 CHSLD | M119: 0.2 | O119: ='Sommaire du rôle_sec_4'!J43 -> 0 | R119: 0 | U119: 0 | W119: 12 CHSLD | X119: 0.2 | Z119: ='Sommaire du rôle_sec_4'!L43 -> 0 | AC119: 0 | AF119: 0 | AH119: 12 CHSLD | AI119: 0.2 | AK119: ='Sommaire du rôle_sec_4'!N43 -> 0 | AN119: 0 | AQ119: 0 | AS119: 12 CHSLD | AT119: 0.2 | AV119: ='Sommaire du rôle_sec_4'!P43 -> 0 | AY119: 0 | BB119: 0 | BD119: 12 CHSLD | BE119: 0.2 | BG119: ='Sommaire du rôle_sec_4'!R43 -> 0 | BJ119: 0 | BM119: 0 | BO119: 12 CHSLD | BP119: 0.2 | BR119: ='Sommaire du rôle_sec_4'!T43 -> 0 | BU119: 0 | BX119: 0 | BZ119: 12 CHSLD | CA119: 0.2 | CC119: ='Sommaire du rôle_sec_4'!V43 -> 0 | CF119: 0 | CI119: 0 | CK119: 12 CHSLD | CL119: 0.2 | CN119: ='Sommaire du rôle_sec_4'!X43 -> 0 | CQ119: 0 | CT119: 0 | CV119: 12 CHSLD | CW119: 0.2 | CY119: ='Sommaire du rôle_sec_4'!Z43 -> 0 | DB119: 0 | DE119: 0
A120: 13 Cours de triage 40 % | B120: 40% | D120: ='Sommaire du rôle_sec_4'!H44 -> 0 | G120: 0 | J120: 0 | L120: 13 Cours de triage 40 % | M120: 40% | O120: ='Sommaire du rôle_sec_4'!J44 -> 0 | R120: 0 | U120: 0 | W120: 13 Cours de triage 40 % | X120: 40% | Z120: ='Sommaire du rôle_sec_4'!L44 -> 0 | AC120: 0 | AF120: 0 | AH120: 13 Cours de triage 40 % | AI120: 40% | AK120: ='Sommaire du rôle_sec_4'!N44 -> 0 | AN120: 0 | AQ120: 0 | AS120: 13 Cours de triage 40 % | AT120: 40% | AV120: ='Sommaire du rôle_sec_4'!P44 -> 0 | AY120: 0 | BB120: 0 | BD120: 13 Cours de triage 40 % | BE120: 40% | BG120: ='Sommaire du rôle_sec_4'!R44 -> 0 | BJ120: 0 | BM120: 0 | BO120: 13 Cours de triage 40 % | BP120: 40% | BR120: ='Sommaire du rôle_sec_4'!T44 -> 0 | BU120: 0 | BX120: 0 | BZ120: 13 Cours de triage 40 % | CA120: 40% | CC120: ='Sommaire du rôle_sec_4'!V44 -> 0 | CF120: 0 | CI120: 0 | CK120: 13 Cours de triage 40 % | CL120: 40% | CN120: ='Sommaire du rôle_sec_4'!X44 -> 0 | CQ120: 0 | CT120: 0 | CV120: 13 Cours de triage 40 % | CW120: 40% | CY120: ='Sommaire du rôle_sec_4'!Z44 -> 0 | DB120: 0 | DE120: 0
A121: APPLICATION DU TNR QUAND TTVD | B121: 1 | D121: ='Sommaire du rôle_sec_4'!H45 -> 0 | E121: ='Sommaire du rôle_sec_4'!I45 -> 0 | G121: 0 | H121: =B121*E121 -> 0 | J121: 0 | L121: APPLICATION DU TNR QUAND TTVD | M121: 1 | O121: ='Sommaire du rôle_sec_4'!J45 -> 0 | P121: ='Sommaire du rôle_sec_4'!K45 -> 0 | R121: 0 | S121: =M121*P121 -> 0 | U121: 0 | W121: APPLICATION DU TNR QUAND TTVD | X121: 1 | Z121: ='Sommaire du rôle_sec_4'!L45 -> 0 | AA121: ='Sommaire du rôle_sec_4'!M45 -> 0 | AC121: 0 | AD121: =X121*AA121 -> 0 | AF121: 0 | AH121: APPLICATION DU TNR QUAND TTVD | AI121: 1 | AK121: ='Sommaire du rôle_sec_4'!N45 -> 0 | AL121: ='Sommaire du rôle_sec_4'!O45 -> 0 | AN121: 0 | AO121: =AI121*AL121 -> 0 | AQ121: 0 | AS121: APPLICATION DU TNR QUAND TTVD | AT121: 1 | AV121: ='Sommaire du rôle_sec_4'!P45 -> 0 | AW121: ='Sommaire du rôle_sec_4'!Q45 -> 0 | AY121: 0 | AZ121: =AT121*AW121 -> 0 | BB121: 0 | BD121: APPLICATION DU TNR QUAND TTVD | BE121: 1 | BG121: ='Sommaire du rôle_sec_4'!R45 -> 0 | BH121: ='Sommaire du rôle_sec_4'!S45 -> 0 | BJ121: 0 | BK121: =BE121*BH121 -> 0 | BM121: 0 | BO121: APPLICATION DU TNR QUAND TTVD | BP121: 1 | BR121: ='Sommaire du rôle_sec_4'!T45 -> 0 | BS121: ='Sommaire du rôle_sec_4'!U45 -> 0 | BU121: 0 | BV121: =BP121*BS121 -> 0 | BX121: 0 | BZ121: APPLICATION DU TNR QUAND TTVD | CA121: 1 | CC121: ='Sommaire du rôle_sec_4'!AE45 -> 0 | CD121: ='Sommaire du rôle_sec_4'!AF45 -> 0 | CF121: 0 | CG121: =CA121*CD121 -> 0 | CI121: 0 | CK121: APPLICATION DU TNR QUAND TTVD | CL121: 1 | CN121: ='Sommaire du rôle_sec_4'!X45 -> 0 | CO121: ='Sommaire du rôle_sec_4'!Y45 -> 0 | CQ121: 0 | CR121: =CL121*CO121 -> 0 | CT121: 0 | CV121: APPLICATION DU TNR QUAND TTVD | CW121: 1 | CY121: ='Sommaire du rôle_sec_4'!Z45 -> 0 | CZ121: ='Sommaire du rôle_sec_4'!AA45 -> 0 | DB121: 0 | DC121: =CW121*CZ121 -> 0 | DE121: 0
A122: Total | G122: =SUM(G106:G121) -> 0 | H122: =SUM(H106:H121) -> 0 | J122: 0 | L122: Total | R122: =SUM(R106:R121) -> 0 | S122: =SUM(S106:S121) -> 0 | U122: 0 | W122: Total | AC122: =SUM(AC106:AC121) -> 0 | AD122: =SUM(AD106:AD121) -> 0 | AF122: 0 | AH122: Total | AN122: =SUM(AN106:AN121) -> 0 | AO122: =SUM(AO106:AO121) -> 0 | AQ122: 0 | AS122: Total | AY122: =SUM(AY106:AY121) -> 0 | AZ122: =SUM(AZ106:AZ121) -> 0 | BB122: 0 | BD122: Total | BJ122: =SUM(BJ106:BJ121) -> 0 | BK122: =SUM(BK106:BK121) -> 0 | BM122: 0 | BO122: Total | BU122: =SUM(BU106:BU121) -> 0 | BV122: =SUM(BV106:BV121) -> 0 | BX122: 0 | BZ122: Total | CF122: =SUM(CF106:CF121) -> 0 | CG122: =SUM(CG106:CG121) -> 0 | CI122: 0 | CK122: Total | CQ122: =SUM(CQ106:CQ121) -> 0 | CR122: =SUM(CR106:CR121) -> 0 | CT122: 0 | CV122: Total | DB122: =SUM(DB106:DB121) -> 0 | DC122: =SUM(DC106:DC121) -> 0 | DE122: 0
A124: ASSIETTE SOUS-CATÉGORIE RÉSIDUELLE
A125: Classe non résidentielle | B125: Pourcentage de taxation | D125: VALEUR À 100 %
D126: Imposables | E126: Compensables | G126: Imposables pondérées | H126: Compensables pondérées | J126: Total
B127: (1) | D127: (2) | E127: (3) | G127: (4) = (1) X (2) | H127: (5) = (1) X (3) | J127: (6) = (4) + (5)
A128: 1A | B128: 0.999 | D128: ='Sommaire du rôle_sec_4'!F53 -> 0 | E128: ='Sommaire du rôle_sec_4'!G53 -> 0 | G128: =D128*B128 -> 0 | H128: =B128*E128 -> 0 | J128: =G128+H128 -> 0 | K128: 2359638
A129: 1B | B129: 0.995 | D129: ='Sommaire du rôle_sec_4'!F54 -> 0 | E129: ='Sommaire du rôle_sec_4'!G54 -> 0 | G129: 0 | H129: 0 | J129: 0 | K129: 670132.5
